Workbook

Sheet Accueil
A2: Outil de planning et de masse horraire | J2: Planning avec Lettres (planning a remplir)
A3: Service | C3: =IF(Données!L5="","Remplir dans configuration",Données!L5) -> Remplir dans configuration | J3: Pour remplir heures supplementaires
A4: Année | C4: =IF(An="","Remplir dans configuration",An) -> 2018 | J4: Janvier
J8: Planning avec Horraires (pour RH et ou Equipes)
J9: Novembre
J16: Bilan Equipes
J17: Janvier

Sheet Données
A1: Donné horraire (penser a changer) | E1: Jour | F1: Apres 21h | G1: 1 | L1: Mot de passe : azerty
B2: Debut | C2: Fin | E2: Automatique | G2: 0.8743055556 | L2: Rappel : certainne modifs peuvent prendre quelque secondes
A3: S | B3: 0.5625 | C3: 0.8958333333 | D3: 08:00:00 | E3: =IFERROR(IF(ISTEXT(C3),"00:00",IF(B3<$G$2,IF(C3-B3<0,$G$1+C3-B3,C3-B3),$G$1-(B3-C3))),"00:00") -> 0.3333333333 | F3: 0.0006944444444 | H3: Remplir ici les données (double cliquer pour masquer ou affichier sur la colonne "h" ( un "x" = masquer) | J3: Nombre d'heure annuel
A4: M- | B4: 0.2916666667 | C4: 0.625 | D4: 08:30:00 | E4: =IFERROR(IF(ISTEXT(C4),"00:00",IF(B4<$G$2,IF(C4-B4<0,$G$1+C4-B4,C4-B4),$G$1-(B4-C4))),"00:00") -> 0.3333333333 | F4: 00:00 | L4: Nom du service
A5: M | B5: 0.3333333333 | C5: 0.625 | D5: 08:00:00 | E5: 0.2916666667 | F5: 00:00 | H5: Equipe de jour | S5: Mois | T5: Hmois | U5: Bmois | V5: Reference
A6: J | B6: 0.375 | C6: 0.6875 | D6: 08:00:00 | E6: 0.3125 | F6: 00:00 | H6: A | J6: 60.35694444 | L6: Année | M6: 2018 | S6: Janvier | T6: Janvier | U6: Janvier | V6: 1
A7: J+ | B7: 09:00:00 | C7: 21:00:00 | D7: ST | E7: 0.5 | F7: 00:00 | H7: B | J7: 1444:76 | S7: Février | T7: Février | U7: Février | V7: 2
A8: RS | B8: 09:30:00 | C8: 21:30:00 | D8: HR | E8: 0.5 | F8: 00:00 | H8: L | J8: 1470:65 | S8: Mars | T8: Mars | U8: Mars | V8: 3
A9: N | B9: 20:45:00 | C9: 08:15:00 | D9: TP | E9: 0.4791666667 | F9: 00:00 | H9: L | J9: 61.8125 | N9: Cliquer ici après changement de l'année ou après changement de couleurs/bordure (cela peu prendre quelques minutes) | S9: Avril | T9: Avril | U9: Avril | V9: 4
A10: N- | B10: 20:45:00 | C10: 07:15:00 | D10: F | E10: 0.4375 | F10: 00:00 | J10: 1477:85 | S10: Mai | T10: Mai | U10: Mai | V10: 5
A11: N+ | B11: 19:15:00 | C11: 07:15:00 | D11: Syn | E11: 0.5 | F11: 00:00 | J11: 63 | S11: Juin | T11: Juin | U11: Juin | V11: 6
A12: JS | B12: 08:00:00 | C12: 19:00:00 | D12: AT | E12: 0.4583333333 | F12: 00:00 | J12: 59.5 | S12: Juillet | T12: Juillet | U12: Juillet | V12: 7
A13: SYN | B13: Syn | C13: Syn | D13: AM | E13: 0.3125 | F13: 00:00 | J13: 59.5 | N13: Pour effacer le contenue des plannings | S13: Août | T13: Août | U13: Août | V13: 8
A14: AT | B14: AT | C14: AT | D14: EM | E14: 0.3125 | F14: 00:00 | J14: 59.5 | S14: Septembre | T14: Septembre | U14: Septembre | V14: 9
A15: AM | B15: AM | C15: AM | D15: CE | E15: 0.3125 | F15: 00:00 | I15: X | J15: 59.5 | S15: Octobre | T15: Octobre | U15: Octobre | V15: 10
A16: EM | B16: EM | C16: EM | D16: CA | E16: 0.3125 | F16: 00:00 | I16: X | J16: 59.5 | L16: Pour changer couleurs et bordures des plannings | S16: Novembre | T16: Novembre | U16: Novembre | V16: 11 | W16: Jours feriés et dimanche | X16: Jours feriés et dimanche j-1
A17: CE | B17: CE | C17: CE | D17: CA17 | E17: 0.3125 | F17: 00:00 | I17: X | J17: 59.5 | L17: jours | M17: Semaine | N17: W | S17: Décembre | T17: Décembre | U17: Décembre | V17: 12
A18: CA | B18: CA | C18: CA | D18: REC | E18: 0.3166666667 | F18: 00:00 | I18: X | J18: 59.5
A19: CA17 | B19: CA17 | C19: CA17 | D19: PL | E19: 0.2916666667 | F19: 00:00 | I19: X | J19: 59.5 | L19: Equipe de jour | S19: Jours feriés
A20: REC | B20: REC | C20: REC | D20: FIR | E20: 0.3166666667 | F20: 00:00 | I20: X | J20: 59.5 | S20: Jour de l'an | U20: =DATE(An,Janvier,1) -> 2018-01-01 | W20: =U20 -> 2018-01-01 | X20: =W20-1 -> 2017-12-31
A21: PL | B21: PL | C21: PL | E21: 0.3166666667 | F21: 00:00 | I21: X | J21: 59.5 | S21: Pâques | U21: =IF(MOD(19*MOD(An,19)+24,30)+MOD(2*MOD(An,4)+4*MOD(An,7)+6* MOD(19*MOD(An,19)+24,30)+5,7)-9<=0,DATE(An,3,22+MOD(19*MOD(An, 19)+24,30)+MOD(2*MOD(An,4)+4*MOD(An,7)+6*MOD(19*MOD(An,19)+24, 30)+5,7)),DATE(An,4,MOD(19*MOD(An,19)+24,30)+MOD(2*MOD(An,4)+4* MOD(An,7)+6*MOD(19*MOD(An,19)+24,30)+5,7)-9)) -> 2018-04-01 | W21: =U21 -> 2018-04-01 | X21: =W21-1 -> 2018-03-31
D22: 00:00 | E22: =IFERROR(IF(ISTEXT(C22),"00:00",IF(B22<$G$2,IF(C22-B22<0,$G$1+C22-B22,C22-B22),$G$1-(B22-C22))),"00:00") -> 0 | F22: 00:00 | H22: Equipe de nuit | S22: Lundi de Pâques | U22: =U21+1 -> 2018-04-02 | W22: 2018-04-02 | X22: 2018-04-01
D23: 00:00 | E23: 0 | F23: 00:00 | J23: 57.95833333 | S23: Fête du travail | U23: =DATE(An,Mai,1) -> 2018-05-01 | W23: 2018-05-01 | X23: 2018-04-30
D24: 00:00 | E24: 0 | F24: 00:00 | J24: 57.95833333 | S24: Armistice 1945 | U24: =DATE(An,Mai,8) -> 2018-05-08 | W24: 2018-05-08 | X24: 2018-05-07
D25: 00:00 | E25: 0 | F25: 00:00 | J25: 57.95833333 | S25: Ascension | U25: =U21+39 -> 2018-05-10 | W25: 2018-05-10 | X25: 2018-05-09
D26: 00:00 | E26: 0 | F26: 00:00 | I26: X | J26: 59.5 | S26: Pentecôte | U26: =U21+49 -> 2018-05-20 | W26: 2018-05-20 | X26: 2018-05-19
D27: 00:00 | E27: 0 | F27: 00:00 | I27: X | J27: 59.5 | S27: Lundi de Pentecote | U27: =U21+50 -> 2018-05-21 | W27: 2018-05-21 | X27: 2018-05-20
D28: 00:00 | E28: 0 | F28: 00:00 | I28: X | J28: 59.5 | S28: Fête nationale | U28: =DATE(An,Juillet,14) -> 2018-07-14 | W28: 2018-07-14 | X28: 2018-07-13
D29: 00:00 | E29: 0 | F29: 00:00 | I29: X | J29: 59.5 | S29: Assomption | U29: =DATE(An,Aout,15) -> 2018-08-15 | W29: 2018-08-15 | X29: 2018-08-14
D30: 00:00 | E30: 0 | F30: 00:00 | I30: X | J30: 59.5 | S30: Toussaint | U30: =DATE(An,Novembre,1) -> 2018-11-01 | W30: 2018-11-01 | X30: 2018-10-31
D31: 00:00 | E31: =IFERROR(IF(ISTEXT(C31),"00:00",IF(B31<$G$2,IF(C31-B31<0,$G$1+C31-B31,C31-B31),$G$1-(B31-C31))),"00:00") -> 0 | F31: 00:00 | I31: X | J31: 59.5 | S31: Armistice 1918 | U31: =DATE(An,Novembre,11) -> 2018-11-11 | W31: 2018-11-11 | X31: 2018-11-10
D32: 00:00 | E32: 0 | F32: 00:00 | H32: Maitresse de maison | S32: NOEL | U32: =DATE(An,Decembre,25) -> 2018-12-25 | W32: 2018-12-25 | X32: 2018-12-24
D33: 00:00 | E33: 0 | F33: 00:00 | J33: 63 | W33: =IF(WEEKDAY(DATE(An,1,1),2)=1,DATE(An,1,1)+6,IF(WEEKDAY(DATE(An,1,1),2)=2,DATE(An,1,1)+5,IF(WEEKDAY(DATE(An,1,1),2)=3,DATE(An,1,1)+4,IF(WEEKDAY(DATE(An,1,1),2)=4,DATE(An,1,1)+3,IF(WEEKDAY(DATE(An,1,1),2)=5,DATE(An,1,1)+2,IF(WEEKDAY(DATE(An,1,1),2)=6,DATE(An,1,1)+1,DATE(An,1,1))))))) -> 2018-01-07 | X33: 2018-01-06
D34: 00:00 | E34: 0 | F34: 00:00 | I34: X | J34: 59.5 | W34: =IF(WEEKDAY(W33,2)=6,W33+1,IF(WEEKDAY(W33,2)=7,W33+7,10)) -> 2018-01-14 | X34: 2018-01-13
D35: 00:00 | E35: 0 | F35: 00:00 | I35: X | J35: 59.5 | W35: =IF(WEEKDAY(W34,2)=6,W34+1,IF(WEEKDAY(W34,2)=7,W34+7,10)) -> 2018-01-21 | X35: 2018-01-20
D36: 00:00 | E36: 0 | I36: X | J36: 59.5 | W36: 2018-01-28 | X36: 2018-01-27
D37: 00:00 | E37: 0 | I37: X | J37: 59.5 | W37: 2018-02-04 | X37: 2018-02-03
D38: 00:00 | E38: 0 | I38: X | J38: 59.5 | W38: 2018-02-11 | X38: 2018-02-10
D39: 00:00 | E39: 0 | I39: X | J39: 59.5 | W39: 2018-02-18 | X39: 2018-02-17
D40: 00:00 | E40: 0 | I40: X | J40: 59.5 | W40: 2018-02-25 | X40: 2018-02-24
D41: 00:00 | E41: 0 | I41: X | J41: 59.5 | W41: 2018-03-04 | X41: 2018-03-03
D42: 00:00 | E42: 0 | H42: Psychologue | W42: 2018-03-11 | X42: 2018-03-10
D43: 00:00 | E43: 0 | J43: 63 | W43: 2018-03-18 | X43: 2018-03-17
D44: 00:00 | E44: 0 | I44: X | J44: 59.5 | W44: 2018-03-25 | X44: 2018-03-24
A45: 0 | E45: 00:00 | I45: X | J45: 59.5 | W45: 2018-04-01 | X45: 2018-03-31
H46: Coordinatrice | W46: 2018-04-08 | X46: 2018-04-07
J47: 63 | W47: 2018-04-15 | X47: 2018-04-14
I48: X | J48: 59.5 | W48: 2018-04-22 | X48: 2018-04-21
I49: X | J49: 59.5 | W49: 2018-04-29 | X49: 2018-04-28
I50: X | J50: 59.5 | W50: 2018-05-06 | X50: 2018-05-05
I51: X | J51: 59.5 | W51: 2018-05-13 | X51: 2018-05-12
H52: Chef de service | W52: 2018-05-20 | X52: 2018-05-19
J53: 63 | W53: 2018-05-27 | X53: 2018-05-26
W54: 2018-06-03 | X54: 2018-06-02
W55: 2018-06-10 | X55: 2018-06-09
W56: 2018-06-17 | X56: 2018-06-16
W57: 2018-06-24 | X57: 2018-06-23
W58: 2018-07-01 | X58: 2018-06-30
W59: 2018-07-08 | X59: 2018-07-07
W60: 2018-07-15 | X60: 2018-07-14
W61: 2018-07-22 | X61: 2018-07-21
W62: 2018-07-29 | X62: 2018-07-28
W63: 2018-08-05 | X63: 2018-08-04
W64: 2018-08-12 | X64: 2018-08-11
W65: 2018-08-19 | X65: 2018-08-18
W66: 2018-08-26 | X66: 2018-08-25
W67: 2018-09-02 | X67: 2018-09-01
W68: 2018-09-09 | X68: 2018-09-08
W69: 2018-09-16 | X69: 2018-09-15
W70: 2018-09-23 | X70: 2018-09-22
W71: 2018-09-30 | X71: 2018-09-29
W72: 2018-10-07 | X72: 2018-10-06
W73: 2018-10-14 | X73: 2018-10-13
W74: 2018-10-21 | X74: 2018-10-20
W75: 2018-10-28 | X75: 2018-10-27
W76: 2018-11-04 | X76: 2018-11-03
W77: 2018-11-11 | X77: 2018-11-10
W78: 2018-11-18 | X78: 2018-11-17
W79: 2018-11-25 | X79: 2018-11-24
W80: 2018-12-02 | X80: 2018-12-01
W81: 2018-12-09 | X81: 2018-12-08
W82: 2018-12-16 | X82: 2018-12-15
W83: 2018-12-23 | X83: 2018-12-22
W84: 2018-12-30 | X84: 2018-12-29
W85: 2019-01-06 | X85: =W85-1 -> 2019-01-05

Sheet Janvier
B2: =DATE(An,Janvier,B7) -> 2018-01-01 | C2: 2018-01-02 | D2: 2018-01-03 | E2: 2018-01-04 | F2: 2018-01-05 | G2: 2018-01-06 | H2: 2018-01-07 | I2: 2018-01-08 | J2: 2018-01-09 | K2: 2018-01-10 | L2: 2018-01-11 | M2: 2018-01-12 | N2: 2018-01-13 | O2: 2018-01-14 | P2: 2018-01-15 | Q2: 2018-01-16 | R2: 2018-01-17 | S2: 2018-01-18 | T2: 2018-01-19 | U2: 2018-01-20 | V2: 2018-01-21 | W2: 2018-01-22 | X2: 2018-01-23 | Y2: 2018-01-24 | Z2: 2018-01-25 | AA2: 2018-01-26 | AB2: 2018-01-27 | AC2: 2018-01-28 | AD2: 2018-01-29 | AE2: 2018-01-30 | AF2: 2018-01-31 | AI2: Pour remplir | AJ2: penser | AO2: =IF(ISNUMBER(AO7),DATE(An,Janvier,AO7),"") ->  | AP2: =IF(ISNUMBER(AP7),DATE(An,Janvier,AP7),"") -> 
A3: =IF(Données!$L$5="","Service",Données!$L$5) -> Service | K3: Mois de Janvier | O3: =An -> 2018 | AI3: à mettre dans le format:
AI4: "heures":"Minutes" | AS4: Heures sup Année precedente | AT4: Masse horraire previsionnel
AI5: Heures sup | AJ5: Heures sup | AL5: Indications | AM5: Indications | AN5: Indications | AP5: Total
A6: Jours | B6: =PROPER(LEFT(TEXT(DATE(An,Janvier,B7),"jjj"),1)) -> L | C6: =PROPER(LEFT(TEXT(DATE(An,Janvier,C7),"jjj"),1)) -> M | D6: M | E6: J | F6: V | G6: S | H6: D | I6: L | J6: M | K6: M | L6: J | M6: V | N6: S | O6: D | P6: L | Q6: M | R6: M | S6: J | T6: V | U6: S | V6: D | W6: L | X6: M | Y6: M | Z6: J | AA6: V | AB6: S | AC6: D | AD6: L | AE6: M | AF6: M | AI6: avant 21h | AJ6: après 21h | AL6: Heures | AM6: Heures nuit | AN6: Heures | AP6: Heures | AQ6: Heures
B7: =A7+1 -> 1 | C7: 2 | D7: 3 | E7: 4 | F7: 5 | G7: 6 | H7: 7 | I7: 8 | J7: 9 | K7: 10 | L7: 11 | M7: 12 | N7: 13 | O7: 14 | P7: 15 | Q7: 16 | R7: 17 | S7: 18 | T7: 19 | U7: 20 | V7: 21 | W7: 22 | X7: 23 | Y7: 24 | Z7: 25 | AA7: 26 | AB7: 27 | AC7: 28 | AD7: 29 | AE7: 30 | AF7: 31 | AI7: A remplir | AJ7: A remplir | AL7: Dimanche | AM7: Dimanche | AN7: après 21h | AP7: au mois | AQ7: a l'année | AS7: A remplir | AT7: i
A8: Equipe de jour
A9: =Données!$H6 -> A | B9: W | D9: M | E9: J | F9: S | I9: S | J9: S | K9: M | L9: M | M9: M | P9: S | R9: W+ | S9: N | V9: S | X9: RS | Y9: JS | AD9: ca | AE9: ca | AF9: ca | AL9: =VLOOKUP($A9,BJanvier!$A$8:$BC$57,35,FALSE) -> 0.3125 | AM9: =VLOOKUP($A9,BJanvier!$A$8:$BC$57,36,FALSE) -> 0.02083333333 | AN9: =VLOOKUP($A9,BJanvier!$A$8:$BC$57,37,FALSE) -> 0.46875 | AP9: =VLOOKUP($A9,BJanvier!$A$8:$BC$57,39,FALSE) -> 5.533333333 | AQ9: =VLOOKUP($A9,Bilan!$A$8:$BE$57,41,FALSE) -> 5.533333333 | AT9: =IFERROR(SUM((VLOOKUP(Janvier!A9,Données!$H$6:$J$53,3,TRUE)/12)*1),"") -> 5.02974537
A10: =Données!$H7 -> B | AL10: =VLOOKUP($A10,BJanvier!$A$8:$BC$57,35,FALSE) -> 0 | AM10: =VLOOKUP($A10,BJanvier!$A$8:$BC$57,36,FALSE) -> 0 | AN10: =VLOOKUP($A10,BJanvier!$A$8:$BC$57,37,FALSE) -> 0 | AP10: =VLOOKUP($A10,BJanvier!$A$8:$BC$57,39,FALSE) -> 0 | AQ10: =VLOOKUP($A10,Bilan!$A$8:$BE$57,41,FALSE) -> 0 | AT10: =IFERROR(SUM((VLOOKUP(Janvier!A10,Données!$H$6:$J$53,3,TRUE)/12)*1),"") -> 
A11: =Données!$H8 -> L | AL11: =VLOOKUP($A11,BJanvier!$A$8:$BC$57,35,FALSE) -> 0 | AM11: =VLOOKUP($A11,BJanvier!$A$8:$BC$57,36,FALSE) -> 0 | AN11: =VLOOKUP($A11,BJanvier!$A$8:$BC$57,37,FALSE) -> 0 | AP11: =VLOOKUP($A11,BJanvier!$A$8:$BC$57,39,FALSE) -> 0 | AQ11: =VLOOKUP($A11,Bilan!$A$8:$BE$57,41,FALSE) -> 0 | AT11: =IFERROR(SUM((VLOOKUP(Janvier!A11,Données!$H$6:$J$53,3,TRUE)/12)*1),"") -> 0
A12: =Données!$H9 -> L | AL12: =VLOOKUP($A12,BJanvier!$A$8:$BC$57,35,FALSE) -> 0 | AM12: =VLOOKUP($A12,BJanvier!$A$8:$BC$57,36,FALSE) -> 0 | AN12: =VLOOKUP($A12,BJanvier!$A$8:$BC$57,37,FALSE) -> 0 | AP12: =VLOOKUP($A12,BJanvier!$A$8:$BC$57,39,FALSE) -> 0 | AQ12: =VLOOKUP($A12,Bilan!$A$8:$BE$57,41,FALSE) -> 0 | AT12: =IFERROR(SUM((VLOOKUP(Janvier!A12,Données!$H$6:$J$53,3,TRUE)/12)*1),"") -> 0
A13: =Données!$H10 -> 0 | AL13: =VLOOKUP($A13,BJanvier!$A$8:$BC$57,35,FALSE) -> 0 | AM13: =VLOOKUP($A13,BJanvier!$A$8:$BC$57,36,FALSE) -> 0 | AN13: =VLOOKUP($A13,BJanvier!$A$8:$BC$57,37,FALSE) -> 0 | AP13: =VLOOKUP($A13,BJanvier!$A$8:$BC$57,39,FALSE) -> 0 | AQ13: =VLOOKUP($A13,Bilan!$A$8:$BE$57,41,FALSE) -> 0 | AT13: =IFERROR(SUM((VLOOKUP(Janvier!A13,Données!$H$6:$J$53,3,TRUE)/12)*1),"") -> 
A14: =Données!$H11 -> 0 | AL14: =VLOOKUP($A14,BJanvier!$A$8:$BC$57,35,FALSE) -> 0 | AM14: =VLOOKUP($A14,BJanvier!$A$8:$BC$57,36,FALSE) -> 0 | AN14: =VLOOKUP($A14,BJanvier!$A$8:$BC$57,37,FALSE) -> 0 | AP14: =VLOOKUP($A14,BJanvier!$A$8:$BC$57,39,FALSE) -> 0 | AQ14: =VLOOKUP($A14,Bilan!$A$8:$BE$57,41,FALSE) -> 0 | AT14: =IFERROR(SUM((VLOOKUP(Janvier!A14,Données!$H$6:$J$53,3,TRUE)/12)*1),"") -> 
A15: =Données!$H12 -> 0 | AL15: =VLOOKUP($A15,BJanvier!$A$8:$BC$57,35,FALSE) -> 0 | AM15: =VLOOKUP($A15,BJanvier!$A$8:$BC$57,36,FALSE) -> 0 | AN15: =VLOOKUP($A15,BJanvier!$A$8:$BC$57,37,FALSE) -> 0 | AP15: =VLOOKUP($A15,BJanvier!$A$8:$BC$57,39,FALSE) -> 0 | AQ15: =VLOOKUP($A15,Bilan!$A$8:$BE$57,41,FALSE) -> 0 | AT15: =IFERROR(SUM((VLOOKUP(Janvier!A15,Données!$H$6:$J$53,3,TRUE)/12)*1),"") -> 
A16: =Données!$H13 -> 0 | AL16: =VLOOKUP($A16,BJanvier!$A$8:$BC$57,35,FALSE) -> 0 | AM16: =VLOOKUP($A16,BJanvier!$A$8:$BC$57,36,FALSE) -> 0 | AN16: =VLOOKUP($A16,BJanvier!$A$8:$BC$57,37,FALSE) -> 0 | AP16: =VLOOKUP($A16,BJanvier!$A$8:$BC$57,39,FALSE) -> 0 | AQ16: =VLOOKUP($A16,Bilan!$A$8:$BE$57,41,FALSE) -> 0 | AT16: =IFERROR(SUM((VLOOKUP(Janvier!A16,Données!$H$6:$J$53,3,TRUE)/12)*1),"") -> 
A17: =Données!$H14 -> 0 | AL17: =VLOOKUP($A17,BJanvier!$A$8:$BC$57,35,FALSE) -> 0 | AM17: =VLOOKUP($A17,BJanvier!$A$8:$BC$57,36,FALSE) -> 0 | AN17: =VLOOKUP($A17,BJanvier!$A$8:$BC$57,37,FALSE) -> 0 | AP17: =VLOOKUP($A17,BJanvier!$A$8:$BC$57,39,FALSE) -> 0 | AQ17: =VLOOKUP($A17,Bilan!$A$8:$BE$57,41,FALSE) -> 0 | AT17: =IFERROR(SUM((VLOOKUP(Janvier!A17,Données!$H$6:$J$53,3,TRUE)/12)*1),"") -> 
A18: =Données!$H15 -> 0 | AL18: =VLOOKUP($A18,BJanvier!$A$8:$BC$57,35,FALSE) -> 0 | AM18: =VLOOKUP($A18,BJanvier!$A$8:$BC$57,36,FALSE) -> 0 | AN18: =VLOOKUP($A18,BJanvier!$A$8:$BC$57,37,FALSE) -> 0 | AP18: =VLOOKUP($A18,BJanvier!$A$8:$BC$57,39,FALSE) -> 0 | AQ18: =VLOOKUP($A18,Bilan!$A$8:$BE$57,41,FALSE) -> 0 | AT18: =IFERROR(SUM((VLOOKUP(Janvier!A18,Données!$H$6:$J$53,3,TRUE)/12)*1),"") -> 
A19: =Données!$H16 -> 0 | AL19: =VLOOKUP($A19,BJanvier!$A$8:$BC$57,35,FALSE) -> 0 | AM19: =VLOOKUP($A19,BJanvier!$A$8:$BC$57,36,FALSE) -> 0 | AN19: =VLOOKUP($A19,BJanvier!$A$8:$BC$57,37,FALSE) -> 0 | AP19: =VLOOKUP($A19,BJanvier!$A$8:$BC$57,39,FALSE) -> 0 | AQ19: =VLOOKUP($A19,Bilan!$A$8:$BE$57,41,FALSE) -> 0 | AT19: =IFERROR(SUM((VLOOKUP(Janvier!A19,Données!$H$6:$J$53,3,TRUE)/12)*1),"") -> 
A20: =Données!$H17 -> 0 | AL20: =VLOOKUP($A20,BJanvier!$A$8:$BC$57,35,FALSE) -> 0 | AM20: =VLOOKUP($A20,BJanvier!$A$8:$BC$57,36,FALSE) -> 0 | AN20: =VLOOKUP($A20,BJanvier!$A$8:$BC$57,37,FALSE) -> 0 | AP20: =VLOOKUP($A20,BJanvier!$A$8:$BC$57,39,FALSE) -> 0 | AQ20: =VLOOKUP($A20,Bilan!$A$8:$BE$57,41,FALSE) -> 0 | AT20: =IFERROR(SUM((VLOOKUP(Janvier!A20,Données!$H$6:$J$53,3,TRUE)/12)*1),"") -> 
A21: =Données!$H18 -> 0 | AL21: =VLOOKUP($A21,BJanvier!$A$8:$BC$57,35,FALSE) -> 0 | AM21: =VLOOKUP($A21,BJanvier!$A$8:$BC$57,36,FALSE) -> 0 | AN21: =VLOOKUP($A21,BJanvier!$A$8:$BC$57,37,FALSE) -> 0 | AP21: =VLOOKUP($A21,BJanvier!$A$8:$BC$57,39,FALSE) -> 0 | AQ21: =VLOOKUP($A21,Bilan!$A$8:$BE$57,41,FALSE) -> 0 | AT21: =IFERROR(SUM((VLOOKUP(Janvier!A21,Données!$H$6:$J$53,3,TRUE)/12)*1),"") -> 
A22: =Données!$H19 -> 0 | AL22: =VLOOKUP($A22,BJanvier!$A$8:$BC$57,35,FALSE) -> 0 | AM22: =VLOOKUP($A22,BJanvier!$A$8:$BC$57,36,FALSE) -> 0 | AN22: =VLOOKUP($A22,BJanvier!$A$8:$BC$57,37,FALSE) -> 0 | AP22: =VLOOKUP($A22,BJanvier!$A$8:$BC$57,39,FALSE) -> 0 | AQ22: =VLOOKUP($A22,Bilan!$A$8:$BE$57,41,FALSE) -> 0 | AT22: =IFERROR(SUM((VLOOKUP(Janvier!A22,Données!$H$6:$J$53,3,TRUE)/12)*1),"") -> 
A23: =Données!$H20 -> 0 | AL23: =VLOOKUP($A23,BJanvier!$A$8:$BC$57,35,FALSE) -> 0 | AM23: =VLOOKUP($A23,BJanvier!$A$8:$BC$57,36,FALSE) -> 0 | AN23: =VLOOKUP($A23,BJanvier!$A$8:$BC$57,37,FALSE) -> 0 | AP23: =VLOOKUP($A23,BJanvier!$A$8:$BC$57,39,FALSE) -> 0 | AQ23: =VLOOKUP($A23,Bilan!$A$8:$BE$57,41,FALSE) -> 0 | AT23: =IFERROR(SUM((VLOOKUP(Janvier!A23,Données!$H$6:$J$53,3,TRUE)/12)*1),"") -> 
A24: =Données!$H21 -> 0 | AL24: =VLOOKUP($A24,BJanvier!$A$8:$BC$57,35,FALSE) -> 0 | AM24: =VLOOKUP($A24,BJanvier!$A$8:$BC$57,36,FALSE) -> 0 | AN24: =VLOOKUP($A24,BJanvier!$A$8:$BC$57,37,FALSE) -> 0 | AP24: =VLOOKUP($A24,BJanvier!$A$8:$BC$57,39,FALSE) -> 0 | AQ24: =VLOOKUP($A24,Bilan!$A$8:$BE$57,41,FALSE) -> 0 | AT24: =IFERROR(SUM((VLOOKUP(Janvier!A24,Données!$H$6:$J$53,3,TRUE)/12)*1),"") -> 
A25: =Données!$H22 -> Equipe de nuit
A26: =Données!$H23 -> 0 | AL26: =VLOOKUP($A26,BJanvier!$A$8:$BC$57,35,FALSE) -> 0 | AM26: =VLOOKUP($A26,BJanvier!$A$8:$BC$57,36,FALSE) -> 0 | AN26: =VLOOKUP($A26,BJanvier!$A$8:$BC$57,37,FALSE) -> 0 | AP26: =VLOOKUP($A26,BJanvier!$A$8:$BC$57,39,FALSE) -> 0 | AQ26: =VLOOKUP($A26,Bilan!$A$8:$BE$57,41,FALSE) -> 0 | AT26: =IFERROR(SUM((VLOOKUP(Janvier!A26,Données!$H$6:$J$53,3,TRUE)/12)*1),"") -> 
A27: =Données!$H24 -> 0 | AL27: =VLOOKUP($A27,BJanvier!$A$8:$BC$57,35,FALSE) -> 0 | AM27: =VLOOKUP($A27,BJanvier!$A$8:$BC$57,36,FALSE) -> 0 | AN27: =VLOOKUP($A27,BJanvier!$A$8:$BC$57,37,FALSE) -> 0 | AP27: =VLOOKUP($A27,BJanvier!$A$8:$BC$57,39,FALSE) -> 0 | AQ27: =VLOOKUP($A27,Bilan!$A$8:$BE$57,41,FALSE) -> 0 | AT27: =IFERROR(SUM((VLOOKUP(Janvier!A27,Données!$H$6:$J$53,3,TRUE)/12)*1),"") -> 
A28: =Données!$H25 -> 0 | AL28: =VLOOKUP($A28,BJanvier!$A$8:$BC$57,35,FALSE) -> 0 | AM28: =VLOOKUP($A28,BJanvier!$A$8:$BC$57,36,FALSE) -> 0 | AN28: =VLOOKUP($A28,BJanvier!$A$8:$BC$57,37,FALSE) -> 0 | AP28: =VLOOKUP($A28,BJanvier!$A$8:$BC$57,39,FALSE) -> 0 | AQ28: =VLOOKUP($A28,Bilan!$A$8:$BE$57,41,FALSE) -> 0 | AT28: =IFERROR(SUM((VLOOKUP(Janvier!A28,Données!$H$6:$J$53,3,TRUE)/12)*1),"") -> 
A29: =Données!$H26 -> 0 | AL29: =VLOOKUP($A29,BJanvier!$A$8:$BC$57,35,FALSE) -> 0 | AM29: =VLOOKUP($A29,BJanvier!$A$8:$BC$57,36,FALSE) -> 0 | AN29: =VLOOKUP($A29,BJanvier!$A$8:$BC$57,37,FALSE) -> 0 | AP29: =VLOOKUP($A29,BJanvier!$A$8:$BC$57,39,FALSE) -> 0 | AQ29: =VLOOKUP($A29,Bilan!$A$8:$BE$57,41,FALSE) -> 0 | AT29: =IFERROR(SUM((VLOOKUP(Janvier!A29,Données!$H$6:$J$53,3,TRUE)/12)*1),"") -> 
A30: =Données!$H27 -> 0 | AL30: =VLOOKUP($A30,BJanvier!$A$8:$BC$57,35,FALSE) -> 0 | AM30: =VLOOKUP($A30,BJanvier!$A$8:$BC$57,36,FALSE) -> 0 | AN30: =VLOOKUP($A30,BJanvier!$A$8:$BC$57,37,FALSE) -> 0 | AP30: =VLOOKUP($A30,BJanvier!$A$8:$BC$57,39,FALSE) -> 0 | AQ30: =VLOOKUP($A30,Bilan!$A$8:$BE$57,41,FALSE) -> 0 | AT30: =IFERROR(SUM((VLOOKUP(Janvier!A30,Données!$H$6:$J$53,3,TRUE)/12)*1),"") -> 
A31: =Données!$H28 -> 0 | AL31: =VLOOKUP($A31,BJanvier!$A$8:$BC$57,35,FALSE) -> 0 | AM31: =VLOOKUP($A31,BJanvier!$A$8:$BC$57,36,FALSE) -> 0 | AN31: =VLOOKUP($A31,BJanvier!$A$8:$BC$57,37,FALSE) -> 0 | AP31: =VLOOKUP($A31,BJanvier!$A$8:$BC$57,39,FALSE) -> 0 | AQ31: =VLOOKUP($A31,Bilan!$A$8:$BE$57,41,FALSE) -> 0 | AT31: =IFERROR(SUM((VLOOKUP(Janvier!A31,Données!$H$6:$J$53,3,TRUE)/12)*1),"") -> 
A32: =Données!$H29 -> 0 | AL32: =VLOOKUP($A32,BJanvier!$A$8:$BC$57,35,FALSE) -> 0 | AM32: =VLOOKUP($A32,BJanvier!$A$8:$BC$57,36,FALSE) -> 0 | AN32: =VLOOKUP($A32,BJanvier!$A$8:$BC$57,37,FALSE) -> 0 | AP32: =VLOOKUP($A32,BJanvier!$A$8:$BC$57,39,FALSE) -> 0 | AQ32: =VLOOKUP($A32,Bilan!$A$8:$BE$57,41,FALSE) -> 0 | AT32: =IFERROR(SUM((VLOOKUP(Janvier!A32,Données!$H$6:$J$53,3,TRUE)/12)*1),"") -> 
A33: =Données!$H30 -> 0 | AL33: =VLOOKUP($A33,BJanvier!$A$8:$BC$57,35,FALSE) -> 0 | AM33: =VLOOKUP($A33,BJanvier!$A$8:$BC$57,36,FALSE) -> 0 | AN33: =VLOOKUP($A33,BJanvier!$A$8:$BC$57,37,FALSE) -> 0 | AP33: =VLOOKUP($A33,BJanvier!$A$8:$BC$57,39,FALSE) -> 0 | AQ33: =VLOOKUP($A33,Bilan!$A$8:$BE$57,41,FALSE) -> 0 | AT33: =IFERROR(SUM((VLOOKUP(Janvier!A33,Données!$H$6:$J$53,3,TRUE)/12)*1),"") -> 
A34: =Données!$H31 -> 0 | AL34: =VLOOKUP($A34,BJanvier!$A$8:$BC$57,35,FALSE) -> 0 | AM34: =VLOOKUP($A34,BJanvier!$A$8:$BC$57,36,FALSE) -> 0 | AN34: =VLOOKUP($A34,BJanvier!$A$8:$BC$57,37,FALSE) -> 0 | AP34: =VLOOKUP($A34,BJanvier!$A$8:$BC$57,39,FALSE) -> 0 | AQ34: =VLOOKUP($A34,Bilan!$A$8:$BE$57,41,FALSE) -> 0 | AT34: =IFERROR(SUM((VLOOKUP(Janvier!A34,Données!$H$6:$J$53,3,TRUE)/12)*1),"") -> 
A35: =Données!$H32 -> Maitresse de maison
A36: =Données!$H33 -> 0 | AL36: =VLOOKUP($A36,BJanvier!$A$8:$BC$57,35,FALSE) -> 0 | AM36: =VLOOKUP($A36,BJanvier!$A$8:$BC$57,36,FALSE) -> 0 | AN36: =VLOOKUP($A36,BJanvier!$A$8:$BC$57,37,FALSE) -> 0 | AP36: =VLOOKUP($A36,BJanvier!$A$8:$BC$57,39,FALSE) -> 0 | AQ36: =VLOOKUP($A36,Bilan!$A$8:$BE$57,41,FALSE) -> 0 | AT36: =IFERROR(SUM((VLOOKUP(Janvier!A36,Données!$H$6:$J$53,3,TRUE)/12)*1),"") -> 
A37: =Données!$H34 -> 0 | AL37: =VLOOKUP($A37,BJanvier!$A$8:$BC$57,35,FALSE) -> 0 | AM37: =VLOOKUP($A37,BJanvier!$A$8:$BC$57,36,FALSE) -> 0 | AN37: =VLOOKUP($A37,BJanvier!$A$8:$BC$57,37,FALSE) -> 0 | AP37: =VLOOKUP($A37,BJanvier!$A$8:$BC$57,39,FALSE) -> 0 | AQ37: =VLOOKUP($A37,Bilan!$A$8:$BE$57,41,FALSE) -> 0 | AT37: =IFERROR(SUM((VLOOKUP(Janvier!A37,Données!$H$6:$J$53,3,TRUE)/12)*1),"") -> 
A38: =Données!$H35 -> 0 | AL38: =VLOOKUP($A38,BJanvier!$A$8:$BC$57,35,FALSE) -> 0 | AM38: =VLOOKUP($A38,BJanvier!$A$8:$BC$57,36,FALSE) -> 0 | AN38: =VLOOKUP($A38,BJanvier!$A$8:$BC$57,37,FALSE) -> 0 | AP38: =VLOOKUP($A38,BJanvier!$A$8:$BC$57,39,FALSE) -> 0 | AQ38: =VLOOKUP($A38,Bilan!$A$8:$BE$57,41,FALSE) -> 0 | AT38: =IFERROR(SUM((VLOOKUP(Janvier!A38,Données!$H$6:$J$53,3,TRUE)/12)*1),"") -> 
A39: =Données!$H36 -> 0 | AL39: =VLOOKUP($A39,BJanvier!$A$8:$BC$57,35,FALSE) -> 0 | AM39: =VLOOKUP($A39,BJanvier!$A$8:$BC$57,36,FALSE) -> 0 | AN39: =VLOOKUP($A39,BJanvier!$A$8:$BC$57,37,FALSE) -> 0 | AP39: =VLOOKUP($A39,BJanvier!$A$8:$BC$57,39,FALSE) -> 0 | AQ39: =VLOOKUP($A39,Bilan!$A$8:$BE$57,41,FALSE) -> 0 | AT39: =IFERROR(SUM((VLOOKUP(Janvier!A39,Données!$H$6:$J$53,3,TRUE)/12)*1),"") -> 
A40: =Données!$H37 -> 0 | AL40: =VLOOKUP($A40,BJanvier!$A$8:$BC$57,35,FALSE) -> 0 | AM40: =VLOOKUP($A40,BJanvier!$A$8:$BC$57,36,FALSE) -> 0 | AN40: =VLOOKUP($A40,BJanvier!$A$8:$BC$57,37,FALSE) -> 0 | AP40: =VLOOKUP($A40,BJanvier!$A$8:$BC$57,39,FALSE) -> 0 | AQ40: =VLOOKUP($A40,Bilan!$A$8:$BE$57,41,FALSE) -> 0 | AT40: =IFERROR(SUM((VLOOKUP(Janvier!A40,Données!$H$6:$J$53,3,TRUE)/12)*1),"") -> 
A41: =Données!$H38 -> 0 | AL41: =VLOOKUP($A41,BJanvier!$A$8:$BC$57,35,FALSE) -> 0 | AM41: =VLOOKUP($A41,BJanvier!$A$8:$BC$57,36,FALSE) -> 0 | AN41: =VLOOKUP($A41,BJanvier!$A$8:$BC$57,37,FALSE) -> 0 | AP41: =VLOOKUP($A41,BJanvier!$A$8:$BC$57,39,FALSE) -> 0 | AQ41: =VLOOKUP($A41,Bilan!$A$8:$BE$57,41,FALSE) -> 0 | AT41: =IFERROR(SUM((VLOOKUP(Janvier!A41,Données!$H$6:$J$53,3,TRUE)/12)*1),"") -> 
A42: =Données!$H39 -> 0 | AL42: =VLOOKUP($A42,BJanvier!$A$8:$BC$57,35,FALSE) -> 0 | AM42: =VLOOKUP($A42,BJanvier!$A$8:$BC$57,36,FALSE) -> 0 | AN42: =VLOOKUP($A42,BJanvier!$A$8:$BC$57,37,FALSE) -> 0 | AP42: =VLOOKUP($A42,BJanvier!$A$8:$BC$57,39,FALSE) -> 0 | AQ42: =VLOOKUP($A42,Bilan!$A$8:$BE$57,41,FALSE) -> 0 | AT42: =IFERROR(SUM((VLOOKUP(Janvier!A42,Données!$H$6:$J$53,3,TRUE)/12)*1),"") -> 
A43: =Données!$H40 -> 0 | AL43: =VLOOKUP($A43,BJanvier!$A$8:$BC$57,35,FALSE) -> 0 | AM43: =VLOOKUP($A43,BJanvier!$A$8:$BC$57,36,FALSE) -> 0 | AN43: =VLOOKUP($A43,BJanvier!$A$8:$BC$57,37,FALSE) -> 0 | AP43: =VLOOKUP($A43,BJanvier!$A$8:$BC$57,39,FALSE) -> 0 | AQ43: =VLOOKUP($A43,Bilan!$A$8:$BE$57,41,FALSE) -> 0 | AT43: =IFERROR(SUM((VLOOKUP(Janvier!A43,Données!$H$6:$J$53,3,TRUE)/12)*1),"") -> 
A44: =Données!$H41 -> 0 | AL44: =VLOOKUP($A44,BJanvier!$A$8:$BC$57,35,FALSE) -> 0 | AM44: =VLOOKUP($A44,BJanvier!$A$8:$BC$57,36,FALSE) -> 0 | AN44: =VLOOKUP($A44,BJanvier!$A$8:$BC$57,37,FALSE) -> 0 | AP44: =VLOOKUP($A44,BJanvier!$A$8:$BC$57,39,FALSE) -> 0 | AQ44: =VLOOKUP($A44,Bilan!$A$8:$BE$57,41,FALSE) -> 0 | AT44: =IFERROR(SUM((VLOOKUP(Janvier!A44,Données!$H$6:$J$53,3,TRUE)/12)*1),"") -> 
A45: =Données!$H42 -> Psychologue
A46: =Données!$H43 -> 0 | AL46: =VLOOKUP($A46,BJanvier!$A$8:$BC$57,35,FALSE) -> 0 | AM46: =VLOOKUP($A46,BJanvier!$A$8:$BC$57,36,FALSE) -> 0 | AN46: =VLOOKUP($A46,BJanvier!$A$8:$BC$57,37,FALSE) -> 0 | AP46: =VLOOKUP($A46,BJanvier!$A$8:$BC$57,39,FALSE) -> 0 | AQ46: =VLOOKUP($A46,Bilan!$A$8:$BE$57,41,FALSE) -> 0 | AT46: =IFERROR(SUM((VLOOKUP(Janvier!A46,Données!$H$6:$J$53,3,TRUE)/12)*1),"") -> 
A47: =Données!$H44 -> 0 | AL47: =VLOOKUP($A47,BJanvier!$A$8:$BC$57,35,FALSE) -> 0 | AM47: =VLOOKUP($A47,BJanvier!$A$8:$BC$57,36,FALSE) -> 0 | AN47: =VLOOKUP($A47,BJanvier!$A$8:$BC$57,37,FALSE) -> 0 | AP47: =VLOOKUP($A47,BJanvier!$A$8:$BC$57,39,FALSE) -> 0 | AQ47: =VLOOKUP($A47,Bilan!$A$8:$BE$57,41,FALSE) -> 0 | AT47: =IFERROR(SUM((VLOOKUP(Janvier!A47,Données!$H$6:$J$53,3,TRUE)/12)*1),"") -> 
A48: =Données!$H45 -> 0 | AL48: =VLOOKUP($A48,BJanvier!$A$8:$BC$57,35,FALSE) -> 0 | AM48: =VLOOKUP($A48,BJanvier!$A$8:$BC$57,36,FALSE) -> 0 | AN48: =VLOOKUP($A48,BJanvier!$A$8:$BC$57,37,FALSE) -> 0 | AP48: =VLOOKUP($A48,BJanvier!$A$8:$BC$57,39,FALSE) -> 0 | AQ48: =VLOOKUP($A48,Bilan!$A$8:$BE$57,41,FALSE) -> 0 | AT48: =IFERROR(SUM((VLOOKUP(Janvier!A48,Données!$H$6:$J$53,3,TRUE)/12)*1),"") -> 
A49: =Données!$H46 -> Coordinatrice
A50: =Données!$H47 -> 0 | AL50: =VLOOKUP($A50,BJanvier!$A$8:$BC$57,35,FALSE) -> 0 | AM50: =VLOOKUP($A50,BJanvier!$A$8:$BC$57,36,FALSE) -> 0 | AN50: =VLOOKUP($A50,BJanvier!$A$8:$BC$57,37,FALSE) -> 0 | AP50: =VLOOKUP($A50,BJanvier!$A$8:$BC$57,39,FALSE) -> 0 | AQ50: =VLOOKUP($A50,Bilan!$A$8:$BE$57,41,FALSE) -> 0 | AT50: =IFERROR(SUM((VLOOKUP(Janvier!A50,Données!$H$6:$J$53,3,TRUE)/12)*1),"") -> 
A51: =Données!$H48 -> 0 | AL51: =VLOOKUP($A51,BJanvier!$A$8:$BC$57,35,FALSE) -> 0 | AM51: =VLOOKUP($A51,BJanvier!$A$8:$BC$57,36,FALSE) -> 0 | AN51: =VLOOKUP($A51,BJanvier!$A$8:$BC$57,37,FALSE) -> 0 | AP51: =VLOOKUP($A51,BJanvier!$A$8:$BC$57,39,FALSE) -> 0 | AQ51: =VLOOKUP($A51,Bilan!$A$8:$BE$57,41,FALSE) -> 0 | AT51: =IFERROR(SUM((VLOOKUP(Janvier!A51,Données!$H$6:$J$53,3,TRUE)/12)*1),"") -> 
A52: =Données!$H49 -> 0 | AL52: =VLOOKUP($A52,BJanvier!$A$8:$BC$57,35,FALSE) -> 0 | AM52: =VLOOKUP($A52,BJanvier!$A$8:$BC$57,36,FALSE) -> 0 | AN52: =VLOOKUP($A52,BJanvier!$A$8:$BC$57,37,FALSE) -> 0 | AP52: =VLOOKUP($A52,BJanvier!$A$8:$BC$57,39,FALSE) -> 0 | AQ52: =VLOOKUP($A52,Bilan!$A$8:$BE$57,41,FALSE) -> 0 | AT52: =IFERROR(SUM((VLOOKUP(Janvier!A52,Données!$H$6:$J$53,3,TRUE)/12)*1),"") -> 
A53: =Données!$H50 -> 0 | AL53: =VLOOKUP($A53,BJanvier!$A$8:$BC$57,35,FALSE) -> 0 | AM53: =VLOOKUP($A53,BJanvier!$A$8:$BC$57,36,FALSE) -> 0 | AN53: =VLOOKUP($A53,BJanvier!$A$8:$BC$57,37,FALSE) -> 0 | AP53: =VLOOKUP($A53,BJanvier!$A$8:$BC$57,39,FALSE) -> 0 | AQ53: =VLOOKUP($A53,Bilan!$A$8:$BE$57,41,FALSE) -> 0 | AT53: =IFERROR(SUM((VLOOKUP(Janvier!A53,Données!$H$6:$J$53,3,TRUE)/12)*1),"") -> 
A54: =Données!$H51 -> 0 | AL54: =VLOOKUP($A54,BJanvier!$A$8:$BC$57,35,FALSE) -> 0 | AM54: =VLOOKUP($A54,BJanvier!$A$8:$BC$57,36,FALSE) -> 0 | AN54: =VLOOKUP($A54,BJanvier!$A$8:$BC$57,37,FALSE) -> 0 | AP54: =VLOOKUP($A54,BJanvier!$A$8:$BC$57,39,FALSE) -> 0 | AQ54: =VLOOKUP($A54,Bilan!$A$8:$BE$57,41,FALSE) -> 0 | AT54: =IFERROR(SUM((VLOOKUP(Janvier!A54,Données!$H$6:$J$53,3,TRUE)/12)*1),"") -> 
A55: =Données!$H52 -> Chef de service
A56: =Données!$H53 -> 0 | AL56: =VLOOKUP($A56,BJanvier!$A$8:$BC$57,35,FALSE) -> 0 | AM56: =VLOOKUP($A56,BJanvier!$A$8:$BC$57,36,FALSE) -> 0 | AN56: =VLOOKUP($A56,BJanvier!$A$8:$BC$57,37,FALSE) -> 0 | AP56: =VLOOKUP($A56,BJanvier!$A$8:$BC$57,39,FALSE) -> 0 | AQ56: =VLOOKUP($A56,Bilan!$A$8:$BE$57,41,FALSE) -> 0 | AT56: =IFERROR(SUM((VLOOKUP(Janvier!A56,Données!$H$6:$J$53,3,TRUE)/12)*1),"") -> 
B58: =Données!$A3 -> S | C58: = | D58: =IF(ISBLANK(Données!$C3),TEXT(Données!$B3,"hh:mm"),TEXT(Données!$B3,"hh:mm")&" : "&TEXT(Données!$C3,"hh:mm")) -> 13:30 : 21:30 | H58: =Données!$A7 -> J+ | I58: = | J58: =IF(ISBLANK(Données!$C7),TEXT(Données!$B7,"hh:mm"),TEXT(Données!$B7,"hh:mm")&" : "&TEXT(Données!$C7,"hh:mm")) -> 09:00 : 21:00 | N58: =Données!$A10 -> N- | O58: = | P58: =IF(ISBLANK(Données!$C10),TEXT(Données!$B10,"hh:mm"),TEXT(Données!$B10,"hh:mm")&" : "&TEXT(Données!$C10,"hh:mm")) -> 20:45 : 07:15 | T58: =Données!$A14 -> AT | U58: = | V58: =IF(ISBLANK(Données!$C14),TEXT(Données!$B14,"hh:mm"),TEXT(Données!$B14,"hh:mm")&" : "&TEXT(Données!$C14,"hh:mm")) -> AT : AT | Z58: =Données!$A18 -> CA | AA58: = | AB58: =IF(ISBLANK(Données!$C18),TEXT(Données!$B18,"hh:mm"),TEXT(Données!$B18,"hh:mm")&" : "&TEXT(Données!$C18,"hh:mm")) -> CA : CA
B59: =Données!$A4 -> M- | C59: = | D59: =IF(ISBLANK(Données!$C4),TEXT(Données!$B4,"hh:mm"),TEXT(Données!$B4,"hh:mm")&" : "&TEXT(Données!$C4,"hh:mm")) -> 07:00 : 15:00 | H59: =Données!$A8 -> RS | I59: = | J59: =IF(ISBLANK(Données!$C8),TEXT(Données!$B8,"hh:mm"),TEXT(Données!$B8,"hh:mm")&" : "&TEXT(Données!$C8,"hh:mm")) -> 09:30 : 21:30 | N59: =Données!$A11 -> N+ | O59: = | P59: =IF(ISBLANK(Données!$C11),TEXT(Données!$B11,"hh:mm"),TEXT(Données!$B11,"hh:mm")&" : "&TEXT(Données!$C11,"hh:mm")) -> 19:15 : 07:15 | T59: =Données!$A15 -> AM | U59: = | V59: =IF(ISBLANK(Données!$C15),TEXT(Données!$B15,"hh:mm"),TEXT(Données!$B15,"hh:mm")&" : "&TEXT(Données!$C15,"hh:mm")) -> AM : AM | Z59: =Données!$A19 -> CA17 | AA59: = | AB59: =IF(ISBLANK(Données!$C19),TEXT(Données!$B19,"hh:mm"),TEXT(Données!$B19,"hh:mm")&" : "&TEXT(Données!$C19,"hh:mm")) -> CA17 : CA17
B60: =Données!$A5 -> M | C60: = | D60: =IF(ISBLANK(Données!$C5),TEXT(Données!$B5,"hh:mm"),TEXT(Données!$B5,"hh:mm")&" : "&TEXT(Données!$C5,"hh:mm")) -> 08:00 : 15:00 | H60: =Données!$A9 -> N | I60: = | J60: =IF(ISBLANK(Données!$C9),TEXT(Données!$B9,"hh:mm"),TEXT(Données!$B9,"hh:mm")&" : "&TEXT(Données!$C9,"hh:mm")) -> 20:45 : 08:15 | N60: =Données!$A12 -> JS | O60: = | P60: =IF(ISBLANK(Données!$C12),TEXT(Données!$B12,"hh:mm"),TEXT(Données!$B12,"hh:mm")&" : "&TEXT(Données!$C12,"hh:mm")) -> 08:00 : 19:00 | T60: =Données!$A16 -> EM | U60: = | V60: =IF(ISBLANK(Données!$C16),TEXT(Données!$B16,"hh:mm"),TEXT(Données!$B16,"hh:mm")&" : "&TEXT(Données!$C16,"hh:mm")) -> EM : EM | Z60: =Données!$A20 -> REC | AA60: = | AB60: =IF(ISBLANK(Données!$C20),TEXT(Données!$B20,"hh:mm"),TEXT(Données!$B20,"hh:mm")&" : "&TEXT(Données!$C20,"hh:mm")) -> REC : REC
B61: =Données!$A6 -> J | C61: = | D61: =IF(ISBLANK(Données!$C6),TEXT(Données!$B6,"hh:mm"),TEXT(Données!$B6,"hh:mm")&" : "&TEXT(Données!$C6,"hh:mm")) -> 09:00 : 16:30 | H61: =Données!$A10 -> N- | I61: = | J61: =IF(ISBLANK(Données!$C10),TEXT(Données!$B10,"hh:mm"),TEXT(Données!$B10,"hh:mm")&" : "&TEXT(Données!$C10,"hh:mm")) -> 20:45 : 07:15 | N61: =Données!$A13 -> SYN | O61: = | P61: =IF(ISBLANK(Données!$C13),TEXT(Données!$B13,"hh:mm"),TEXT(Données!$B13,"hh:mm")&" : "&TEXT(Données!$C13,"hh:mm")) -> Syn : Syn | T61: =Données!$A17 -> CE | U61: = | V61: =IF(ISBLANK(Données!$C17),TEXT(Données!$B17,"hh:mm"),TEXT(Données!$B17,"hh:mm")&" : "&TEXT(Données!$C17,"hh:mm")) -> CE : CE | Z61: =Données!$A21 -> PL | AA61: = | AB61: =IF(ISBLANK(Données!$C21),TEXT(Données!$B21,"hh:mm"),TEXT(Données!$B21,"hh:mm")&" : "&TEXT(Données!$C21,"hh:mm")) -> PL : PL

Sheet Fevrier
B2: =DATE(An,Fevrier,B7) -> 2018-02-01 | C2: 2018-02-02 | D2: 2018-02-03 | E2: 2018-02-04 | F2: 2018-02-05 | G2: 2018-02-06 | H2: 2018-02-07 | I2: 2018-02-08 | J2: 2018-02-09 | K2: 2018-02-10 | L2: 2018-02-11 | M2: 2018-02-12 | N2: 2018-02-13 | O2: 2018-02-14 | P2: 2018-02-15 | Q2: 2018-02-16 | R2: 2018-02-17 | S2: 2018-02-18 | T2: 2018-02-19 | U2: 2018-02-20 | V2: 2018-02-21 | W2: 2018-02-22 | X2: 2018-02-23 | Y2: 2018-02-24 | Z2: 2018-02-25 | AA2: 2018-02-26 | AB2: 2018-02-27 | AC2: 2018-02-28 | AD2: 2018-03-01 | AE2: 2018-01-31 | AF2: 2018-01-31 | AI2: Pour remplir | AJ2: penser | AO2: =IF(ISNUMBER(AO7),DATE(An,Fevrier,AO7),"") ->  | AP2: =IF(ISNUMBER(AP7),DATE(An,Fevrier,AP7),"") -> 
A3: =IF(Données!$L$5="","Service",Données!$L$5) -> Service | K3: Mois de Fevrier | P3: =An -> 2018 | AI3: à mettre dans le format:
AI4: "heures":"Minutes" | AT4: Masse horraire previsionnel
AI5: Heures sup | AJ5: Heures sup | AL5: Indications | AM5: Indications | AN5: Indications | AP5: Total
A6: Jours | B6: =PROPER(LEFT(TEXT(DATE(An,Fevrier,B7),"jjj"),1)) -> J | C6: V | D6: S | E6: D | F6: L | G6: M | H6: M | I6: J | J6: V | K6: S | L6: D | M6: L | N6: M | O6: M | P6: J | Q6: V | R6: S | S6: D | T6: L | U6: M | V6: M | W6: J | X6: V | Y6: S | Z6: D | AA6: L | AB6: M | AC6: M | AD6: J | AI6: avant 21h | AJ6: après 21h | AL6: Heures | AM6: Heures nuit | AN6: Heures | AP6: Heures | AQ6: Heures
B7: =A7+1 -> 1 | C7: 2 | D7: 3 | E7: 4 | F7: 5 | G7: 6 | H7: 7 | I7: 8 | J7: 9 | K7: 10 | L7: 11 | M7: 12 | N7: 13 | O7: 14 | P7: 15 | Q7: 16 | R7: 17 | S7: 18 | T7: 19 | U7: 20 | V7: 21 | W7: 22 | X7: 23 | Y7: 24 | Z7: 25 | AA7: 26 | AB7: 27 | AC7: 28 | AD7: 29 | AI7: A remplir | AJ7: A remplir | AL7: Dimanche | AM7: Dimanche | AN7: après 21h | AP7: au mois | AQ7: a l'année | AT7: i
A8: Equipe de jour
A9: =Données!$H6 -> A | AL9: =VLOOKUP($A9,BFevrier!$A$8:$BC$57,35,FALSE) -> 0 | AM9: =VLOOKUP($A9,BFevrier!$A$8:$BC$57,36,FALSE) -> 0 | AN9: =VLOOKUP($A9,BFevrier!$A$8:$BC$57,37,FALSE) -> 0 | AP9: =VLOOKUP($A9,BFevrier!$A$8:$BC$57,39,FALSE) -> 0 | AQ9: =VLOOKUP($A9,Bilan!$A$8:$BE$57,41,FALSE) -> 5.533333333 | AT9: =IFERROR(SUM((VLOOKUP(Fevrier!A9,Données!$H$6:$J$53,3,TRUE)/12)*2),"") -> 10.05949074
A10: =Données!$H7 -> B | AL10: =VLOOKUP($A10,BFevrier!$A$8:$BC$57,35,FALSE) -> 0 | AM10: =VLOOKUP($A10,BFevrier!$A$8:$BC$57,36,FALSE) -> 0 | AN10: =VLOOKUP($A10,BFevrier!$A$8:$BC$57,37,FALSE) -> 0 | AP10: =VLOOKUP($A10,BFevrier!$A$8:$BC$57,39,FALSE) -> 0 | AQ10: =VLOOKUP($A10,Bilan!$A$8:$BE$57,41,FALSE) -> 0 | AT10: =IFERROR(SUM((VLOOKUP(Fevrier!A10,Données!$H$6:$J$53,3,TRUE)/12)*2),"") -> 
A11: =Données!$H8 -> L | AL11: =VLOOKUP($A11,BFevrier!$A$8:$BC$57,35,FALSE) -> 0 | AM11: =VLOOKUP($A11,BFevrier!$A$8:$BC$57,36,FALSE) -> 0 | AN11: =VLOOKUP($A11,BFevrier!$A$8:$BC$57,37,FALSE) -> 0 | AP11: =VLOOKUP($A11,BFevrier!$A$8:$BC$57,39,FALSE) -> 0 | AQ11: =VLOOKUP($A11,Bilan!$A$8:$BE$57,41,FALSE) -> 0 | AT11: =IFERROR(SUM((VLOOKUP(Fevrier!A11,Données!$H$6:$J$53,3,TRUE)/12)*2),"") -> 0
A12: =Données!$H9 -> L | AL12: =VLOOKUP($A12,BFevrier!$A$8:$BC$57,35,FALSE) -> 0 | AM12: =VLOOKUP($A12,BFevrier!$A$8:$BC$57,36,FALSE) -> 0 | AN12: =VLOOKUP($A12,BFevrier!$A$8:$BC$57,37,FALSE) -> 0 | AP12: =VLOOKUP($A12,BFevrier!$A$8:$BC$57,39,FALSE) -> 0 | AQ12: =VLOOKUP($A12,Bilan!$A$8:$BE$57,41,FALSE) -> 0 | AT12: =IFERROR(SUM((VLOOKUP(Fevrier!A12,Données!$H$6:$J$53,3,TRUE)/12)*2),"") -> 0
A13: =Données!$H10 -> 0 | AL13: =VLOOKUP($A13,BFevrier!$A$8:$BC$57,35,FALSE) -> 0 | AM13: =VLOOKUP($A13,BFevrier!$A$8:$BC$57,36,FALSE) -> 0 | AN13: =VLOOKUP($A13,BFevrier!$A$8:$BC$57,37,FALSE) -> 0 | AP13: =VLOOKUP($A13,BFevrier!$A$8:$BC$57,39,FALSE) -> 0 | AQ13: =VLOOKUP($A13,Bilan!$A$8:$BE$57,41,FALSE) -> 0 | AT13: =IFERROR(SUM((VLOOKUP(Fevrier!A13,Données!$H$6:$J$53,3,TRUE)/12)*2),"") -> 
A14: =Données!$H11 -> 0 | AL14: =VLOOKUP($A14,BFevrier!$A$8:$BC$57,35,FALSE) -> 0 | AM14: =VLOOKUP($A14,BFevrier!$A$8:$BC$57,36,FALSE) -> 0 | AN14: =VLOOKUP($A14,BFevrier!$A$8:$BC$57,37,FALSE) -> 0 | AP14: =VLOOKUP($A14,BFevrier!$A$8:$BC$57,39,FALSE) -> 0 | AQ14: =VLOOKUP($A14,Bilan!$A$8:$BE$57,41,FALSE) -> 0 | AT14: =IFERROR(SUM((VLOOKUP(Fevrier!A14,Données!$H$6:$J$53,3,TRUE)/12)*2),"") -> 
A15: =Données!$H12 -> 0 | AL15: =VLOOKUP($A15,BFevrier!$A$8:$BC$57,35,FALSE) -> 0 | AM15: =VLOOKUP($A15,BFevrier!$A$8:$BC$57,36,FALSE) -> 0 | AN15: =VLOOKUP($A15,BFevrier!$A$8:$BC$57,37,FALSE) -> 0 | AP15: =VLOOKUP($A15,BFevrier!$A$8:$BC$57,39,FALSE) -> 0 | AQ15: =VLOOKUP($A15,Bilan!$A$8:$BE$57,41,FALSE) -> 0 | AT15: =IFERROR(SUM((VLOOKUP(Fevrier!A15,Données!$H$6:$J$53,3,TRUE)/12)*2),"") -> 
A16: =Données!$H13 -> 0 | AL16: =VLOOKUP($A16,BFevrier!$A$8:$BC$57,35,FALSE) -> 0 | AM16: =VLOOKUP($A16,BFevrier!$A$8:$BC$57,36,FALSE) -> 0 | AN16: =VLOOKUP($A16,BFevrier!$A$8:$BC$57,37,FALSE) -> 0 | AP16: =VLOOKUP($A16,BFevrier!$A$8:$BC$57,39,FALSE) -> 0 | AQ16: =VLOOKUP($A16,Bilan!$A$8:$BE$57,41,FALSE) -> 0 | AT16: =IFERROR(SUM((VLOOKUP(Fevrier!A16,Données!$H$6:$J$53,3,TRUE)/12)*2),"") -> 
A17: =Données!$H14 -> 0 | AL17: =VLOOKUP($A17,BFevrier!$A$8:$BC$57,35,FALSE) -> 0 | AM17: =VLOOKUP($A17,BFevrier!$A$8:$BC$57,36,FALSE) -> 0 | AN17: =VLOOKUP($A17,BFevrier!$A$8:$BC$57,37,FALSE) -> 0 | AP17: =VLOOKUP($A17,BFevrier!$A$8:$BC$57,39,FALSE) -> 0 | AQ17: =VLOOKUP($A17,Bilan!$A$8:$BE$57,41,FALSE) -> 0 | AT17: =IFERROR(SUM((VLOOKUP(Fevrier!A17,Données!$H$6:$J$53,3,TRUE)/12)*2),"") -> 
A18: =Données!$H15 -> 0 | AL18: =VLOOKUP($A18,BFevrier!$A$8:$BC$57,35,FALSE) -> 0 | AM18: =VLOOKUP($A18,BFevrier!$A$8:$BC$57,36,FALSE) -> 0 | AN18: =VLOOKUP($A18,BFevrier!$A$8:$BC$57,37,FALSE) -> 0 | AP18: =VLOOKUP($A18,BFevrier!$A$8:$BC$57,39,FALSE) -> 0 | AQ18: =VLOOKUP($A18,Bilan!$A$8:$BE$57,41,FALSE) -> 0 | AT18: =IFERROR(SUM((VLOOKUP(Fevrier!A18,Données!$H$6:$J$53,3,TRUE)/12)*2),"") -> 
A19: =Données!$H16 -> 0 | AL19: =VLOOKUP($A19,BFevrier!$A$8:$BC$57,35,FALSE) -> 0 | AM19: =VLOOKUP($A19,BFevrier!$A$8:$BC$57,36,FALSE) -> 0 | AN19: =VLOOKUP($A19,BFevrier!$A$8:$BC$57,37,FALSE) -> 0 | AP19: =VLOOKUP($A19,BFevrier!$A$8:$BC$57,39,FALSE) -> 0 | AQ19: =VLOOKUP($A19,Bilan!$A$8:$BE$57,41,FALSE) -> 0 | AT19: =IFERROR(SUM((VLOOKUP(Fevrier!A19,Données!$H$6:$J$53,3,TRUE)/12)*2),"") -> 
A20: =Données!$H17 -> 0 | AL20: =VLOOKUP($A20,BFevrier!$A$8:$BC$57,35,FALSE) -> 0 | AM20: =VLOOKUP($A20,BFevrier!$A$8:$BC$57,36,FALSE) -> 0 | AN20: =VLOOKUP($A20,BFevrier!$A$8:$BC$57,37,FALSE) -> 0 | AP20: =VLOOKUP($A20,BFevrier!$A$8:$BC$57,39,FALSE) -> 0 | AQ20: =VLOOKUP($A20,Bilan!$A$8:$BE$57,41,FALSE) -> 0 | AT20: =IFERROR(SUM((VLOOKUP(Fevrier!A20,Données!$H$6:$J$53,3,TRUE)/12)*2),"") -> 
A21: =Données!$H18 -> 0 | AL21: =VLOOKUP($A21,BFevrier!$A$8:$BC$57,35,FALSE) -> 0 | AM21: =VLOOKUP($A21,BFevrier!$A$8:$BC$57,36,FALSE) -> 0 | AN21: =VLOOKUP($A21,BFevrier!$A$8:$BC$57,37,FALSE) -> 0 | AP21: =VLOOKUP($A21,BFevrier!$A$8:$BC$57,39,FALSE) -> 0 | AQ21: =VLOOKUP($A21,Bilan!$A$8:$BE$57,41,FALSE) -> 0 | AT21: =IFERROR(SUM((VLOOKUP(Fevrier!A21,Données!$H$6:$J$53,3,TRUE)/12)*2),"") -> 
A22: =Données!$H19 -> 0 | AL22: =VLOOKUP($A22,BFevrier!$A$8:$BC$57,35,FALSE) -> 0 | AM22: =VLOOKUP($A22,BFevrier!$A$8:$BC$57,36,FALSE) -> 0 | AN22: =VLOOKUP($A22,BFevrier!$A$8:$BC$57,37,FALSE) -> 0 | AP22: =VLOOKUP($A22,BFevrier!$A$8:$BC$57,39,FALSE) -> 0 | AQ22: =VLOOKUP($A22,Bilan!$A$8:$BE$57,41,FALSE) -> 0 | AT22: =IFERROR(SUM((VLOOKUP(Fevrier!A22,Données!$H$6:$J$53,3,TRUE)/12)*2),"") -> 
A23: =Données!$H20 -> 0 | AL23: =VLOOKUP($A23,BFevrier!$A$8:$BC$57,35,FALSE) -> 0 | AM23: =VLOOKUP($A23,BFevrier!$A$8:$BC$57,36,FALSE) -> 0 | AN23: =VLOOKUP($A23,BFevrier!$A$8:$BC$57,37,FALSE) -> 0 | AP23: =VLOOKUP($A23,BFevrier!$A$8:$BC$57,39,FALSE) -> 0 | AQ23: =VLOOKUP($A23,Bilan!$A$8:$BE$57,41,FALSE) -> 0 | AT23: =IFERROR(SUM((VLOOKUP(Fevrier!A23,Données!$H$6:$J$53,3,TRUE)/12)*2),"") -> 
A24: =Données!$H21 -> 0 | AL24: =VLOOKUP($A24,BFevrier!$A$8:$BC$57,35,FALSE) -> 0 | AM24: =VLOOKUP($A24,BFevrier!$A$8:$BC$57,36,FALSE) -> 0 | AN24: =VLOOKUP($A24,BFevrier!$A$8:$BC$57,37,FALSE) -> 0 | AP24: =VLOOKUP($A24,BFevrier!$A$8:$BC$57,39,FALSE) -> 0 | AQ24: =VLOOKUP($A24,Bilan!$A$8:$BE$57,41,FALSE) -> 0 | AT24: =IFERROR(SUM((VLOOKUP(Fevrier!A24,Données!$H$6:$J$53,3,TRUE)/12)*2),"") -> 
A25: =Données!$H22 -> Equipe de nuit
A26: =Données!$H23 -> 0 | AL26: =VLOOKUP($A26,BFevrier!$A$8:$BC$57,35,FALSE) -> 0 | AM26: =VLOOKUP($A26,BFevrier!$A$8:$BC$57,36,FALSE) -> 0 | AN26: =VLOOKUP($A26,BFevrier!$A$8:$BC$57,37,FALSE) -> 0 | AP26: =VLOOKUP($A26,BFevrier!$A$8:$BC$57,39,FALSE) -> 0 | AQ26: =VLOOKUP($A26,Bilan!$A$8:$BE$57,41,FALSE) -> 0 | AT26: =IFERROR(SUM((VLOOKUP(Fevrier!A26,Données!$H$6:$J$53,3,TRUE)/12)*2),"") -> 
A27: =Données!$H24 -> 0 | AL27: =VLOOKUP($A27,BFevrier!$A$8:$BC$57,35,FALSE) -> 0 | AM27: =VLOOKUP($A27,BFevrier!$A$8:$BC$57,36,FALSE) -> 0 | AN27: =VLOOKUP($A27,BFevrier!$A$8:$BC$57,37,FALSE) -> 0 | AP27: =VLOOKUP($A27,BFevrier!$A$8:$BC$57,39,FALSE) -> 0 | AQ27: =VLOOKUP($A27,Bilan!$A$8:$BE$57,41,FALSE) -> 0 | AT27: =IFERROR(SUM((VLOOKUP(Fevrier!A27,Données!$H$6:$J$53,3,TRUE)/12)*2),"") -> 
A28: =Données!$H25 -> 0 | AL28: =VLOOKUP($A28,BFevrier!$A$8:$BC$57,35,FALSE) -> 0 | AM28: =VLOOKUP($A28,BFevrier!$A$8:$BC$57,36,FALSE) -> 0 | AN28: =VLOOKUP($A28,BFevrier!$A$8:$BC$57,37,FALSE) -> 0 | AP28: =VLOOKUP($A28,BFevrier!$A$8:$BC$57,39,FALSE) -> 0 | AQ28: =VLOOKUP($A28,Bilan!$A$8:$BE$57,41,FALSE) -> 0 | AT28: =IFERROR(SUM((VLOOKUP(Fevrier!A28,Données!$H$6:$J$53,3,TRUE)/12)*2),"") -> 
A29: =Données!$H26 -> 0 | AL29: =VLOOKUP($A29,BFevrier!$A$8:$BC$57,35,FALSE) -> 0 | AM29: =VLOOKUP($A29,BFevrier!$A$8:$BC$57,36,FALSE) -> 0 | AN29: =VLOOKUP($A29,BFevrier!$A$8:$BC$57,37,FALSE) -> 0 | AP29: =VLOOKUP($A29,BFevrier!$A$8:$BC$57,39,FALSE) -> 0 | AQ29: =VLOOKUP($A29,Bilan!$A$8:$BE$57,41,FALSE) -> 0 | AT29: =IFERROR(SUM((VLOOKUP(Fevrier!A29,Données!$H$6:$J$53,3,TRUE)/12)*2),"") -> 
A30: =Données!$H27 -> 0 | AL30: =VLOOKUP($A30,BFevrier!$A$8:$BC$57,35,FALSE) -> 0 | AM30: =VLOOKUP($A30,BFevrier!$A$8:$BC$57,36,FALSE) -> 0 | AN30: =VLOOKUP($A30,BFevrier!$A$8:$BC$57,37,FALSE) -> 0 | AP30: =VLOOKUP($A30,BFevrier!$A$8:$BC$57,39,FALSE) -> 0 | AQ30: =VLOOKUP($A30,Bilan!$A$8:$BE$57,41,FALSE) -> 0 | AT30: =IFERROR(SUM((VLOOKUP(Fevrier!A30,Données!$H$6:$J$53,3,TRUE)/12)*2),"") -> 
A31: =Données!$H28 -> 0 | AL31: =VLOOKUP($A31,BFevrier!$A$8:$BC$57,35,FALSE) -> 0 | AM31: =VLOOKUP($A31,BFevrier!$A$8:$BC$57,36,FALSE) -> 0 | AN31: =VLOOKUP($A31,BFevrier!$A$8:$BC$57,37,FALSE) -> 0 | AP31: =VLOOKUP($A31,BFevrier!$A$8:$BC$57,39,FALSE) -> 0 | AQ31: =VLOOKUP($A31,Bilan!$A$8:$BE$57,41,FALSE) -> 0 | AT31: =IFERROR(SUM((VLOOKUP(Fevrier!A31,Données!$H$6:$J$53,3,TRUE)/12)*2),"") -> 
A32: =Données!$H29 -> 0 | AL32: =VLOOKUP($A32,BFevrier!$A$8:$BC$57,35,FALSE) -> 0 | AM32: =VLOOKUP($A32,BFevrier!$A$8:$BC$57,36,FALSE) -> 0 | AN32: =VLOOKUP($A32,BFevrier!$A$8:$BC$57,37,FALSE) -> 0 | AP32: =VLOOKUP($A32,BFevrier!$A$8:$BC$57,39,FALSE) -> 0 | AQ32: =VLOOKUP($A32,Bilan!$A$8:$BE$57,41,FALSE) -> 0 | AT32: =IFERROR(SUM((VLOOKUP(Fevrier!A32,Données!$H$6:$J$53,3,TRUE)/12)*2),"") -> 
A33: =Données!$H30 -> 0 | AL33: =VLOOKUP($A33,BFevrier!$A$8:$BC$57,35,FALSE) -> 0 | AM33: =VLOOKUP($A33,BFevrier!$A$8:$BC$57,36,FALSE) -> 0 | AN33: =VLOOKUP($A33,BFevrier!$A$8:$BC$57,37,FALSE) -> 0 | AP33: =VLOOKUP($A33,BFevrier!$A$8:$BC$57,39,FALSE) -> 0 | AQ33: =VLOOKUP($A33,Bilan!$A$8:$BE$57,41,FALSE) -> 0 | AT33: =IFERROR(SUM((VLOOKUP(Fevrier!A33,Données!$H$6:$J$53,3,TRUE)/12)*2),"") -> 
A34: =Données!$H31 -> 0 | AL34: =VLOOKUP($A34,BFevrier!$A$8:$BC$57,35,FALSE) -> 0 | AM34: =VLOOKUP($A34,BFevrier!$A$8:$BC$57,36,FALSE) -> 0 | AN34: =VLOOKUP($A34,BFevrier!$A$8:$BC$57,37,FALSE) -> 0 | AP34: =VLOOKUP($A34,BFevrier!$A$8:$BC$57,39,FALSE) -> 0 | AQ34: =VLOOKUP($A34,Bilan!$A$8:$BE$57,41,FALSE) -> 0 | AT34: =IFERROR(SUM((VLOOKUP(Fevrier!A34,Données!$H$6:$J$53,3,TRUE)/12)*2),"") -> 
A35: =Données!$H32 -> Maitresse de maison
A36: =Données!$H33 -> 0 | AL36: =VLOOKUP($A36,BFevrier!$A$8:$BC$57,35,FALSE) -> 0 | AM36: =VLOOKUP($A36,BFevrier!$A$8:$BC$57,36,FALSE) -> 0 | AN36: =VLOOKUP($A36,BFevrier!$A$8:$BC$57,37,FALSE) -> 0 | AP36: =VLOOKUP($A36,BFevrier!$A$8:$BC$57,39,FALSE) -> 0 | AQ36: =VLOOKUP($A36,Bilan!$A$8:$BE$57,41,FALSE) -> 0 | AT36: =IFERROR(SUM((VLOOKUP(Fevrier!A36,Données!$H$6:$J$53,3,TRUE)/12)*2),"") -> 
A37: =Données!$H34 -> 0 | AL37: =VLOOKUP($A37,BFevrier!$A$8:$BC$57,35,FALSE) -> 0 | AM37: =VLOOKUP($A37,BFevrier!$A$8:$BC$57,36,FALSE) -> 0 | AN37: =VLOOKUP($A37,BFevrier!$A$8:$BC$57,37,FALSE) -> 0 | AP37: =VLOOKUP($A37,BFevrier!$A$8:$BC$57,39,FALSE) -> 0 | AQ37: =VLOOKUP($A37,Bilan!$A$8:$BE$57,41,FALSE) -> 0 | AT37: =IFERROR(SUM((VLOOKUP(Fevrier!A37,Données!$H$6:$J$53,3,TRUE)/12)*2),"") -> 
A38: =Données!$H35 -> 0 | AL38: =VLOOKUP($A38,BFevrier!$A$8:$BC$57,35,FALSE) -> 0 | AM38: =VLOOKUP($A38,BFevrier!$A$8:$BC$57,36,FALSE) -> 0 | AN38: =VLOOKUP($A38,BFevrier!$A$8:$BC$57,37,FALSE) -> 0 | AP38: =VLOOKUP($A38,BFevrier!$A$8:$BC$57,39,FALSE) -> 0 | AQ38: =VLOOKUP($A38,Bilan!$A$8:$BE$57,41,FALSE) -> 0 | AT38: =IFERROR(SUM((VLOOKUP(Fevrier!A38,Données!$H$6:$J$53,3,TRUE)/12)*2),"") -> 
A39: =Données!$H36 -> 0 | AL39: =VLOOKUP($A39,BFevrier!$A$8:$BC$57,35,FALSE) -> 0 | AM39: =VLOOKUP($A39,BFevrier!$A$8:$BC$57,36,FALSE) -> 0 | AN39: =VLOOKUP($A39,BFevrier!$A$8:$BC$57,37,FALSE) -> 0 | AP39: =VLOOKUP($A39,BFevrier!$A$8:$BC$57,39,FALSE) -> 0 | AQ39: =VLOOKUP($A39,Bilan!$A$8:$BE$57,41,FALSE) -> 0 | AT39: =IFERROR(SUM((VLOOKUP(Fevrier!A39,Données!$H$6:$J$53,3,TRUE)/12)*2),"") -> 
A40: =Données!$H37 -> 0 | AL40: =VLOOKUP($A40,BFevrier!$A$8:$BC$57,35,FALSE) -> 0 | AM40: =VLOOKUP($A40,BFevrier!$A$8:$BC$57,36,FALSE) -> 0 | AN40: =VLOOKUP($A40,BFevrier!$A$8:$BC$57,37,FALSE) -> 0 | AP40: =VLOOKUP($A40,BFevrier!$A$8:$BC$57,39,FALSE) -> 0 | AQ40: =VLOOKUP($A40,Bilan!$A$8:$BE$57,41,FALSE) -> 0 | AT40: =IFERROR(SUM((VLOOKUP(Fevrier!A40,Données!$H$6:$J$53,3,TRUE)/12)*2),"") -> 
A41: =Données!$H38 -> 0 | AL41: =VLOOKUP($A41,BFevrier!$A$8:$BC$57,35,FALSE) -> 0 | AM41: =VLOOKUP($A41,BFevrier!$A$8:$BC$57,36,FALSE) -> 0 | AN41: =VLOOKUP($A41,BFevrier!$A$8:$BC$57,37,FALSE) -> 0 | AP41: =VLOOKUP($A41,BFevrier!$A$8:$BC$57,39,FALSE) -> 0 | AQ41: =VLOOKUP($A41,Bilan!$A$8:$BE$57,41,FALSE) -> 0 | AT41: =IFERROR(SUM((VLOOKUP(Fevrier!A41,Données!$H$6:$J$53,3,TRUE)/12)*2),"") -> 
A42: =Données!$H39 -> 0 | AL42: =VLOOKUP($A42,BFevrier!$A$8:$BC$57,35,FALSE) -> 0 | AM42: =VLOOKUP($A42,BFevrier!$A$8:$BC$57,36,FALSE) -> 0 | AN42: =VLOOKUP($A42,BFevrier!$A$8:$BC$57,37,FALSE) -> 0 | AP42: =VLOOKUP($A42,BFevrier!$A$8:$BC$57,39,FALSE) -> 0 | AQ42: =VLOOKUP($A42,Bilan!$A$8:$BE$57,41,FALSE) -> 0 | AT42: =IFERROR(SUM((VLOOKUP(Fevrier!A42,Données!$H$6:$J$53,3,TRUE)/12)*2),"") -> 
A43: =Données!$H40 -> 0 | AL43: =VLOOKUP($A43,BFevrier!$A$8:$BC$57,35,FALSE) -> 0 | AM43: =VLOOKUP($A43,BFevrier!$A$8:$BC$57,36,FALSE) -> 0 | AN43: =VLOOKUP($A43,BFevrier!$A$8:$BC$57,37,FALSE) -> 0 | AP43: =VLOOKUP($A43,BFevrier!$A$8:$BC$57,39,FALSE) -> 0 | AQ43: =VLOOKUP($A43,Bilan!$A$8:$BE$57,41,FALSE) -> 0 | AT43: =IFERROR(SUM((VLOOKUP(Fevrier!A43,Données!$H$6:$J$53,3,TRUE)/12)*2),"") -> 
A44: =Données!$H41 -> 0 | AL44: =VLOOKUP($A44,BFevrier!$A$8:$BC$57,35,FALSE) -> 0 | AM44: =VLOOKUP($A44,BFevrier!$A$8:$BC$57,36,FALSE) -> 0 | AN44: =VLOOKUP($A44,BFevrier!$A$8:$BC$57,37,FALSE) -> 0 | AP44: =VLOOKUP($A44,BFevrier!$A$8:$BC$57,39,FALSE) -> 0 | AQ44: =VLOOKUP($A44,Bilan!$A$8:$BE$57,41,FALSE) -> 0 | AT44: =IFERROR(SUM((VLOOKUP(Fevrier!A44,Données!$H$6:$J$53,3,TRUE)/12)*2),"") -> 
A45: =Données!$H42 -> Psychologue
A46: =Données!$H43 -> 0 | AL46: =VLOOKUP($A46,BFevrier!$A$8:$BC$57,35,FALSE) -> 0 | AM46: =VLOOKUP($A46,BFevrier!$A$8:$BC$57,36,FALSE) -> 0 | AN46: =VLOOKUP($A46,BFevrier!$A$8:$BC$57,37,FALSE) -> 0 | AP46: =VLOOKUP($A46,BFevrier!$A$8:$BC$57,39,FALSE) -> 0 | AQ46: =VLOOKUP($A46,Bilan!$A$8:$BE$57,41,FALSE) -> 0 | AT46: =IFERROR(SUM((VLOOKUP(Fevrier!A46,Données!$H$6:$J$53,3,TRUE)/12)*2),"") -> 
A47: =Données!$H44 -> 0 | AL47: =VLOOKUP($A47,BFevrier!$A$8:$BC$57,35,FALSE) -> 0 | AM47: =VLOOKUP($A47,BFevrier!$A$8:$BC$57,36,FALSE) -> 0 | AN47: =VLOOKUP($A47,BFevrier!$A$8:$BC$57,37,FALSE) -> 0 | AP47: =VLOOKUP($A47,BFevrier!$A$8:$BC$57,39,FALSE) -> 0 | AQ47: =VLOOKUP($A47,Bilan!$A$8:$BE$57,41,FALSE) -> 0 | AT47: =IFERROR(SUM((VLOOKUP(Fevrier!A47,Données!$H$6:$J$53,3,TRUE)/12)*2),"") -> 
A48: =Données!$H45 -> 0 | AL48: =VLOOKUP($A48,BFevrier!$A$8:$BC$57,35,FALSE) -> 0 | AM48: =VLOOKUP($A48,BFevrier!$A$8:$BC$57,36,FALSE) -> 0 | AN48: =VLOOKUP($A48,BFevrier!$A$8:$BC$57,37,FALSE) -> 0 | AP48: =VLOOKUP($A48,BFevrier!$A$8:$BC$57,39,FALSE) -> 0 | AQ48: =VLOOKUP($A48,Bilan!$A$8:$BE$57,41,FALSE) -> 0 | AT48: =IFERROR(SUM((VLOOKUP(Fevrier!A48,Données!$H$6:$J$53,3,TRUE)/12)*2),"") -> 
A49: =Données!$H46 -> Coordinatrice
A50: =Données!$H47 -> 0 | AL50: =VLOOKUP($A50,BFevrier!$A$8:$BC$57,35,FALSE) -> 0 | AM50: =VLOOKUP($A50,BFevrier!$A$8:$BC$57,36,FALSE) -> 0 | AN50: =VLOOKUP($A50,BFevrier!$A$8:$BC$57,37,FALSE) -> 0 | AP50: =VLOOKUP($A50,BFevrier!$A$8:$BC$57,39,FALSE) -> 0 | AQ50: =VLOOKUP($A50,Bilan!$A$8:$BE$57,41,FALSE) -> 0 | AT50: =IFERROR(SUM((VLOOKUP(Fevrier!A50,Données!$H$6:$J$53,3,TRUE)/12)*2),"") -> 
A51: =Données!$H48 -> 0 | AL51: =VLOOKUP($A51,BFevrier!$A$8:$BC$57,35,FALSE) -> 0 | AM51: =VLOOKUP($A51,BFevrier!$A$8:$BC$57,36,FALSE) -> 0 | AN51: =VLOOKUP($A51,BFevrier!$A$8:$BC$57,37,FALSE) -> 0 | AP51: =VLOOKUP($A51,BFevrier!$A$8:$BC$57,39,FALSE) -> 0 | AQ51: =VLOOKUP($A51,Bilan!$A$8:$BE$57,41,FALSE) -> 0 | AT51: =IFERROR(SUM((VLOOKUP(Fevrier!A51,Données!$H$6:$J$53,3,TRUE)/12)*2),"") -> 
A52: =Données!$H49 -> 0 | AL52: =VLOOKUP($A52,BFevrier!$A$8:$BC$57,35,FALSE) -> 0 | AM52: =VLOOKUP($A52,BFevrier!$A$8:$BC$57,36,FALSE) -> 0 | AN52: =VLOOKUP($A52,BFevrier!$A$8:$BC$57,37,FALSE) -> 0 | AP52: =VLOOKUP($A52,BFevrier!$A$8:$BC$57,39,FALSE) -> 0 | AQ52: =VLOOKUP($A52,Bilan!$A$8:$BE$57,41,FALSE) -> 0 | AT52: =IFERROR(SUM((VLOOKUP(Fevrier!A52,Données!$H$6:$J$53,3,TRUE)/12)*2),"") -> 
A53: =Données!$H50 -> 0 | AL53: =VLOOKUP($A53,BFevrier!$A$8:$BC$57,35,FALSE) -> 0 | AM53: =VLOOKUP($A53,BFevrier!$A$8:$BC$57,36,FALSE) -> 0 | AN53: =VLOOKUP($A53,BFevrier!$A$8:$BC$57,37,FALSE) -> 0 | AP53: =VLOOKUP($A53,BFevrier!$A$8:$BC$57,39,FALSE) -> 0 | AQ53: =VLOOKUP($A53,Bilan!$A$8:$BE$57,41,FALSE) -> 0 | AT53: =IFERROR(SUM((VLOOKUP(Fevrier!A53,Données!$H$6:$J$53,3,TRUE)/12)*2),"") -> 
A54: =Données!$H51 -> 0 | AL54: =VLOOKUP($A54,BFevrier!$A$8:$BC$57,35,FALSE) -> 0 | AM54: =VLOOKUP($A54,BFevrier!$A$8:$BC$57,36,FALSE) -> 0 | AN54: =VLOOKUP($A54,BFevrier!$A$8:$BC$57,37,FALSE) -> 0 | AP54: =VLOOKUP($A54,BFevrier!$A$8:$BC$57,39,FALSE) -> 0 | AQ54: =VLOOKUP($A54,Bilan!$A$8:$BE$57,41,FALSE) -> 0 | AT54: =IFERROR(SUM((VLOOKUP(Fevrier!A54,Données!$H$6:$J$53,3,TRUE)/12)*2),"") -> 
A55: =Données!$H52 -> Chef de service
A56: =Données!$H53 -> 0 | AL56: =VLOOKUP($A56,BFevrier!$A$8:$BC$57,35,FALSE) -> 0 | AM56: =VLOOKUP($A56,BFevrier!$A$8:$BC$57,36,FALSE) -> 0 | AN56: =VLOOKUP($A56,BFevrier!$A$8:$BC$57,37,FALSE) -> 0 | AP56: =VLOOKUP($A56,BFevrier!$A$8:$BC$57,39,FALSE) -> 0 | AQ56: =VLOOKUP($A56,Bilan!$A$8:$BE$57,41,FALSE) -> 0 | AT56: =IFERROR(SUM((VLOOKUP(Fevrier!A56,Données!$H$6:$J$53,3,TRUE)/12)*2),"") -> 
B58: =Données!$A3 -> S | C58: = | D58: =IF(ISBLANK(Données!$C3),TEXT(Données!$B3,"hh:mm"),TEXT(Données!$B3,"hh:mm")&" : "&TEXT(Données!$C3,"hh:mm")) -> 13:30 : 21:30 | H58: =Données!$A7 -> J+ | I58: = | J58: =IF(ISBLANK(Données!$C7),TEXT(Données!$B7,"hh:mm"),TEXT(Données!$B7,"hh:mm")&" : "&TEXT(Données!$C7,"hh:mm")) -> 09:00 : 21:00 | N58: =Données!$A10 -> N- | O58: = | P58: =IF(ISBLANK(Données!$C10),TEXT(Données!$B10,"hh:mm"),TEXT(Données!$B10,"hh:mm")&" : "&TEXT(Données!$C10,"hh:mm")) -> 20:45 : 07:15 | T58: =Données!$A14 -> AT | U58: = | V58: =IF(ISBLANK(Données!$C14),TEXT(Données!$B14,"hh:mm"),TEXT(Données!$B14,"hh:mm")&" : "&TEXT(Données!$C14,"hh:mm")) -> AT : AT | Z58: =Données!$A18 -> CA | AA58: = | AB58: =IF(ISBLANK(Données!$C18),TEXT(Données!$B18,"hh:mm"),TEXT(Données!$B18,"hh:mm")&" : "&TEXT(Données!$C18,"hh:mm")) -> CA : CA
B59: =Données!$A4 -> M- | C59: = | D59: =IF(ISBLANK(Données!$C4),TEXT(Données!$B4,"hh:mm"),TEXT(Données!$B4,"hh:mm")&" : "&TEXT(Données!$C4,"hh:mm")) -> 07:00 : 15:00 | H59: =Données!$A8 -> RS | I59: = | J59: =IF(ISBLANK(Données!$C8),TEXT(Données!$B8,"hh:mm"),TEXT(Données!$B8,"hh:mm")&" : "&TEXT(Données!$C8,"hh:mm")) -> 09:30 : 21:30 | N59: =Données!$A11 -> N+ | O59: = | P59: =IF(ISBLANK(Données!$C11),TEXT(Données!$B11,"hh:mm"),TEXT(Données!$B11,"hh:mm")&" : "&TEXT(Données!$C11,"hh:mm")) -> 19:15 : 07:15 | T59: =Données!$A15 -> AM | U59: = | V59: =IF(ISBLANK(Données!$C15),TEXT(Données!$B15,"hh:mm"),TEXT(Données!$B15,"hh:mm")&" : "&TEXT(Données!$C15,"hh:mm")) -> AM : AM | Z59: =Données!$A19 -> CA17 | AA59: = | AB59: =IF(ISBLANK(Données!$C19),TEXT(Données!$B19,"hh:mm"),TEXT(Données!$B19,"hh:mm")&" : "&TEXT(Données!$C19,"hh:mm")) -> CA17 : CA17
B60: =Données!$A5 -> M | C60: = | D60: =IF(ISBLANK(Données!$C5),TEXT(Données!$B5,"hh:mm"),TEXT(Données!$B5,"hh:mm")&" : "&TEXT(Données!$C5,"hh:mm")) -> 08:00 : 15:00 | H60: =Données!$A9 -> N | I60: = | J60: =IF(ISBLANK(Données!$C9),TEXT(Données!$B9,"hh:mm"),TEXT(Données!$B9,"hh:mm")&" : "&TEXT(Données!$C9,"hh:mm")) -> 20:45 : 08:15 | N60: =Données!$A12 -> JS | O60: = | P60: =IF(ISBLANK(Données!$C12),TEXT(Données!$B12,"hh:mm"),TEXT(Données!$B12,"hh:mm")&" : "&TEXT(Données!$C12,"hh:mm")) -> 08:00 : 19:00 | T60: =Données!$A16 -> EM | U60: = | V60: =IF(ISBLANK(Données!$C16),TEXT(Données!$B16,"hh:mm"),TEXT(Données!$B16,"hh:mm")&" : "&TEXT(Données!$C16,"hh:mm")) -> EM : EM | Z60: =Données!$A20 -> REC | AA60: = | AB60: =IF(ISBLANK(Données!$C20),TEXT(Données!$B20,"hh:mm"),TEXT(Données!$B20,"hh:mm")&" : "&TEXT(Données!$C20,"hh:mm")) -> REC : REC
B61: =Données!$A6 -> J | C61: = | D61: =IF(ISBLANK(Données!$C6),TEXT(Données!$B6,"hh:mm"),TEXT(Données!$B6,"hh:mm")&" : "&TEXT(Données!$C6,"hh:mm")) -> 09:00 : 16:30 | H61: =Données!$A10 -> N- | I61: = | J61: =IF(ISBLANK(Données!$C10),TEXT(Données!$B10,"hh:mm"),TEXT(Données!$B10,"hh:mm")&" : "&TEXT(Données!$C10,"hh:mm")) -> 20:45 : 07:15 | N61: =Données!$A13 -> SYN | O61: = | P61: =IF(ISBLANK(Données!$C13),TEXT(Données!$B13,"hh:mm"),TEXT(Données!$B13,"hh:mm")&" : "&TEXT(Données!$C13,"hh:mm")) -> Syn : Syn | T61: =Données!$A17 -> CE | U61: = | V61: =IF(ISBLANK(Données!$C17),TEXT(Données!$B17,"hh:mm"),TEXT(Données!$B17,"hh:mm")&" : "&TEXT(Données!$C17,"hh:mm")) -> CE : CE | Z61: =Données!$A21 -> PL | AA61: = | AB61: =IF(ISBLANK(Données!$C21),TEXT(Données!$B21,"hh:mm"),TEXT(Données!$B21,"hh:mm")&" : "&TEXT(Données!$C21,"hh:mm")) -> PL : PL

Sheet Mars
B2: =DATE(An,Mars,B7) -> 2018-03-01 | C2: 2018-03-02 | D2: 2018-03-03 | E2: 2018-03-04 | F2: 2018-03-05 | G2: 2018-03-06 | H2: 2018-03-07 | I2: 2018-03-08 | J2: 2018-03-09 | K2: 2018-03-10 | L2: 2018-03-11 | M2: 2018-03-12 | N2: 2018-03-13 | O2: 2018-03-14 | P2: 2018-03-15 | Q2: 2018-03-16 | R2: 2018-03-17 | S2: 2018-03-18 | T2: 2018-03-19 | U2: 2018-03-20 | V2: 2018-03-21 | W2: 2018-03-22 | X2: 2018-03-23 | Y2: 2018-03-24 | Z2: 2018-03-25 | AA2: 2018-03-26 | AB2: 2018-03-27 | AC2: 2018-03-28 | AD2: 2018-03-29 | AE2: 2018-03-30 | AF2: 2018-03-31 | AI2: Pour remplir | AJ2: penser | AO2: =IF(ISNUMBER(AO7),DATE(An,Mars,AO7),"") ->  | AP2: =IF(ISNUMBER(AP7),DATE(An,Mars,AP7),"") -> 
A3: =IF(Données!$L$5="","Service",Données!$L$5) -> Service | K3: Mois de Mars | O3: =An -> 2018 | AI3: à mettre dans le format:
AI4: "heures":"Minutes" | AT4: Masse horraire previsionnel
AI5: Heures sup | AJ5: Heures sup | AL5: Indications | AM5: Indications | AN5: Indications | AP5: Total
A6: Jours | B6: =PROPER(LEFT(TEXT(DATE(An,Mars,B7),"jjj"),1)) -> J | C6: V | D6: S | E6: D | F6: L | G6: M | H6: M | I6: J | J6: V | K6: S | L6: D | M6: L | N6: M | O6: M | P6: J | Q6: V | R6: S | S6: D | T6: L | U6: M | V6: M | W6: J | X6: V | Y6: S | Z6: D | AA6: L | AB6: M | AC6: M | AD6: J | AE6: V | AF6: S | AI6: avant 21h | AJ6: après 21h | AL6: Heures | AM6: Heures nuit | AN6: Heures | AP6: Heures | AQ6: Heures
B7: =A7+1 -> 1 | C7: 2 | D7: 3 | E7: 4 | F7: 5 | G7: 6 | H7: 7 | I7: 8 | J7: 9 | K7: 10 | L7: 11 | M7: 12 | N7: 13 | O7: 14 | P7: 15 | Q7: 16 | R7: 17 | S7: 18 | T7: 19 | U7: 20 | V7: 21 | W7: 22 | X7: 23 | Y7: 24 | Z7: 25 | AA7: 26 | AB7: 27 | AC7: 28 | AD7: 29 | AE7: 30 | AF7: =AE7+1 -> 31 | AI7: A remplir | AJ7: A remplir | AL7: Dimanche | AM7: Dimanche | AN7: après 21h | AP7: au mois | AQ7: a l'année | AT7: i
A8: Equipe de jour
A9: =Données!$H6 -> A | AL9: =VLOOKUP($A9,BMars!$A$8:$BC$57,35,FALSE) -> 0 | AM9: =VLOOKUP($A9,BMars!$A$8:$BC$57,36,FALSE) -> 0 | AN9: =VLOOKUP($A9,BMars!$A$8:$BC$57,37,FALSE) -> 0 | AP9: =VLOOKUP($A9,BMars!$A$8:$BC$57,39,FALSE) -> 0 | AQ9: =VLOOKUP($A9,Bilan!$A$8:$BE$57,41,FALSE) -> 5.533333333 | AT9: =IFERROR(SUM((VLOOKUP(Mars!A9,Données!$H$6:$J$53,3,TRUE)/12)*3),"") -> 15.08923611
A10: =Données!$H7 -> B | AL10: =VLOOKUP($A10,BMars!$A$8:$BC$57,35,FALSE) -> 0 | AM10: =VLOOKUP($A10,BMars!$A$8:$BC$57,36,FALSE) -> 0 | AN10: =VLOOKUP($A10,BMars!$A$8:$BC$57,37,FALSE) -> 0 | AP10: =VLOOKUP($A10,BMars!$A$8:$BC$57,39,FALSE) -> 0 | AQ10: =VLOOKUP($A10,Bilan!$A$8:$BE$57,41,FALSE) -> 0 | AT10: =IFERROR(SUM((VLOOKUP(Mars!A10,Données!$H$6:$J$53,3,TRUE)/12)*3),"") -> 
A11: =Données!$H8 -> L | AL11: =VLOOKUP($A11,BMars!$A$8:$BC$57,35,FALSE) -> 0 | AM11: =VLOOKUP($A11,BMars!$A$8:$BC$57,36,FALSE) -> 0 | AN11: =VLOOKUP($A11,BMars!$A$8:$BC$57,37,FALSE) -> 0 | AP11: =VLOOKUP($A11,BMars!$A$8:$BC$57,39,FALSE) -> 0 | AQ11: =VLOOKUP($A11,Bilan!$A$8:$BE$57,41,FALSE) -> 0 | AT11: =IFERROR(SUM((VLOOKUP(Mars!A11,Données!$H$6:$J$53,3,TRUE)/12)*3),"") -> 0
A12: =Données!$H9 -> L | AL12: =VLOOKUP($A12,BMars!$A$8:$BC$57,35,FALSE) -> 0 | AM12: =VLOOKUP($A12,BMars!$A$8:$BC$57,36,FALSE) -> 0 | AN12: =VLOOKUP($A12,BMars!$A$8:$BC$57,37,FALSE) -> 0 | AP12: =VLOOKUP($A12,BMars!$A$8:$BC$57,39,FALSE) -> 0 | AQ12: =VLOOKUP($A12,Bilan!$A$8:$BE$57,41,FALSE) -> 0 | AT12: =IFERROR(SUM((VLOOKUP(Mars!A12,Données!$H$6:$J$53,3,TRUE)/12)*3),"") -> 0
A13: =Données!$H10 -> 0 | AL13: =VLOOKUP($A13,BMars!$A$8:$BC$57,35,FALSE) -> 0 | AM13: =VLOOKUP($A13,BMars!$A$8:$BC$57,36,FALSE) -> 0 | AN13: =VLOOKUP($A13,BMars!$A$8:$BC$57,37,FALSE) -> 0 | AP13: =VLOOKUP($A13,BMars!$A$8:$BC$57,39,FALSE) -> 0 | AQ13: =VLOOKUP($A13,Bilan!$A$8:$BE$57,41,FALSE) -> 0 | AT13: =IFERROR(SUM((VLOOKUP(Mars!A13,Données!$H$6:$J$53,3,TRUE)/12)*3),"") -> 
A14: =Données!$H11 -> 0 | AL14: =VLOOKUP($A14,BMars!$A$8:$BC$57,35,FALSE) -> 0 | AM14: =VLOOKUP($A14,BMars!$A$8:$BC$57,36,FALSE) -> 0 | AN14: =VLOOKUP($A14,BMars!$A$8:$BC$57,37,FALSE) -> 0 | AP14: =VLOOKUP($A14,BMars!$A$8:$BC$57,39,FALSE) -> 0 | AQ14: =VLOOKUP($A14,Bilan!$A$8:$BE$57,41,FALSE) -> 0 | AT14: =IFERROR(SUM((VLOOKUP(Mars!A14,Données!$H$6:$J$53,3,TRUE)/12)*3),"") -> 
A15: =Données!$H12 -> 0 | AL15: =VLOOKUP($A15,BMars!$A$8:$BC$57,35,FALSE) -> 0 | AM15: =VLOOKUP($A15,BMars!$A$8:$BC$57,36,FALSE) -> 0 | AN15: =VLOOKUP($A15,BMars!$A$8:$BC$57,37,FALSE) -> 0 | AP15: =VLOOKUP($A15,BMars!$A$8:$BC$57,39,FALSE) -> 0 | AQ15: =VLOOKUP($A15,Bilan!$A$8:$BE$57,41,FALSE) -> 0 | AT15: =IFERROR(SUM((VLOOKUP(Mars!A15,Données!$H$6:$J$53,3,TRUE)/12)*3),"") -> 
A16: =Données!$H13 -> 0 | AL16: =VLOOKUP($A16,BMars!$A$8:$BC$57,35,FALSE) -> 0 | AM16: =VLOOKUP($A16,BMars!$A$8:$BC$57,36,FALSE) -> 0 | AN16: =VLOOKUP($A16,BMars!$A$8:$BC$57,37,FALSE) -> 0 | AP16: =VLOOKUP($A16,BMars!$A$8:$BC$57,39,FALSE) -> 0 | AQ16: =VLOOKUP($A16,Bilan!$A$8:$BE$57,41,FALSE) -> 0 | AT16: =IFERROR(SUM((VLOOKUP(Mars!A16,Données!$H$6:$J$53,3,TRUE)/12)*3),"") -> 
A17: =Données!$H14 -> 0 | AL17: =VLOOKUP($A17,BMars!$A$8:$BC$57,35,FALSE) -> 0 | AM17: =VLOOKUP($A17,BMars!$A$8:$BC$57,36,FALSE) -> 0 | AN17: =VLOOKUP($A17,BMars!$A$8:$BC$57,37,FALSE) -> 0 | AP17: =VLOOKUP($A17,BMars!$A$8:$BC$57,39,FALSE) -> 0 | AQ17: =VLOOKUP($A17,Bilan!$A$8:$BE$57,41,FALSE) -> 0 | AT17: =IFERROR(SUM((VLOOKUP(Mars!A17,Données!$H$6:$J$53,3,TRUE)/12)*3),"") -> 
A18: =Données!$H15 -> 0 | AL18: =VLOOKUP($A18,BMars!$A$8:$BC$57,35,FALSE) -> 0 | AM18: =VLOOKUP($A18,BMars!$A$8:$BC$57,36,FALSE) -> 0 | AN18: =VLOOKUP($A18,BMars!$A$8:$BC$57,37,FALSE) -> 0 | AP18: =VLOOKUP($A18,BMars!$A$8:$BC$57,39,FALSE) -> 0 | AQ18: =VLOOKUP($A18,Bilan!$A$8:$BE$57,41,FALSE) -> 0 | AT18: =IFERROR(SUM((VLOOKUP(Mars!A18,Données!$H$6:$J$53,3,TRUE)/12)*3),"") -> 
A19: =Données!$H16 -> 0 | AL19: =VLOOKUP($A19,BMars!$A$8:$BC$57,35,FALSE) -> 0 | AM19: =VLOOKUP($A19,BMars!$A$8:$BC$57,36,FALSE) -> 0 | AN19: =VLOOKUP($A19,BMars!$A$8:$BC$57,37,FALSE) -> 0 | AP19: =VLOOKUP($A19,BMars!$A$8:$BC$57,39,FALSE) -> 0 | AQ19: =VLOOKUP($A19,Bilan!$A$8:$BE$57,41,FALSE) -> 0 | AT19: =IFERROR(SUM((VLOOKUP(Mars!A19,Données!$H$6:$J$53,3,TRUE)/12)*3),"") -> 
A20: =Données!$H17 -> 0 | AL20: =VLOOKUP($A20,BMars!$A$8:$BC$57,35,FALSE) -> 0 | AM20: =VLOOKUP($A20,BMars!$A$8:$BC$57,36,FALSE) -> 0 | AN20: =VLOOKUP($A20,BMars!$A$8:$BC$57,37,FALSE) -> 0 | AP20: =VLOOKUP($A20,BMars!$A$8:$BC$57,39,FALSE) -> 0 | AQ20: =VLOOKUP($A20,Bilan!$A$8:$BE$57,41,FALSE) -> 0 | AT20: =IFERROR(SUM((VLOOKUP(Mars!A20,Données!$H$6:$J$53,3,TRUE)/12)*3),"") -> 
A21: =Données!$H18 -> 0 | AL21: =VLOOKUP($A21,BMars!$A$8:$BC$57,35,FALSE) -> 0 | AM21: =VLOOKUP($A21,BMars!$A$8:$BC$57,36,FALSE) -> 0 | AN21: =VLOOKUP($A21,BMars!$A$8:$BC$57,37,FALSE) -> 0 | AP21: =VLOOKUP($A21,BMars!$A$8:$BC$57,39,FALSE) -> 0 | AQ21: =VLOOKUP($A21,Bilan!$A$8:$BE$57,41,FALSE) -> 0 | AT21: =IFERROR(SUM((VLOOKUP(Mars!A21,Données!$H$6:$J$53,3,TRUE)/12)*3),"") -> 
A22: =Données!$H19 -> 0 | AL22: =VLOOKUP($A22,BMars!$A$8:$BC$57,35,FALSE) -> 0 | AM22: =VLOOKUP($A22,BMars!$A$8:$BC$57,36,FALSE) -> 0 | AN22: =VLOOKUP($A22,BMars!$A$8:$BC$57,37,FALSE) -> 0 | AP22: =VLOOKUP($A22,BMars!$A$8:$BC$57,39,FALSE) -> 0 | AQ22: =VLOOKUP($A22,Bilan!$A$8:$BE$57,41,FALSE) -> 0 | AT22: =IFERROR(SUM((VLOOKUP(Mars!A22,Données!$H$6:$J$53,3,TRUE)/12)*3),"") -> 
A23: =Données!$H20 -> 0 | AL23: =VLOOKUP($A23,BMars!$A$8:$BC$57,35,FALSE) -> 0 | AM23: =VLOOKUP($A23,BMars!$A$8:$BC$57,36,FALSE) -> 0 | AN23: =VLOOKUP($A23,BMars!$A$8:$BC$57,37,FALSE) -> 0 | AP23: =VLOOKUP($A23,BMars!$A$8:$BC$57,39,FALSE) -> 0 | AQ23: =VLOOKUP($A23,Bilan!$A$8:$BE$57,41,FALSE) -> 0 | AT23: =IFERROR(SUM((VLOOKUP(Mars!A23,Données!$H$6:$J$53,3,TRUE)/12)*3),"") -> 
A24: =Données!$H21 -> 0 | AL24: =VLOOKUP($A24,BMars!$A$8:$BC$57,35,FALSE) -> 0 | AM24: =VLOOKUP($A24,BMars!$A$8:$BC$57,36,FALSE) -> 0 | AN24: =VLOOKUP($A24,BMars!$A$8:$BC$57,37,FALSE) -> 0 | AP24: =VLOOKUP($A24,BMars!$A$8:$BC$57,39,FALSE) -> 0 | AQ24: =VLOOKUP($A24,Bilan!$A$8:$BE$57,41,FALSE) -> 0 | AT24: =IFERROR(SUM((VLOOKUP(Mars!A24,Données!$H$6:$J$53,3,TRUE)/12)*3),"") -> 
A25: =Données!$H22 -> Equipe de nuit
A26: =Données!$H23 -> 0 | AL26: =VLOOKUP($A26,BMars!$A$8:$BC$57,35,FALSE) -> 0 | AM26: =VLOOKUP($A26,BMars!$A$8:$BC$57,36,FALSE) -> 0 | AN26: =VLOOKUP($A26,BMars!$A$8:$BC$57,37,FALSE) -> 0 | AP26: =VLOOKUP($A26,BMars!$A$8:$BC$57,39,FALSE) -> 0 | AQ26: =VLOOKUP($A26,Bilan!$A$8:$BE$57,41,FALSE) -> 0 | AT26: =IFERROR(SUM((VLOOKUP(Mars!A26,Données!$H$6:$J$53,3,TRUE)/12)*3),"") -> 
A27: =Données!$H24 -> 0 | AL27: =VLOOKUP($A27,BMars!$A$8:$BC$57,35,FALSE) -> 0 | AM27: =VLOOKUP($A27,BMars!$A$8:$BC$57,36,FALSE) -> 0 | AN27: =VLOOKUP($A27,BMars!$A$8:$BC$57,37,FALSE) -> 0 | AP27: =VLOOKUP($A27,BMars!$A$8:$BC$57,39,FALSE) -> 0 | AQ27: =VLOOKUP($A27,Bilan!$A$8:$BE$57,41,FALSE) -> 0 | AT27: =IFERROR(SUM((VLOOKUP(Mars!A27,Données!$H$6:$J$53,3,TRUE)/12)*3),"") -> 
A28: =Données!$H25 -> 0 | AL28: =VLOOKUP($A28,BMars!$A$8:$BC$57,35,FALSE) -> 0 | AM28: =VLOOKUP($A28,BMars!$A$8:$BC$57,36,FALSE) -> 0 | AN28: =VLOOKUP($A28,BMars!$A$8:$BC$57,37,FALSE) -> 0 | AP28: =VLOOKUP($A28,BMars!$A$8:$BC$57,39,FALSE) -> 0 | AQ28: =VLOOKUP($A28,Bilan!$A$8:$BE$57,41,FALSE) -> 0 | AT28: =IFERROR(SUM((VLOOKUP(Mars!A28,Données!$H$6:$J$53,3,TRUE)/12)*3),"") -> 
A29: =Données!$H26 -> 0 | AL29: =VLOOKUP($A29,BMars!$A$8:$BC$57,35,FALSE) -> 0 | AM29: =VLOOKUP($A29,BMars!$A$8:$BC$57,36,FALSE) -> 0 | AN29: =VLOOKUP($A29,BMars!$A$8:$BC$57,37,FALSE) -> 0 | AP29: =VLOOKUP($A29,BMars!$A$8:$BC$57,39,FALSE) -> 0 | AQ29: =VLOOKUP($A29,Bilan!$A$8:$BE$57,41,FALSE) -> 0 | AT29: =IFERROR(SUM((VLOOKUP(Mars!A29,Données!$H$6:$J$53,3,TRUE)/12)*3),"") -> 
A30: =Données!$H27 -> 0 | AL30: =VLOOKUP($A30,BMars!$A$8:$BC$57,35,FALSE) -> 0 | AM30: =VLOOKUP($A30,BMars!$A$8:$BC$57,36,FALSE) -> 0 | AN30: =VLOOKUP($A30,BMars!$A$8:$BC$57,37,FALSE) -> 0 | AP30: =VLOOKUP($A30,BMars!$A$8:$BC$57,39,FALSE) -> 0 | AQ30: =VLOOKUP($A30,Bilan!$A$8:$BE$57,41,FALSE) -> 0 | AT30: =IFERROR(SUM((VLOOKUP(Mars!A30,Données!$H$6:$J$53,3,TRUE)/12)*3),"") -> 
A31: =Données!$H28 -> 0 | AL31: =VLOOKUP($A31,BMars!$A$8:$BC$57,35,FALSE) -> 0 | AM31: =VLOOKUP($A31,BMars!$A$8:$BC$57,36,FALSE) -> 0 | AN31: =VLOOKUP($A31,BMars!$A$8:$BC$57,37,FALSE) -> 0 | AP31: =VLOOKUP($A31,BMars!$A$8:$BC$57,39,FALSE) -> 0 | AQ31: =VLOOKUP($A31,Bilan!$A$8:$BE$57,41,FALSE) -> 0 | AT31: =IFERROR(SUM((VLOOKUP(Mars!A31,Données!$H$6:$J$53,3,TRUE)/12)*3),"") -> 
A32: =Données!$H29 -> 0 | AL32: =VLOOKUP($A32,BMars!$A$8:$BC$57,35,FALSE) -> 0 | AM32: =VLOOKUP($A32,BMars!$A$8:$BC$57,36,FALSE) -> 0 | AN32: =VLOOKUP($A32,BMars!$A$8:$BC$57,37,FALSE) -> 0 | AP32: =VLOOKUP($A32,BMars!$A$8:$BC$57,39,FALSE) -> 0 | AQ32: =VLOOKUP($A32,Bilan!$A$8:$BE$57,41,FALSE) -> 0 | AT32: =IFERROR(SUM((VLOOKUP(Mars!A32,Données!$H$6:$J$53,3,TRUE)/12)*3),"") -> 
A33: =Données!$H30 -> 0 | AL33: =VLOOKUP($A33,BMars!$A$8:$BC$57,35,FALSE) -> 0 | AM33: =VLOOKUP($A33,BMars!$A$8:$BC$57,36,FALSE) -> 0 | AN33: =VLOOKUP($A33,BMars!$A$8:$BC$57,37,FALSE) -> 0 | AP33: =VLOOKUP($A33,BMars!$A$8:$BC$57,39,FALSE) -> 0 | AQ33: =VLOOKUP($A33,Bilan!$A$8:$BE$57,41,FALSE) -> 0 | AT33: =IFERROR(SUM((VLOOKUP(Mars!A33,Données!$H$6:$J$53,3,TRUE)/12)*3),"") -> 
A34: =Données!$H31 -> 0 | AL34: =VLOOKUP($A34,BMars!$A$8:$BC$57,35,FALSE) -> 0 | AM34: =VLOOKUP($A34,BMars!$A$8:$BC$57,36,FALSE) -> 0 | AN34: =VLOOKUP($A34,BMars!$A$8:$BC$57,37,FALSE) -> 0 | AP34: =VLOOKUP($A34,BMars!$A$8:$BC$57,39,FALSE) -> 0 | AQ34: =VLOOKUP($A34,Bilan!$A$8:$BE$57,41,FALSE) -> 0 | AT34: =IFERROR(SUM((VLOOKUP(Mars!A34,Données!$H$6:$J$53,3,TRUE)/12)*3),"") -> 
A35: =Données!$H32 -> Maitresse de maison
A36: =Données!$H33 -> 0 | AL36: =VLOOKUP($A36,BMars!$A$8:$BC$57,35,FALSE) -> 0 | AM36: =VLOOKUP($A36,BMars!$A$8:$BC$57,36,FALSE) -> 0 | AN36: =VLOOKUP($A36,BMars!$A$8:$BC$57,37,FALSE) -> 0 | AP36: =VLOOKUP($A36,BMars!$A$8:$BC$57,39,FALSE) -> 0 | AQ36: =VLOOKUP($A36,Bilan!$A$8:$BE$57,41,FALSE) -> 0 | AT36: =IFERROR(SUM((VLOOKUP(Mars!A36,Données!$H$6:$J$53,3,TRUE)/12)*3),"") -> 
A37: =Données!$H34 -> 0 | AL37: =VLOOKUP($A37,BMars!$A$8:$BC$57,35,FALSE) -> 0 | AM37: =VLOOKUP($A37,BMars!$A$8:$BC$57,36,FALSE) -> 0 | AN37: =VLOOKUP($A37,BMars!$A$8:$BC$57,37,FALSE) -> 0 | AP37: =VLOOKUP($A37,BMars!$A$8:$BC$57,39,FALSE) -> 0 | AQ37: =VLOOKUP($A37,Bilan!$A$8:$BE$57,41,FALSE) -> 0 | AT37: =IFERROR(SUM((VLOOKUP(Mars!A37,Données!$H$6:$J$53,3,TRUE)/12)*3),"") -> 
A38: =Données!$H35 -> 0 | AL38: =VLOOKUP($A38,BMars!$A$8:$BC$57,35,FALSE) -> 0 | AM38: =VLOOKUP($A38,BMars!$A$8:$BC$57,36,FALSE) -> 0 | AN38: =VLOOKUP($A38,BMars!$A$8:$BC$57,37,FALSE) -> 0 | AP38: =VLOOKUP($A38,BMars!$A$8:$BC$57,39,FALSE) -> 0 | AQ38: =VLOOKUP($A38,Bilan!$A$8:$BE$57,41,FALSE) -> 0 | AT38: =IFERROR(SUM((VLOOKUP(Mars!A38,Données!$H$6:$J$53,3,TRUE)/12)*3),"") -> 
A39: =Données!$H36 -> 0 | AL39: =VLOOKUP($A39,BMars!$A$8:$BC$57,35,FALSE) -> 0 | AM39: =VLOOKUP($A39,BMars!$A$8:$BC$57,36,FALSE) -> 0 | AN39: =VLOOKUP($A39,BMars!$A$8:$BC$57,37,FALSE) -> 0 | AP39: =VLOOKUP($A39,BMars!$A$8:$BC$57,39,FALSE) -> 0 | AQ39: =VLOOKUP($A39,Bilan!$A$8:$BE$57,41,FALSE) -> 0 | AT39: =IFERROR(SUM((VLOOKUP(Mars!A39,Données!$H$6:$J$53,3,TRUE)/12)*3),"") -> 
A40: =Données!$H37 -> 0 | AL40: =VLOOKUP($A40,BMars!$A$8:$BC$57,35,FALSE) -> 0 | AM40: =VLOOKUP($A40,BMars!$A$8:$BC$57,36,FALSE) -> 0 | AN40: =VLOOKUP($A40,BMars!$A$8:$BC$57,37,FALSE) -> 0 | AP40: =VLOOKUP($A40,BMars!$A$8:$BC$57,39,FALSE) -> 0 | AQ40: =VLOOKUP($A40,Bilan!$A$8:$BE$57,41,FALSE) -> 0 | AT40: =IFERROR(SUM((VLOOKUP(Mars!A40,Données!$H$6:$J$53,3,TRUE)/12)*3),"") -> 
A41: =Données!$H38 -> 0 | AL41: =VLOOKUP($A41,BMars!$A$8:$BC$57,35,FALSE) -> 0 | AM41: =VLOOKUP($A41,BMars!$A$8:$BC$57,36,FALSE) -> 0 | AN41: =VLOOKUP($A41,BMars!$A$8:$BC$57,37,FALSE) -> 0 | AP41: =VLOOKUP($A41,BMars!$A$8:$BC$57,39,FALSE) -> 0 | AQ41: =VLOOKUP($A41,Bilan!$A$8:$BE$57,41,FALSE) -> 0 | AT41: =IFERROR(SUM((VLOOKUP(Mars!A41,Données!$H$6:$J$53,3,TRUE)/12)*3),"") -> 
A42: =Données!$H39 -> 0 | AL42: =VLOOKUP($A42,BMars!$A$8:$BC$57,35,FALSE) -> 0 | AM42: =VLOOKUP($A42,BMars!$A$8:$BC$57,36,FALSE) -> 0 | AN42: =VLOOKUP($A42,BMars!$A$8:$BC$57,37,FALSE) -> 0 | AP42: =VLOOKUP($A42,BMars!$A$8:$BC$57,39,FALSE) -> 0 | AQ42: =VLOOKUP($A42,Bilan!$A$8:$BE$57,41,FALSE) -> 0 | AT42: =IFERROR(SUM((VLOOKUP(Mars!A42,Données!$H$6:$J$53,3,TRUE)/12)*3),"") -> 
A43: =Données!$H40 -> 0 | AL43: =VLOOKUP($A43,BMars!$A$8:$BC$57,35,FALSE) -> 0 | AM43: =VLOOKUP($A43,BMars!$A$8:$BC$57,36,FALSE) -> 0 | AN43: =VLOOKUP($A43,BMars!$A$8:$BC$57,37,FALSE) -> 0 | AP43: =VLOOKUP($A43,BMars!$A$8:$BC$57,39,FALSE) -> 0 | AQ43: =VLOOKUP($A43,Bilan!$A$8:$BE$57,41,FALSE) -> 0 | AT43: =IFERROR(SUM((VLOOKUP(Mars!A43,Données!$H$6:$J$53,3,TRUE)/12)*3),"") -> 
A44: =Données!$H41 -> 0 | AL44: =VLOOKUP($A44,BMars!$A$8:$BC$57,35,FALSE) -> 0 | AM44: =VLOOKUP($A44,BMars!$A$8:$BC$57,36,FALSE) -> 0 | AN44: =VLOOKUP($A44,BMars!$A$8:$BC$57,37,FALSE) -> 0 | AP44: =VLOOKUP($A44,BMars!$A$8:$BC$57,39,FALSE) -> 0 | AQ44: =VLOOKUP($A44,Bilan!$A$8:$BE$57,41,FALSE) -> 0 | AT44: =IFERROR(SUM((VLOOKUP(Mars!A44,Données!$H$6:$J$53,3,TRUE)/12)*3),"") -> 
A45: =Données!$H42 -> Psychologue
A46: =Données!$H43 -> 0 | AL46: =VLOOKUP($A46,BMars!$A$8:$BC$57,35,FALSE) -> 0 | AM46: =VLOOKUP($A46,BMars!$A$8:$BC$57,36,FALSE) -> 0 | AN46: =VLOOKUP($A46,BMars!$A$8:$BC$57,37,FALSE) -> 0 | AP46: =VLOOKUP($A46,BMars!$A$8:$BC$57,39,FALSE) -> 0 | AQ46: =VLOOKUP($A46,Bilan!$A$8:$BE$57,41,FALSE) -> 0 | AT46: =IFERROR(SUM((VLOOKUP(Mars!A46,Données!$H$6:$J$53,3,TRUE)/12)*3),"") -> 
A47: =Données!$H44 -> 0 | AL47: =VLOOKUP($A47,BMars!$A$8:$BC$57,35,FALSE) -> 0 | AM47: =VLOOKUP($A47,BMars!$A$8:$BC$57,36,FALSE) -> 0 | AN47: =VLOOKUP($A47,BMars!$A$8:$BC$57,37,FALSE) -> 0 | AP47: =VLOOKUP($A47,BMars!$A$8:$BC$57,39,FALSE) -> 0 | AQ47: =VLOOKUP($A47,Bilan!$A$8:$BE$57,41,FALSE) -> 0 | AT47: =IFERROR(SUM((VLOOKUP(Mars!A47,Données!$H$6:$J$53,3,TRUE)/12)*3),"") -> 
A48: =Données!$H45 -> 0 | AL48: =VLOOKUP($A48,BMars!$A$8:$BC$57,35,FALSE) -> 0 | AM48: =VLOOKUP($A48,BMars!$A$8:$BC$57,36,FALSE) -> 0 | AN48: =VLOOKUP($A48,BMars!$A$8:$BC$57,37,FALSE) -> 0 | AP48: =VLOOKUP($A48,BMars!$A$8:$BC$57,39,FALSE) -> 0 | AQ48: =VLOOKUP($A48,Bilan!$A$8:$BE$57,41,FALSE) -> 0 | AT48: =IFERROR(SUM((VLOOKUP(Mars!A48,Données!$H$6:$J$53,3,TRUE)/12)*3),"") -> 
A49: =Données!$H46 -> Coordinatrice
A50: =Données!$H47 -> 0 | AL50: =VLOOKUP($A50,BMars!$A$8:$BC$57,35,FALSE) -> 0 | AM50: =VLOOKUP($A50,BMars!$A$8:$BC$57,36,FALSE) -> 0 | AN50: =VLOOKUP($A50,BMars!$A$8:$BC$57,37,FALSE) -> 0 | AP50: =VLOOKUP($A50,BMars!$A$8:$BC$57,39,FALSE) -> 0 | AQ50: =VLOOKUP($A50,Bilan!$A$8:$BE$57,41,FALSE) -> 0 | AT50: =IFERROR(SUM((VLOOKUP(Mars!A50,Données!$H$6:$J$53,3,TRUE)/12)*3),"") -> 
A51: =Données!$H48 -> 0 | AL51: =VLOOKUP($A51,BMars!$A$8:$BC$57,35,FALSE) -> 0 | AM51: =VLOOKUP($A51,BMars!$A$8:$BC$57,36,FALSE) -> 0 | AN51: =VLOOKUP($A51,BMars!$A$8:$BC$57,37,FALSE) -> 0 | AP51: =VLOOKUP($A51,BMars!$A$8:$BC$57,39,FALSE) -> 0 | AQ51: =VLOOKUP($A51,Bilan!$A$8:$BE$57,41,FALSE) -> 0 | AT51: =IFERROR(SUM((VLOOKUP(Mars!A51,Données!$H$6:$J$53,3,TRUE)/12)*3),"") -> 
A52: =Données!$H49 -> 0 | AL52: =VLOOKUP($A52,BMars!$A$8:$BC$57,35,FALSE) -> 0 | AM52: =VLOOKUP($A52,BMars!$A$8:$BC$57,36,FALSE) -> 0 | AN52: =VLOOKUP($A52,BMars!$A$8:$BC$57,37,FALSE) -> 0 | AP52: =VLOOKUP($A52,BMars!$A$8:$BC$57,39,FALSE) -> 0 | AQ52: =VLOOKUP($A52,Bilan!$A$8:$BE$57,41,FALSE) -> 0 | AT52: =IFERROR(SUM((VLOOKUP(Mars!A52,Données!$H$6:$J$53,3,TRUE)/12)*3),"") -> 
A53: =Données!$H50 -> 0 | AL53: =VLOOKUP($A53,BMars!$A$8:$BC$57,35,FALSE) -> 0 | AM53: =VLOOKUP($A53,BMars!$A$8:$BC$57,36,FALSE) -> 0 | AN53: =VLOOKUP($A53,BMars!$A$8:$BC$57,37,FALSE) -> 0 | AP53: =VLOOKUP($A53,BMars!$A$8:$BC$57,39,FALSE) -> 0 | AQ53: =VLOOKUP($A53,Bilan!$A$8:$BE$57,41,FALSE) -> 0 | AT53: =IFERROR(SUM((VLOOKUP(Mars!A53,Données!$H$6:$J$53,3,TRUE)/12)*3),"") -> 
A54: =Données!$H51 -> 0 | AL54: =VLOOKUP($A54,BMars!$A$8:$BC$57,35,FALSE) -> 0 | AM54: =VLOOKUP($A54,BMars!$A$8:$BC$57,36,FALSE) -> 0 | AN54: =VLOOKUP($A54,BMars!$A$8:$BC$57,37,FALSE) -> 0 | AP54: =VLOOKUP($A54,BMars!$A$8:$BC$57,39,FALSE) -> 0 | AQ54: =VLOOKUP($A54,Bilan!$A$8:$BE$57,41,FALSE) -> 0 | AT54: =IFERROR(SUM((VLOOKUP(Mars!A54,Données!$H$6:$J$53,3,TRUE)/12)*3),"") -> 
A55: =Données!$H52 -> Chef de service
A56: =Données!$H53 -> 0 | AL56: =VLOOKUP($A56,BMars!$A$8:$BC$57,35,FALSE) -> 0 | AM56: =VLOOKUP($A56,BMars!$A$8:$BC$57,36,FALSE) -> 0 | AN56: =VLOOKUP($A56,BMars!$A$8:$BC$57,37,FALSE) -> 0 | AP56: =VLOOKUP($A56,BMars!$A$8:$BC$57,39,FALSE) -> 0 | AQ56: =VLOOKUP($A56,Bilan!$A$8:$BE$57,41,FALSE) -> 0 | AT56: =IFERROR(SUM((VLOOKUP(Mars!A56,Données!$H$6:$J$53,3,TRUE)/12)*3),"") -> 
B58: =Données!$A3 -> S | C58: = | D58: =IF(ISBLANK(Données!$C3),TEXT(Données!$B3,"hh:mm"),TEXT(Données!$B3,"hh:mm")&" : "&TEXT(Données!$C3,"hh:mm")) -> 13:30 : 21:30 | H58: =Données!$A7 -> J+ | I58: = | J58: =IF(ISBLANK(Données!$C7),TEXT(Données!$B7,"hh:mm"),TEXT(Données!$B7,"hh:mm")&" : "&TEXT(Données!$C7,"hh:mm")) -> 09:00 : 21:00 | N58: =Données!$A10 -> N- | O58: = | P58: =IF(ISBLANK(Données!$C10),TEXT(Données!$B10,"hh:mm"),TEXT(Données!$B10,"hh:mm")&" : "&TEXT(Données!$C10,"hh:mm")) -> 20:45 : 07:15 | T58: =Données!$A14 -> AT | U58: = | V58: =IF(ISBLANK(Données!$C14),TEXT(Données!$B14,"hh:mm"),TEXT(Données!$B14,"hh:mm")&" : "&TEXT(Données!$C14,"hh:mm")) -> AT : AT | Z58: =Données!$A18 -> CA | AA58: = | AB58: =IF(ISBLANK(Données!$C18),TEXT(Données!$B18,"hh:mm"),TEXT(Données!$B18,"hh:mm")&" : "&TEXT(Données!$C18,"hh:mm")) -> CA : CA
B59: =Données!$A4 -> M- | C59: = | D59: =IF(ISBLANK(Données!$C4),TEXT(Données!$B4,"hh:mm"),TEXT(Données!$B4,"hh:mm")&" : "&TEXT(Données!$C4,"hh:mm")) -> 07:00 : 15:00 | H59: =Données!$A8 -> RS | I59: = | J59: =IF(ISBLANK(Données!$C8),TEXT(Données!$B8,"hh:mm"),TEXT(Données!$B8,"hh:mm")&" : "&TEXT(Données!$C8,"hh:mm")) -> 09:30 : 21:30 | N59: =Données!$A11 -> N+ | O59: = | P59: =IF(ISBLANK(Données!$C11),TEXT(Données!$B11,"hh:mm"),TEXT(Données!$B11,"hh:mm")&" : "&TEXT(Données!$C11,"hh:mm")) -> 19:15 : 07:15 | T59: =Données!$A15 -> AM | U59: = | V59: =IF(ISBLANK(Données!$C15),TEXT(Données!$B15,"hh:mm"),TEXT(Données!$B15,"hh:mm")&" : "&TEXT(Données!$C15,"hh:mm")) -> AM : AM | Z59: =Données!$A19 -> CA17 | AA59: = | AB59: =IF(ISBLANK(Données!$C19),TEXT(Données!$B19,"hh:mm"),TEXT(Données!$B19,"hh:mm")&" : "&TEXT(Données!$C19,"hh:mm")) -> CA17 : CA17
B60: =Données!$A5 -> M | C60: = | D60: =IF(ISBLANK(Données!$C5),TEXT(Données!$B5,"hh:mm"),TEXT(Données!$B5,"hh:mm")&" : "&TEXT(Données!$C5,"hh:mm")) -> 08:00 : 15:00 | H60: =Données!$A9 -> N | I60: = | J60: =IF(ISBLANK(Données!$C9),TEXT(Données!$B9,"hh:mm"),TEXT(Données!$B9,"hh:mm")&" : "&TEXT(Données!$C9,"hh:mm")) -> 20:45 : 08:15 | N60: =Données!$A12 -> JS | O60: = | P60: =IF(ISBLANK(Données!$C12),TEXT(Données!$B12,"hh:mm"),TEXT(Données!$B12,"hh:mm")&" : "&TEXT(Données!$C12,"hh:mm")) -> 08:00 : 19:00 | T60: =Données!$A16 -> EM | U60: = | V60: =IF(ISBLANK(Données!$C16),TEXT(Données!$B16,"hh:mm"),TEXT(Données!$B16,"hh:mm")&" : "&TEXT(Données!$C16,"hh:mm")) -> EM : EM | Z60: =Données!$A20 -> REC | AA60: = | AB60: =IF(ISBLANK(Données!$C20),TEXT(Données!$B20,"hh:mm"),TEXT(Données!$B20,"hh:mm")&" : "&TEXT(Données!$C20,"hh:mm")) -> REC : REC
B61: =Données!$A6 -> J | C61: = | D61: =IF(ISBLANK(Données!$C6),TEXT(Données!$B6,"hh:mm"),TEXT(Données!$B6,"hh:mm")&" : "&TEXT(Données!$C6,"hh:mm")) -> 09:00 : 16:30 | H61: =Données!$A10 -> N- | I61: = | J61: =IF(ISBLANK(Données!$C10),TEXT(Données!$B10,"hh:mm"),TEXT(Données!$B10,"hh:mm")&" : "&TEXT(Données!$C10,"hh:mm")) -> 20:45 : 07:15 | N61: =Données!$A13 -> SYN | O61: = | P61: =IF(ISBLANK(Données!$C13),TEXT(Données!$B13,"hh:mm"),TEXT(Données!$B13,"hh:mm")&" : "&TEXT(Données!$C13,"hh:mm")) -> Syn : Syn | T61: =Données!$A17 -> CE | U61: = | V61: =IF(ISBLANK(Données!$C17),TEXT(Données!$B17,"hh:mm"),TEXT(Données!$B17,"hh:mm")&" : "&TEXT(Données!$C17,"hh:mm")) -> CE : CE | Z61: =Données!$A21 -> PL | AA61: = | AB61: =IF(ISBLANK(Données!$C21),TEXT(Données!$B21,"hh:mm"),TEXT(Données!$B21,"hh:mm")&" : "&TEXT(Données!$C21,"hh:mm")) -> PL : PL

Sheet Avril
B2: =DATE(An,Avril,B7) -> 2018-04-01 | C2: 2018-04-02 | D2: 2018-04-03 | E2: 2018-04-04 | F2: 2018-04-05 | G2: 2018-04-06 | H2: 2018-04-07 | I2: 2018-04-08 | J2: 2018-04-09 | K2: 2018-04-10 | L2: 2018-04-11 | M2: 2018-04-12 | N2: 2018-04-13 | O2: 2018-04-14 | P2: 2018-04-15 | Q2: 2018-04-16 | R2: 2018-04-17 | S2: 2018-04-18 | T2: 2018-04-19 | U2: 2018-04-20 | V2: 2018-04-21 | W2: 2018-04-22 | X2: 2018-04-23 | Y2: 2018-04-24 | Z2: 2018-04-25 | AA2: 2018-04-26 | AB2: 2018-04-27 | AC2: 2018-04-28 | AD2: 2018-04-29 | AE2: 2018-04-30 | AI2: Pour remplir | AJ2: penser | AO2: =IF(ISNUMBER(AO7),DATE(An,Avril,AO7),"") ->  | AP2: =IF(ISNUMBER(AP7),DATE(An,Avril,AP7),"") -> 
A3: =IF(Données!$L$5="","Service",Données!$L$5) -> Service | K3: Mois d'Avril | O3: =An -> 2018 | AI3: à mettre dans le format:
AI4: "heures":"Minutes" | AT4: Masse horraire previsionnel
AI5: Heures sup | AJ5: Heures sup | AL5: Indications | AM5: Indications | AN5: Indications | AP5: Total
A6: Jours | B6: =PROPER(LEFT(TEXT(DATE(An,Avril,B7),"jjj"),1)) -> D | C6: L | D6: M | E6: M | F6: J | G6: V | H6: S | I6: D | J6: L | K6: M | L6: M | M6: J | N6: V | O6: S | P6: D | Q6: L | R6: M | S6: M | T6: J | U6: V | V6: S | W6: D | X6: L | Y6: M | Z6: M | AA6: J | AB6: V | AC6: S | AD6: D | AE6: L | AI6: avant 21h | AJ6: après 21h | AL6: Heures | AM6: Heures nuit | AN6: Heures | AP6: Heures | AQ6: Heures
B7: =A7+1 -> 1 | C7: 2 | D7: 3 | E7: 4 | F7: 5 | G7: 6 | H7: 7 | I7: 8 | J7: 9 | K7: 10 | L7: 11 | M7: 12 | N7: 13 | O7: 14 | P7: 15 | Q7: 16 | R7: 17 | S7: 18 | T7: 19 | U7: 20 | V7: 21 | W7: 22 | X7: 23 | Y7: 24 | Z7: 25 | AA7: 26 | AB7: 27 | AC7: 28 | AD7: 29 | AE7: 30 | AI7: A remplir | AJ7: A remplir | AL7: Dimanche | AM7: Dimanche | AN7: après 21h | AP7: au mois | AQ7: a l'année | AT7: i
A8: Equipe de jour
A9: =Données!$H6 -> A | AL9: =VLOOKUP($A9,BAvril!$A$8:$BC$57,35,FALSE) -> 0 | AM9: =VLOOKUP($A9,BAvril!$A$8:$BC$57,36,FALSE) -> 0 | AN9: =VLOOKUP($A9,BAvril!$A$8:$BC$57,37,FALSE) -> 0 | AP9: =VLOOKUP($A9,BAvril!$A$8:$BC$57,39,FALSE) -> 0 | AQ9: =VLOOKUP($A9,Bilan!$A$8:$BE$57,41,FALSE) -> 5.533333333 | AT9: =IFERROR(SUM((VLOOKUP(Avril!A9,Données!$H$6:$J$53,3,TRUE)/12)*4),"") -> 20.11898148
A10: =Données!$H7 -> B | AL10: =VLOOKUP($A10,BAvril!$A$8:$BC$57,35,FALSE) -> 0 | AM10: =VLOOKUP($A10,BAvril!$A$8:$BC$57,36,FALSE) -> 0 | AN10: =VLOOKUP($A10,BAvril!$A$8:$BC$57,37,FALSE) -> 0 | AP10: =VLOOKUP($A10,BAvril!$A$8:$BC$57,39,FALSE) -> 0 | AQ10: =VLOOKUP($A10,Bilan!$A$8:$BE$57,41,FALSE) -> 0 | AT10: =IFERROR(SUM((VLOOKUP(Avril!A10,Données!$H$6:$J$53,3,TRUE)/12)*4),"") -> 
A11: =Données!$H8 -> L | AL11: =VLOOKUP($A11,BAvril!$A$8:$BC$57,35,FALSE) -> 0 | AM11: =VLOOKUP($A11,BAvril!$A$8:$BC$57,36,FALSE) -> 0 | AN11: =VLOOKUP($A11,BAvril!$A$8:$BC$57,37,FALSE) -> 0 | AP11: =VLOOKUP($A11,BAvril!$A$8:$BC$57,39,FALSE) -> 0 | AQ11: =VLOOKUP($A11,Bilan!$A$8:$BE$57,41,FALSE) -> 0 | AT11: =IFERROR(SUM((VLOOKUP(Avril!A11,Données!$H$6:$J$53,3,TRUE)/12)*4),"") -> 0
A12: =Données!$H9 -> L | AL12: =VLOOKUP($A12,BAvril!$A$8:$BC$57,35,FALSE) -> 0 | AM12: =VLOOKUP($A12,BAvril!$A$8:$BC$57,36,FALSE) -> 0 | AN12: =VLOOKUP($A12,BAvril!$A$8:$BC$57,37,FALSE) -> 0 | AP12: =VLOOKUP($A12,BAvril!$A$8:$BC$57,39,FALSE) -> 0 | AQ12: =VLOOKUP($A12,Bilan!$A$8:$BE$57,41,FALSE) -> 0 | AT12: =IFERROR(SUM((VLOOKUP(Avril!A12,Données!$H$6:$J$53,3,TRUE)/12)*4),"") -> 0
A13: =Données!$H10 -> 0 | AL13: =VLOOKUP($A13,BAvril!$A$8:$BC$57,35,FALSE) -> 0 | AM13: =VLOOKUP($A13,BAvril!$A$8:$BC$57,36,FALSE) -> 0 | AN13: =VLOOKUP($A13,BAvril!$A$8:$BC$57,37,FALSE) -> 0 | AP13: =VLOOKUP($A13,BAvril!$A$8:$BC$57,39,FALSE) -> 0 | AQ13: =VLOOKUP($A13,Bilan!$A$8:$BE$57,41,FALSE) -> 0 | AT13: =IFERROR(SUM((VLOOKUP(Avril!A13,Données!$H$6:$J$53,3,TRUE)/12)*4),"") -> 
A14: =Données!$H11 -> 0 | AL14: =VLOOKUP($A14,BAvril!$A$8:$BC$57,35,FALSE) -> 0 | AM14: =VLOOKUP($A14,BAvril!$A$8:$BC$57,36,FALSE) -> 0 | AN14: =VLOOKUP($A14,BAvril!$A$8:$BC$57,37,FALSE) -> 0 | AP14: =VLOOKUP($A14,BAvril!$A$8:$BC$57,39,FALSE) -> 0 | AQ14: =VLOOKUP($A14,Bilan!$A$8:$BE$57,41,FALSE) -> 0 | AT14: =IFERROR(SUM((VLOOKUP(Avril!A14,Données!$H$6:$J$53,3,TRUE)/12)*4),"") -> 
A15: =Données!$H12 -> 0 | AL15: =VLOOKUP($A15,BAvril!$A$8:$BC$57,35,FALSE) -> 0 | AM15: =VLOOKUP($A15,BAvril!$A$8:$BC$57,36,FALSE) -> 0 | AN15: =VLOOKUP($A15,BAvril!$A$8:$BC$57,37,FALSE) -> 0 | AP15: =VLOOKUP($A15,BAvril!$A$8:$BC$57,39,FALSE) -> 0 | AQ15: =VLOOKUP($A15,Bilan!$A$8:$BE$57,41,FALSE) -> 0 | AT15: =IFERROR(SUM((VLOOKUP(Avril!A15,Données!$H$6:$J$53,3,TRUE)/12)*4),"") -> 
A16: =Données!$H13 -> 0 | AL16: =VLOOKUP($A16,BAvril!$A$8:$BC$57,35,FALSE) -> 0 | AM16: =VLOOKUP($A16,BAvril!$A$8:$BC$57,36,FALSE) -> 0 | AN16: =VLOOKUP($A16,BAvril!$A$8:$BC$57,37,FALSE) -> 0 | AP16: =VLOOKUP($A16,BAvril!$A$8:$BC$57,39,FALSE) -> 0 | AQ16: =VLOOKUP($A16,Bilan!$A$8:$BE$57,41,FALSE) -> 0 | AT16: =IFERROR(SUM((VLOOKUP(Avril!A16,Données!$H$6:$J$53,3,TRUE)/12)*4),"") -> 
A17: =Données!$H14 -> 0 | AL17: =VLOOKUP($A17,BAvril!$A$8:$BC$57,35,FALSE) -> 0 | AM17: =VLOOKUP($A17,BAvril!$A$8:$BC$57,36,FALSE) -> 0 | AN17: =VLOOKUP($A17,BAvril!$A$8:$BC$57,37,FALSE) -> 0 | AP17: =VLOOKUP($A17,BAvril!$A$8:$BC$57,39,FALSE) -> 0 | AQ17: =VLOOKUP($A17,Bilan!$A$8:$BE$57,41,FALSE) -> 0 | AT17: =IFERROR(SUM((VLOOKUP(Avril!A17,Données!$H$6:$J$53,3,TRUE)/12)*4),"") -> 
A18: =Données!$H15 -> 0 | AL18: =VLOOKUP($A18,BAvril!$A$8:$BC$57,35,FALSE) -> 0 | AM18: =VLOOKUP($A18,BAvril!$A$8:$BC$57,36,FALSE) -> 0 | AN18: =VLOOKUP($A18,BAvril!$A$8:$BC$57,37,FALSE) -> 0 | AP18: =VLOOKUP($A18,BAvril!$A$8:$BC$57,39,FALSE) -> 0 | AQ18: =VLOOKUP($A18,Bilan!$A$8:$BE$57,41,FALSE) -> 0 | AT18: =IFERROR(SUM((VLOOKUP(Avril!A18,Données!$H$6:$J$53,3,TRUE)/12)*4),"") -> 
A19: =Données!$H16 -> 0 | AL19: =VLOOKUP($A19,BAvril!$A$8:$BC$57,35,FALSE) -> 0 | AM19: =VLOOKUP($A19,BAvril!$A$8:$BC$57,36,FALSE) -> 0 | AN19: =VLOOKUP($A19,BAvril!$A$8:$BC$57,37,FALSE) -> 0 | AP19: =VLOOKUP($A19,BAvril!$A$8:$BC$57,39,FALSE) -> 0 | AQ19: =VLOOKUP($A19,Bilan!$A$8:$BE$57,41,FALSE) -> 0 | AT19: =IFERROR(SUM((VLOOKUP(Avril!A19,Données!$H$6:$J$53,3,TRUE)/12)*4),"") -> 
A20: =Données!$H17 -> 0 | AL20: =VLOOKUP($A20,BAvril!$A$8:$BC$57,35,FALSE) -> 0 | AM20: =VLOOKUP($A20,BAvril!$A$8:$BC$57,36,FALSE) -> 0 | AN20: =VLOOKUP($A20,BAvril!$A$8:$BC$57,37,FALSE) -> 0 | AP20: =VLOOKUP($A20,BAvril!$A$8:$BC$57,39,FALSE) -> 0 | AQ20: =VLOOKUP($A20,Bilan!$A$8:$BE$57,41,FALSE) -> 0 | AT20: =IFERROR(SUM((VLOOKUP(Avril!A20,Données!$H$6:$J$53,3,TRUE)/12)*4),"") -> 
A21: =Données!$H18 -> 0 | AL21: =VLOOKUP($A21,BAvril!$A$8:$BC$57,35,FALSE) -> 0 | AM21: =VLOOKUP($A21,BAvril!$A$8:$BC$57,36,FALSE) -> 0 | AN21: =VLOOKUP($A21,BAvril!$A$8:$BC$57,37,FALSE) -> 0 | AP21: =VLOOKUP($A21,BAvril!$A$8:$BC$57,39,FALSE) -> 0 | AQ21: =VLOOKUP($A21,Bilan!$A$8:$BE$57,41,FALSE) -> 0 | AT21: =IFERROR(SUM((VLOOKUP(Avril!A21,Données!$H$6:$J$53,3,TRUE)/12)*4),"") -> 
A22: =Données!$H19 -> 0 | AL22: =VLOOKUP($A22,BAvril!$A$8:$BC$57,35,FALSE) -> 0 | AM22: =VLOOKUP($A22,BAvril!$A$8:$BC$57,36,FALSE) -> 0 | AN22: =VLOOKUP($A22,BAvril!$A$8:$BC$57,37,FALSE) -> 0 | AP22: =VLOOKUP($A22,BAvril!$A$8:$BC$57,39,FALSE) -> 0 | AQ22: =VLOOKUP($A22,Bilan!$A$8:$BE$57,41,FALSE) -> 0 | AT22: =IFERROR(SUM((VLOOKUP(Avril!A22,Données!$H$6:$J$53,3,TRUE)/12)*4),"") -> 
A23: =Données!$H20 -> 0 | AL23: =VLOOKUP($A23,BAvril!$A$8:$BC$57,35,FALSE) -> 0 | AM23: =VLOOKUP($A23,BAvril!$A$8:$BC$57,36,FALSE) -> 0 | AN23: =VLOOKUP($A23,BAvril!$A$8:$BC$57,37,FALSE) -> 0 | AP23: =VLOOKUP($A23,BAvril!$A$8:$BC$57,39,FALSE) -> 0 | AQ23: =VLOOKUP($A23,Bilan!$A$8:$BE$57,41,FALSE) -> 0 | AT23: =IFERROR(SUM((VLOOKUP(Avril!A23,Données!$H$6:$J$53,3,TRUE)/12)*4),"") -> 
A24: =Données!$H21 -> 0 | AL24: =VLOOKUP($A24,BAvril!$A$8:$BC$57,35,FALSE) -> 0 | AM24: =VLOOKUP($A24,BAvril!$A$8:$BC$57,36,FALSE) -> 0 | AN24: =VLOOKUP($A24,BAvril!$A$8:$BC$57,37,FALSE) -> 0 | AP24: =VLOOKUP($A24,BAvril!$A$8:$BC$57,39,FALSE) -> 0 | AQ24: =VLOOKUP($A24,Bilan!$A$8:$BE$57,41,FALSE) -> 0 | AT24: =IFERROR(SUM((VLOOKUP(Avril!A24,Données!$H$6:$J$53,3,TRUE)/12)*4),"") -> 
A25: =Données!$H22 -> Equipe de nuit
A26: =Données!$H23 -> 0 | AL26: =VLOOKUP($A26,BAvril!$A$8:$BC$57,35,FALSE) -> 0 | AM26: =VLOOKUP($A26,BAvril!$A$8:$BC$57,36,FALSE) -> 0 | AN26: =VLOOKUP($A26,BAvril!$A$8:$BC$57,37,FALSE) -> 0 | AP26: =VLOOKUP($A26,BAvril!$A$8:$BC$57,39,FALSE) -> 0 | AQ26: =VLOOKUP($A26,Bilan!$A$8:$BE$57,41,FALSE) -> 0 | AT26: =IFERROR(SUM((VLOOKUP(Avril!A26,Données!$H$6:$J$53,3,TRUE)/12)*4),"") -> 
A27: =Données!$H24 -> 0 | AL27: =VLOOKUP($A27,BAvril!$A$8:$BC$57,35,FALSE) -> 0 | AM27: =VLOOKUP($A27,BAvril!$A$8:$BC$57,36,FALSE) -> 0 | AN27: =VLOOKUP($A27,BAvril!$A$8:$BC$57,37,FALSE) -> 0 | AP27: =VLOOKUP($A27,BAvril!$A$8:$BC$57,39,FALSE) -> 0 | AQ27: =VLOOKUP($A27,Bilan!$A$8:$BE$57,41,FALSE) -> 0 | AT27: =IFERROR(SUM((VLOOKUP(Avril!A27,Données!$H$6:$J$53,3,TRUE)/12)*4),"") -> 
A28: =Données!$H25 -> 0 | AL28: =VLOOKUP($A28,BAvril!$A$8:$BC$57,35,FALSE) -> 0 | AM28: =VLOOKUP($A28,BAvril!$A$8:$BC$57,36,FALSE) -> 0 | AN28: =VLOOKUP($A28,BAvril!$A$8:$BC$57,37,FALSE) -> 0 | AP28: =VLOOKUP($A28,BAvril!$A$8:$BC$57,39,FALSE) -> 0 | AQ28: =VLOOKUP($A28,Bilan!$A$8:$BE$57,41,FALSE) -> 0 | AT28: =IFERROR(SUM((VLOOKUP(Avril!A28,Données!$H$6:$J$53,3,TRUE)/12)*4),"") -> 
A29: =Données!$H26 -> 0 | AL29: =VLOOKUP($A29,BAvril!$A$8:$BC$57,35,FALSE) -> 0 | AM29: =VLOOKUP($A29,BAvril!$A$8:$BC$57,36,FALSE) -> 0 | AN29: =VLOOKUP($A29,BAvril!$A$8:$BC$57,37,FALSE) -> 0 | AP29: =VLOOKUP($A29,BAvril!$A$8:$BC$57,39,FALSE) -> 0 | AQ29: =VLOOKUP($A29,Bilan!$A$8:$BE$57,41,FALSE) -> 0 | AT29: =IFERROR(SUM((VLOOKUP(Avril!A29,Données!$H$6:$J$53,3,TRUE)/12)*4),"") -> 
A30: =Données!$H27 -> 0 | AL30: =VLOOKUP($A30,BAvril!$A$8:$BC$57,35,FALSE) -> 0 | AM30: =VLOOKUP($A30,BAvril!$A$8:$BC$57,36,FALSE) -> 0 | AN30: =VLOOKUP($A30,BAvril!$A$8:$BC$57,37,FALSE) -> 0 | AP30: =VLOOKUP($A30,BAvril!$A$8:$BC$57,39,FALSE) -> 0 | AQ30: =VLOOKUP($A30,Bilan!$A$8:$BE$57,41,FALSE) -> 0 | AT30: =IFERROR(SUM((VLOOKUP(Avril!A30,Données!$H$6:$J$53,3,TRUE)/12)*4),"") -> 
A31: =Données!$H28 -> 0 | AL31: =VLOOKUP($A31,BAvril!$A$8:$BC$57,35,FALSE) -> 0 | AM31: =VLOOKUP($A31,BAvril!$A$8:$BC$57,36,FALSE) -> 0 | AN31: =VLOOKUP($A31,BAvril!$A$8:$BC$57,37,FALSE) -> 0 | AP31: =VLOOKUP($A31,BAvril!$A$8:$BC$57,39,FALSE) -> 0 | AQ31: =VLOOKUP($A31,Bilan!$A$8:$BE$57,41,FALSE) -> 0 | AT31: =IFERROR(SUM((VLOOKUP(Avril!A31,Données!$H$6:$J$53,3,TRUE)/12)*4),"") -> 
A32: =Données!$H29 -> 0 | AL32: =VLOOKUP($A32,BAvril!$A$8:$BC$57,35,FALSE) -> 0 | AM32: =VLOOKUP($A32,BAvril!$A$8:$BC$57,36,FALSE) -> 0 | AN32: =VLOOKUP($A32,BAvril!$A$8:$BC$57,37,FALSE) -> 0 | AP32: =VLOOKUP($A32,BAvril!$A$8:$BC$57,39,FALSE) -> 0 | AQ32: =VLOOKUP($A32,Bilan!$A$8:$BE$57,41,FALSE) -> 0 | AT32: =IFERROR(SUM((VLOOKUP(Avril!A32,Données!$H$6:$J$53,3,TRUE)/12)*4),"") -> 
A33: =Données!$H30 -> 0 | AL33: =VLOOKUP($A33,BAvril!$A$8:$BC$57,35,FALSE) -> 0 | AM33: =VLOOKUP($A33,BAvril!$A$8:$BC$57,36,FALSE) -> 0 | AN33: =VLOOKUP($A33,BAvril!$A$8:$BC$57,37,FALSE) -> 0 | AP33: =VLOOKUP($A33,BAvril!$A$8:$BC$57,39,FALSE) -> 0 | AQ33: =VLOOKUP($A33,Bilan!$A$8:$BE$57,41,FALSE) -> 0 | AT33: =IFERROR(SUM((VLOOKUP(Avril!A33,Données!$H$6:$J$53,3,TRUE)/12)*4),"") -> 
A34: =Données!$H31 -> 0 | AL34: =VLOOKUP($A34,BAvril!$A$8:$BC$57,35,FALSE) -> 0 | AM34: =VLOOKUP($A34,BAvril!$A$8:$BC$57,36,FALSE) -> 0 | AN34: =VLOOKUP($A34,BAvril!$A$8:$BC$57,37,FALSE) -> 0 | AP34: =VLOOKUP($A34,BAvril!$A$8:$BC$57,39,FALSE) -> 0 | AQ34: =VLOOKUP($A34,Bilan!$A$8:$BE$57,41,FALSE) -> 0 | AT34: =IFERROR(SUM((VLOOKUP(Avril!A34,Données!$H$6:$J$53,3,TRUE)/12)*4),"") -> 
A35: =Données!$H32 -> Maitresse de maison
A36: =Données!$H33 -> 0 | AL36: =VLOOKUP($A36,BAvril!$A$8:$BC$57,35,FALSE) -> 0 | AM36: =VLOOKUP($A36,BAvril!$A$8:$BC$57,36,FALSE) -> 0 | AN36: =VLOOKUP($A36,BAvril!$A$8:$BC$57,37,FALSE) -> 0 | AP36: =VLOOKUP($A36,BAvril!$A$8:$BC$57,39,FALSE) -> 0 | AQ36: =VLOOKUP($A36,Bilan!$A$8:$BE$57,41,FALSE) -> 0 | AT36: =IFERROR(SUM((VLOOKUP(Avril!A36,Données!$H$6:$J$53,3,TRUE)/12)*4),"") -> 
A37: =Données!$H34 -> 0 | AL37: =VLOOKUP($A37,BAvril!$A$8:$BC$57,35,FALSE) -> 0 | AM37: =VLOOKUP($A37,BAvril!$A$8:$BC$57,36,FALSE) -> 0 | AN37: =VLOOKUP($A37,BAvril!$A$8:$BC$57,37,FALSE) -> 0 | AP37: =VLOOKUP($A37,BAvril!$A$8:$BC$57,39,FALSE) -> 0 | AQ37: =VLOOKUP($A37,Bilan!$A$8:$BE$57,41,FALSE) -> 0 | AT37: =IFERROR(SUM((VLOOKUP(Avril!A37,Données!$H$6:$J$53,3,TRUE)/12)*4),"") -> 
A38: =Données!$H35 -> 0 | AL38: =VLOOKUP($A38,BAvril!$A$8:$BC$57,35,FALSE) -> 0 | AM38: =VLOOKUP($A38,BAvril!$A$8:$BC$57,36,FALSE) -> 0 | AN38: =VLOOKUP($A38,BAvril!$A$8:$BC$57,37,FALSE) -> 0 | AP38: =VLOOKUP($A38,BAvril!$A$8:$BC$57,39,FALSE) -> 0 | AQ38: =VLOOKUP($A38,Bilan!$A$8:$BE$57,41,FALSE) -> 0 | AT38: =IFERROR(SUM((VLOOKUP(Avril!A38,Données!$H$6:$J$53,3,TRUE)/12)*4),"") -> 
A39: =Données!$H36 -> 0 | AL39: =VLOOKUP($A39,BAvril!$A$8:$BC$57,35,FALSE) -> 0 | AM39: =VLOOKUP($A39,BAvril!$A$8:$BC$57,36,FALSE) -> 0 | AN39: =VLOOKUP($A39,BAvril!$A$8:$BC$57,37,FALSE) -> 0 | AP39: =VLOOKUP($A39,BAvril!$A$8:$BC$57,39,FALSE) -> 0 | AQ39: =VLOOKUP($A39,Bilan!$A$8:$BE$57,41,FALSE) -> 0 | AT39: =IFERROR(SUM((VLOOKUP(Avril!A39,Données!$H$6:$J$53,3,TRUE)/12)*4),"") -> 
A40: =Données!$H37 -> 0 | AL40: =VLOOKUP($A40,BAvril!$A$8:$BC$57,35,FALSE) -> 0 | AM40: =VLOOKUP($A40,BAvril!$A$8:$BC$57,36,FALSE) -> 0 | AN40: =VLOOKUP($A40,BAvril!$A$8:$BC$57,37,FALSE) -> 0 | AP40: =VLOOKUP($A40,BAvril!$A$8:$BC$57,39,FALSE) -> 0 | AQ40: =VLOOKUP($A40,Bilan!$A$8:$BE$57,41,FALSE) -> 0 | AT40: =IFERROR(SUM((VLOOKUP(Avril!A40,Données!$H$6:$J$53,3,TRUE)/12)*4),"") -> 
A41: =Données!$H38 -> 0 | AL41: =VLOOKUP($A41,BAvril!$A$8:$BC$57,35,FALSE) -> 0 | AM41: =VLOOKUP($A41,BAvril!$A$8:$BC$57,36,FALSE) -> 0 | AN41: =VLOOKUP($A41,BAvril!$A$8:$BC$57,37,FALSE) -> 0 | AP41: =VLOOKUP($A41,BAvril!$A$8:$BC$57,39,FALSE) -> 0 | AQ41: =VLOOKUP($A41,Bilan!$A$8:$BE$57,41,FALSE) -> 0 | AT41: =IFERROR(SUM((VLOOKUP(Avril!A41,Données!$H$6:$J$53,3,TRUE)/12)*4),"") -> 
A42: =Données!$H39 -> 0 | AL42: =VLOOKUP($A42,BAvril!$A$8:$BC$57,35,FALSE) -> 0 | AM42: =VLOOKUP($A42,BAvril!$A$8:$BC$57,36,FALSE) -> 0 | AN42: =VLOOKUP($A42,BAvril!$A$8:$BC$57,37,FALSE) -> 0 | AP42: =VLOOKUP($A42,BAvril!$A$8:$BC$57,39,FALSE) -> 0 | AQ42: =VLOOKUP($A42,Bilan!$A$8:$BE$57,41,FALSE) -> 0 | AT42: =IFERROR(SUM((VLOOKUP(Avril!A42,Données!$H$6:$J$53,3,TRUE)/12)*4),"") -> 
A43: =Données!$H40 -> 0 | AL43: =VLOOKUP($A43,BAvril!$A$8:$BC$57,35,FALSE) -> 0 | AM43: =VLOOKUP($A43,BAvril!$A$8:$BC$57,36,FALSE) -> 0 | AN43: =VLOOKUP($A43,BAvril!$A$8:$BC$57,37,FALSE) -> 0 | AP43: =VLOOKUP($A43,BAvril!$A$8:$BC$57,39,FALSE) -> 0 | AQ43: =VLOOKUP($A43,Bilan!$A$8:$BE$57,41,FALSE) -> 0 | AT43: =IFERROR(SUM((VLOOKUP(Avril!A43,Données!$H$6:$J$53,3,TRUE)/12)*4),"") -> 
A44: =Données!$H41 -> 0 | AL44: =VLOOKUP($A44,BAvril!$A$8:$BC$57,35,FALSE) -> 0 | AM44: =VLOOKUP($A44,BAvril!$A$8:$BC$57,36,FALSE) -> 0 | AN44: =VLOOKUP($A44,BAvril!$A$8:$BC$57,37,FALSE) -> 0 | AP44: =VLOOKUP($A44,BAvril!$A$8:$BC$57,39,FALSE) -> 0 | AQ44: =VLOOKUP($A44,Bilan!$A$8:$BE$57,41,FALSE) -> 0 | AT44: =IFERROR(SUM((VLOOKUP(Avril!A44,Données!$H$6:$J$53,3,TRUE)/12)*4),"") -> 
A45: =Données!$H42 -> Psychologue
A46: =Données!$H43 -> 0 | AL46: =VLOOKUP($A46,BAvril!$A$8:$BC$57,35,FALSE) -> 0 | AM46: =VLOOKUP($A46,BAvril!$A$8:$BC$57,36,FALSE) -> 0 | AN46: =VLOOKUP($A46,BAvril!$A$8:$BC$57,37,FALSE) -> 0 | AP46: =VLOOKUP($A46,BAvril!$A$8:$BC$57,39,FALSE) -> 0 | AQ46: =VLOOKUP($A46,Bilan!$A$8:$BE$57,41,FALSE) -> 0 | AT46: =IFERROR(SUM((VLOOKUP(Avril!A46,Données!$H$6:$J$53,3,TRUE)/12)*4),"") -> 
A47: =Données!$H44 -> 0 | AL47: =VLOOKUP($A47,BAvril!$A$8:$BC$57,35,FALSE) -> 0 | AM47: =VLOOKUP($A47,BAvril!$A$8:$BC$57,36,FALSE) -> 0 | AN47: =VLOOKUP($A47,BAvril!$A$8:$BC$57,37,FALSE) -> 0 | AP47: =VLOOKUP($A47,BAvril!$A$8:$BC$57,39,FALSE) -> 0 | AQ47: =VLOOKUP($A47,Bilan!$A$8:$BE$57,41,FALSE) -> 0 | AT47: =IFERROR(SUM((VLOOKUP(Avril!A47,Données!$H$6:$J$53,3,TRUE)/12)*4),"") -> 
A48: =Données!$H45 -> 0 | AL48: =VLOOKUP($A48,BAvril!$A$8:$BC$57,35,FALSE) -> 0 | AM48: =VLOOKUP($A48,BAvril!$A$8:$BC$57,36,FALSE) -> 0 | AN48: =VLOOKUP($A48,BAvril!$A$8:$BC$57,37,FALSE) -> 0 | AP48: =VLOOKUP($A48,BAvril!$A$8:$BC$57,39,FALSE) -> 0 | AQ48: =VLOOKUP($A48,Bilan!$A$8:$BE$57,41,FALSE) -> 0 | AT48: =IFERROR(SUM((VLOOKUP(Avril!A48,Données!$H$6:$J$53,3,TRUE)/12)*4),"") -> 
A49: =Données!$H46 -> Coordinatrice
A50: =Données!$H47 -> 0 | AL50: =VLOOKUP($A50,BAvril!$A$8:$BC$57,35,FALSE) -> 0 | AM50: =VLOOKUP($A50,BAvril!$A$8:$BC$57,36,FALSE) -> 0 | AN50: =VLOOKUP($A50,BAvril!$A$8:$BC$57,37,FALSE) -> 0 | AP50: =VLOOKUP($A50,BAvril!$A$8:$BC$57,39,FALSE) -> 0 | AQ50: =VLOOKUP($A50,Bilan!$A$8:$BE$57,41,FALSE) -> 0 | AT50: =IFERROR(SUM((VLOOKUP(Avril!A50,Données!$H$6:$J$53,3,TRUE)/12)*4),"") -> 
A51: =Données!$H48 -> 0 | AL51: =VLOOKUP($A51,BAvril!$A$8:$BC$57,35,FALSE) -> 0 | AM51: =VLOOKUP($A51,BAvril!$A$8:$BC$57,36,FALSE) -> 0 | AN51: =VLOOKUP($A51,BAvril!$A$8:$BC$57,37,FALSE) -> 0 | AP51: =VLOOKUP($A51,BAvril!$A$8:$BC$57,39,FALSE) -> 0 | AQ51: =VLOOKUP($A51,Bilan!$A$8:$BE$57,41,FALSE) -> 0 | AT51: =IFERROR(SUM((VLOOKUP(Avril!A51,Données!$H$6:$J$53,3,TRUE)/12)*4),"") -> 
A52: =Données!$H49 -> 0 | AL52: =VLOOKUP($A52,BAvril!$A$8:$BC$57,35,FALSE) -> 0 | AM52: =VLOOKUP($A52,BAvril!$A$8:$BC$57,36,FALSE) -> 0 | AN52: =VLOOKUP($A52,BAvril!$A$8:$BC$57,37,FALSE) -> 0 | AP52: =VLOOKUP($A52,BAvril!$A$8:$BC$57,39,FALSE) -> 0 | AQ52: =VLOOKUP($A52,Bilan!$A$8:$BE$57,41,FALSE) -> 0 | AT52: =IFERROR(SUM((VLOOKUP(Avril!A52,Données!$H$6:$J$53,3,TRUE)/12)*4),"") -> 
A53: =Données!$H50 -> 0 | AL53: =VLOOKUP($A53,BAvril!$A$8:$BC$57,35,FALSE) -> 0 | AM53: =VLOOKUP($A53,BAvril!$A$8:$BC$57,36,FALSE) -> 0 | AN53: =VLOOKUP($A53,BAvril!$A$8:$BC$57,37,FALSE) -> 0 | AP53: =VLOOKUP($A53,BAvril!$A$8:$BC$57,39,FALSE) -> 0 | AQ53: =VLOOKUP($A53,Bilan!$A$8:$BE$57,41,FALSE) -> 0 | AT53: =IFERROR(SUM((VLOOKUP(Avril!A53,Données!$H$6:$J$53,3,TRUE)/12)*4),"") -> 
A54: =Données!$H51 -> 0 | AL54: =VLOOKUP($A54,BAvril!$A$8:$BC$57,35,FALSE) -> 0 | AM54: =VLOOKUP($A54,BAvril!$A$8:$BC$57,36,FALSE) -> 0 | AN54: =VLOOKUP($A54,BAvril!$A$8:$BC$57,37,FALSE) -> 0 | AP54: =VLOOKUP($A54,BAvril!$A$8:$BC$57,39,FALSE) -> 0 | AQ54: =VLOOKUP($A54,Bilan!$A$8:$BE$57,41,FALSE) -> 0 | AT54: =IFERROR(SUM((VLOOKUP(Avril!A54,Données!$H$6:$J$53,3,TRUE)/12)*4),"") -> 
A55: =Données!$H52 -> Chef de service
A56: =Données!$H53 -> 0 | AL56: =VLOOKUP($A56,BAvril!$A$8:$BC$57,35,FALSE) -> 0 | AM56: =VLOOKUP($A56,BAvril!$A$8:$BC$57,36,FALSE) -> 0 | AN56: =VLOOKUP($A56,BAvril!$A$8:$BC$57,37,FALSE) -> 0 | AP56: =VLOOKUP($A56,BAvril!$A$8:$BC$57,39,FALSE) -> 0 | AQ56: =VLOOKUP($A56,Bilan!$A$8:$BE$57,41,FALSE) -> 0 | AT56: =IFERROR(SUM((VLOOKUP(Avril!A56,Données!$H$6:$J$53,3,TRUE)/12)*4),"") -> 
B58: =Données!$A3 -> S | C58: = | D58: =IF(ISBLANK(Données!$C3),TEXT(Données!$B3,"hh:mm"),TEXT(Données!$B3,"hh:mm")&" : "&TEXT(Données!$C3,"hh:mm")) -> 13:30 : 21:30 | H58: =Données!$A7 -> J+ | I58: = | J58: =IF(ISBLANK(Données!$C7),TEXT(Données!$B7,"hh:mm"),TEXT(Données!$B7,"hh:mm")&" : "&TEXT(Données!$C7,"hh:mm")) -> 09:00 : 21:00 | N58: =Données!$A10 -> N- | O58: = | P58: =IF(ISBLANK(Données!$C10),TEXT(Données!$B10,"hh:mm"),TEXT(Données!$B10,"hh:mm")&" : "&TEXT(Données!$C10,"hh:mm")) -> 20:45 : 07:15 | T58: =Données!$A14 -> AT | U58: = | V58: =IF(ISBLANK(Données!$C14),TEXT(Données!$B14,"hh:mm"),TEXT(Données!$B14,"hh:mm")&" : "&TEXT(Données!$C14,"hh:mm")) -> AT : AT | Z58: =Données!$A18 -> CA | AA58: = | AB58: =IF(ISBLANK(Données!$C18),TEXT(Données!$B18,"hh:mm"),TEXT(Données!$B18,"hh:mm")&" : "&TEXT(Données!$C18,"hh:mm")) -> CA : CA
B59: =Données!$A4 -> M- | C59: = | D59: =IF(ISBLANK(Données!$C4),TEXT(Données!$B4,"hh:mm"),TEXT(Données!$B4,"hh:mm")&" : "&TEXT(Données!$C4,"hh:mm")) -> 07:00 : 15:00 | H59: =Données!$A8 -> RS | I59: = | J59: =IF(ISBLANK(Données!$C8),TEXT(Données!$B8,"hh:mm"),TEXT(Données!$B8,"hh:mm")&" : "&TEXT(Données!$C8,"hh:mm")) -> 09:30 : 21:30 | N59: =Données!$A11 -> N+ | O59: = | P59: =IF(ISBLANK(Données!$C11),TEXT(Données!$B11,"hh:mm"),TEXT(Données!$B11,"hh:mm")&" : "&TEXT(Données!$C11,"hh:mm")) -> 19:15 : 07:15 | T59: =Données!$A15 -> AM | U59: = | V59: =IF(ISBLANK(Données!$C15),TEXT(Données!$B15,"hh:mm"),TEXT(Données!$B15,"hh:mm")&" : "&TEXT(Données!$C15,"hh:mm")) -> AM : AM | Z59: =Données!$A19 -> CA17 | AA59: = | AB59: =IF(ISBLANK(Données!$C19),TEXT(Données!$B19,"hh:mm"),TEXT(Données!$B19,"hh:mm")&" : "&TEXT(Données!$C19,"hh:mm")) -> CA17 : CA17
B60: =Données!$A5 -> M | C60: = | D60: =IF(ISBLANK(Données!$C5),TEXT(Données!$B5,"hh:mm"),TEXT(Données!$B5,"hh:mm")&" : "&TEXT(Données!$C5,"hh:mm")) -> 08:00 : 15:00 | H60: =Données!$A9 -> N | I60: = | J60: =IF(ISBLANK(Données!$C9),TEXT(Données!$B9,"hh:mm"),TEXT(Données!$B9,"hh:mm")&" : "&TEXT(Données!$C9,"hh:mm")) -> 20:45 : 08:15 | N60: =Données!$A12 -> JS | O60: = | P60: =IF(ISBLANK(Données!$C12),TEXT(Données!$B12,"hh:mm"),TEXT(Données!$B12,"hh:mm")&" : "&TEXT(Données!$C12,"hh:mm")) -> 08:00 : 19:00 | T60: =Données!$A16 -> EM | U60: = | V60: =IF(ISBLANK(Données!$C16),TEXT(Données!$B16,"hh:mm"),TEXT(Données!$B16,"hh:mm")&" : "&TEXT(Données!$C16,"hh:mm")) -> EM : EM | Z60: =Données!$A20 -> REC | AA60: = | AB60: =IF(ISBLANK(Données!$C20),TEXT(Données!$B20,"hh:mm"),TEXT(Données!$B20,"hh:mm")&" : "&TEXT(Données!$C20,"hh:mm")) -> REC : REC
B61: =Données!$A6 -> J | C61: = | D61: =IF(ISBLANK(Données!$C6),TEXT(Données!$B6,"hh:mm"),TEXT(Données!$B6,"hh:mm")&" : "&TEXT(Données!$C6,"hh:mm")) -> 09:00 : 16:30 | H61: =Données!$A10 -> N- | I61: = | J61: =IF(ISBLANK(Données!$C10),TEXT(Données!$B10,"hh:mm"),TEXT(Données!$B10,"hh:mm")&" : "&TEXT(Données!$C10,"hh:mm")) -> 20:45 : 07:15 | N61: =Données!$A13 -> SYN | O61: = | P61: =IF(ISBLANK(Données!$C13),TEXT(Données!$B13,"hh:mm"),TEXT(Données!$B13,"hh:mm")&" : "&TEXT(Données!$C13,"hh:mm")) -> Syn : Syn | T61: =Données!$A17 -> CE | U61: = | V61: =IF(ISBLANK(Données!$C17),TEXT(Données!$B17,"hh:mm"),TEXT(Données!$B17,"hh:mm")&" : "&TEXT(Données!$C17,"hh:mm")) -> CE : CE | Z61: =Données!$A21 -> PL | AA61: = | AB61: =IF(ISBLANK(Données!$C21),TEXT(Données!$B21,"hh:mm"),TEXT(Données!$B21,"hh:mm")&" : "&TEXT(Données!$C21,"hh:mm")) -> PL : PL

Sheet Mai
B2: =DATE(An,Mai,B7) -> 2018-05-01 | C2: 2018-05-02 | D2: 2018-05-03 | E2: 2018-05-04 | F2: 2018-05-05 | G2: 2018-05-06 | H2: 2018-05-07 | I2: 2018-05-08 | J2: 2018-05-09 | K2: 2018-05-10 | L2: 2018-05-11 | M2: 2018-05-12 | N2: 2018-05-13 | O2: 2018-05-14 | P2: 2018-05-15 | Q2: 2018-05-16 | R2: 2018-05-17 | S2: 2018-05-18 | T2: 2018-05-19 | U2: 2018-05-20 | V2: 2018-05-21 | W2: 2018-05-22 | X2: 2018-05-23 | Y2: 2018-05-24 | Z2: 2018-05-25 | AA2: 2018-05-26 | AB2: 2018-05-27 | AC2: 2018-05-28 | AD2: 2018-05-29 | AE2: 2018-05-30 | AF2: 2018-05-31 | AI2: Pour remplir | AJ2: penser | AO2: =IF(ISNUMBER(AO7),DATE(An,Mai,AO7),"") ->  | AP2: =IF(ISNUMBER(AP7),DATE(An,Mai,AP7),"") -> 
A3: =IF(Données!$L$5="","Service",Données!$L$5) -> Service | K3: Mois de Mai | O3: =An -> 2018 | AI3: à mettre dans le format:
AI4: "heures":"Minutes" | AT4: Masse horraire previsionnel
AI5: Heures sup | AJ5: Heures sup | AL5: Indications | AM5: Indications | AN5: Indications | AP5: Total
A6: Jours | B6: =PROPER(LEFT(TEXT(DATE(An,Mai,B7),"jjj"),1)) -> M | C6: M | D6: J | E6: V | F6: S | G6: D | H6: L | I6: M | J6: M | K6: J | L6: V | M6: S | N6: D | O6: L | P6: M | Q6: M | R6: J | S6: V | T6: S | U6: D | V6: L | W6: M | X6: M | Y6: J | Z6: V | AA6: S | AB6: D | AC6: L | AD6: M | AE6: M | AF6: J | AI6: avant 21h | AJ6: après 21h | AL6: Heures | AM6: Heures nuit | AN6: Heures | AP6: Heures | AQ6: Heures
B7: =A7+1 -> 1 | C7: 2 | D7: 3 | E7: 4 | F7: 5 | G7: 6 | H7: 7 | I7: 8 | J7: 9 | K7: 10 | L7: 11 | M7: 12 | N7: 13 | O7: 14 | P7: 15 | Q7: 16 | R7: 17 | S7: 18 | T7: 19 | U7: 20 | V7: 21 | W7: 22 | X7: 23 | Y7: 24 | Z7: 25 | AA7: 26 | AB7: 27 | AC7: 28 | AD7: 29 | AE7: 30 | AF7: =AE7+1 -> 31 | AI7: A remplir | AJ7: A remplir | AL7: Dimanche | AM7: Dimanche | AN7: après 21h | AP7: au mois | AQ7: a l'année | AT7: i
A8: Equipe de jour
A9: =Données!$H6 -> A | AL9: =VLOOKUP($A9,BMai!$A$8:$BC$57,35,FALSE) -> 0 | AM9: =VLOOKUP($A9,BMai!$A$8:$BC$57,36,FALSE) -> 0 | AN9: =VLOOKUP($A9,BMai!$A$8:$BC$57,37,FALSE) -> 0 | AP9: =VLOOKUP($A9,BMai!$A$8:$BC$57,39,FALSE) -> 0 | AQ9: =VLOOKUP($A9,Bilan!$A$8:$BE$57,41,FALSE) -> 5.533333333 | AT9: =IFERROR(SUM((VLOOKUP(Mai!A9,Données!$H$6:$J$53,3,TRUE)/12)*5),"") -> 25.14872685
A10: =Données!$H7 -> B | AL10: =VLOOKUP($A10,BMai!$A$8:$BC$57,35,FALSE) -> 0 | AM10: =VLOOKUP($A10,BMai!$A$8:$BC$57,36,FALSE) -> 0 | AN10: =VLOOKUP($A10,BMai!$A$8:$BC$57,37,FALSE) -> 0 | AP10: =VLOOKUP($A10,BMai!$A$8:$BC$57,39,FALSE) -> 0 | AQ10: =VLOOKUP($A10,Bilan!$A$8:$BE$57,41,FALSE) -> 0 | AT10: =IFERROR(SUM((VLOOKUP(Mai!A10,Données!$H$6:$J$53,3,TRUE)/12)*5),"") -> 
A11: =Données!$H8 -> L | AL11: =VLOOKUP($A11,BMai!$A$8:$BC$57,35,FALSE) -> 0 | AM11: =VLOOKUP($A11,BMai!$A$8:$BC$57,36,FALSE) -> 0 | AN11: =VLOOKUP($A11,BMai!$A$8:$BC$57,37,FALSE) -> 0 | AP11: =VLOOKUP($A11,BMai!$A$8:$BC$57,39,FALSE) -> 0 | AQ11: =VLOOKUP($A11,Bilan!$A$8:$BE$57,41,FALSE) -> 0 | AT11: =IFERROR(SUM((VLOOKUP(Mai!A11,Données!$H$6:$J$53,3,TRUE)/12)*5),"") -> 0
A12: =Données!$H9 -> L | AL12: =VLOOKUP($A12,BMai!$A$8:$BC$57,35,FALSE) -> 0 | AM12: =VLOOKUP($A12,BMai!$A$8:$BC$57,36,FALSE) -> 0 | AN12: =VLOOKUP($A12,BMai!$A$8:$BC$57,37,FALSE) -> 0 | AP12: =VLOOKUP($A12,BMai!$A$8:$BC$57,39,FALSE) -> 0 | AQ12: =VLOOKUP($A12,Bilan!$A$8:$BE$57,41,FALSE) -> 0 | AT12: =IFERROR(SUM((VLOOKUP(Mai!A12,Données!$H$6:$J$53,3,TRUE)/12)*5),"") -> 0
A13: =Données!$H10 -> 0 | AL13: =VLOOKUP($A13,BMai!$A$8:$BC$57,35,FALSE) -> 0 | AM13: =VLOOKUP($A13,BMai!$A$8:$BC$57,36,FALSE) -> 0 | AN13: =VLOOKUP($A13,BMai!$A$8:$BC$57,37,FALSE) -> 0 | AP13: =VLOOKUP($A13,BMai!$A$8:$BC$57,39,FALSE) -> 0 | AQ13: =VLOOKUP($A13,Bilan!$A$8:$BE$57,41,FALSE) -> 0 | AT13: =IFERROR(SUM((VLOOKUP(Mai!A13,Données!$H$6:$J$53,3,TRUE)/12)*5),"") -> 
A14: =Données!$H11 -> 0 | AL14: =VLOOKUP($A14,BMai!$A$8:$BC$57,35,FALSE) -> 0 | AM14: =VLOOKUP($A14,BMai!$A$8:$BC$57,36,FALSE) -> 0 | AN14: =VLOOKUP($A14,BMai!$A$8:$BC$57,37,FALSE) -> 0 | AP14: =VLOOKUP($A14,BMai!$A$8:$BC$57,39,FALSE) -> 0 | AQ14: =VLOOKUP($A14,Bilan!$A$8:$BE$57,41,FALSE) -> 0 | AT14: =IFERROR(SUM((VLOOKUP(Mai!A14,Données!$H$6:$J$53,3,TRUE)/12)*5),"") -> 
A15: =Données!$H12 -> 0 | AL15: =VLOOKUP($A15,BMai!$A$8:$BC$57,35,FALSE) -> 0 | AM15: =VLOOKUP($A15,BMai!$A$8:$BC$57,36,FALSE) -> 0 | AN15: =VLOOKUP($A15,BMai!$A$8:$BC$57,37,FALSE) -> 0 | AP15: =VLOOKUP($A15,BMai!$A$8:$BC$57,39,FALSE) -> 0 | AQ15: =VLOOKUP($A15,Bilan!$A$8:$BE$57,41,FALSE) -> 0 | AT15: =IFERROR(SUM((VLOOKUP(Mai!A15,Données!$H$6:$J$53,3,TRUE)/12)*5),"") -> 
A16: =Données!$H13 -> 0 | AL16: =VLOOKUP($A16,BMai!$A$8:$BC$57,35,FALSE) -> 0 | AM16: =VLOOKUP($A16,BMai!$A$8:$BC$57,36,FALSE) -> 0 | AN16: =VLOOKUP($A16,BMai!$A$8:$BC$57,37,FALSE) -> 0 | AP16: =VLOOKUP($A16,BMai!$A$8:$BC$57,39,FALSE) -> 0 | AQ16: =VLOOKUP($A16,Bilan!$A$8:$BE$57,41,FALSE) -> 0 | AT16: =IFERROR(SUM((VLOOKUP(Mai!A16,Données!$H$6:$J$53,3,TRUE)/12)*5),"") -> 
A17: =Données!$H14 -> 0 | AL17: =VLOOKUP($A17,BMai!$A$8:$BC$57,35,FALSE) -> 0 | AM17: =VLOOKUP($A17,BMai!$A$8:$BC$57,36,FALSE) -> 0 | AN17: =VLOOKUP($A17,BMai!$A$8:$BC$57,37,FALSE) -> 0 | AP17: =VLOOKUP($A17,BMai!$A$8:$BC$57,39,FALSE) -> 0 | AQ17: =VLOOKUP($A17,Bilan!$A$8:$BE$57,41,FALSE) -> 0 | AT17: =IFERROR(SUM((VLOOKUP(Mai!A17,Données!$H$6:$J$53,3,TRUE)/12)*5),"") -> 
A18: =Données!$H15 -> 0 | AL18: =VLOOKUP($A18,BMai!$A$8:$BC$57,35,FALSE) -> 0 | AM18: =VLOOKUP($A18,BMai!$A$8:$BC$57,36,FALSE) -> 0 | AN18: =VLOOKUP($A18,BMai!$A$8:$BC$57,37,FALSE) -> 0 | AP18: =VLOOKUP($A18,BMai!$A$8:$BC$57,39,FALSE) -> 0 | AQ18: =VLOOKUP($A18,Bilan!$A$8:$BE$57,41,FALSE) -> 0 | AT18: =IFERROR(SUM((VLOOKUP(Mai!A18,Données!$H$6:$J$53,3,TRUE)/12)*5),"") -> 
A19: =Données!$H16 -> 0 | AL19: =VLOOKUP($A19,BMai!$A$8:$BC$57,35,FALSE) -> 0 | AM19: =VLOOKUP($A19,BMai!$A$8:$BC$57,36,FALSE) -> 0 | AN19: =VLOOKUP($A19,BMai!$A$8:$BC$57,37,FALSE) -> 0 | AP19: =VLOOKUP($A19,BMai!$A$8:$BC$57,39,FALSE) -> 0 | AQ19: =VLOOKUP($A19,Bilan!$A$8:$BE$57,41,FALSE) -> 0 | AT19: =IFERROR(SUM((VLOOKUP(Mai!A19,Données!$H$6:$J$53,3,TRUE)/12)*5),"") -> 
A20: =Données!$H17 -> 0 | AL20: =VLOOKUP($A20,BMai!$A$8:$BC$57,35,FALSE) -> 0 | AM20: =VLOOKUP($A20,BMai!$A$8:$BC$57,36,FALSE) -> 0 | AN20: =VLOOKUP($A20,BMai!$A$8:$BC$57,37,FALSE) -> 0 | AP20: =VLOOKUP($A20,BMai!$A$8:$BC$57,39,FALSE) -> 0 | AQ20: =VLOOKUP($A20,Bilan!$A$8:$BE$57,41,FALSE) -> 0 | AT20: =IFERROR(SUM((VLOOKUP(Mai!A20,Données!$H$6:$J$53,3,TRUE)/12)*5),"") -> 
A21: =Données!$H18 -> 0 | AL21: =VLOOKUP($A21,BMai!$A$8:$BC$57,35,FALSE) -> 0 | AM21: =VLOOKUP($A21,BMai!$A$8:$BC$57,36,FALSE) -> 0 | AN21: =VLOOKUP($A21,BMai!$A$8:$BC$57,37,FALSE) -> 0 | AP21: =VLOOKUP($A21,BMai!$A$8:$BC$57,39,FALSE) -> 0 | AQ21: =VLOOKUP($A21,Bilan!$A$8:$BE$57,41,FALSE) -> 0 | AT21: =IFERROR(SUM((VLOOKUP(Mai!A21,Données!$H$6:$J$53,3,TRUE)/12)*5),"") -> 
A22: =Données!$H19 -> 0 | AL22: =VLOOKUP($A22,BMai!$A$8:$BC$57,35,FALSE) -> 0 | AM22: =VLOOKUP($A22,BMai!$A$8:$BC$57,36,FALSE) -> 0 | AN22: =VLOOKUP($A22,BMai!$A$8:$BC$57,37,FALSE) -> 0 | AP22: =VLOOKUP($A22,BMai!$A$8:$BC$57,39,FALSE) -> 0 | AQ22: =VLOOKUP($A22,Bilan!$A$8:$BE$57,41,FALSE) -> 0 | AT22: =IFERROR(SUM((VLOOKUP(Mai!A22,Données!$H$6:$J$53,3,TRUE)/12)*5),"") -> 
A23: =Données!$H20 -> 0 | AL23: =VLOOKUP($A23,BMai!$A$8:$BC$57,35,FALSE) -> 0 | AM23: =VLOOKUP($A23,BMai!$A$8:$BC$57,36,FALSE) -> 0 | AN23: =VLOOKUP($A23,BMai!$A$8:$BC$57,37,FALSE) -> 0 | AP23: =VLOOKUP($A23,BMai!$A$8:$BC$57,39,FALSE) -> 0 | AQ23: =VLOOKUP($A23,Bilan!$A$8:$BE$57,41,FALSE) -> 0 | AT23: =IFERROR(SUM((VLOOKUP(Mai!A23,Données!$H$6:$J$53,3,TRUE)/12)*5),"") -> 
A24: =Données!$H21 -> 0 | AL24: =VLOOKUP($A24,BMai!$A$8:$BC$57,35,FALSE) -> 0 | AM24: =VLOOKUP($A24,BMai!$A$8:$BC$57,36,FALSE) -> 0 | AN24: =VLOOKUP($A24,BMai!$A$8:$BC$57,37,FALSE) -> 0 | AP24: =VLOOKUP($A24,BMai!$A$8:$BC$57,39,FALSE) -> 0 | AQ24: =VLOOKUP($A24,Bilan!$A$8:$BE$57,41,FALSE) -> 0 | AT24: =IFERROR(SUM((VLOOKUP(Mai!A24,Données!$H$6:$J$53,3,TRUE)/12)*5),"") -> 
A25: =Données!$H22 -> Equipe de nuit
A26: =Données!$H23 -> 0 | AL26: =VLOOKUP($A26,BMai!$A$8:$BC$57,35,FALSE) -> 0 | AM26: =VLOOKUP($A26,BMai!$A$8:$BC$57,36,FALSE) -> 0 | AN26: =VLOOKUP($A26,BMai!$A$8:$BC$57,37,FALSE) -> 0 | AP26: =VLOOKUP($A26,BMai!$A$8:$BC$57,39,FALSE) -> 0 | AQ26: =VLOOKUP($A26,Bilan!$A$8:$BE$57,41,FALSE) -> 0 | AT26: =IFERROR(SUM((VLOOKUP(Mai!A26,Données!$H$6:$J$53,3,TRUE)/12)*5),"") -> 
A27: =Données!$H24 -> 0 | AL27: =VLOOKUP($A27,BMai!$A$8:$BC$57,35,FALSE) -> 0 | AM27: =VLOOKUP($A27,BMai!$A$8:$BC$57,36,FALSE) -> 0 | AN27: =VLOOKUP($A27,BMai!$A$8:$BC$57,37,FALSE) -> 0 | AP27: =VLOOKUP($A27,BMai!$A$8:$BC$57,39,FALSE) -> 0 | AQ27: =VLOOKUP($A27,Bilan!$A$8:$BE$57,41,FALSE) -> 0 | AT27: =IFERROR(SUM((VLOOKUP(Mai!A27,Données!$H$6:$J$53,3,TRUE)/12)*5),"") -> 
A28: =Données!$H25 -> 0 | AL28: =VLOOKUP($A28,BMai!$A$8:$BC$57,35,FALSE) -> 0 | AM28: =VLOOKUP($A28,BMai!$A$8:$BC$57,36,FALSE) -> 0 | AN28: =VLOOKUP($A28,BMai!$A$8:$BC$57,37,FALSE) -> 0 | AP28: =VLOOKUP($A28,BMai!$A$8:$BC$57,39,FALSE) -> 0 | AQ28: =VLOOKUP($A28,Bilan!$A$8:$BE$57,41,FALSE) -> 0 | AT28: =IFERROR(SUM((VLOOKUP(Mai!A28,Données!$H$6:$J$53,3,TRUE)/12)*5),"") -> 
A29: =Données!$H26 -> 0 | AL29: =VLOOKUP($A29,BMai!$A$8:$BC$57,35,FALSE) -> 0 | AM29: =VLOOKUP($A29,BMai!$A$8:$BC$57,36,FALSE) -> 0 | AN29: =VLOOKUP($A29,BMai!$A$8:$BC$57,37,FALSE) -> 0 | AP29: =VLOOKUP($A29,BMai!$A$8:$BC$57,39,FALSE) -> 0 | AQ29: =VLOOKUP($A29,Bilan!$A$8:$BE$57,41,FALSE) -> 0 | AT29: =IFERROR(SUM((VLOOKUP(Mai!A29,Données!$H$6:$J$53,3,TRUE)/12)*5),"") -> 
A30: =Données!$H27 -> 0 | AL30: =VLOOKUP($A30,BMai!$A$8:$BC$57,35,FALSE) -> 0 | AM30: =VLOOKUP($A30,BMai!$A$8:$BC$57,36,FALSE) -> 0 | AN30: =VLOOKUP($A30,BMai!$A$8:$BC$57,37,FALSE) -> 0 | AP30: =VLOOKUP($A30,BMai!$A$8:$BC$57,39,FALSE) -> 0 | AQ30: =VLOOKUP($A30,Bilan!$A$8:$BE$57,41,FALSE) -> 0 | AT30: =IFERROR(SUM((VLOOKUP(Mai!A30,Données!$H$6:$J$53,3,TRUE)/12)*5),"") -> 
A31: =Données!$H28 -> 0 | AL31: =VLOOKUP($A31,BMai!$A$8:$BC$57,35,FALSE) -> 0 | AM31: =VLOOKUP($A31,BMai!$A$8:$BC$57,36,FALSE) -> 0 | AN31: =VLOOKUP($A31,BMai!$A$8:$BC$57,37,FALSE) -> 0 | AP31: =VLOOKUP($A31,BMai!$A$8:$BC$57,39,FALSE) -> 0 | AQ31: =VLOOKUP($A31,Bilan!$A$8:$BE$57,41,FALSE) -> 0 | AT31: =IFERROR(SUM((VLOOKUP(Mai!A31,Données!$H$6:$J$53,3,TRUE)/12)*5),"") -> 
A32: =Données!$H29 -> 0 | AL32: =VLOOKUP($A32,BMai!$A$8:$BC$57,35,FALSE) -> 0 | AM32: =VLOOKUP($A32,BMai!$A$8:$BC$57,36,FALSE) -> 0 | AN32: =VLOOKUP($A32,BMai!$A$8:$BC$57,37,FALSE) -> 0 | AP32: =VLOOKUP($A32,BMai!$A$8:$BC$57,39,FALSE) -> 0 | AQ32: =VLOOKUP($A32,Bilan!$A$8:$BE$57,41,FALSE) -> 0 | AT32: =IFERROR(SUM((VLOOKUP(Mai!A32,Données!$H$6:$J$53,3,TRUE)/12)*5),"") -> 
A33: =Données!$H30 -> 0 | AL33: =VLOOKUP($A33,BMai!$A$8:$BC$57,35,FALSE) -> 0 | AM33: =VLOOKUP($A33,BMai!$A$8:$BC$57,36,FALSE) -> 0 | AN33: =VLOOKUP($A33,BMai!$A$8:$BC$57,37,FALSE) -> 0 | AP33: =VLOOKUP($A33,BMai!$A$8:$BC$57,39,FALSE) -> 0 | AQ33: =VLOOKUP($A33,Bilan!$A$8:$BE$57,41,FALSE) -> 0 | AT33: =IFERROR(SUM((VLOOKUP(Mai!A33,Données!$H$6:$J$53,3,TRUE)/12)*5),"") -> 
A34: =Données!$H31 -> 0 | AL34: =VLOOKUP($A34,BMai!$A$8:$BC$57,35,FALSE) -> 0 | AM34: =VLOOKUP($A34,BMai!$A$8:$BC$57,36,FALSE) -> 0 | AN34: =VLOOKUP($A34,BMai!$A$8:$BC$57,37,FALSE) -> 0 | AP34: =VLOOKUP($A34,BMai!$A$8:$BC$57,39,FALSE) -> 0 | AQ34: =VLOOKUP($A34,Bilan!$A$8:$BE$57,41,FALSE) -> 0 | AT34: =IFERROR(SUM((VLOOKUP(Mai!A34,Données!$H$6:$J$53,3,TRUE)/12)*5),"") -> 
A35: =Données!$H32 -> Maitresse de maison
A36: =Données!$H33 -> 0 | AL36: =VLOOKUP($A36,BMai!$A$8:$BC$57,35,FALSE) -> 0 | AM36: =VLOOKUP($A36,BMai!$A$8:$BC$57,36,FALSE) -> 0 | AN36: =VLOOKUP($A36,BMai!$A$8:$BC$57,37,FALSE) -> 0 | AP36: =VLOOKUP($A36,BMai!$A$8:$BC$57,39,FALSE) -> 0 | AQ36: =VLOOKUP($A36,Bilan!$A$8:$BE$57,41,FALSE) -> 0 | AT36: =IFERROR(SUM((VLOOKUP(Mai!A36,Données!$H$6:$J$53,3,TRUE)/12)*5),"") -> 
A37: =Données!$H34 -> 0 | AL37: =VLOOKUP($A37,BMai!$A$8:$BC$57,35,FALSE) -> 0 | AM37: =VLOOKUP($A37,BMai!$A$8:$BC$57,36,FALSE) -> 0 | AN37: =VLOOKUP($A37,BMai!$A$8:$BC$57,37,FALSE) -> 0 | AP37: =VLOOKUP($A37,BMai!$A$8:$BC$57,39,FALSE) -> 0 | AQ37: =VLOOKUP($A37,Bilan!$A$8:$BE$57,41,FALSE) -> 0 | AT37: =IFERROR(SUM((VLOOKUP(Mai!A37,Données!$H$6:$J$53,3,TRUE)/12)*5),"") -> 
A38: =Données!$H35 -> 0 | AL38: =VLOOKUP($A38,BMai!$A$8:$BC$57,35,FALSE) -> 0 | AM38: =VLOOKUP($A38,BMai!$A$8:$BC$57,36,FALSE) -> 0 | AN38: =VLOOKUP($A38,BMai!$A$8:$BC$57,37,FALSE) -> 0 | AP38: =VLOOKUP($A38,BMai!$A$8:$BC$57,39,FALSE) -> 0 | AQ38: =VLOOKUP($A38,Bilan!$A$8:$BE$57,41,FALSE) -> 0 | AT38: =IFERROR(SUM((VLOOKUP(Mai!A38,Données!$H$6:$J$53,3,TRUE)/12)*5),"") -> 
A39: =Données!$H36 -> 0 | AL39: =VLOOKUP($A39,BMai!$A$8:$BC$57,35,FALSE) -> 0 | AM39: =VLOOKUP($A39,BMai!$A$8:$BC$57,36,FALSE) -> 0 | AN39: =VLOOKUP($A39,BMai!$A$8:$BC$57,37,FALSE) -> 0 | AP39: =VLOOKUP($A39,BMai!$A$8:$BC$57,39,FALSE) -> 0 | AQ39: =VLOOKUP($A39,Bilan!$A$8:$BE$57,41,FALSE) -> 0 | AT39: =IFERROR(SUM((VLOOKUP(Mai!A39,Données!$H$6:$J$53,3,TRUE)/12)*5),"") -> 
A40: =Données!$H37 -> 0 | AL40: =VLOOKUP($A40,BMai!$A$8:$BC$57,35,FALSE) -> 0 | AM40: =VLOOKUP($A40,BMai!$A$8:$BC$57,36,FALSE) -> 0 | AN40: =VLOOKUP($A40,BMai!$A$8:$BC$57,37,FALSE) -> 0 | AP40: =VLOOKUP($A40,BMai!$A$8:$BC$57,39,FALSE) -> 0 | AQ40: =VLOOKUP($A40,Bilan!$A$8:$BE$57,41,FALSE) -> 0 | AT40: =IFERROR(SUM((VLOOKUP(Mai!A40,Données!$H$6:$J$53,3,TRUE)/12)*5),"") -> 
A41: =Données!$H38 -> 0 | AL41: =VLOOKUP($A41,BMai!$A$8:$BC$57,35,FALSE) -> 0 | AM41: =VLOOKUP($A41,BMai!$A$8:$BC$57,36,FALSE) -> 0 | AN41: =VLOOKUP($A41,BMai!$A$8:$BC$57,37,FALSE) -> 0 | AP41: =VLOOKUP($A41,BMai!$A$8:$BC$57,39,FALSE) -> 0 | AQ41: =VLOOKUP($A41,Bilan!$A$8:$BE$57,41,FALSE) -> 0 | AT41: =IFERROR(SUM((VLOOKUP(Mai!A41,Données!$H$6:$J$53,3,TRUE)/12)*5),"") -> 
A42: =Données!$H39 -> 0 | AL42: =VLOOKUP($A42,BMai!$A$8:$BC$57,35,FALSE) -> 0 | AM42: =VLOOKUP($A42,BMai!$A$8:$BC$57,36,FALSE) -> 0 | AN42: =VLOOKUP($A42,BMai!$A$8:$BC$57,37,FALSE) -> 0 | AP42: =VLOOKUP($A42,BMai!$A$8:$BC$57,39,FALSE) -> 0 | AQ42: =VLOOKUP($A42,Bilan!$A$8:$BE$57,41,FALSE) -> 0 | AT42: =IFERROR(SUM((VLOOKUP(Mai!A42,Données!$H$6:$J$53,3,TRUE)/12)*5),"") -> 
A43: =Données!$H40 -> 0 | AL43: =VLOOKUP($A43,BMai!$A$8:$BC$57,35,FALSE) -> 0 | AM43: =VLOOKUP($A43,BMai!$A$8:$BC$57,36,FALSE) -> 0 | AN43: =VLOOKUP($A43,BMai!$A$8:$BC$57,37,FALSE) -> 0 | AP43: =VLOOKUP($A43,BMai!$A$8:$BC$57,39,FALSE) -> 0 | AQ43: =VLOOKUP($A43,Bilan!$A$8:$BE$57,41,FALSE) -> 0 | AT43: =IFERROR(SUM((VLOOKUP(Mai!A43,Données!$H$6:$J$53,3,TRUE)/12)*5),"") -> 
A44: =Données!$H41 -> 0 | AL44: =VLOOKUP($A44,BMai!$A$8:$BC$57,35,FALSE) -> 0 | AM44: =VLOOKUP($A44,BMai!$A$8:$BC$57,36,FALSE) -> 0 | AN44: =VLOOKUP($A44,BMai!$A$8:$BC$57,37,FALSE) -> 0 | AP44: =VLOOKUP($A44,BMai!$A$8:$BC$57,39,FALSE) -> 0 | AQ44: =VLOOKUP($A44,Bilan!$A$8:$BE$57,41,FALSE) -> 0 | AT44: =IFERROR(SUM((VLOOKUP(Mai!A44,Données!$H$6:$J$53,3,TRUE)/12)*5),"") -> 
A45: =Données!$H42 -> Psychologue
A46: =Données!$H43 -> 0 | AL46: =VLOOKUP($A46,BMai!$A$8:$BC$57,35,FALSE) -> 0 | AM46: =VLOOKUP($A46,BMai!$A$8:$BC$57,36,FALSE) -> 0 | AN46: =VLOOKUP($A46,BMai!$A$8:$BC$57,37,FALSE) -> 0 | AP46: =VLOOKUP($A46,BMai!$A$8:$BC$57,39,FALSE) -> 0 | AQ46: =VLOOKUP($A46,Bilan!$A$8:$BE$57,41,FALSE) -> 0 | AT46: =IFERROR(SUM((VLOOKUP(Mai!A46,Données!$H$6:$J$53,3,TRUE)/12)*5),"") -> 
A47: =Données!$H44 -> 0 | AL47: =VLOOKUP($A47,BMai!$A$8:$BC$57,35,FALSE) -> 0 | AM47: =VLOOKUP($A47,BMai!$A$8:$BC$57,36,FALSE) -> 0 | AN47: =VLOOKUP($A47,BMai!$A$8:$BC$57,37,FALSE) -> 0 | AP47: =VLOOKUP($A47,BMai!$A$8:$BC$57,39,FALSE) -> 0 | AQ47: =VLOOKUP($A47,Bilan!$A$8:$BE$57,41,FALSE) -> 0 | AT47: =IFERROR(SUM((VLOOKUP(Mai!A47,Données!$H$6:$J$53,3,TRUE)/12)*5),"") -> 
A48: =Données!$H45 -> 0 | AL48: =VLOOKUP($A48,BMai!$A$8:$BC$57,35,FALSE) -> 0 | AM48: =VLOOKUP($A48,BMai!$A$8:$BC$57,36,FALSE) -> 0 | AN48: =VLOOKUP($A48,BMai!$A$8:$BC$57,37,FALSE) -> 0 | AP48: =VLOOKUP($A48,BMai!$A$8:$BC$57,39,FALSE) -> 0 | AQ48: =VLOOKUP($A48,Bilan!$A$8:$BE$57,41,FALSE) -> 0 | AT48: =IFERROR(SUM((VLOOKUP(Mai!A48,Données!$H$6:$J$53,3,TRUE)/12)*5),"") -> 
A49: =Données!$H46 -> Coordinatrice
A50: =Données!$H47 -> 0 | AL50: =VLOOKUP($A50,BMai!$A$8:$BC$57,35,FALSE) -> 0 | AM50: =VLOOKUP($A50,BMai!$A$8:$BC$57,36,FALSE) -> 0 | AN50: =VLOOKUP($A50,BMai!$A$8:$BC$57,37,FALSE) -> 0 | AP50: =VLOOKUP($A50,BMai!$A$8:$BC$57,39,FALSE) -> 0 | AQ50: =VLOOKUP($A50,Bilan!$A$8:$BE$57,41,FALSE) -> 0 | AT50: =IFERROR(SUM((VLOOKUP(Mai!A50,Données!$H$6:$J$53,3,TRUE)/12)*5),"") -> 
A51: =Données!$H48 -> 0 | AL51: =VLOOKUP($A51,BMai!$A$8:$BC$57,35,FALSE) -> 0 | AM51: =VLOOKUP($A51,BMai!$A$8:$BC$57,36,FALSE) -> 0 | AN51: =VLOOKUP($A51,BMai!$A$8:$BC$57,37,FALSE) -> 0 | AP51: =VLOOKUP($A51,BMai!$A$8:$BC$57,39,FALSE) -> 0 | AQ51: =VLOOKUP($A51,Bilan!$A$8:$BE$57,41,FALSE) -> 0 | AT51: =IFERROR(SUM((VLOOKUP(Mai!A51,Données!$H$6:$J$53,3,TRUE)/12)*5),"") -> 
A52: =Données!$H49 -> 0 | AL52: =VLOOKUP($A52,BMai!$A$8:$BC$57,35,FALSE) -> 0 | AM52: =VLOOKUP($A52,BMai!$A$8:$BC$57,36,FALSE) -> 0 | AN52: =VLOOKUP($A52,BMai!$A$8:$BC$57,37,FALSE) -> 0 | AP52: =VLOOKUP($A52,BMai!$A$8:$BC$57,39,FALSE) -> 0 | AQ52: =VLOOKUP($A52,Bilan!$A$8:$BE$57,41,FALSE) -> 0 | AT52: =IFERROR(SUM((VLOOKUP(Mai!A52,Données!$H$6:$J$53,3,TRUE)/12)*5),"") -> 
A53: =Données!$H50 -> 0 | AL53: =VLOOKUP($A53,BMai!$A$8:$BC$57,35,FALSE) -> 0 | AM53: =VLOOKUP($A53,BMai!$A$8:$BC$57,36,FALSE) -> 0 | AN53: =VLOOKUP($A53,BMai!$A$8:$BC$57,37,FALSE) -> 0 | AP53: =VLOOKUP($A53,BMai!$A$8:$BC$57,39,FALSE) -> 0 | AQ53: =VLOOKUP($A53,Bilan!$A$8:$BE$57,41,FALSE) -> 0 | AT53: =IFERROR(SUM((VLOOKUP(Mai!A53,Données!$H$6:$J$53,3,TRUE)/12)*5),"") -> 
A54: =Données!$H51 -> 0 | AL54: =VLOOKUP($A54,BMai!$A$8:$BC$57,35,FALSE) -> 0 | AM54: =VLOOKUP($A54,BMai!$A$8:$BC$57,36,FALSE) -> 0 | AN54: =VLOOKUP($A54,BMai!$A$8:$BC$57,37,FALSE) -> 0 | AP54: =VLOOKUP($A54,BMai!$A$8:$BC$57,39,FALSE) -> 0 | AQ54: =VLOOKUP($A54,Bilan!$A$8:$BE$57,41,FALSE) -> 0 | AT54: =IFERROR(SUM((VLOOKUP(Mai!A54,Données!$H$6:$J$53,3,TRUE)/12)*5),"") -> 
A55: =Données!$H52 -> Chef de service
A56: =Données!$H53 -> 0 | AL56: =VLOOKUP($A56,BMai!$A$8:$BC$57,35,FALSE) -> 0 | AM56: =VLOOKUP($A56,BMai!$A$8:$BC$57,36,FALSE) -> 0 | AN56: =VLOOKUP($A56,BMai!$A$8:$BC$57,37,FALSE) -> 0 | AP56: =VLOOKUP($A56,BMai!$A$8:$BC$57,39,FALSE) -> 0 | AQ56: =VLOOKUP($A56,Bilan!$A$8:$BE$57,41,FALSE) -> 0 | AT56: =IFERROR(SUM((VLOOKUP(Mai!A56,Données!$H$6:$J$53,3,TRUE)/12)*5),"") -> 
B58: =Données!$A3 -> S | C58: = | D58: =IF(ISBLANK(Données!$C3),TEXT(Données!$B3,"hh:mm"),TEXT(Données!$B3,"hh:mm")&" : "&TEXT(Données!$C3,"hh:mm")) -> 13:30 : 21:30 | H58: =Données!$A7 -> J+ | I58: = | J58: =IF(ISBLANK(Données!$C7),TEXT(Données!$B7,"hh:mm"),TEXT(Données!$B7,"hh:mm")&" : "&TEXT(Données!$C7,"hh:mm")) -> 09:00 : 21:00 | N58: =Données!$A10 -> N- | O58: = | P58: =IF(ISBLANK(Données!$C10),TEXT(Données!$B10,"hh:mm"),TEXT(Données!$B10,"hh:mm")&" : "&TEXT(Données!$C10,"hh:mm")) -> 20:45 : 07:15 | T58: =Données!$A14 -> AT | U58: = | V58: =IF(ISBLANK(Données!$C14),TEXT(Données!$B14,"hh:mm"),TEXT(Données!$B14,"hh:mm")&" : "&TEXT(Données!$C14,"hh:mm")) -> AT : AT | Z58: =Données!$A18 -> CA | AA58: = | AB58: =IF(ISBLANK(Données!$C18),TEXT(Données!$B18,"hh:mm"),TEXT(Données!$B18,"hh:mm")&" : "&TEXT(Données!$C18,"hh:mm")) -> CA : CA
B59: =Données!$A4 -> M- | C59: = | D59: =IF(ISBLANK(Données!$C4),TEXT(Données!$B4,"hh:mm"),TEXT(Données!$B4,"hh:mm")&" : "&TEXT(Données!$C4,"hh:mm")) -> 07:00 : 15:00 | H59: =Données!$A8 -> RS | I59: = | J59: =IF(ISBLANK(Données!$C8),TEXT(Données!$B8,"hh:mm"),TEXT(Données!$B8,"hh:mm")&" : "&TEXT(Données!$C8,"hh:mm")) -> 09:30 : 21:30 | N59: =Données!$A11 -> N+ | O59: = | P59: =IF(ISBLANK(Données!$C11),TEXT(Données!$B11,"hh:mm"),TEXT(Données!$B11,"hh:mm")&" : "&TEXT(Données!$C11,"hh:mm")) -> 19:15 : 07:15 | T59: =Données!$A15 -> AM | U59: = | V59: =IF(ISBLANK(Données!$C15),TEXT(Données!$B15,"hh:mm"),TEXT(Données!$B15,"hh:mm")&" : "&TEXT(Données!$C15,"hh:mm")) -> AM : AM | Z59: =Données!$A19 -> CA17 | AA59: = | AB59: =IF(ISBLANK(Données!$C19),TEXT(Données!$B19,"hh:mm"),TEXT(Données!$B19,"hh:mm")&" : "&TEXT(Données!$C19,"hh:mm")) -> CA17 : CA17
B60: =Données!$A5 -> M | C60: = | D60: =IF(ISBLANK(Données!$C5),TEXT(Données!$B5,"hh:mm"),TEXT(Données!$B5,"hh:mm")&" : "&TEXT(Données!$C5,"hh:mm")) -> 08:00 : 15:00 | H60: =Données!$A9 -> N | I60: = | J60: =IF(ISBLANK(Données!$C9),TEXT(Données!$B9,"hh:mm"),TEXT(Données!$B9,"hh:mm")&" : "&TEXT(Données!$C9,"hh:mm")) -> 20:45 : 08:15 | N60: =Données!$A12 -> JS | O60: = | P60: =IF(ISBLANK(Données!$C12),TEXT(Données!$B12,"hh:mm"),TEXT(Données!$B12,"hh:mm")&" : "&TEXT(Données!$C12,"hh:mm")) -> 08:00 : 19:00 | T60: =Données!$A16 -> EM | U60: = | V60: =IF(ISBLANK(Données!$C16),TEXT(Données!$B16,"hh:mm"),TEXT(Données!$B16,"hh:mm")&" : "&TEXT(Données!$C16,"hh:mm")) -> EM : EM | Z60: =Données!$A20 -> REC | AA60: = | AB60: =IF(ISBLANK(Données!$C20),TEXT(Données!$B20,"hh:mm"),TEXT(Données!$B20,"hh:mm")&" : "&TEXT(Données!$C20,"hh:mm")) -> REC : REC
B61: =Données!$A6 -> J | C61: = | D61: =IF(ISBLANK(Données!$C6),TEXT(Données!$B6,"hh:mm"),TEXT(Données!$B6,"hh:mm")&" : "&TEXT(Données!$C6,"hh:mm")) -> 09:00 : 16:30 | H61: =Données!$A10 -> N- | I61: = | J61: =IF(ISBLANK(Données!$C10),TEXT(Données!$B10,"hh:mm"),TEXT(Données!$B10,"hh:mm")&" : "&TEXT(Données!$C10,"hh:mm")) -> 20:45 : 07:15 | N61: =Données!$A13 -> SYN | O61: = | P61: =IF(ISBLANK(Données!$C13),TEXT(Données!$B13,"hh:mm"),TEXT(Données!$B13,"hh:mm")&" : "&TEXT(Données!$C13,"hh:mm")) -> Syn : Syn | T61: =Données!$A17 -> CE | U61: = | V61: =IF(ISBLANK(Données!$C17),TEXT(Données!$B17,"hh:mm"),TEXT(Données!$B17,"hh:mm")&" : "&TEXT(Données!$C17,"hh:mm")) -> CE : CE | Z61: =Données!$A21 -> PL | AA61: = | AB61: =IF(ISBLANK(Données!$C21),TEXT(Données!$B21,"hh:mm"),TEXT(Données!$B21,"hh:mm")&" : "&TEXT(Données!$C21,"hh:mm")) -> PL : PL

Sheet Juin
AF1: =DATE(An,Mai,AF7) -> 2018-04-30
B2: =DATE(An,Juin,B7) -> 2018-06-01 | C2: 2018-06-02 | D2: 2018-06-03 | E2: 2018-06-04 | F2: 2018-06-05 | G2: 2018-06-06 | H2: 2018-06-07 | I2: 2018-06-08 | J2: 2018-06-09 | K2: 2018-06-10 | L2: 2018-06-11 | M2: 2018-06-12 | N2: 2018-06-13 | O2: 2018-06-14 | P2: 2018-06-15 | Q2: 2018-06-16 | R2: 2018-06-17 | S2: 2018-06-18 | T2: 2018-06-19 | U2: 2018-06-20 | V2: 2018-06-21 | W2: 2018-06-22 | X2: 2018-06-23 | Y2: 2018-06-24 | Z2: 2018-06-25 | AA2: 2018-06-26 | AB2: 2018-06-27 | AC2: 2018-06-28 | AD2: 2018-06-29 | AE2: 2018-06-30 | AI2: Pour remplir | AJ2: penser | AO2: =IF(ISNUMBER(AO7),DATE(An,Juin,AO7),"") ->  | AP2: =IF(ISNUMBER(AP7),DATE(An,Juin,AP7),"") -> 
A3: =IF(Données!$L$5="","Service",Données!$L$5) -> Service | K3: Mois de Juin | O3: =An -> 2018 | AI3: à mettre dans le format:
AI4: "heures":"Minutes" | AT4: Masse horraire previsionnel
AI5: Heures sup | AJ5: Heures sup | AL5: Indications | AM5: Indications | AN5: Indications | AP5: Total
A6: Jours | B6: =PROPER(LEFT(TEXT(DATE(An,Juin,B7),"jjj"),1)) -> V | C6: S | D6: D | E6: L | F6: M | G6: M | H6: J | I6: V | J6: S | K6: D | L6: L | M6: M | N6: M | O6: J | P6: V | Q6: S | R6: D | S6: L | T6: M | U6: M | V6: J | W6: V | X6: S | Y6: D | Z6: L | AA6: M | AB6: M | AC6: J | AD6: V | AE6: S | AI6: avant 21h | AJ6: après 21h | AL6: Heures | AM6: Heures nuit | AN6: Heures | AP6: Heures | AQ6: Heures
B7: =A7+1 -> 1 | C7: 2 | D7: 3 | E7: 4 | F7: 5 | G7: 6 | H7: 7 | I7: 8 | J7: 9 | K7: 10 | L7: 11 | M7: 12 | N7: 13 | O7: 14 | P7: 15 | Q7: 16 | R7: 17 | S7: 18 | T7: 19 | U7: 20 | V7: 21 | W7: 22 | X7: 23 | Y7: 24 | Z7: 25 | AA7: 26 | AB7: 27 | AC7: 28 | AD7: 29 | AE7: 30 | AI7: A remplir | AJ7: A remplir | AL7: Dimanche | AM7: Dimanche | AN7: après 21h | AP7: au mois | AQ7: a l'année | AT7: i
A8: Equipe de jour
A9: =Données!$H6 -> A | AL9: =VLOOKUP($A9,BJuin!$A$8:$BC$57,35,FALSE) -> 0 | AM9: =VLOOKUP($A9,BJuin!$A$8:$BC$57,36,FALSE) -> 0 | AN9: =VLOOKUP($A9,BJuin!$A$8:$BC$57,37,FALSE) -> 0 | AP9: =VLOOKUP($A9,BJuin!$A$8:$BC$57,39,FALSE) -> 0 | AQ9: =VLOOKUP($A9,Bilan!$A$8:$BE$57,41,FALSE) -> 5.533333333 | AT9: =IFERROR(SUM((VLOOKUP(Juin!A9,Données!$H$6:$J$53,3,TRUE)/12)*6),"") -> 30.17847222
A10: =Données!$H7 -> B | AL10: =VLOOKUP($A10,BJuin!$A$8:$BC$57,35,FALSE) -> 0 | AM10: =VLOOKUP($A10,BJuin!$A$8:$BC$57,36,FALSE) -> 0 | AN10: =VLOOKUP($A10,BJuin!$A$8:$BC$57,37,FALSE) -> 0 | AP10: =VLOOKUP($A10,BJuin!$A$8:$BC$57,39,FALSE) -> 0 | AQ10: =VLOOKUP($A10,Bilan!$A$8:$BE$57,41,FALSE) -> 0 | AT10: =IFERROR(SUM((VLOOKUP(Juin!A10,Données!$H$6:$J$53,3,TRUE)/12)*6),"") -> 
A11: =Données!$H8 -> L | AL11: =VLOOKUP($A11,BJuin!$A$8:$BC$57,35,FALSE) -> 0 | AM11: =VLOOKUP($A11,BJuin!$A$8:$BC$57,36,FALSE) -> 0 | AN11: =VLOOKUP($A11,BJuin!$A$8:$BC$57,37,FALSE) -> 0 | AP11: =VLOOKUP($A11,BJuin!$A$8:$BC$57,39,FALSE) -> 0 | AQ11: =VLOOKUP($A11,Bilan!$A$8:$BE$57,41,FALSE) -> 0 | AT11: =IFERROR(SUM((VLOOKUP(Juin!A11,Données!$H$6:$J$53,3,TRUE)/12)*6),"") -> 0
A12: =Données!$H9 -> L | AL12: =VLOOKUP($A12,BJuin!$A$8:$BC$57,35,FALSE) -> 0 | AM12: =VLOOKUP($A12,BJuin!$A$8:$BC$57,36,FALSE) -> 0 | AN12: =VLOOKUP($A12,BJuin!$A$8:$BC$57,37,FALSE) -> 0 | AP12: =VLOOKUP($A12,BJuin!$A$8:$BC$57,39,FALSE) -> 0 | AQ12: =VLOOKUP($A12,Bilan!$A$8:$BE$57,41,FALSE) -> 0 | AT12: =IFERROR(SUM((VLOOKUP(Juin!A12,Données!$H$6:$J$53,3,TRUE)/12)*6),"") -> 0
A13: =Données!$H10 -> 0 | AL13: =VLOOKUP($A13,BJuin!$A$8:$BC$57,35,FALSE) -> 0 | AM13: =VLOOKUP($A13,BJuin!$A$8:$BC$57,36,FALSE) -> 0 | AN13: =VLOOKUP($A13,BJuin!$A$8:$BC$57,37,FALSE) -> 0 | AP13: =VLOOKUP($A13,BJuin!$A$8:$BC$57,39,FALSE) -> 0 | AQ13: =VLOOKUP($A13,Bilan!$A$8:$BE$57,41,FALSE) -> 0 | AT13: =IFERROR(SUM((VLOOKUP(Juin!A13,Données!$H$6:$J$53,3,TRUE)/12)*6),"") -> 
A14: =Données!$H11 -> 0 | AL14: =VLOOKUP($A14,BJuin!$A$8:$BC$57,35,FALSE) -> 0 | AM14: =VLOOKUP($A14,BJuin!$A$8:$BC$57,36,FALSE) -> 0 | AN14: =VLOOKUP($A14,BJuin!$A$8:$BC$57,37,FALSE) -> 0 | AP14: =VLOOKUP($A14,BJuin!$A$8:$BC$57,39,FALSE) -> 0 | AQ14: =VLOOKUP($A14,Bilan!$A$8:$BE$57,41,FALSE) -> 0 | AT14: =IFERROR(SUM((VLOOKUP(Juin!A14,Données!$H$6:$J$53,3,TRUE)/12)*6),"") -> 
A15: =Données!$H12 -> 0 | AL15: =VLOOKUP($A15,BJuin!$A$8:$BC$57,35,FALSE) -> 0 | AM15: =VLOOKUP($A15,BJuin!$A$8:$BC$57,36,FALSE) -> 0 | AN15: =VLOOKUP($A15,BJuin!$A$8:$BC$57,37,FALSE) -> 0 | AP15: =VLOOKUP($A15,BJuin!$A$8:$BC$57,39,FALSE) -> 0 | AQ15: =VLOOKUP($A15,Bilan!$A$8:$BE$57,41,FALSE) -> 0 | AT15: =IFERROR(SUM((VLOOKUP(Juin!A15,Données!$H$6:$J$53,3,TRUE)/12)*6),"") -> 
A16: =Données!$H13 -> 0 | AL16: =VLOOKUP($A16,BJuin!$A$8:$BC$57,35,FALSE) -> 0 | AM16: =VLOOKUP($A16,BJuin!$A$8:$BC$57,36,FALSE) -> 0 | AN16: =VLOOKUP($A16,BJuin!$A$8:$BC$57,37,FALSE) -> 0 | AP16: =VLOOKUP($A16,BJuin!$A$8:$BC$57,39,FALSE) -> 0 | AQ16: =VLOOKUP($A16,Bilan!$A$8:$BE$57,41,FALSE) -> 0 | AT16: =IFERROR(SUM((VLOOKUP(Juin!A16,Données!$H$6:$J$53,3,TRUE)/12)*6),"") -> 
A17: =Données!$H14 -> 0 | AL17: =VLOOKUP($A17,BJuin!$A$8:$BC$57,35,FALSE) -> 0 | AM17: =VLOOKUP($A17,BJuin!$A$8:$BC$57,36,FALSE) -> 0 | AN17: =VLOOKUP($A17,BJuin!$A$8:$BC$57,37,FALSE) -> 0 | AP17: =VLOOKUP($A17,BJuin!$A$8:$BC$57,39,FALSE) -> 0 | AQ17: =VLOOKUP($A17,Bilan!$A$8:$BE$57,41,FALSE) -> 0 | AT17: =IFERROR(SUM((VLOOKUP(Juin!A17,Données!$H$6:$J$53,3,TRUE)/12)*6),"") -> 
A18: =Données!$H15 -> 0 | AL18: =VLOOKUP($A18,BJuin!$A$8:$BC$57,35,FALSE) -> 0 | AM18: =VLOOKUP($A18,BJuin!$A$8:$BC$57,36,FALSE) -> 0 | AN18: =VLOOKUP($A18,BJuin!$A$8:$BC$57,37,FALSE) -> 0 | AP18: =VLOOKUP($A18,BJuin!$A$8:$BC$57,39,FALSE) -> 0 | AQ18: =VLOOKUP($A18,Bilan!$A$8:$BE$57,41,FALSE) -> 0 | AT18: =IFERROR(SUM((VLOOKUP(Juin!A18,Données!$H$6:$J$53,3,TRUE)/12)*6),"") -> 
A19: =Données!$H16 -> 0 | AL19: =VLOOKUP($A19,BJuin!$A$8:$BC$57,35,FALSE) -> 0 | AM19: =VLOOKUP($A19,BJuin!$A$8:$BC$57,36,FALSE) -> 0 | AN19: =VLOOKUP($A19,BJuin!$A$8:$BC$57,37,FALSE) -> 0 | AP19: =VLOOKUP($A19,BJuin!$A$8:$BC$57,39,FALSE) -> 0 | AQ19: =VLOOKUP($A19,Bilan!$A$8:$BE$57,41,FALSE) -> 0 | AT19: =IFERROR(SUM((VLOOKUP(Juin!A19,Données!$H$6:$J$53,3,TRUE)/12)*6),"") -> 
A20: =Données!$H17 -> 0 | AL20: =VLOOKUP($A20,BJuin!$A$8:$BC$57,35,FALSE) -> 0 | AM20: =VLOOKUP($A20,BJuin!$A$8:$BC$57,36,FALSE) -> 0 | AN20: =VLOOKUP($A20,BJuin!$A$8:$BC$57,37,FALSE) -> 0 | AP20: =VLOOKUP($A20,BJuin!$A$8:$BC$57,39,FALSE) -> 0 | AQ20: =VLOOKUP($A20,Bilan!$A$8:$BE$57,41,FALSE) -> 0 | AT20: =IFERROR(SUM((VLOOKUP(Juin!A20,Données!$H$6:$J$53,3,TRUE)/12)*6),"") -> 
A21: =Données!$H18 -> 0 | AL21: =VLOOKUP($A21,BJuin!$A$8:$BC$57,35,FALSE) -> 0 | AM21: =VLOOKUP($A21,BJuin!$A$8:$BC$57,36,FALSE) -> 0 | AN21: =VLOOKUP($A21,BJuin!$A$8:$BC$57,37,FALSE) -> 0 | AP21: =VLOOKUP($A21,BJuin!$A$8:$BC$57,39,FALSE) -> 0 | AQ21: =VLOOKUP($A21,Bilan!$A$8:$BE$57,41,FALSE) -> 0 | AT21: =IFERROR(SUM((VLOOKUP(Juin!A21,Données!$H$6:$J$53,3,TRUE)/12)*6),"") -> 
A22: =Données!$H19 -> 0 | AL22: =VLOOKUP($A22,BJuin!$A$8:$BC$57,35,FALSE) -> 0 | AM22: =VLOOKUP($A22,BJuin!$A$8:$BC$57,36,FALSE) -> 0 | AN22: =VLOOKUP($A22,BJuin!$A$8:$BC$57,37,FALSE) -> 0 | AP22: =VLOOKUP($A22,BJuin!$A$8:$BC$57,39,FALSE) -> 0 | AQ22: =VLOOKUP($A22,Bilan!$A$8:$BE$57,41,FALSE) -> 0 | AT22: =IFERROR(SUM((VLOOKUP(Juin!A22,Données!$H$6:$J$53,3,TRUE)/12)*6),"") -> 
A23: =Données!$H20 -> 0 | AL23: =VLOOKUP($A23,BJuin!$A$8:$BC$57,35,FALSE) -> 0 | AM23: =VLOOKUP($A23,BJuin!$A$8:$BC$57,36,FALSE) -> 0 | AN23: =VLOOKUP($A23,BJuin!$A$8:$BC$57,37,FALSE) -> 0 | AP23: =VLOOKUP($A23,BJuin!$A$8:$BC$57,39,FALSE) -> 0 | AQ23: =VLOOKUP($A23,Bilan!$A$8:$BE$57,41,FALSE) -> 0 | AT23: =IFERROR(SUM((VLOOKUP(Juin!A23,Données!$H$6:$J$53,3,TRUE)/12)*6),"") -> 
A24: =Données!$H21 -> 0 | AL24: =VLOOKUP($A24,BJuin!$A$8:$BC$57,35,FALSE) -> 0 | AM24: =VLOOKUP($A24,BJuin!$A$8:$BC$57,36,FALSE) -> 0 | AN24: =VLOOKUP($A24,BJuin!$A$8:$BC$57,37,FALSE) -> 0 | AP24: =VLOOKUP($A24,BJuin!$A$8:$BC$57,39,FALSE) -> 0 | AQ24: =VLOOKUP($A24,Bilan!$A$8:$BE$57,41,FALSE) -> 0 | AT24: =IFERROR(SUM((VLOOKUP(Juin!A24,Données!$H$6:$J$53,3,TRUE)/12)*6),"") -> 
A25: =Données!$H22 -> Equipe de nuit
A26: =Données!$H23 -> 0 | AL26: =VLOOKUP($A26,BJuin!$A$8:$BC$57,35,FALSE) -> 0 | AM26: =VLOOKUP($A26,BJuin!$A$8:$BC$57,36,FALSE) -> 0 | AN26: =VLOOKUP($A26,BJuin!$A$8:$BC$57,37,FALSE) -> 0 | AP26: =VLOOKUP($A26,BJuin!$A$8:$BC$57,39,FALSE) -> 0 | AQ26: =VLOOKUP($A26,Bilan!$A$8:$BE$57,41,FALSE) -> 0 | AT26: =IFERROR(SUM((VLOOKUP(Juin!A26,Données!$H$6:$J$53,3,TRUE)/12)*6),"") -> 
A27: =Données!$H24 -> 0 | AL27: =VLOOKUP($A27,BJuin!$A$8:$BC$57,35,FALSE) -> 0 | AM27: =VLOOKUP($A27,BJuin!$A$8:$BC$57,36,FALSE) -> 0 | AN27: =VLOOKUP($A27,BJuin!$A$8:$BC$57,37,FALSE) -> 0 | AP27: =VLOOKUP($A27,BJuin!$A$8:$BC$57,39,FALSE) -> 0 | AQ27: =VLOOKUP($A27,Bilan!$A$8:$BE$57,41,FALSE) -> 0 | AT27: =IFERROR(SUM((VLOOKUP(Juin!A27,Données!$H$6:$J$53,3,TRUE)/12)*6),"") -> 
A28: =Données!$H25 -> 0 | AL28: =VLOOKUP($A28,BJuin!$A$8:$BC$57,35,FALSE) -> 0 | AM28: =VLOOKUP($A28,BJuin!$A$8:$BC$57,36,FALSE) -> 0 | AN28: =VLOOKUP($A28,BJuin!$A$8:$BC$57,37,FALSE) -> 0 | AP28: =VLOOKUP($A28,BJuin!$A$8:$BC$57,39,FALSE) -> 0 | AQ28: =VLOOKUP($A28,Bilan!$A$8:$BE$57,41,FALSE) -> 0 | AT28: =IFERROR(SUM((VLOOKUP(Juin!A28,Données!$H$6:$J$53,3,TRUE)/12)*6),"") -> 
A29: =Données!$H26 -> 0 | AL29: =VLOOKUP($A29,BJuin!$A$8:$BC$57,35,FALSE) -> 0 | AM29: =VLOOKUP($A29,BJuin!$A$8:$BC$57,36,FALSE) -> 0 | AN29: =VLOOKUP($A29,BJuin!$A$8:$BC$57,37,FALSE) -> 0 | AP29: =VLOOKUP($A29,BJuin!$A$8:$BC$57,39,FALSE) -> 0 | AQ29: =VLOOKUP($A29,Bilan!$A$8:$BE$57,41,FALSE) -> 0 | AT29: =IFERROR(SUM((VLOOKUP(Juin!A29,Données!$H$6:$J$53,3,TRUE)/12)*6),"") -> 
A30: =Données!$H27 -> 0 | AL30: =VLOOKUP($A30,BJuin!$A$8:$BC$57,35,FALSE) -> 0 | AM30: =VLOOKUP($A30,BJuin!$A$8:$BC$57,36,FALSE) -> 0 | AN30: =VLOOKUP($A30,BJuin!$A$8:$BC$57,37,FALSE) -> 0 | AP30: =VLOOKUP($A30,BJuin!$A$8:$BC$57,39,FALSE) -> 0 | AQ30: =VLOOKUP($A30,Bilan!$A$8:$BE$57,41,FALSE) -> 0 | AT30: =IFERROR(SUM((VLOOKUP(Juin!A30,Données!$H$6:$J$53,3,TRUE)/12)*6),"") -> 
A31: =Données!$H28 -> 0 | AL31: =VLOOKUP($A31,BJuin!$A$8:$BC$57,35,FALSE) -> 0 | AM31: =VLOOKUP($A31,BJuin!$A$8:$BC$57,36,FALSE) -> 0 | AN31: =VLOOKUP($A31,BJuin!$A$8:$BC$57,37,FALSE) -> 0 | AP31: =VLOOKUP($A31,BJuin!$A$8:$BC$57,39,FALSE) -> 0 | AQ31: =VLOOKUP($A31,Bilan!$A$8:$BE$57,41,FALSE) -> 0 | AT31: =IFERROR(SUM((VLOOKUP(Juin!A31,Données!$H$6:$J$53,3,TRUE)/12)*6),"") -> 
A32: =Données!$H29 -> 0 | AL32: =VLOOKUP($A32,BJuin!$A$8:$BC$57,35,FALSE) -> 0 | AM32: =VLOOKUP($A32,BJuin!$A$8:$BC$57,36,FALSE) -> 0 | AN32: =VLOOKUP($A32,BJuin!$A$8:$BC$57,37,FALSE) -> 0 | AP32: =VLOOKUP($A32,BJuin!$A$8:$BC$57,39,FALSE) -> 0 | AQ32: =VLOOKUP($A32,Bilan!$A$8:$BE$57,41,FALSE) -> 0 | AT32: =IFERROR(SUM((VLOOKUP(Juin!A32,Données!$H$6:$J$53,3,TRUE)/12)*6),"") -> 
A33: =Données!$H30 -> 0 | AL33: =VLOOKUP($A33,BJuin!$A$8:$BC$57,35,FALSE) -> 0 | AM33: =VLOOKUP($A33,BJuin!$A$8:$BC$57,36,FALSE) -> 0 | AN33: =VLOOKUP($A33,BJuin!$A$8:$BC$57,37,FALSE) -> 0 | AP33: =VLOOKUP($A33,BJuin!$A$8:$BC$57,39,FALSE) -> 0 | AQ33: =VLOOKUP($A33,Bilan!$A$8:$BE$57,41,FALSE) -> 0 | AT33: =IFERROR(SUM((VLOOKUP(Juin!A33,Données!$H$6:$J$53,3,TRUE)/12)*6),"") -> 
A34: =Données!$H31 -> 0 | AL34: =VLOOKUP($A34,BJuin!$A$8:$BC$57,35,FALSE) -> 0 | AM34: =VLOOKUP($A34,BJuin!$A$8:$BC$57,36,FALSE) -> 0 | AN34: =VLOOKUP($A34,BJuin!$A$8:$BC$57,37,FALSE) -> 0 | AP34: =VLOOKUP($A34,BJuin!$A$8:$BC$57,39,FALSE) -> 0 | AQ34: =VLOOKUP($A34,Bilan!$A$8:$BE$57,41,FALSE) -> 0 | AT34: =IFERROR(SUM((VLOOKUP(Juin!A34,Données!$H$6:$J$53,3,TRUE)/12)*6),"") -> 
A35: =Données!$H32 -> Maitresse de maison
A36: =Données!$H33 -> 0 | AL36: =VLOOKUP($A36,BJuin!$A$8:$BC$57,35,FALSE) -> 0 | AM36: =VLOOKUP($A36,BJuin!$A$8:$BC$57,36,FALSE) -> 0 | AN36: =VLOOKUP($A36,BJuin!$A$8:$BC$57,37,FALSE) -> 0 | AP36: =VLOOKUP($A36,BJuin!$A$8:$BC$57,39,FALSE) -> 0 | AQ36: =VLOOKUP($A36,Bilan!$A$8:$BE$57,41,FALSE) -> 0 | AT36: =IFERROR(SUM((VLOOKUP(Juin!A36,Données!$H$6:$J$53,3,TRUE)/12)*6),"") -> 
A37: =Données!$H34 -> 0 | AL37: =VLOOKUP($A37,BJuin!$A$8:$BC$57,35,FALSE) -> 0 | AM37: =VLOOKUP($A37,BJuin!$A$8:$BC$57,36,FALSE) -> 0 | AN37: =VLOOKUP($A37,BJuin!$A$8:$BC$57,37,FALSE) -> 0 | AP37: =VLOOKUP($A37,BJuin!$A$8:$BC$57,39,FALSE) -> 0 | AQ37: =VLOOKUP($A37,Bilan!$A$8:$BE$57,41,FALSE) -> 0 | AT37: =IFERROR(SUM((VLOOKUP(Juin!A37,Données!$H$6:$J$53,3,TRUE)/12)*6),"") -> 
A38: =Données!$H35 -> 0 | AL38: =VLOOKUP($A38,BJuin!$A$8:$BC$57,35,FALSE) -> 0 | AM38: =VLOOKUP($A38,BJuin!$A$8:$BC$57,36,FALSE) -> 0 | AN38: =VLOOKUP($A38,BJuin!$A$8:$BC$57,37,FALSE) -> 0 | AP38: =VLOOKUP($A38,BJuin!$A$8:$BC$57,39,FALSE) -> 0 | AQ38: =VLOOKUP($A38,Bilan!$A$8:$BE$57,41,FALSE) -> 0 | AT38: =IFERROR(SUM((VLOOKUP(Juin!A38,Données!$H$6:$J$53,3,TRUE)/12)*6),"") -> 
A39: =Données!$H36 -> 0 | AL39: =VLOOKUP($A39,BJuin!$A$8:$BC$57,35,FALSE) -> 0 | AM39: =VLOOKUP($A39,BJuin!$A$8:$BC$57,36,FALSE) -> 0 | AN39: =VLOOKUP($A39,BJuin!$A$8:$BC$57,37,FALSE) -> 0 | AP39: =VLOOKUP($A39,BJuin!$A$8:$BC$57,39,FALSE) -> 0 | AQ39: =VLOOKUP($A39,Bilan!$A$8:$BE$57,41,FALSE) -> 0 | AT39: =IFERROR(SUM((VLOOKUP(Juin!A39,Données!$H$6:$J$53,3,TRUE)/12)*6),"") -> 
A40: =Données!$H37 -> 0 | AL40: =VLOOKUP($A40,BJuin!$A$8:$BC$57,35,FALSE) -> 0 | AM40: =VLOOKUP($A40,BJuin!$A$8:$BC$57,36,FALSE) -> 0 | AN40: =VLOOKUP($A40,BJuin!$A$8:$BC$57,37,FALSE) -> 0 | AP40: =VLOOKUP($A40,BJuin!$A$8:$BC$57,39,FALSE) -> 0 | AQ40: =VLOOKUP($A40,Bilan!$A$8:$BE$57,41,FALSE) -> 0 | AT40: =IFERROR(SUM((VLOOKUP(Juin!A40,Données!$H$6:$J$53,3,TRUE)/12)*6),"") -> 
A41: =Données!$H38 -> 0 | AL41: =VLOOKUP($A41,BJuin!$A$8:$BC$57,35,FALSE) -> 0 | AM41: =VLOOKUP($A41,BJuin!$A$8:$BC$57,36,FALSE) -> 0 | AN41: =VLOOKUP($A41,BJuin!$A$8:$BC$57,37,FALSE) -> 0 | AP41: =VLOOKUP($A41,BJuin!$A$8:$BC$57,39,FALSE) -> 0 | AQ41: =VLOOKUP($A41,Bilan!$A$8:$BE$57,41,FALSE) -> 0 | AT41: =IFERROR(SUM((VLOOKUP(Juin!A41,Données!$H$6:$J$53,3,TRUE)/12)*6),"") -> 
A42: =Données!$H39 -> 0 | AL42: =VLOOKUP($A42,BJuin!$A$8:$BC$57,35,FALSE) -> 0 | AM42: =VLOOKUP($A42,BJuin!$A$8:$BC$57,36,FALSE) -> 0 | AN42: =VLOOKUP($A42,BJuin!$A$8:$BC$57,37,FALSE) -> 0 | AP42: =VLOOKUP($A42,BJuin!$A$8:$BC$57,39,FALSE) -> 0 | AQ42: =VLOOKUP($A42,Bilan!$A$8:$BE$57,41,FALSE) -> 0 | AT42: =IFERROR(SUM((VLOOKUP(Juin!A42,Données!$H$6:$J$53,3,TRUE)/12)*6),"") -> 
A43: =Données!$H40 -> 0 | AL43: =VLOOKUP($A43,BJuin!$A$8:$BC$57,35,FALSE) -> 0 | AM43: =VLOOKUP($A43,BJuin!$A$8:$BC$57,36,FALSE) -> 0 | AN43: =VLOOKUP($A43,BJuin!$A$8:$BC$57,37,FALSE) -> 0 | AP43: =VLOOKUP($A43,BJuin!$A$8:$BC$57,39,FALSE) -> 0 | AQ43: =VLOOKUP($A43,Bilan!$A$8:$BE$57,41,FALSE) -> 0 | AT43: =IFERROR(SUM((VLOOKUP(Juin!A43,Données!$H$6:$J$53,3,TRUE)/12)*6),"") -> 
A44: =Données!$H41 -> 0 | AL44: =VLOOKUP($A44,BJuin!$A$8:$BC$57,35,FALSE) -> 0 | AM44: =VLOOKUP($A44,BJuin!$A$8:$BC$57,36,FALSE) -> 0 | AN44: =VLOOKUP($A44,BJuin!$A$8:$BC$57,37,FALSE) -> 0 | AP44: =VLOOKUP($A44,BJuin!$A$8:$BC$57,39,FALSE) -> 0 | AQ44: =VLOOKUP($A44,Bilan!$A$8:$BE$57,41,FALSE) -> 0 | AT44: =IFERROR(SUM((VLOOKUP(Juin!A44,Données!$H$6:$J$53,3,TRUE)/12)*6),"") -> 
A45: =Données!$H42 -> Psychologue
A46: =Données!$H43 -> 0 | AL46: =VLOOKUP($A46,BJuin!$A$8:$BC$57,35,FALSE) -> 0 | AM46: =VLOOKUP($A46,BJuin!$A$8:$BC$57,36,FALSE) -> 0 | AN46: =VLOOKUP($A46,BJuin!$A$8:$BC$57,37,FALSE) -> 0 | AP46: =VLOOKUP($A46,BJuin!$A$8:$BC$57,39,FALSE) -> 0 | AQ46: =VLOOKUP($A46,Bilan!$A$8:$BE$57,41,FALSE) -> 0 | AT46: =IFERROR(SUM((VLOOKUP(Juin!A46,Données!$H$6:$J$53,3,TRUE)/12)*6),"") -> 
A47: =Données!$H44 -> 0 | AL47: =VLOOKUP($A47,BJuin!$A$8:$BC$57,35,FALSE) -> 0 | AM47: =VLOOKUP($A47,BJuin!$A$8:$BC$57,36,FALSE) -> 0 | AN47: =VLOOKUP($A47,BJuin!$A$8:$BC$57,37,FALSE) -> 0 | AP47: =VLOOKUP($A47,BJuin!$A$8:$BC$57,39,FALSE) -> 0 | AQ47: =VLOOKUP($A47,Bilan!$A$8:$BE$57,41,FALSE) -> 0 | AT47: =IFERROR(SUM((VLOOKUP(Juin!A47,Données!$H$6:$J$53,3,TRUE)/12)*6),"") -> 
A48: =Données!$H45 -> 0 | AL48: =VLOOKUP($A48,BJuin!$A$8:$BC$57,35,FALSE) -> 0 | AM48: =VLOOKUP($A48,BJuin!$A$8:$BC$57,36,FALSE) -> 0 | AN48: =VLOOKUP($A48,BJuin!$A$8:$BC$57,37,FALSE) -> 0 | AP48: =VLOOKUP($A48,BJuin!$A$8:$BC$57,39,FALSE) -> 0 | AQ48: =VLOOKUP($A48,Bilan!$A$8:$BE$57,41,FALSE) -> 0 | AT48: =IFERROR(SUM((VLOOKUP(Juin!A48,Données!$H$6:$J$53,3,TRUE)/12)*6),"") -> 
A49: =Données!$H46 -> Coordinatrice
A50: =Données!$H47 -> 0 | AL50: =VLOOKUP($A50,BJuin!$A$8:$BC$57,35,FALSE) -> 0 | AM50: =VLOOKUP($A50,BJuin!$A$8:$BC$57,36,FALSE) -> 0 | AN50: =VLOOKUP($A50,BJuin!$A$8:$BC$57,37,FALSE) -> 0 | AP50: =VLOOKUP($A50,BJuin!$A$8:$BC$57,39,FALSE) -> 0 | AQ50: =VLOOKUP($A50,Bilan!$A$8:$BE$57,41,FALSE) -> 0 | AT50: =IFERROR(SUM((VLOOKUP(Juin!A50,Données!$H$6:$J$53,3,TRUE)/12)*6),"") -> 
A51: =Données!$H48 -> 0 | AL51: =VLOOKUP($A51,BJuin!$A$8:$BC$57,35,FALSE) -> 0 | AM51: =VLOOKUP($A51,BJuin!$A$8:$BC$57,36,FALSE) -> 0 | AN51: =VLOOKUP($A51,BJuin!$A$8:$BC$57,37,FALSE) -> 0 | AP51: =VLOOKUP($A51,BJuin!$A$8:$BC$57,39,FALSE) -> 0 | AQ51: =VLOOKUP($A51,Bilan!$A$8:$BE$57,41,FALSE) -> 0 | AT51: =IFERROR(SUM((VLOOKUP(Juin!A51,Données!$H$6:$J$53,3,TRUE)/12)*6),"") -> 
A52: =Données!$H49 -> 0 | AL52: =VLOOKUP($A52,BJuin!$A$8:$BC$57,35,FALSE) -> 0 | AM52: =VLOOKUP($A52,BJuin!$A$8:$BC$57,36,FALSE) -> 0 | AN52: =VLOOKUP($A52,BJuin!$A$8:$BC$57,37,FALSE) -> 0 | AP52: =VLOOKUP($A52,BJuin!$A$8:$BC$57,39,FALSE) -> 0 | AQ52: =VLOOKUP($A52,Bilan!$A$8:$BE$57,41,FALSE) -> 0 | AT52: =IFERROR(SUM((VLOOKUP(Juin!A52,Données!$H$6:$J$53,3,TRUE)/12)*6),"") -> 
A53: =Données!$H50 -> 0 | AL53: =VLOOKUP($A53,BJuin!$A$8:$BC$57,35,FALSE) -> 0 | AM53: =VLOOKUP($A53,BJuin!$A$8:$BC$57,36,FALSE) -> 0 | AN53: =VLOOKUP($A53,BJuin!$A$8:$BC$57,37,FALSE) -> 0 | AP53: =VLOOKUP($A53,BJuin!$A$8:$BC$57,39,FALSE) -> 0 | AQ53: =VLOOKUP($A53,Bilan!$A$8:$BE$57,41,FALSE) -> 0 | AT53: =IFERROR(SUM((VLOOKUP(Juin!A53,Données!$H$6:$J$53,3,TRUE)/12)*6),"") -> 
A54: =Données!$H51 -> 0 | AL54: =VLOOKUP($A54,BJuin!$A$8:$BC$57,35,FALSE) -> 0 | AM54: =VLOOKUP($A54,BJuin!$A$8:$BC$57,36,FALSE) -> 0 | AN54: =VLOOKUP($A54,BJuin!$A$8:$BC$57,37,FALSE) -> 0 | AP54: =VLOOKUP($A54,BJuin!$A$8:$BC$57,39,FALSE) -> 0 | AQ54: =VLOOKUP($A54,Bilan!$A$8:$BE$57,41,FALSE) -> 0 | AT54: =IFERROR(SUM((VLOOKUP(Juin!A54,Données!$H$6:$J$53,3,TRUE)/12)*6),"") -> 
A55: =Données!$H52 -> Chef de service
A56: =Données!$H53 -> 0 | AL56: =VLOOKUP($A56,BJuin!$A$8:$BC$57,35,FALSE) -> 0 | AM56: =VLOOKUP($A56,BJuin!$A$8:$BC$57,36,FALSE) -> 0 | AN56: =VLOOKUP($A56,BJuin!$A$8:$BC$57,37,FALSE) -> 0 | AP56: =VLOOKUP($A56,BJuin!$A$8:$BC$57,39,FALSE) -> 0 | AQ56: =VLOOKUP($A56,Bilan!$A$8:$BE$57,41,FALSE) -> 0 | AT56: =IFERROR(SUM((VLOOKUP(Juin!A56,Données!$H$6:$J$53,3,TRUE)/12)*6),"") -> 
B58: =Données!$A3 -> S | C58: = | D58: =IF(ISBLANK(Données!$C3),TEXT(Données!$B3,"hh:mm"),TEXT(Données!$B3,"hh:mm")&" : "&TEXT(Données!$C3,"hh:mm")) -> 13:30 : 21:30 | H58: =Données!$A7 -> J+ | I58: = | J58: =IF(ISBLANK(Données!$C7),TEXT(Données!$B7,"hh:mm"),TEXT(Données!$B7,"hh:mm")&" : "&TEXT(Données!$C7,"hh:mm")) -> 09:00 : 21:00 | N58: =Données!$A10 -> N- | O58: = | P58: =IF(ISBLANK(Données!$C10),TEXT(Données!$B10,"hh:mm"),TEXT(Données!$B10,"hh:mm")&" : "&TEXT(Données!$C10,"hh:mm")) -> 20:45 : 07:15 | T58: =Données!$A14 -> AT | U58: = | V58: =IF(ISBLANK(Données!$C14),TEXT(Données!$B14,"hh:mm"),TEXT(Données!$B14,"hh:mm")&" : "&TEXT(Données!$C14,"hh:mm")) -> AT : AT | Z58: =Données!$A18 -> CA | AA58: = | AB58: =IF(ISBLANK(Données!$C18),TEXT(Données!$B18,"hh:mm"),TEXT(Données!$B18,"hh:mm")&" : "&TEXT(Données!$C18,"hh:mm")) -> CA : CA
B59: =Données!$A4 -> M- | C59: = | D59: =IF(ISBLANK(Données!$C4),TEXT(Données!$B4,"hh:mm"),TEXT(Données!$B4,"hh:mm")&" : "&TEXT(Données!$C4,"hh:mm")) -> 07:00 : 15:00 | H59: =Données!$A8 -> RS | I59: = | J59: =IF(ISBLANK(Données!$C8),TEXT(Données!$B8,"hh:mm"),TEXT(Données!$B8,"hh:mm")&" : "&TEXT(Données!$C8,"hh:mm")) -> 09:30 : 21:30 | N59: =Données!$A11 -> N+ | O59: = | P59: =IF(ISBLANK(Données!$C11),TEXT(Données!$B11,"hh:mm"),TEXT(Données!$B11,"hh:mm")&" : "&TEXT(Données!$C11,"hh:mm")) -> 19:15 : 07:15 | T59: =Données!$A15 -> AM | U59: = | V59: =IF(ISBLANK(Données!$C15),TEXT(Données!$B15,"hh:mm"),TEXT(Données!$B15,"hh:mm")&" : "&TEXT(Données!$C15,"hh:mm")) -> AM : AM | Z59: =Données!$A19 -> CA17 | AA59: = | AB59: =IF(ISBLANK(Données!$C19),TEXT(Données!$B19,"hh:mm"),TEXT(Données!$B19,"hh:mm")&" : "&TEXT(Données!$C19,"hh:mm")) -> CA17 : CA17
B60: =Données!$A5 -> M | C60: = | D60: =IF(ISBLANK(Données!$C5),TEXT(Données!$B5,"hh:mm"),TEXT(Données!$B5,"hh:mm")&" : "&TEXT(Données!$C5,"hh:mm")) -> 08:00 : 15:00 | H60: =Données!$A9 -> N | I60: = | J60: =IF(ISBLANK(Données!$C9),TEXT(Données!$B9,"hh:mm"),TEXT(Données!$B9,"hh:mm")&" : "&TEXT(Données!$C9,"hh:mm")) -> 20:45 : 08:15 | N60: =Données!$A12 -> JS | O60: = | P60: =IF(ISBLANK(Données!$C12),TEXT(Données!$B12,"hh:mm"),TEXT(Données!$B12,"hh:mm")&" : "&TEXT(Données!$C12,"hh:mm")) -> 08:00 : 19:00 | T60: =Données!$A16 -> EM | U60: = | V60: =IF(ISBLANK(Données!$C16),TEXT(Données!$B16,"hh:mm"),TEXT(Données!$B16,"hh:mm")&" : "&TEXT(Données!$C16,"hh:mm")) -> EM : EM | Z60: =Données!$A20 -> REC | AA60: = | AB60: =IF(ISBLANK(Données!$C20),TEXT(Données!$B20,"hh:mm"),TEXT(Données!$B20,"hh:mm")&" : "&TEXT(Données!$C20,"hh:mm")) -> REC : REC
B61: =Données!$A6 -> J | C61: = | D61: =IF(ISBLANK(Données!$C6),TEXT(Données!$B6,"hh:mm"),TEXT(Données!$B6,"hh:mm")&" : "&TEXT(Données!$C6,"hh:mm")) -> 09:00 : 16:30 | H61: =Données!$A10 -> N- | I61: = | J61: =IF(ISBLANK(Données!$C10),TEXT(Données!$B10,"hh:mm"),TEXT(Données!$B10,"hh:mm")&" : "&TEXT(Données!$C10,"hh:mm")) -> 20:45 : 07:15 | N61: =Données!$A13 -> SYN | O61: = | P61: =IF(ISBLANK(Données!$C13),TEXT(Données!$B13,"hh:mm"),TEXT(Données!$B13,"hh:mm")&" : "&TEXT(Données!$C13,"hh:mm")) -> Syn : Syn | T61: =Données!$A17 -> CE | U61: = | V61: =IF(ISBLANK(Données!$C17),TEXT(Données!$B17,"hh:mm"),TEXT(Données!$B17,"hh:mm")&" : "&TEXT(Données!$C17,"hh:mm")) -> CE : CE | Z61: =Données!$A21 -> PL | AA61: = | AB61: =IF(ISBLANK(Données!$C21),TEXT(Données!$B21,"hh:mm"),TEXT(Données!$B21,"hh:mm")&" : "&TEXT(Données!$C21,"hh:mm")) -> PL : PL

Sheet Juillet
B2: =DATE(An,Juillet,B7) -> 2018-07-01 | C2: 2018-07-02 | D2: 2018-07-03 | E2: 2018-07-04 | F2: 2018-07-05 | G2: 2018-07-06 | H2: 2018-07-07 | I2: 2018-07-08 | J2: 2018-07-09 | K2: 2018-07-10 | L2: 2018-07-11 | M2: 2018-07-12 | N2: 2018-07-13 | O2: 2018-07-14 | P2: 2018-07-15 | Q2: 2018-07-16 | R2: 2018-07-17 | S2: 2018-07-18 | T2: 2018-07-19 | U2: 2018-07-20 | V2: 2018-07-21 | W2: 2018-07-22 | X2: 2018-07-23 | Y2: 2018-07-24 | Z2: 2018-07-25 | AA2: 2018-07-26 | AB2: 2018-07-27 | AC2: 2018-07-28 | AD2: 2018-07-29 | AE2: 2018-07-30 | AF2: 2018-07-31 | AI2: Pour remplir | AJ2: penser | AO2: =IF(ISNUMBER(AO7),DATE(An,Juillet,AO7),"") ->  | AP2: =IF(ISNUMBER(AP7),DATE(An,Juillet,AP7),"") -> 
A3: =IF(Données!$L$5="","Service",Données!$L$5) -> Service | K3: Mois de Juillet | N3: =An -> 2018 | AI3: à mettre dans le format:
AI4: "heures":"Minutes" | AT4: Masse horraire previsionnel
AI5: Heures sup | AJ5: Heures sup | AL5: Indications | AM5: Indications | AN5: Indications | AP5: Total
A6: Jours | B6: =PROPER(LEFT(TEXT(DATE(An,Juillet,B7),"jjj"),1)) -> D | C6: L | D6: M | E6: M | F6: J | G6: V | H6: S | I6: D | J6: L | K6: M | L6: M | M6: J | N6: V | O6: S | P6: D | Q6: L | R6: M | S6: M | T6: J | U6: V | V6: S | W6: D | X6: L | Y6: M | Z6: M | AA6: J | AB6: V | AC6: S | AD6: D | AE6: L | AF6: M | AI6: avant 21h | AJ6: après 21h | AL6: Heures | AM6: Heures nuit | AN6: Heures | AP6: Heures | AQ6: Heures
B7: =A7+1 -> 1 | C7: 2 | D7: 3 | E7: 4 | F7: 5 | G7: 6 | H7: 7 | I7: 8 | J7: 9 | K7: 10 | L7: 11 | M7: 12 | N7: 13 | O7: 14 | P7: 15 | Q7: 16 | R7: 17 | S7: 18 | T7: 19 | U7: 20 | V7: 21 | W7: 22 | X7: 23 | Y7: 24 | Z7: 25 | AA7: 26 | AB7: 27 | AC7: 28 | AD7: 29 | AE7: 30 | AF7: =AE7+1 -> 31 | AI7: A remplir | AJ7: A remplir | AL7: Dimanche | AM7: Dimanche | AN7: après 21h | AP7: au mois | AQ7: a l'année | AT7: i
A8: Equipe de jour
A9: =Données!$H6 -> A | AL9: =VLOOKUP($A9,BJuillet!$A$8:$BC$57,35,FALSE) -> 0 | AM9: =VLOOKUP($A9,BJuillet!$A$8:$BC$57,36,FALSE) -> 0 | AN9: =VLOOKUP($A9,BJuillet!$A$8:$BC$57,37,FALSE) -> 0 | AP9: =VLOOKUP($A9,BJuillet!$A$8:$BC$57,39,FALSE) -> 0 | AQ9: =VLOOKUP($A9,Bilan!$A$8:$BE$57,41,FALSE) -> 5.533333333 | AT9: =IFERROR(SUM((VLOOKUP(Juillet!A9,Données!$H$6:$J$53,3,TRUE)/12)*7),"") -> 35.20821759
A10: =Données!$H7 -> B | AL10: =VLOOKUP($A10,BJuillet!$A$8:$BC$57,35,FALSE) -> 0 | AM10: =VLOOKUP($A10,BJuillet!$A$8:$BC$57,36,FALSE) -> 0 | AN10: =VLOOKUP($A10,BJuillet!$A$8:$BC$57,37,FALSE) -> 0 | AP10: =VLOOKUP($A10,BJuillet!$A$8:$BC$57,39,FALSE) -> 0 | AQ10: =VLOOKUP($A10,Bilan!$A$8:$BE$57,41,FALSE) -> 0 | AT10: =IFERROR(SUM((VLOOKUP(Juillet!A10,Données!$H$6:$J$53,3,TRUE)/12)*7),"") -> 
A11: =Données!$H8 -> L | AL11: =VLOOKUP($A11,BJuillet!$A$8:$BC$57,35,FALSE) -> 0 | AM11: =VLOOKUP($A11,BJuillet!$A$8:$BC$57,36,FALSE) -> 0 | AN11: =VLOOKUP($A11,BJuillet!$A$8:$BC$57,37,FALSE) -> 0 | AP11: =VLOOKUP($A11,BJuillet!$A$8:$BC$57,39,FALSE) -> 0 | AQ11: =VLOOKUP($A11,Bilan!$A$8:$BE$57,41,FALSE) -> 0 | AT11: =IFERROR(SUM((VLOOKUP(Juillet!A11,Données!$H$6:$J$53,3,TRUE)/12)*7),"") -> 0
A12: =Données!$H9 -> L | AL12: =VLOOKUP($A12,BJuillet!$A$8:$BC$57,35,FALSE) -> 0 | AM12: =VLOOKUP($A12,BJuillet!$A$8:$BC$57,36,FALSE) -> 0 | AN12: =VLOOKUP($A12,BJuillet!$A$8:$BC$57,37,FALSE) -> 0 | AP12: =VLOOKUP($A12,BJuillet!$A$8:$BC$57,39,FALSE) -> 0 | AQ12: =VLOOKUP($A12,Bilan!$A$8:$BE$57,41,FALSE) -> 0 | AT12: =IFERROR(SUM((VLOOKUP(Juillet!A12,Données!$H$6:$J$53,3,TRUE)/12)*7),"") -> 0
A13: =Données!$H10 -> 0 | AL13: =VLOOKUP($A13,BJuillet!$A$8:$BC$57,35,FALSE) -> 0 | AM13: =VLOOKUP($A13,BJuillet!$A$8:$BC$57,36,FALSE) -> 0 | AN13: =VLOOKUP($A13,BJuillet!$A$8:$BC$57,37,FALSE) -> 0 | AP13: =VLOOKUP($A13,BJuillet!$A$8:$BC$57,39,FALSE) -> 0 | AQ13: =VLOOKUP($A13,Bilan!$A$8:$BE$57,41,FALSE) -> 0 | AT13: =IFERROR(SUM((VLOOKUP(Juillet!A13,Données!$H$6:$J$53,3,TRUE)/12)*7),"") -> 
A14: =Données!$H11 -> 0 | AL14: =VLOOKUP($A14,BJuillet!$A$8:$BC$57,35,FALSE) -> 0 | AM14: =VLOOKUP($A14,BJuillet!$A$8:$BC$57,36,FALSE) -> 0 | AN14: =VLOOKUP($A14,BJuillet!$A$8:$BC$57,37,FALSE) -> 0 | AP14: =VLOOKUP($A14,BJuillet!$A$8:$BC$57,39,FALSE) -> 0 | AQ14: =VLOOKUP($A14,Bilan!$A$8:$BE$57,41,FALSE) -> 0 | AT14: =IFERROR(SUM((VLOOKUP(Juillet!A14,Données!$H$6:$J$53,3,TRUE)/12)*7),"") -> 
A15: =Données!$H12 -> 0 | AL15: =VLOOKUP($A15,BJuillet!$A$8:$BC$57,35,FALSE) -> 0 | AM15: =VLOOKUP($A15,BJuillet!$A$8:$BC$57,36,FALSE) -> 0 | AN15: =VLOOKUP($A15,BJuillet!$A$8:$BC$57,37,FALSE) -> 0 | AP15: =VLOOKUP($A15,BJuillet!$A$8:$BC$57,39,FALSE) -> 0 | AQ15: =VLOOKUP($A15,Bilan!$A$8:$BE$57,41,FALSE) -> 0 | AT15: =IFERROR(SUM((VLOOKUP(Juillet!A15,Données!$H$6:$J$53,3,TRUE)/12)*7),"") -> 
A16: =Données!$H13 -> 0 | AL16: =VLOOKUP($A16,BJuillet!$A$8:$BC$57,35,FALSE) -> 0 | AM16: =VLOOKUP($A16,BJuillet!$A$8:$BC$57,36,FALSE) -> 0 | AN16: =VLOOKUP($A16,BJuillet!$A$8:$BC$57,37,FALSE) -> 0 | AP16: =VLOOKUP($A16,BJuillet!$A$8:$BC$57,39,FALSE) -> 0 | AQ16: =VLOOKUP($A16,Bilan!$A$8:$BE$57,41,FALSE) -> 0 | AT16: =IFERROR(SUM((VLOOKUP(Juillet!A16,Données!$H$6:$J$53,3,TRUE)/12)*7),"") -> 
A17: =Données!$H14 -> 0 | AL17: =VLOOKUP($A17,BJuillet!$A$8:$BC$57,35,FALSE) -> 0 | AM17: =VLOOKUP($A17,BJuillet!$A$8:$BC$57,36,FALSE) -> 0 | AN17: =VLOOKUP($A17,BJuillet!$A$8:$BC$57,37,FALSE) -> 0 | AP17: =VLOOKUP($A17,BJuillet!$A$8:$BC$57,39,FALSE) -> 0 | AQ17: =VLOOKUP($A17,Bilan!$A$8:$BE$57,41,FALSE) -> 0 | AT17: =IFERROR(SUM((VLOOKUP(Juillet!A17,Données!$H$6:$J$53,3,TRUE)/12)*7),"") -> 
A18: =Données!$H15 -> 0 | AL18: =VLOOKUP($A18,BJuillet!$A$8:$BC$57,35,FALSE) -> 0 | AM18: =VLOOKUP($A18,BJuillet!$A$8:$BC$57,36,FALSE) -> 0 | AN18: =VLOOKUP($A18,BJuillet!$A$8:$BC$57,37,FALSE) -> 0 | AP18: =VLOOKUP($A18,BJuillet!$A$8:$BC$57,39,FALSE) -> 0 | AQ18: =VLOOKUP($A18,Bilan!$A$8:$BE$57,41,FALSE) -> 0 | AT18: =IFERROR(SUM((VLOOKUP(Juillet!A18,Données!$H$6:$J$53,3,TRUE)/12)*7),"") -> 
A19: =Données!$H16 -> 0 | AL19: =VLOOKUP($A19,BJuillet!$A$8:$BC$57,35,FALSE) -> 0 | AM19: =VLOOKUP($A19,BJuillet!$A$8:$BC$57,36,FALSE) -> 0 | AN19: =VLOOKUP($A19,BJuillet!$A$8:$BC$57,37,FALSE) -> 0 | AP19: =VLOOKUP($A19,BJuillet!$A$8:$BC$57,39,FALSE) -> 0 | AQ19: =VLOOKUP($A19,Bilan!$A$8:$BE$57,41,FALSE) -> 0 | AT19: =IFERROR(SUM((VLOOKUP(Juillet!A19,Données!$H$6:$J$53,3,TRUE)/12)*7),"") -> 
A20: =Données!$H17 -> 0 | AL20: =VLOOKUP($A20,BJuillet!$A$8:$BC$57,35,FALSE) -> 0 | AM20: =VLOOKUP($A20,BJuillet!$A$8:$BC$57,36,FALSE) -> 0 | AN20: =VLOOKUP($A20,BJuillet!$A$8:$BC$57,37,FALSE) -> 0 | AP20: =VLOOKUP($A20,BJuillet!$A$8:$BC$57,39,FALSE) -> 0 | AQ20: =VLOOKUP($A20,Bilan!$A$8:$BE$57,41,FALSE) -> 0 | AT20: =IFERROR(SUM((VLOOKUP(Juillet!A20,Données!$H$6:$J$53,3,TRUE)/12)*7),"") -> 
A21: =Données!$H18 -> 0 | AL21: =VLOOKUP($A21,BJuillet!$A$8:$BC$57,35,FALSE) -> 0 | AM21: =VLOOKUP($A21,BJuillet!$A$8:$BC$57,36,FALSE) -> 0 | AN21: =VLOOKUP($A21,BJuillet!$A$8:$BC$57,37,FALSE) -> 0 | AP21: =VLOOKUP($A21,BJuillet!$A$8:$BC$57,39,FALSE) -> 0 | AQ21: =VLOOKUP($A21,Bilan!$A$8:$BE$57,41,FALSE) -> 0 | AT21: =IFERROR(SUM((VLOOKUP(Juillet!A21,Données!$H$6:$J$53,3,TRUE)/12)*7),"") -> 
A22: =Données!$H19 -> 0 | AL22: =VLOOKUP($A22,BJuillet!$A$8:$BC$57,35,FALSE) -> 0 | AM22: =VLOOKUP($A22,BJuillet!$A$8:$BC$57,36,FALSE) -> 0 | AN22: =VLOOKUP($A22,BJuillet!$A$8:$BC$57,37,FALSE) -> 0 | AP22: =VLOOKUP($A22,BJuillet!$A$8:$BC$57,39,FALSE) -> 0 | AQ22: =VLOOKUP($A22,Bilan!$A$8:$BE$57,41,FALSE) -> 0 | AT22: =IFERROR(SUM((VLOOKUP(Juillet!A22,Données!$H$6:$J$53,3,TRUE)/12)*7),"") -> 
A23: =Données!$H20 -> 0 | AL23: =VLOOKUP($A23,BJuillet!$A$8:$BC$57,35,FALSE) -> 0 | AM23: =VLOOKUP($A23,BJuillet!$A$8:$BC$57,36,FALSE) -> 0 | AN23: =VLOOKUP($A23,BJuillet!$A$8:$BC$57,37,FALSE) -> 0 | AP23: =VLOOKUP($A23,BJuillet!$A$8:$BC$57,39,FALSE) -> 0 | AQ23: =VLOOKUP($A23,Bilan!$A$8:$BE$57,41,FALSE) -> 0 | AT23: =IFERROR(SUM((VLOOKUP(Juillet!A23,Données!$H$6:$J$53,3,TRUE)/12)*7),"") -> 
A24: =Données!$H21 -> 0 | AL24: =VLOOKUP($A24,BJuillet!$A$8:$BC$57,35,FALSE) -> 0 | AM24: =VLOOKUP($A24,BJuillet!$A$8:$BC$57,36,FALSE) -> 0 | AN24: =VLOOKUP($A24,BJuillet!$A$8:$BC$57,37,FALSE) -> 0 | AP24: =VLOOKUP($A24,BJuillet!$A$8:$BC$57,39,FALSE) -> 0 | AQ24: =VLOOKUP($A24,Bilan!$A$8:$BE$57,41,FALSE) -> 0 | AT24: =IFERROR(SUM((VLOOKUP(Juillet!A24,Données!$H$6:$J$53,3,TRUE)/12)*7),"") -> 
A25: =Données!$H22 -> Equipe de nuit
A26: =Données!$H23 -> 0 | AL26: =VLOOKUP($A26,BJuillet!$A$8:$BC$57,35,FALSE) -> 0 | AM26: =VLOOKUP($A26,BJuillet!$A$8:$BC$57,36,FALSE) -> 0 | AN26: =VLOOKUP($A26,BJuillet!$A$8:$BC$57,37,FALSE) -> 0 | AP26: =VLOOKUP($A26,BJuillet!$A$8:$BC$57,39,FALSE) -> 0 | AQ26: =VLOOKUP($A26,Bilan!$A$8:$BE$57,41,FALSE) -> 0 | AT26: =IFERROR(SUM((VLOOKUP(Juillet!A26,Données!$H$6:$J$53,3,TRUE)/12)*7),"") -> 
A27: =Données!$H24 -> 0 | AL27: =VLOOKUP($A27,BJuillet!$A$8:$BC$57,35,FALSE) -> 0 | AM27: =VLOOKUP($A27,BJuillet!$A$8:$BC$57,36,FALSE) -> 0 | AN27: =VLOOKUP($A27,BJuillet!$A$8:$BC$57,37,FALSE) -> 0 | AP27: =VLOOKUP($A27,BJuillet!$A$8:$BC$57,39,FALSE) -> 0 | AQ27: =VLOOKUP($A27,Bilan!$A$8:$BE$57,41,FALSE) -> 0 | AT27: =IFERROR(SUM((VLOOKUP(Juillet!A27,Données!$H$6:$J$53,3,TRUE)/12)*7),"") -> 
A28: =Données!$H25 -> 0 | AL28: =VLOOKUP($A28,BJuillet!$A$8:$BC$57,35,FALSE) -> 0 | AM28: =VLOOKUP($A28,BJuillet!$A$8:$BC$57,36,FALSE) -> 0 | AN28: =VLOOKUP($A28,BJuillet!$A$8:$BC$57,37,FALSE) -> 0 | AP28: =VLOOKUP($A28,BJuillet!$A$8:$BC$57,39,FALSE) -> 0 | AQ28: =VLOOKUP($A28,Bilan!$A$8:$BE$57,41,FALSE) -> 0 | AT28: =IFERROR(SUM((VLOOKUP(Juillet!A28,Données!$H$6:$J$53,3,TRUE)/12)*7),"") -> 
A29: =Données!$H26 -> 0 | AL29: =VLOOKUP($A29,BJuillet!$A$8:$BC$57,35,FALSE) -> 0 | AM29: =VLOOKUP($A29,BJuillet!$A$8:$BC$57,36,FALSE) -> 0 | AN29: =VLOOKUP($A29,BJuillet!$A$8:$BC$57,37,FALSE) -> 0 | AP29: =VLOOKUP($A29,BJuillet!$A$8:$BC$57,39,FALSE) -> 0 | AQ29: =VLOOKUP($A29,Bilan!$A$8:$BE$57,41,FALSE) -> 0 | AT29: =IFERROR(SUM((VLOOKUP(Juillet!A29,Données!$H$6:$J$53,3,TRUE)/12)*7),"") -> 
A30: =Données!$H27 -> 0 | AL30: =VLOOKUP($A30,BJuillet!$A$8:$BC$57,35,FALSE) -> 0 | AM30: =VLOOKUP($A30,BJuillet!$A$8:$BC$57,36,FALSE) -> 0 | AN30: =VLOOKUP($A30,BJuillet!$A$8:$BC$57,37,FALSE) -> 0 | AP30: =VLOOKUP($A30,BJuillet!$A$8:$BC$57,39,FALSE) -> 0 | AQ30: =VLOOKUP($A30,Bilan!$A$8:$BE$57,41,FALSE) -> 0 | AT30: =IFERROR(SUM((VLOOKUP(Juillet!A30,Données!$H$6:$J$53,3,TRUE)/12)*7),"") -> 
A31: =Données!$H28 -> 0 | AL31: =VLOOKUP($A31,BJuillet!$A$8:$BC$57,35,FALSE) -> 0 | AM31: =VLOOKUP($A31,BJuillet!$A$8:$BC$57,36,FALSE) -> 0 | AN31: =VLOOKUP($A31,BJuillet!$A$8:$BC$57,37,FALSE) -> 0 | AP31: =VLOOKUP($A31,BJuillet!$A$8:$BC$57,39,FALSE) -> 0 | AQ31: =VLOOKUP($A31,Bilan!$A$8:$BE$57,41,FALSE) -> 0 | AT31: =IFERROR(SUM((VLOOKUP(Juillet!A31,Données!$H$6:$J$53,3,TRUE)/12)*7),"") -> 
A32: =Données!$H29 -> 0 | AL32: =VLOOKUP($A32,BJuillet!$A$8:$BC$57,35,FALSE) -> 0 | AM32: =VLOOKUP($A32,BJuillet!$A$8:$BC$57,36,FALSE) -> 0 | AN32: =VLOOKUP($A32,BJuillet!$A$8:$BC$57,37,FALSE) -> 0 | AP32: =VLOOKUP($A32,BJuillet!$A$8:$BC$57,39,FALSE) -> 0 | AQ32: =VLOOKUP($A32,Bilan!$A$8:$BE$57,41,FALSE) -> 0 | AT32: =IFERROR(SUM((VLOOKUP(Juillet!A32,Données!$H$6:$J$53,3,TRUE)/12)*7),"") -> 
A33: =Données!$H30 -> 0 | AL33: =VLOOKUP($A33,BJuillet!$A$8:$BC$57,35,FALSE) -> 0 | AM33: =VLOOKUP($A33,BJuillet!$A$8:$BC$57,36,FALSE) -> 0 | AN33: =VLOOKUP($A33,BJuillet!$A$8:$BC$57,37,FALSE) -> 0 | AP33: =VLOOKUP($A33,BJuillet!$A$8:$BC$57,39,FALSE) -> 0 | AQ33: =VLOOKUP($A33,Bilan!$A$8:$BE$57,41,FALSE) -> 0 | AT33: =IFERROR(SUM((VLOOKUP(Juillet!A33,Données!$H$6:$J$53,3,TRUE)/12)*7),"") -> 
A34: =Données!$H31 -> 0 | AL34: =VLOOKUP($A34,BJuillet!$A$8:$BC$57,35,FALSE) -> 0 | AM34: =VLOOKUP($A34,BJuillet!$A$8:$BC$57,36,FALSE) -> 0 | AN34: =VLOOKUP($A34,BJuillet!$A$8:$BC$57,37,FALSE) -> 0 | AP34: =VLOOKUP($A34,BJuillet!$A$8:$BC$57,39,FALSE) -> 0 | AQ34: =VLOOKUP($A34,Bilan!$A$8:$BE$57,41,FALSE) -> 0 | AT34: =IFERROR(SUM((VLOOKUP(Juillet!A34,Données!$H$6:$J$53,3,TRUE)/12)*7),"") -> 
A35: =Données!$H32 -> Maitresse de maison
A36: =Données!$H33 -> 0 | AL36: =VLOOKUP($A36,BJuillet!$A$8:$BC$57,35,FALSE) -> 0 | AM36: =VLOOKUP($A36,BJuillet!$A$8:$BC$57,36,FALSE) -> 0 | AN36: =VLOOKUP($A36,BJuillet!$A$8:$BC$57,37,FALSE) -> 0 | AP36: =VLOOKUP($A36,BJuillet!$A$8:$BC$57,39,FALSE) -> 0 | AQ36: =VLOOKUP($A36,Bilan!$A$8:$BE$57,41,FALSE) -> 0 | AT36: =IFERROR(SUM((VLOOKUP(Juillet!A36,Données!$H$6:$J$53,3,TRUE)/12)*7),"") -> 
A37: =Données!$H34 -> 0 | AL37: =VLOOKUP($A37,BJuillet!$A$8:$BC$57,35,FALSE) -> 0 | AM37: =VLOOKUP($A37,BJuillet!$A$8:$BC$57,36,FALSE) -> 0 | AN37: =VLOOKUP($A37,BJuillet!$A$8:$BC$57,37,FALSE) -> 0 | AP37: =VLOOKUP($A37,BJuillet!$A$8:$BC$57,39,FALSE) -> 0 | AQ37: =VLOOKUP($A37,Bilan!$A$8:$BE$57,41,FALSE) -> 0 | AT37: =IFERROR(SUM((VLOOKUP(Juillet!A37,Données!$H$6:$J$53,3,TRUE)/12)*7),"") -> 
A38: =Données!$H35 -> 0 | AL38: =VLOOKUP($A38,BJuillet!$A$8:$BC$57,35,FALSE) -> 0 | AM38: =VLOOKUP($A38,BJuillet!$A$8:$BC$57,36,FALSE) -> 0 | AN38: =VLOOKUP($A38,BJuillet!$A$8:$BC$57,37,FALSE) -> 0 | AP38: =VLOOKUP($A38,BJuillet!$A$8:$BC$57,39,FALSE) -> 0 | AQ38: =VLOOKUP($A38,Bilan!$A$8:$BE$57,41,FALSE) -> 0 | AT38: =IFERROR(SUM((VLOOKUP(Juillet!A38,Données!$H$6:$J$53,3,TRUE)/12)*7),"") -> 
A39: =Données!$H36 -> 0 | AL39: =VLOOKUP($A39,BJuillet!$A$8:$BC$57,35,FALSE) -> 0 | AM39: =VLOOKUP($A39,BJuillet!$A$8:$BC$57,36,FALSE) -> 0 | AN39: =VLOOKUP($A39,BJuillet!$A$8:$BC$57,37,FALSE) -> 0 | AP39: =VLOOKUP($A39,BJuillet!$A$8:$BC$57,39,FALSE) -> 0 | AQ39: =VLOOKUP($A39,Bilan!$A$8:$BE$57,41,FALSE) -> 0 | AT39: =IFERROR(SUM((VLOOKUP(Juillet!A39,Données!$H$6:$J$53,3,TRUE)/12)*7),"") -> 
A40: =Données!$H37 -> 0 | AL40: =VLOOKUP($A40,BJuillet!$A$8:$BC$57,35,FALSE) -> 0 | AM40: =VLOOKUP($A40,BJuillet!$A$8:$BC$57,36,FALSE) -> 0 | AN40: =VLOOKUP($A40,BJuillet!$A$8:$BC$57,37,FALSE) -> 0 | AP40: =VLOOKUP($A40,BJuillet!$A$8:$BC$57,39,FALSE) -> 0 | AQ40: =VLOOKUP($A40,Bilan!$A$8:$BE$57,41,FALSE) -> 0 | AT40: =IFERROR(SUM((VLOOKUP(Juillet!A40,Données!$H$6:$J$53,3,TRUE)/12)*7),"") -> 
A41: =Données!$H38 -> 0 | AL41: =VLOOKUP($A41,BJuillet!$A$8:$BC$57,35,FALSE) -> 0 | AM41: =VLOOKUP($A41,BJuillet!$A$8:$BC$57,36,FALSE) -> 0 | AN41: =VLOOKUP($A41,BJuillet!$A$8:$BC$57,37,FALSE) -> 0 | AP41: =VLOOKUP($A41,BJuillet!$A$8:$BC$57,39,FALSE) -> 0 | AQ41: =VLOOKUP($A41,Bilan!$A$8:$BE$57,41,FALSE) -> 0 | AT41: =IFERROR(SUM((VLOOKUP(Juillet!A41,Données!$H$6:$J$53,3,TRUE)/12)*7),"") -> 
A42: =Données!$H39 -> 0 | AL42: =VLOOKUP($A42,BJuillet!$A$8:$BC$57,35,FALSE) -> 0 | AM42: =VLOOKUP($A42,BJuillet!$A$8:$BC$57,36,FALSE) -> 0 | AN42: =VLOOKUP($A42,BJuillet!$A$8:$BC$57,37,FALSE) -> 0 | AP42: =VLOOKUP($A42,BJuillet!$A$8:$BC$57,39,FALSE) -> 0 | AQ42: =VLOOKUP($A42,Bilan!$A$8:$BE$57,41,FALSE) -> 0 | AT42: =IFERROR(SUM((VLOOKUP(Juillet!A42,Données!$H$6:$J$53,3,TRUE)/12)*7),"") -> 
A43: =Données!$H40 -> 0 | AL43: =VLOOKUP($A43,BJuillet!$A$8:$BC$57,35,FALSE) -> 0 | AM43: =VLOOKUP($A43,BJuillet!$A$8:$BC$57,36,FALSE) -> 0 | AN43: =VLOOKUP($A43,BJuillet!$A$8:$BC$57,37,FALSE) -> 0 | AP43: =VLOOKUP($A43,BJuillet!$A$8:$BC$57,39,FALSE) -> 0 | AQ43: =VLOOKUP($A43,Bilan!$A$8:$BE$57,41,FALSE) -> 0 | AT43: =IFERROR(SUM((VLOOKUP(Juillet!A43,Données!$H$6:$J$53,3,TRUE)/12)*7),"") -> 
A44: =Données!$H41 -> 0 | AL44: =VLOOKUP($A44,BJuillet!$A$8:$BC$57,35,FALSE) -> 0 | AM44: =VLOOKUP($A44,BJuillet!$A$8:$BC$57,36,FALSE) -> 0 | AN44: =VLOOKUP($A44,BJuillet!$A$8:$BC$57,37,FALSE) -> 0 | AP44: =VLOOKUP($A44,BJuillet!$A$8:$BC$57,39,FALSE) -> 0 | AQ44: =VLOOKUP($A44,Bilan!$A$8:$BE$57,41,FALSE) -> 0 | AT44: =IFERROR(SUM((VLOOKUP(Juillet!A44,Données!$H$6:$J$53,3,TRUE)/12)*7),"") -> 
A45: =Données!$H42 -> Psychologue
A46: =Données!$H43 -> 0 | AL46: =VLOOKUP($A46,BJuillet!$A$8:$BC$57,35,FALSE) -> 0 | AM46: =VLOOKUP($A46,BJuillet!$A$8:$BC$57,36,FALSE) -> 0 | AN46: =VLOOKUP($A46,BJuillet!$A$8:$BC$57,37,FALSE) -> 0 | AP46: =VLOOKUP($A46,BJuillet!$A$8:$BC$57,39,FALSE) -> 0 | AQ46: =VLOOKUP($A46,Bilan!$A$8:$BE$57,41,FALSE) -> 0 | AT46: =IFERROR(SUM((VLOOKUP(Juillet!A46,Données!$H$6:$J$53,3,TRUE)/12)*7),"") -> 
A47: =Données!$H44 -> 0 | AL47: =VLOOKUP($A47,BJuillet!$A$8:$BC$57,35,FALSE) -> 0 | AM47: =VLOOKUP($A47,BJuillet!$A$8:$BC$57,36,FALSE) -> 0 | AN47: =VLOOKUP($A47,BJuillet!$A$8:$BC$57,37,FALSE) -> 0 | AP47: =VLOOKUP($A47,BJuillet!$A$8:$BC$57,39,FALSE) -> 0 | AQ47: =VLOOKUP($A47,Bilan!$A$8:$BE$57,41,FALSE) -> 0 | AT47: =IFERROR(SUM((VLOOKUP(Juillet!A47,Données!$H$6:$J$53,3,TRUE)/12)*7),"") -> 
A48: =Données!$H45 -> 0 | AL48: =VLOOKUP($A48,BJuillet!$A$8:$BC$57,35,FALSE) -> 0 | AM48: =VLOOKUP($A48,BJuillet!$A$8:$BC$57,36,FALSE) -> 0 | AN48: =VLOOKUP($A48,BJuillet!$A$8:$BC$57,37,FALSE) -> 0 | AP48: =VLOOKUP($A48,BJuillet!$A$8:$BC$57,39,FALSE) -> 0 | AQ48: =VLOOKUP($A48,Bilan!$A$8:$BE$57,41,FALSE) -> 0 | AT48: =IFERROR(SUM((VLOOKUP(Juillet!A48,Données!$H$6:$J$53,3,TRUE)/12)*7),"") -> 
A49: =Données!$H46 -> Coordinatrice
A50: =Données!$H47 -> 0 | AL50: =VLOOKUP($A50,BJuillet!$A$8:$BC$57,35,FALSE) -> 0 | AM50: =VLOOKUP($A50,BJuillet!$A$8:$BC$57,36,FALSE) -> 0 | AN50: =VLOOKUP($A50,BJuillet!$A$8:$BC$57,37,FALSE) -> 0 | AP50: =VLOOKUP($A50,BJuillet!$A$8:$BC$57,39,FALSE) -> 0 | AQ50: =VLOOKUP($A50,Bilan!$A$8:$BE$57,41,FALSE) -> 0 | AT50: =IFERROR(SUM((VLOOKUP(Juillet!A50,Données!$H$6:$J$53,3,TRUE)/12)*7),"") -> 
A51: =Données!$H48 -> 0 | AL51: =VLOOKUP($A51,BJuillet!$A$8:$BC$57,35,FALSE) -> 0 | AM51: =VLOOKUP($A51,BJuillet!$A$8:$BC$57,36,FALSE) -> 0 | AN51: =VLOOKUP($A51,BJuillet!$A$8:$BC$57,37,FALSE) -> 0 | AP51: =VLOOKUP($A51,BJuillet!$A$8:$BC$57,39,FALSE) -> 0 | AQ51: =VLOOKUP($A51,Bilan!$A$8:$BE$57,41,FALSE) -> 0 | AT51: =IFERROR(SUM((VLOOKUP(Juillet!A51,Données!$H$6:$J$53,3,TRUE)/12)*7),"") -> 
A52: =Données!$H49 -> 0 | AL52: =VLOOKUP($A52,BJuillet!$A$8:$BC$57,35,FALSE) -> 0 | AM52: =VLOOKUP($A52,BJuillet!$A$8:$BC$57,36,FALSE) -> 0 | AN52: =VLOOKUP($A52,BJuillet!$A$8:$BC$57,37,FALSE) -> 0 | AP52: =VLOOKUP($A52,BJuillet!$A$8:$BC$57,39,FALSE) -> 0 | AQ52: =VLOOKUP($A52,Bilan!$A$8:$BE$57,41,FALSE) -> 0 | AT52: =IFERROR(SUM((VLOOKUP(Juillet!A52,Données!$H$6:$J$53,3,TRUE)/12)*7),"") -> 
A53: =Données!$H50 -> 0 | AL53: =VLOOKUP($A53,BJuillet!$A$8:$BC$57,35,FALSE) -> 0 | AM53: =VLOOKUP($A53,BJuillet!$A$8:$BC$57,36,FALSE) -> 0 | AN53: =VLOOKUP($A53,BJuillet!$A$8:$BC$57,37,FALSE) -> 0 | AP53: =VLOOKUP($A53,BJuillet!$A$8:$BC$57,39,FALSE) -> 0 | AQ53: =VLOOKUP($A53,Bilan!$A$8:$BE$57,41,FALSE) -> 0 | AT53: =IFERROR(SUM((VLOOKUP(Juillet!A53,Données!$H$6:$J$53,3,TRUE)/12)*7),"") -> 
A54: =Données!$H51 -> 0 | AL54: =VLOOKUP($A54,BJuillet!$A$8:$BC$57,35,FALSE) -> 0 | AM54: =VLOOKUP($A54,BJuillet!$A$8:$BC$57,36,FALSE) -> 0 | AN54: =VLOOKUP($A54,BJuillet!$A$8:$BC$57,37,FALSE) -> 0 | AP54: =VLOOKUP($A54,BJuillet!$A$8:$BC$57,39,FALSE) -> 0 | AQ54: =VLOOKUP($A54,Bilan!$A$8:$BE$57,41,FALSE) -> 0 | AT54: =IFERROR(SUM((VLOOKUP(Juillet!A54,Données!$H$6:$J$53,3,TRUE)/12)*7),"") -> 
A55: =Données!$H52 -> Chef de service
A56: =Données!$H53 -> 0 | AL56: =VLOOKUP($A56,BJuillet!$A$8:$BC$57,35,FALSE) -> 0 | AM56: =VLOOKUP($A56,BJuillet!$A$8:$BC$57,36,FALSE) -> 0 | AN56: =VLOOKUP($A56,BJuillet!$A$8:$BC$57,37,FALSE) -> 0 | AP56: =VLOOKUP($A56,BJuillet!$A$8:$BC$57,39,FALSE) -> 0 | AQ56: =VLOOKUP($A56,Bilan!$A$8:$BE$57,41,FALSE) -> 0 | AT56: =IFERROR(SUM((VLOOKUP(Juillet!A56,Données!$H$6:$J$53,3,TRUE)/12)*7),"") -> 
B58: =Données!$A3 -> S | C58: = | D58: =IF(ISBLANK(Données!$C3),TEXT(Données!$B3,"hh:mm"),TEXT(Données!$B3,"hh:mm")&" : "&TEXT(Données!$C3,"hh:mm")) -> 13:30 : 21:30 | H58: =Données!$A7 -> J+ | I58: = | J58: =IF(ISBLANK(Données!$C7),TEXT(Données!$B7,"hh:mm"),TEXT(Données!$B7,"hh:mm")&" : "&TEXT(Données!$C7,"hh:mm")) -> 09:00 : 21:00 | N58: =Données!$A10 -> N- | O58: = | P58: =IF(ISBLANK(Données!$C10),TEXT(Données!$B10,"hh:mm"),TEXT(Données!$B10,"hh:mm")&" : "&TEXT(Données!$C10,"hh:mm")) -> 20:45 : 07:15 | T58: =Données!$A14 -> AT | U58: = | V58: =IF(ISBLANK(Données!$C14),TEXT(Données!$B14,"hh:mm"),TEXT(Données!$B14,"hh:mm")&" : "&TEXT(Données!$C14,"hh:mm")) -> AT : AT | Z58: =Données!$A18 -> CA | AA58: = | AB58: =IF(ISBLANK(Données!$C18),TEXT(Données!$B18,"hh:mm"),TEXT(Données!$B18,"hh:mm")&" : "&TEXT(Données!$C18,"hh:mm")) -> CA : CA
B59: =Données!$A4 -> M- | C59: = | D59: =IF(ISBLANK(Données!$C4),TEXT(Données!$B4,"hh:mm"),TEXT(Données!$B4,"hh:mm")&" : "&TEXT(Données!$C4,"hh:mm")) -> 07:00 : 15:00 | H59: =Données!$A8 -> RS | I59: = | J59: =IF(ISBLANK(Données!$C8),TEXT(Données!$B8,"hh:mm"),TEXT(Données!$B8,"hh:mm")&" : "&TEXT(Données!$C8,"hh:mm")) -> 09:30 : 21:30 | N59: =Données!$A11 -> N+ | O59: = | P59: =IF(ISBLANK(Données!$C11),TEXT(Données!$B11,"hh:mm"),TEXT(Données!$B11,"hh:mm")&" : "&TEXT(Données!$C11,"hh:mm")) -> 19:15 : 07:15 | T59: =Données!$A15 -> AM | U59: = | V59: =IF(ISBLANK(Données!$C15),TEXT(Données!$B15,"hh:mm"),TEXT(Données!$B15,"hh:mm")&" : "&TEXT(Données!$C15,"hh:mm")) -> AM : AM | Z59: =Données!$A19 -> CA17 | AA59: = | AB59: =IF(ISBLANK(Données!$C19),TEXT(Données!$B19,"hh:mm"),TEXT(Données!$B19,"hh:mm")&" : "&TEXT(Données!$C19,"hh:mm")) -> CA17 : CA17
B60: =Données!$A5 -> M | C60: = | D60: =IF(ISBLANK(Données!$C5),TEXT(Données!$B5,"hh:mm"),TEXT(Données!$B5,"hh:mm")&" : "&TEXT(Données!$C5,"hh:mm")) -> 08:00 : 15:00 | H60: =Données!$A9 -> N | I60: = | J60: =IF(ISBLANK(Données!$C9),TEXT(Données!$B9,"hh:mm"),TEXT(Données!$B9,"hh:mm")&" : "&TEXT(Données!$C9,"hh:mm")) -> 20:45 : 08:15 | N60: =Données!$A12 -> JS | O60: = | P60: =IF(ISBLANK(Données!$C12),TEXT(Données!$B12,"hh:mm"),TEXT(Données!$B12,"hh:mm")&" : "&TEXT(Données!$C12,"hh:mm")) -> 08:00 : 19:00 | T60: =Données!$A16 -> EM | U60: = | V60: =IF(ISBLANK(Données!$C16),TEXT(Données!$B16,"hh:mm"),TEXT(Données!$B16,"hh:mm")&" : "&TEXT(Données!$C16,"hh:mm")) -> EM : EM | Z60: =Données!$A20 -> REC | AA60: = | AB60: =IF(ISBLANK(Données!$C20),TEXT(Données!$B20,"hh:mm"),TEXT(Données!$B20,"hh:mm")&" : "&TEXT(Données!$C20,"hh:mm")) -> REC : REC
B61: =Données!$A6 -> J | C61: = | D61: =IF(ISBLANK(Données!$C6),TEXT(Données!$B6,"hh:mm"),TEXT(Données!$B6,"hh:mm")&" : "&TEXT(Données!$C6,"hh:mm")) -> 09:00 : 16:30 | H61: =Données!$A10 -> N- | I61: = | J61: =IF(ISBLANK(Données!$C10),TEXT(Données!$B10,"hh:mm"),TEXT(Données!$B10,"hh:mm")&" : "&TEXT(Données!$C10,"hh:mm")) -> 20:45 : 07:15 | N61: =Données!$A13 -> SYN | O61: = | P61: =IF(ISBLANK(Données!$C13),TEXT(Données!$B13,"hh:mm"),TEXT(Données!$B13,"hh:mm")&" : "&TEXT(Données!$C13,"hh:mm")) -> Syn : Syn | T61: =Données!$A17 -> CE | U61: = | V61: =IF(ISBLANK(Données!$C17),TEXT(Données!$B17,"hh:mm"),TEXT(Données!$B17,"hh:mm")&" : "&TEXT(Données!$C17,"hh:mm")) -> CE : CE | Z61: =Données!$A21 -> PL | AA61: = | AB61: =IF(ISBLANK(Données!$C21),TEXT(Données!$B21,"hh:mm"),TEXT(Données!$B21,"hh:mm")&" : "&TEXT(Données!$C21,"hh:mm")) -> PL : PL

Sheet Aout
B2: =DATE(An,Aout,B7) -> 2018-08-01 | C2: 2018-08-02 | D2: 2018-08-03 | E2: 2018-08-04 | F2: 2018-08-05 | G2: 2018-08-06 | H2: 2018-08-07 | I2: 2018-08-08 | J2: 2018-08-09 | K2: 2018-08-10 | L2: 2018-08-11 | M2: 2018-08-12 | N2: 2018-08-13 | O2: 2018-08-14 | P2: 2018-08-15 | Q2: 2018-08-16 | R2: 2018-08-17 | S2: 2018-08-18 | T2: 2018-08-19 | U2: 2018-08-20 | V2: 2018-08-21 | W2: 2018-08-22 | X2: 2018-08-23 | Y2: 2018-08-24 | Z2: 2018-08-25 | AA2: 2018-08-26 | AB2: 2018-08-27 | AC2: 2018-08-28 | AD2: 2018-08-29 | AE2: 2018-08-30 | AF2: 2018-08-31 | AI2: Pour remplir | AJ2: penser | AO2: =IF(ISNUMBER(AO7),DATE(An,Aout,AO7),"") ->  | AP2: =IF(ISNUMBER(AP7),DATE(An,Aout,AP7),"") -> 
A3: =IF(Données!$L$5="","Service",Données!$L$5) -> Service | K3: Mois d'Aout | O3: =An -> 2018 | AI3: à mettre dans le format:
AI4: "heures":"Minutes" | AT4: Masse horraire previsionnel
AI5: Heures sup | AJ5: Heures sup | AL5: Indications | AM5: Indications | AN5: Indications | AP5: Total
A6: Jours | B6: =PROPER(LEFT(TEXT(DATE(An,Aout,B7),"jjj"),1)) -> M | C6: J | D6: V | E6: S | F6: D | G6: L | H6: M | I6: M | J6: J | K6: V | L6: S | M6: D | N6: L | O6: M | P6: M | Q6: J | R6: V | S6: S | T6: D | U6: L | V6: M | W6: M | X6: J | Y6: V | Z6: S | AA6: D | AB6: L | AC6: M | AD6: M | AE6: J | AF6: V | AI6: avant 21h | AJ6: après 21h | AL6: Heures | AM6: Heures nuit | AN6: Heures | AP6: Heures | AQ6: Heures
B7: =A7+1 -> 1 | C7: 2 | D7: 3 | E7: 4 | F7: 5 | G7: 6 | H7: 7 | I7: 8 | J7: 9 | K7: 10 | L7: 11 | M7: 12 | N7: 13 | O7: 14 | P7: 15 | Q7: 16 | R7: 17 | S7: 18 | T7: 19 | U7: 20 | V7: 21 | W7: 22 | X7: 23 | Y7: 24 | Z7: 25 | AA7: 26 | AB7: 27 | AC7: 28 | AD7: 29 | AE7: 30 | AF7: =AE7+1 -> 31 | AI7: A remplir | AJ7: A remplir | AL7: Dimanche | AM7: Dimanche | AN7: après 21h | AP7: au mois | AQ7: a l'année | AT7: i
A8: Equipe de jour
A9: =Données!$H6 -> A | AL9: =VLOOKUP($A9,BAout!$A$8:$BC$57,35,FALSE) -> 0 | AM9: =VLOOKUP($A9,BAout!$A$8:$BC$57,36,FALSE) -> 0 | AN9: =VLOOKUP($A9,BAout!$A$8:$BC$57,37,FALSE) -> 0 | AP9: =VLOOKUP($A9,BAout!$A$8:$BC$57,39,FALSE) -> 0 | AQ9: =VLOOKUP($A9,Bilan!$A$8:$BE$57,41,FALSE) -> 5.533333333 | AT9: =IFERROR(SUM((VLOOKUP(Aout!A9,Données!$H$6:$J$53,3,TRUE)/12)*8),"") -> 40.23796296
A10: =Données!$H7 -> B | AL10: =VLOOKUP($A10,BAout!$A$8:$BC$57,35,FALSE) -> 0 | AM10: =VLOOKUP($A10,BAout!$A$8:$BC$57,36,FALSE) -> 0 | AN10: =VLOOKUP($A10,BAout!$A$8:$BC$57,37,FALSE) -> 0 | AP10: =VLOOKUP($A10,BAout!$A$8:$BC$57,39,FALSE) -> 0 | AQ10: =VLOOKUP($A10,Bilan!$A$8:$BE$57,41,FALSE) -> 0 | AT10: =IFERROR(SUM((VLOOKUP(Aout!A10,Données!$H$6:$J$53,3,TRUE)/12)*8),"") -> 
A11: =Données!$H8 -> L | AL11: =VLOOKUP($A11,BAout!$A$8:$BC$57,35,FALSE) -> 0 | AM11: =VLOOKUP($A11,BAout!$A$8:$BC$57,36,FALSE) -> 0 | AN11: =VLOOKUP($A11,BAout!$A$8:$BC$57,37,FALSE) -> 0 | AP11: =VLOOKUP($A11,BAout!$A$8:$BC$57,39,FALSE) -> 0 | AQ11: =VLOOKUP($A11,Bilan!$A$8:$BE$57,41,FALSE) -> 0 | AT11: =IFERROR(SUM((VLOOKUP(Aout!A11,Données!$H$6:$J$53,3,TRUE)/12)*8),"") -> 0
A12: =Données!$H9 -> L | AL12: =VLOOKUP($A12,BAout!$A$8:$BC$57,35,FALSE) -> 0 | AM12: =VLOOKUP($A12,BAout!$A$8:$BC$57,36,FALSE) -> 0 | AN12: =VLOOKUP($A12,BAout!$A$8:$BC$57,37,FALSE) -> 0 | AP12: =VLOOKUP($A12,BAout!$A$8:$BC$57,39,FALSE) -> 0 | AQ12: =VLOOKUP($A12,Bilan!$A$8:$BE$57,41,FALSE) -> 0 | AT12: =IFERROR(SUM((VLOOKUP(Aout!A12,Données!$H$6:$J$53,3,TRUE)/12)*8),"") -> 0
A13: =Données!$H10 -> 0 | AL13: =VLOOKUP($A13,BAout!$A$8:$BC$57,35,FALSE) -> 0 | AM13: =VLOOKUP($A13,BAout!$A$8:$BC$57,36,FALSE) -> 0 | AN13: =VLOOKUP($A13,BAout!$A$8:$BC$57,37,FALSE) -> 0 | AP13: =VLOOKUP($A13,BAout!$A$8:$BC$57,39,FALSE) -> 0 | AQ13: =VLOOKUP($A13,Bilan!$A$8:$BE$57,41,FALSE) -> 0 | AT13: =IFERROR(SUM((VLOOKUP(Aout!A13,Données!$H$6:$J$53,3,TRUE)/12)*8),"") -> 
A14: =Données!$H11 -> 0 | AL14: =VLOOKUP($A14,BAout!$A$8:$BC$57,35,FALSE) -> 0 | AM14: =VLOOKUP($A14,BAout!$A$8:$BC$57,36,FALSE) -> 0 | AN14: =VLOOKUP($A14,BAout!$A$8:$BC$57,37,FALSE) -> 0 | AP14: =VLOOKUP($A14,BAout!$A$8:$BC$57,39,FALSE) -> 0 | AQ14: =VLOOKUP($A14,Bilan!$A$8:$BE$57,41,FALSE) -> 0 | AT14: =IFERROR(SUM((VLOOKUP(Aout!A14,Données!$H$6:$J$53,3,TRUE)/12)*8),"") -> 
A15: =Données!$H12 -> 0 | AL15: =VLOOKUP($A15,BAout!$A$8:$BC$57,35,FALSE) -> 0 | AM15: =VLOOKUP($A15,BAout!$A$8:$BC$57,36,FALSE) -> 0 | AN15: =VLOOKUP($A15,BAout!$A$8:$BC$57,37,FALSE) -> 0 | AP15: =VLOOKUP($A15,BAout!$A$8:$BC$57,39,FALSE) -> 0 | AQ15: =VLOOKUP($A15,Bilan!$A$8:$BE$57,41,FALSE) -> 0 | AT15: =IFERROR(SUM((VLOOKUP(Aout!A15,Données!$H$6:$J$53,3,TRUE)/12)*8),"") -> 
A16: =Données!$H13 -> 0 | AL16: =VLOOKUP($A16,BAout!$A$8:$BC$57,35,FALSE) -> 0 | AM16: =VLOOKUP($A16,BAout!$A$8:$BC$57,36,FALSE) -> 0 | AN16: =VLOOKUP($A16,BAout!$A$8:$BC$57,37,FALSE) -> 0 | AP16: =VLOOKUP($A16,BAout!$A$8:$BC$57,39,FALSE) -> 0 | AQ16: =VLOOKUP($A16,Bilan!$A$8:$BE$57,41,FALSE) -> 0 | AT16: =IFERROR(SUM((VLOOKUP(Aout!A16,Données!$H$6:$J$53,3,TRUE)/12)*8),"") -> 
A17: =Données!$H14 -> 0 | AL17: =VLOOKUP($A17,BAout!$A$8:$BC$57,35,FALSE) -> 0 | AM17: =VLOOKUP($A17,BAout!$A$8:$BC$57,36,FALSE) -> 0 | AN17: =VLOOKUP($A17,BAout!$A$8:$BC$57,37,FALSE) -> 0 | AP17: =VLOOKUP($A17,BAout!$A$8:$BC$57,39,FALSE) -> 0 | AQ17: =VLOOKUP($A17,Bilan!$A$8:$BE$57,41,FALSE) -> 0 | AT17: =IFERROR(SUM((VLOOKUP(Aout!A17,Données!$H$6:$J$53,3,TRUE)/12)*8),"") -> 
A18: =Données!$H15 -> 0 | AL18: =VLOOKUP($A18,BAout!$A$8:$BC$57,35,FALSE) -> 0 | AM18: =VLOOKUP($A18,BAout!$A$8:$BC$57,36,FALSE) -> 0 | AN18: =VLOOKUP($A18,BAout!$A$8:$BC$57,37,FALSE) -> 0 | AP18: =VLOOKUP($A18,BAout!$A$8:$BC$57,39,FALSE) -> 0 | AQ18: =VLOOKUP($A18,Bilan!$A$8:$BE$57,41,FALSE) -> 0 | AT18: =IFERROR(SUM((VLOOKUP(Aout!A18,Données!$H$6:$J$53,3,TRUE)/12)*8),"") -> 
A19: =Données!$H16 -> 0 | AL19: =VLOOKUP($A19,BAout!$A$8:$BC$57,35,FALSE) -> 0 | AM19: =VLOOKUP($A19,BAout!$A$8:$BC$57,36,FALSE) -> 0 | AN19: =VLOOKUP($A19,BAout!$A$8:$BC$57,37,FALSE) -> 0 | AP19: =VLOOKUP($A19,BAout!$A$8:$BC$57,39,FALSE) -> 0 | AQ19: =VLOOKUP($A19,Bilan!$A$8:$BE$57,41,FALSE) -> 0 | AT19: =IFERROR(SUM((VLOOKUP(Aout!A19,Données!$H$6:$J$53,3,TRUE)/12)*8),"") -> 
A20: =Données!$H17 -> 0 | AL20: =VLOOKUP($A20,BAout!$A$8:$BC$57,35,FALSE) -> 0 | AM20: =VLOOKUP($A20,BAout!$A$8:$BC$57,36,FALSE) -> 0 | AN20: =VLOOKUP($A20,BAout!$A$8:$BC$57,37,FALSE) -> 0 | AP20: =VLOOKUP($A20,BAout!$A$8:$BC$57,39,FALSE) -> 0 | AQ20: =VLOOKUP($A20,Bilan!$A$8:$BE$57,41,FALSE) -> 0 | AT20: =IFERROR(SUM((VLOOKUP(Aout!A20,Données!$H$6:$J$53,3,TRUE)/12)*8),"") -> 
A21: =Données!$H18 -> 0 | AL21: =VLOOKUP($A21,BAout!$A$8:$BC$57,35,FALSE) -> 0 | AM21: =VLOOKUP($A21,BAout!$A$8:$BC$57,36,FALSE) -> 0 | AN21: =VLOOKUP($A21,BAout!$A$8:$BC$57,37,FALSE) -> 0 | AP21: =VLOOKUP($A21,BAout!$A$8:$BC$57,39,FALSE) -> 0 | AQ21: =VLOOKUP($A21,Bilan!$A$8:$BE$57,41,FALSE) -> 0 | AT21: =IFERROR(SUM((VLOOKUP(Aout!A21,Données!$H$6:$J$53,3,TRUE)/12)*8),"") -> 
A22: =Données!$H19 -> 0 | AL22: =VLOOKUP($A22,BAout!$A$8:$BC$57,35,FALSE) -> 0 | AM22: =VLOOKUP($A22,BAout!$A$8:$BC$57,36,FALSE) -> 0 | AN22: =VLOOKUP($A22,BAout!$A$8:$BC$57,37,FALSE) -> 0 | AP22: =VLOOKUP($A22,BAout!$A$8:$BC$57,39,FALSE) -> 0 | AQ22: =VLOOKUP($A22,Bilan!$A$8:$BE$57,41,FALSE) -> 0 | AT22: =IFERROR(SUM((VLOOKUP(Aout!A22,Données!$H$6:$J$53,3,TRUE)/12)*8),"") -> 
A23: =Données!$H20 -> 0 | AL23: =VLOOKUP($A23,BAout!$A$8:$BC$57,35,FALSE) -> 0 | AM23: =VLOOKUP($A23,BAout!$A$8:$BC$57,36,FALSE) -> 0 | AN23: =VLOOKUP($A23,BAout!$A$8:$BC$57,37,FALSE) -> 0 | AP23: =VLOOKUP($A23,BAout!$A$8:$BC$57,39,FALSE) -> 0 | AQ23: =VLOOKUP($A23,Bilan!$A$8:$BE$57,41,FALSE) -> 0 | AT23: =IFERROR(SUM((VLOOKUP(Aout!A23,Données!$H$6:$J$53,3,TRUE)/12)*8),"") -> 
A24: =Données!$H21 -> 0 | AL24: =VLOOKUP($A24,BAout!$A$8:$BC$57,35,FALSE) -> 0 | AM24: =VLOOKUP($A24,BAout!$A$8:$BC$57,36,FALSE) -> 0 | AN24: =VLOOKUP($A24,BAout!$A$8:$BC$57,37,FALSE) -> 0 | AP24: =VLOOKUP($A24,BAout!$A$8:$BC$57,39,FALSE) -> 0 | AQ24: =VLOOKUP($A24,Bilan!$A$8:$BE$57,41,FALSE) -> 0 | AT24: =IFERROR(SUM((VLOOKUP(Aout!A24,Données!$H$6:$J$53,3,TRUE)/12)*8),"") -> 
A25: =Données!$H22 -> Equipe de nuit
A26: =Données!$H23 -> 0 | AL26: =VLOOKUP($A26,BAout!$A$8:$BC$57,35,FALSE) -> 0 | AM26: =VLOOKUP($A26,BAout!$A$8:$BC$57,36,FALSE) -> 0 | AN26: =VLOOKUP($A26,BAout!$A$8:$BC$57,37,FALSE) -> 0 | AP26: =VLOOKUP($A26,BAout!$A$8:$BC$57,39,FALSE) -> 0 | AQ26: =VLOOKUP($A26,Bilan!$A$8:$BE$57,41,FALSE) -> 0 | AT26: =IFERROR(SUM((VLOOKUP(Aout!A26,Données!$H$6:$J$53,3,TRUE)/12)*8),"") -> 
A27: =Données!$H24 -> 0 | AL27: =VLOOKUP($A27,BAout!$A$8:$BC$57,35,FALSE) -> 0 | AM27: =VLOOKUP($A27,BAout!$A$8:$BC$57,36,FALSE) -> 0 | AN27: =VLOOKUP($A27,BAout!$A$8:$BC$57,37,FALSE) -> 0 | AP27: =VLOOKUP($A27,BAout!$A$8:$BC$57,39,FALSE) -> 0 | AQ27: =VLOOKUP($A27,Bilan!$A$8:$BE$57,41,FALSE) -> 0 | AT27: =IFERROR(SUM((VLOOKUP(Aout!A27,Données!$H$6:$J$53,3,TRUE)/12)*8),"") -> 
A28: =Données!$H25 -> 0 | AL28: =VLOOKUP($A28,BAout!$A$8:$BC$57,35,FALSE) -> 0 | AM28: =VLOOKUP($A28,BAout!$A$8:$BC$57,36,FALSE) -> 0 | AN28: =VLOOKUP($A28,BAout!$A$8:$BC$57,37,FALSE) -> 0 | AP28: =VLOOKUP($A28,BAout!$A$8:$BC$57,39,FALSE) -> 0 | AQ28: =VLOOKUP($A28,Bilan!$A$8:$BE$57,41,FALSE) -> 0 | AT28: =IFERROR(SUM((VLOOKUP(Aout!A28,Données!$H$6:$J$53,3,TRUE)/12)*8),"") -> 
A29: =Données!$H26 -> 0 | AL29: =VLOOKUP($A29,BAout!$A$8:$BC$57,35,FALSE) -> 0 | AM29: =VLOOKUP($A29,BAout!$A$8:$BC$57,36,FALSE) -> 0 | AN29: =VLOOKUP($A29,BAout!$A$8:$BC$57,37,FALSE) -> 0 | AP29: =VLOOKUP($A29,BAout!$A$8:$BC$57,39,FALSE) -> 0 | AQ29: =VLOOKUP($A29,Bilan!$A$8:$BE$57,41,FALSE) -> 0 | AT29: =IFERROR(SUM((VLOOKUP(Aout!A29,Données!$H$6:$J$53,3,TRUE)/12)*8),"") -> 
A30: =Données!$H27 -> 0 | AL30: =VLOOKUP($A30,BAout!$A$8:$BC$57,35,FALSE) -> 0 | AM30: =VLOOKUP($A30,BAout!$A$8:$BC$57,36,FALSE) -> 0 | AN30: =VLOOKUP($A30,BAout!$A$8:$BC$57,37,FALSE) -> 0 | AP30: =VLOOKUP($A30,BAout!$A$8:$BC$57,39,FALSE) -> 0 | AQ30: =VLOOKUP($A30,Bilan!$A$8:$BE$57,41,FALSE) -> 0 | AT30: =IFERROR(SUM((VLOOKUP(Aout!A30,Données!$H$6:$J$53,3,TRUE)/12)*8),"") -> 
A31: =Données!$H28 -> 0 | AL31: =VLOOKUP($A31,BAout!$A$8:$BC$57,35,FALSE) -> 0 | AM31: =VLOOKUP($A31,BAout!$A$8:$BC$57,36,FALSE) -> 0 | AN31: =VLOOKUP($A31,BAout!$A$8:$BC$57,37,FALSE) -> 0 | AP31: =VLOOKUP($A31,BAout!$A$8:$BC$57,39,FALSE) -> 0 | AQ31: =VLOOKUP($A31,Bilan!$A$8:$BE$57,41,FALSE) -> 0 | AT31: =IFERROR(SUM((VLOOKUP(Aout!A31,Données!$H$6:$J$53,3,TRUE)/12)*8),"") -> 
A32: =Données!$H29 -> 0 | AL32: =VLOOKUP($A32,BAout!$A$8:$BC$57,35,FALSE) -> 0 | AM32: =VLOOKUP($A32,BAout!$A$8:$BC$57,36,FALSE) -> 0 | AN32: =VLOOKUP($A32,BAout!$A$8:$BC$57,37,FALSE) -> 0 | AP32: =VLOOKUP($A32,BAout!$A$8:$BC$57,39,FALSE) -> 0 | AQ32: =VLOOKUP($A32,Bilan!$A$8:$BE$57,41,FALSE) -> 0 | AT32: =IFERROR(SUM((VLOOKUP(Aout!A32,Données!$H$6:$J$53,3,TRUE)/12)*8),"") -> 
A33: =Données!$H30 -> 0 | AL33: =VLOOKUP($A33,BAout!$A$8:$BC$57,35,FALSE) -> 0 | AM33: =VLOOKUP($A33,BAout!$A$8:$BC$57,36,FALSE) -> 0 | AN33: =VLOOKUP($A33,BAout!$A$8:$BC$57,37,FALSE) -> 0 | AP33: =VLOOKUP($A33,BAout!$A$8:$BC$57,39,FALSE) -> 0 | AQ33: =VLOOKUP($A33,Bilan!$A$8:$BE$57,41,FALSE) -> 0 | AT33: =IFERROR(SUM((VLOOKUP(Aout!A33,Données!$H$6:$J$53,3,TRUE)/12)*8),"") -> 
A34: =Données!$H31 -> 0 | AL34: =VLOOKUP($A34,BAout!$A$8:$BC$57,35,FALSE) -> 0 | AM34: =VLOOKUP($A34,BAout!$A$8:$BC$57,36,FALSE) -> 0 | AN34: =VLOOKUP($A34,BAout!$A$8:$BC$57,37,FALSE) -> 0 | AP34: =VLOOKUP($A34,BAout!$A$8:$BC$57,39,FALSE) -> 0 | AQ34: =VLOOKUP($A34,Bilan!$A$8:$BE$57,41,FALSE) -> 0 | AT34: =IFERROR(SUM((VLOOKUP(Aout!A34,Données!$H$6:$J$53,3,TRUE)/12)*8),"") -> 
A35: =Données!$H32 -> Maitresse de maison
A36: =Données!$H33 -> 0 | AL36: =VLOOKUP($A36,BAout!$A$8:$BC$57,35,FALSE) -> 0 | AM36: =VLOOKUP($A36,BAout!$A$8:$BC$57,36,FALSE) -> 0 | AN36: =VLOOKUP($A36,BAout!$A$8:$BC$57,37,FALSE) -> 0 | AP36: =VLOOKUP($A36,BAout!$A$8:$BC$57,39,FALSE) -> 0 | AQ36: =VLOOKUP($A36,Bilan!$A$8:$BE$57,41,FALSE) -> 0 | AT36: =IFERROR(SUM((VLOOKUP(Aout!A36,Données!$H$6:$J$53,3,TRUE)/12)*8),"") -> 
A37: =Données!$H34 -> 0 | AL37: =VLOOKUP($A37,BAout!$A$8:$BC$57,35,FALSE) -> 0 | AM37: =VLOOKUP($A37,BAout!$A$8:$BC$57,36,FALSE) -> 0 | AN37: =VLOOKUP($A37,BAout!$A$8:$BC$57,37,FALSE) -> 0 | AP37: =VLOOKUP($A37,BAout!$A$8:$BC$57,39,FALSE) -> 0 | AQ37: =VLOOKUP($A37,Bilan!$A$8:$BE$57,41,FALSE) -> 0 | AT37: =IFERROR(SUM((VLOOKUP(Aout!A37,Données!$H$6:$J$53,3,TRUE)/12)*8),"") -> 
A38: =Données!$H35 -> 0 | AL38: =VLOOKUP($A38,BAout!$A$8:$BC$57,35,FALSE) -> 0 | AM38: =VLOOKUP($A38,BAout!$A$8:$BC$57,36,FALSE) -> 0 | AN38: =VLOOKUP($A38,BAout!$A$8:$BC$57,37,FALSE) -> 0 | AP38: =VLOOKUP($A38,BAout!$A$8:$BC$57,39,FALSE) -> 0 | AQ38: =VLOOKUP($A38,Bilan!$A$8:$BE$57,41,FALSE) -> 0 | AT38: =IFERROR(SUM((VLOOKUP(Aout!A38,Données!$H$6:$J$53,3,TRUE)/12)*8),"") -> 
A39: =Données!$H36 -> 0 | AL39: =VLOOKUP($A39,BAout!$A$8:$BC$57,35,FALSE) -> 0 | AM39: =VLOOKUP($A39,BAout!$A$8:$BC$57,36,FALSE) -> 0 | AN39: =VLOOKUP($A39,BAout!$A$8:$BC$57,37,FALSE) -> 0 | AP39: =VLOOKUP($A39,BAout!$A$8:$BC$57,39,FALSE) -> 0 | AQ39: =VLOOKUP($A39,Bilan!$A$8:$BE$57,41,FALSE) -> 0 | AT39: =IFERROR(SUM((VLOOKUP(Aout!A39,Données!$H$6:$J$53,3,TRUE)/12)*8),"") -> 
A40: =Données!$H37 -> 0 | AL40: =VLOOKUP($A40,BAout!$A$8:$BC$57,35,FALSE) -> 0 | AM40: =VLOOKUP($A40,BAout!$A$8:$BC$57,36,FALSE) -> 0 | AN40: =VLOOKUP($A40,BAout!$A$8:$BC$57,37,FALSE) -> 0 | AP40: =VLOOKUP($A40,BAout!$A$8:$BC$57,39,FALSE) -> 0 | AQ40: =VLOOKUP($A40,Bilan!$A$8:$BE$57,41,FALSE) -> 0 | AT40: =IFERROR(SUM((VLOOKUP(Aout!A40,Données!$H$6:$J$53,3,TRUE)/12)*8),"") -> 
A41: =Données!$H38 -> 0 | AL41: =VLOOKUP($A41,BAout!$A$8:$BC$57,35,FALSE) -> 0 | AM41: =VLOOKUP($A41,BAout!$A$8:$BC$57,36,FALSE) -> 0 | AN41: =VLOOKUP($A41,BAout!$A$8:$BC$57,37,FALSE) -> 0 | AP41: =VLOOKUP($A41,BAout!$A$8:$BC$57,39,FALSE) -> 0 | AQ41: =VLOOKUP($A41,Bilan!$A$8:$BE$57,41,FALSE) -> 0 | AT41: =IFERROR(SUM((VLOOKUP(Aout!A41,Données!$H$6:$J$53,3,TRUE)/12)*8),"") -> 
A42: =Données!$H39 -> 0 | AL42: =VLOOKUP($A42,BAout!$A$8:$BC$57,35,FALSE) -> 0 | AM42: =VLOOKUP($A42,BAout!$A$8:$BC$57,36,FALSE) -> 0 | AN42: =VLOOKUP($A42,BAout!$A$8:$BC$57,37,FALSE) -> 0 | AP42: =VLOOKUP($A42,BAout!$A$8:$BC$57,39,FALSE) -> 0 | AQ42: =VLOOKUP($A42,Bilan!$A$8:$BE$57,41,FALSE) -> 0 | AT42: =IFERROR(SUM((VLOOKUP(Aout!A42,Données!$H$6:$J$53,3,TRUE)/12)*8),"") -> 
A43: =Données!$H40 -> 0 | AL43: =VLOOKUP($A43,BAout!$A$8:$BC$57,35,FALSE) -> 0 | AM43: =VLOOKUP($A43,BAout!$A$8:$BC$57,36,FALSE) -> 0 | AN43: =VLOOKUP($A43,BAout!$A$8:$BC$57,37,FALSE) -> 0 | AP43: =VLOOKUP($A43,BAout!$A$8:$BC$57,39,FALSE) -> 0 | AQ43: =VLOOKUP($A43,Bilan!$A$8:$BE$57,41,FALSE) -> 0 | AT43: =IFERROR(SUM((VLOOKUP(Aout!A43,Données!$H$6:$J$53,3,TRUE)/12)*8),"") -> 
A44: =Données!$H41 -> 0 | AL44: =VLOOKUP($A44,BAout!$A$8:$BC$57,35,FALSE) -> 0 | AM44: =VLOOKUP($A44,BAout!$A$8:$BC$57,36,FALSE) -> 0 | AN44: =VLOOKUP($A44,BAout!$A$8:$BC$57,37,FALSE) -> 0 | AP44: =VLOOKUP($A44,BAout!$A$8:$BC$57,39,FALSE) -> 0 | AQ44: =VLOOKUP($A44,Bilan!$A$8:$BE$57,41,FALSE) -> 0 | AT44: =IFERROR(SUM((VLOOKUP(Aout!A44,Données!$H$6:$J$53,3,TRUE)/12)*8),"") -> 
A45: =Données!$H42 -> Psychologue
A46: =Données!$H43 -> 0 | AL46: =VLOOKUP($A46,BAout!$A$8:$BC$57,35,FALSE) -> 0 | AM46: =VLOOKUP($A46,BAout!$A$8:$BC$57,36,FALSE) -> 0 | AN46: =VLOOKUP($A46,BAout!$A$8:$BC$57,37,FALSE) -> 0 | AP46: =VLOOKUP($A46,BAout!$A$8:$BC$57,39,FALSE) -> 0 | AQ46: =VLOOKUP($A46,Bilan!$A$8:$BE$57,41,FALSE) -> 0 | AT46: =IFERROR(SUM((VLOOKUP(Aout!A46,Données!$H$6:$J$53,3,TRUE)/12)*8),"") -> 
A47: =Données!$H44 -> 0 | AL47: =VLOOKUP($A47,BAout!$A$8:$BC$57,35,FALSE) -> 0 | AM47: =VLOOKUP($A47,BAout!$A$8:$BC$57,36,FALSE) -> 0 | AN47: =VLOOKUP($A47,BAout!$A$8:$BC$57,37,FALSE) -> 0 | AP47: =VLOOKUP($A47,BAout!$A$8:$BC$57,39,FALSE) -> 0 | AQ47: =VLOOKUP($A47,Bilan!$A$8:$BE$57,41,FALSE) -> 0 | AT47: =IFERROR(SUM((VLOOKUP(Aout!A47,Données!$H$6:$J$53,3,TRUE)/12)*8),"") -> 
A48: =Données!$H45 -> 0 | AL48: =VLOOKUP($A48,BAout!$A$8:$BC$57,35,FALSE) -> 0 | AM48: =VLOOKUP($A48,BAout!$A$8:$BC$57,36,FALSE) -> 0 | AN48: =VLOOKUP($A48,BAout!$A$8:$BC$57,37,FALSE) -> 0 | AP48: =VLOOKUP($A48,BAout!$A$8:$BC$57,39,FALSE) -> 0 | AQ48: =VLOOKUP($A48,Bilan!$A$8:$BE$57,41,FALSE) -> 0 | AT48: =IFERROR(SUM((VLOOKUP(Aout!A48,Données!$H$6:$J$53,3,TRUE)/12)*8),"") -> 
A49: =Données!$H46 -> Coordinatrice
A50: =Données!$H47 -> 0 | AL50: =VLOOKUP($A50,BAout!$A$8:$BC$57,35,FALSE) -> 0 | AM50: =VLOOKUP($A50,BAout!$A$8:$BC$57,36,FALSE) -> 0 | AN50: =VLOOKUP($A50,BAout!$A$8:$BC$57,37,FALSE) -> 0 | AP50: =VLOOKUP($A50,BAout!$A$8:$BC$57,39,FALSE) -> 0 | AQ50: =VLOOKUP($A50,Bilan!$A$8:$BE$57,41,FALSE) -> 0 | AT50: =IFERROR(SUM((VLOOKUP(Aout!A50,Données!$H$6:$J$53,3,TRUE)/12)*8),"") -> 
A51: =Données!$H48 -> 0 | AL51: =VLOOKUP($A51,BAout!$A$8:$BC$57,35,FALSE) -> 0 | AM51: =VLOOKUP($A51,BAout!$A$8:$BC$57,36,FALSE) -> 0 | AN51: =VLOOKUP($A51,BAout!$A$8:$BC$57,37,FALSE) -> 0 | AP51: =VLOOKUP($A51,BAout!$A$8:$BC$57,39,FALSE) -> 0 | AQ51: =VLOOKUP($A51,Bilan!$A$8:$BE$57,41,FALSE) -> 0 | AT51: =IFERROR(SUM((VLOOKUP(Aout!A51,Données!$H$6:$J$53,3,TRUE)/12)*8),"") -> 
A52: =Données!$H49 -> 0 | AL52: =VLOOKUP($A52,BAout!$A$8:$BC$57,35,FALSE) -> 0 | AM52: =VLOOKUP($A52,BAout!$A$8:$BC$57,36,FALSE) -> 0 | AN52: =VLOOKUP($A52,BAout!$A$8:$BC$57,37,FALSE) -> 0 | AP52: =VLOOKUP($A52,BAout!$A$8:$BC$57,39,FALSE) -> 0 | AQ52: =VLOOKUP($A52,Bilan!$A$8:$BE$57,41,FALSE) -> 0 | AT52: =IFERROR(SUM((VLOOKUP(Aout!A52,Données!$H$6:$J$53,3,TRUE)/12)*8),"") -> 
A53: =Données!$H50 -> 0 | AL53: =VLOOKUP($A53,BAout!$A$8:$BC$57,35,FALSE) -> 0 | AM53: =VLOOKUP($A53,BAout!$A$8:$BC$57,36,FALSE) -> 0 | AN53: =VLOOKUP($A53,BAout!$A$8:$BC$57,37,FALSE) -> 0 | AP53: =VLOOKUP($A53,BAout!$A$8:$BC$57,39,FALSE) -> 0 | AQ53: =VLOOKUP($A53,Bilan!$A$8:$BE$57,41,FALSE) -> 0 | AT53: =IFERROR(SUM((VLOOKUP(Aout!A53,Données!$H$6:$J$53,3,TRUE)/12)*8),"") -> 
A54: =Données!$H51 -> 0 | AL54: =VLOOKUP($A54,BAout!$A$8:$BC$57,35,FALSE) -> 0 | AM54: =VLOOKUP($A54,BAout!$A$8:$BC$57,36,FALSE) -> 0 | AN54: =VLOOKUP($A54,BAout!$A$8:$BC$57,37,FALSE) -> 0 | AP54: =VLOOKUP($A54,BAout!$A$8:$BC$57,39,FALSE) -> 0 | AQ54: =VLOOKUP($A54,Bilan!$A$8:$BE$57,41,FALSE) -> 0 | AT54: =IFERROR(SUM((VLOOKUP(Aout!A54,Données!$H$6:$J$53,3,TRUE)/12)*8),"") -> 
A55: =Données!$H52 -> Chef de service
A56: =Données!$H53 -> 0 | AL56: =VLOOKUP($A56,BAout!$A$8:$BC$57,35,FALSE) -> 0 | AM56: =VLOOKUP($A56,BAout!$A$8:$BC$57,36,FALSE) -> 0 | AN56: =VLOOKUP($A56,BAout!$A$8:$BC$57,37,FALSE) -> 0 | AP56: =VLOOKUP($A56,BAout!$A$8:$BC$57,39,FALSE) -> 0 | AQ56: =VLOOKUP($A56,Bilan!$A$8:$BE$57,41,FALSE) -> 0 | AT56: =IFERROR(SUM((VLOOKUP(Aout!A56,Données!$H$6:$J$53,3,TRUE)/12)*8),"") -> 
B58: =Données!$A3 -> S | C58: = | D58: =IF(ISBLANK(Données!$C3),TEXT(Données!$B3,"hh:mm"),TEXT(Données!$B3,"hh:mm")&" : "&TEXT(Données!$C3,"hh:mm")) -> 13:30 : 21:30 | H58: =Données!$A7 -> J+ | I58: = | J58: =IF(ISBLANK(Données!$C7),TEXT(Données!$B7,"hh:mm"),TEXT(Données!$B7,"hh:mm")&" : "&TEXT(Données!$C7,"hh:mm")) -> 09:00 : 21:00 | N58: =Données!$A10 -> N- | O58: = | P58: =IF(ISBLANK(Données!$C10),TEXT(Données!$B10,"hh:mm"),TEXT(Données!$B10,"hh:mm")&" : "&TEXT(Données!$C10,"hh:mm")) -> 20:45 : 07:15 | T58: =Données!$A14 -> AT | U58: = | V58: =IF(ISBLANK(Données!$C14),TEXT(Données!$B14,"hh:mm"),TEXT(Données!$B14,"hh:mm")&" : "&TEXT(Données!$C14,"hh:mm")) -> AT : AT | Z58: =Données!$A18 -> CA | AA58: = | AB58: =IF(ISBLANK(Données!$C18),TEXT(Données!$B18,"hh:mm"),TEXT(Données!$B18,"hh:mm")&" : "&TEXT(Données!$C18,"hh:mm")) -> CA : CA
B59: =Données!$A4 -> M- | C59: = | D59: =IF(ISBLANK(Données!$C4),TEXT(Données!$B4,"hh:mm"),TEXT(Données!$B4,"hh:mm")&" : "&TEXT(Données!$C4,"hh:mm")) -> 07:00 : 15:00 | H59: =Données!$A8 -> RS | I59: = | J59: =IF(ISBLANK(Données!$C8),TEXT(Données!$B8,"hh:mm"),TEXT(Données!$B8,"hh:mm")&" : "&TEXT(Données!$C8,"hh:mm")) -> 09:30 : 21:30 | N59: =Données!$A11 -> N+ | O59: = | P59: =IF(ISBLANK(Données!$C11),TEXT(Données!$B11,"hh:mm"),TEXT(Données!$B11,"hh:mm")&" : "&TEXT(Données!$C11,"hh:mm")) -> 19:15 : 07:15 | T59: =Données!$A15 -> AM | U59: = | V59: =IF(ISBLANK(Données!$C15),TEXT(Données!$B15,"hh:mm"),TEXT(Données!$B15,"hh:mm")&" : "&TEXT(Données!$C15,"hh:mm")) -> AM : AM | Z59: =Données!$A19 -> CA17 | AA59: = | AB59: =IF(ISBLANK(Données!$C19),TEXT(Données!$B19,"hh:mm"),TEXT(Données!$B19,"hh:mm")&" : "&TEXT(Données!$C19,"hh:mm")) -> CA17 : CA17
B60: =Données!$A5 -> M | C60: = | D60: =IF(ISBLANK(Données!$C5),TEXT(Données!$B5,"hh:mm"),TEXT(Données!$B5,"hh:mm")&" : "&TEXT(Données!$C5,"hh:mm")) -> 08:00 : 15:00 | H60: =Données!$A9 -> N | I60: = | J60: =IF(ISBLANK(Données!$C9),TEXT(Données!$B9,"hh:mm"),TEXT(Données!$B9,"hh:mm")&" : "&TEXT(Données!$C9,"hh:mm")) -> 20:45 : 08:15 | N60: =Données!$A12 -> JS | O60: = | P60: =IF(ISBLANK(Données!$C12),TEXT(Données!$B12,"hh:mm"),TEXT(Données!$B12,"hh:mm")&" : "&TEXT(Données!$C12,"hh:mm")) -> 08:00 : 19:00 | T60: =Données!$A16 -> EM | U60: = | V60: =IF(ISBLANK(Données!$C16),TEXT(Données!$B16,"hh:mm"),TEXT(Données!$B16,"hh:mm")&" : "&TEXT(Données!$C16,"hh:mm")) -> EM : EM | Z60: =Données!$A20 -> REC | AA60: = | AB60: =IF(ISBLANK(Données!$C20),TEXT(Données!$B20,"hh:mm"),TEXT(Données!$B20,"hh:mm")&" : "&TEXT(Données!$C20,"hh:mm")) -> REC : REC
B61: =Données!$A6 -> J | C61: = | D61: =IF(ISBLANK(Données!$C6),TEXT(Données!$B6,"hh:mm"),TEXT(Données!$B6,"hh:mm")&" : "&TEXT(Données!$C6,"hh:mm")) -> 09:00 : 16:30 | H61: =Données!$A10 -> N- | I61: = | J61: =IF(ISBLANK(Données!$C10),TEXT(Données!$B10,"hh:mm"),TEXT(Données!$B10,"hh:mm")&" : "&TEXT(Données!$C10,"hh:mm")) -> 20:45 : 07:15 | N61: =Données!$A13 -> SYN | O61: = | P61: =IF(ISBLANK(Données!$C13),TEXT(Données!$B13,"hh:mm"),TEXT(Données!$B13,"hh:mm")&" : "&TEXT(Données!$C13,"hh:mm")) -> Syn : Syn | T61: =Données!$A17 -> CE | U61: = | V61: =IF(ISBLANK(Données!$C17),TEXT(Données!$B17,"hh:mm"),TEXT(Données!$B17,"hh:mm")&" : "&TEXT(Données!$C17,"hh:mm")) -> CE : CE | Z61: =Données!$A21 -> PL | AA61: = | AB61: =IF(ISBLANK(Données!$C21),TEXT(Données!$B21,"hh:mm"),TEXT(Données!$B21,"hh:mm")&" : "&TEXT(Données!$C21,"hh:mm")) -> PL : PL

Sheet Septembre
B2: =DATE(An,Septembre,B7) -> 2018-09-01 | C2: 2018-09-02 | D2: 2018-09-03 | E2: 2018-09-04 | F2: 2018-09-05 | G2: 2018-09-06 | H2: 2018-09-07 | I2: 2018-09-08 | J2: 2018-09-09 | K2: 2018-09-10 | L2: 2018-09-11 | M2: 2018-09-12 | N2: 2018-09-13 | O2: 2018-09-14 | P2: 2018-09-15 | Q2: 2018-09-16 | R2: 2018-09-17 | S2: 2018-09-18 | T2: 2018-09-19 | U2: 2018-09-20 | V2: 2018-09-21 | W2: 2018-09-22 | X2: 2018-09-23 | Y2: 2018-09-24 | Z2: 2018-09-25 | AA2: 2018-09-26 | AB2: 2018-09-27 | AC2: 2018-09-28 | AD2: 2018-09-29 | AE2: 2018-09-30 | AI2: Pour remplir | AJ2: penser | AO2: =IF(ISNUMBER(AO7),DATE(An,Septembre,AO7),"") ->  | AP2: =IF(ISNUMBER(AP7),DATE(An,Septembre,AP7),"") -> 
A3: =IF(Données!$L$5="","Service",Données!$L$5) -> Service | K3: Mois de Septembre | P3: =An -> 2018 | AI3: à mettre dans le format:
AI4: "heures":"Minutes" | AT4: Masse horraire previsionnel
AI5: Heures sup | AJ5: Heures sup | AL5: Indications | AM5: Indications | AN5: Indications | AP5: Total
A6: Jours | B6: =PROPER(LEFT(TEXT(DATE(An,Septembre,B7),"jjj"),1)) -> S | C6: D | D6: L | E6: M | F6: M | G6: J | H6: V | I6: S | J6: D | K6: L | L6: M | M6: M | N6: J | O6: V | P6: S | Q6: D | R6: L | S6: M | T6: M | U6: J | V6: V | W6: S | X6: D | Y6: L | Z6: M | AA6: M | AB6: J | AC6: V | AD6: S | AE6: D | AI6: avant 21h | AJ6: après 21h | AL6: Heures | AM6: Heures nuit | AN6: Heures | AP6: Heures | AQ6: Heures
B7: =A7+1 -> 1 | C7: 2 | D7: 3 | E7: 4 | F7: 5 | G7: 6 | H7: 7 | I7: 8 | J7: 9 | K7: 10 | L7: 11 | M7: 12 | N7: 13 | O7: 14 | P7: 15 | Q7: 16 | R7: 17 | S7: 18 | T7: 19 | U7: 20 | V7: 21 | W7: 22 | X7: 23 | Y7: 24 | Z7: 25 | AA7: 26 | AB7: 27 | AC7: 28 | AD7: 29 | AE7: 30 | AI7: A remplir | AJ7: A remplir | AL7: Dimanche | AM7: Dimanche | AN7: après 21h | AP7: au mois | AQ7: a l'année | AT7: i
A8: Equipe de jour
A9: =Données!$H6 -> A | AL9: =VLOOKUP($A9,BSeptembre!$A$8:$BC$57,35,FALSE) -> 0 | AM9: =VLOOKUP($A9,BSeptembre!$A$8:$BC$57,36,FALSE) -> 0 | AN9: =VLOOKUP($A9,BSeptembre!$A$8:$BC$57,37,FALSE) -> 0 | AP9: =VLOOKUP($A9,BSeptembre!$A$8:$BC$57,39,FALSE) -> 0 | AQ9: =VLOOKUP($A9,Bilan!$A$8:$BE$57,41,FALSE) -> 5.533333333 | AT9: =IFERROR(SUM((VLOOKUP(Septembre!A9,Données!$H$6:$J$53,3,TRUE)/12)*9),"") -> 45.26770833
A10: =Données!$H7 -> B | AL10: =VLOOKUP($A10,BSeptembre!$A$8:$BC$57,35,FALSE) -> 0 | AM10: =VLOOKUP($A10,BSeptembre!$A$8:$BC$57,36,FALSE) -> 0 | AN10: =VLOOKUP($A10,BSeptembre!$A$8:$BC$57,37,FALSE) -> 0 | AP10: =VLOOKUP($A10,BSeptembre!$A$8:$BC$57,39,FALSE) -> 0 | AQ10: =VLOOKUP($A10,Bilan!$A$8:$BE$57,41,FALSE) -> 0 | AT10: =IFERROR(SUM((VLOOKUP(Septembre!A10,Données!$H$6:$J$53,3,TRUE)/12)*9),"") -> 
A11: =Données!$H8 -> L | AL11: =VLOOKUP($A11,BSeptembre!$A$8:$BC$57,35,FALSE) -> 0 | AM11: =VLOOKUP($A11,BSeptembre!$A$8:$BC$57,36,FALSE) -> 0 | AN11: =VLOOKUP($A11,BSeptembre!$A$8:$BC$57,37,FALSE) -> 0 | AP11: =VLOOKUP($A11,BSeptembre!$A$8:$BC$57,39,FALSE) -> 0 | AQ11: =VLOOKUP($A11,Bilan!$A$8:$BE$57,41,FALSE) -> 0 | AT11: =IFERROR(SUM((VLOOKUP(Septembre!A11,Données!$H$6:$J$53,3,TRUE)/12)*9),"") -> 0
A12: =Données!$H9 -> L | AL12: =VLOOKUP($A12,BSeptembre!$A$8:$BC$57,35,FALSE) -> 0 | AM12: =VLOOKUP($A12,BSeptembre!$A$8:$BC$57,36,FALSE) -> 0 | AN12: =VLOOKUP($A12,BSeptembre!$A$8:$BC$57,37,FALSE) -> 0 | AP12: =VLOOKUP($A12,BSeptembre!$A$8:$BC$57,39,FALSE) -> 0 | AQ12: =VLOOKUP($A12,Bilan!$A$8:$BE$57,41,FALSE) -> 0 | AT12: =IFERROR(SUM((VLOOKUP(Septembre!A12,Données!$H$6:$J$53,3,TRUE)/12)*9),"") -> 0
A13: =Données!$H10 -> 0 | AL13: =VLOOKUP($A13,BSeptembre!$A$8:$BC$57,35,FALSE) -> 0 | AM13: =VLOOKUP($A13,BSeptembre!$A$8:$BC$57,36,FALSE) -> 0 | AN13: =VLOOKUP($A13,BSeptembre!$A$8:$BC$57,37,FALSE) -> 0 | AP13: =VLOOKUP($A13,BSeptembre!$A$8:$BC$57,39,FALSE) -> 0 | AQ13: =VLOOKUP($A13,Bilan!$A$8:$BE$57,41,FALSE) -> 0 | AT13: =IFERROR(SUM((VLOOKUP(Septembre!A13,Données!$H$6:$J$53,3,TRUE)/12)*9),"") -> 
A14: =Données!$H11 -> 0 | AL14: =VLOOKUP($A14,BSeptembre!$A$8:$BC$57,35,FALSE) -> 0 | AM14: =VLOOKUP($A14,BSeptembre!$A$8:$BC$57,36,FALSE) -> 0 | AN14: =VLOOKUP($A14,BSeptembre!$A$8:$BC$57,37,FALSE) -> 0 | AP14: =VLOOKUP($A14,BSeptembre!$A$8:$BC$57,39,FALSE) -> 0 | AQ14: =VLOOKUP($A14,Bilan!$A$8:$BE$57,41,FALSE) -> 0 | AT14: =IFERROR(SUM((VLOOKUP(Septembre!A14,Données!$H$6:$J$53,3,TRUE)/12)*9),"") -> 
A15: =Données!$H12 -> 0 | AL15: =VLOOKUP($A15,BSeptembre!$A$8:$BC$57,35,FALSE) -> 0 | AM15: =VLOOKUP($A15,BSeptembre!$A$8:$BC$57,36,FALSE) -> 0 | AN15: =VLOOKUP($A15,BSeptembre!$A$8:$BC$57,37,FALSE) -> 0 | AP15: =VLOOKUP($A15,BSeptembre!$A$8:$BC$57,39,FALSE) -> 0 | AQ15: =VLOOKUP($A15,Bilan!$A$8:$BE$57,41,FALSE) -> 0 | AT15: =IFERROR(SUM((VLOOKUP(Septembre!A15,Données!$H$6:$J$53,3,TRUE)/12)*9),"") -> 
A16: =Données!$H13 -> 0 | AL16: =VLOOKUP($A16,BSeptembre!$A$8:$BC$57,35,FALSE) -> 0 | AM16: =VLOOKUP($A16,BSeptembre!$A$8:$BC$57,36,FALSE) -> 0 | AN16: =VLOOKUP($A16,BSeptembre!$A$8:$BC$57,37,FALSE) -> 0 | AP16: =VLOOKUP($A16,BSeptembre!$A$8:$BC$57,39,FALSE) -> 0 | AQ16: =VLOOKUP($A16,Bilan!$A$8:$BE$57,41,FALSE) -> 0 | AT16: =IFERROR(SUM((VLOOKUP(Septembre!A16,Données!$H$6:$J$53,3,TRUE)/12)*9),"") -> 
A17: =Données!$H14 -> 0 | AL17: =VLOOKUP($A17,BSeptembre!$A$8:$BC$57,35,FALSE) -> 0 | AM17: =VLOOKUP($A17,BSeptembre!$A$8:$BC$57,36,FALSE) -> 0 | AN17: =VLOOKUP($A17,BSeptembre!$A$8:$BC$57,37,FALSE) -> 0 | AP17: =VLOOKUP($A17,BSeptembre!$A$8:$BC$57,39,FALSE) -> 0 | AQ17: =VLOOKUP($A17,Bilan!$A$8:$BE$57,41,FALSE) -> 0 | AT17: =IFERROR(SUM((VLOOKUP(Septembre!A17,Données!$H$6:$J$53,3,TRUE)/12)*9),"") -> 
A18: =Données!$H15 -> 0 | AL18: =VLOOKUP($A18,BSeptembre!$A$8:$BC$57,35,FALSE) -> 0 | AM18: =VLOOKUP($A18,BSeptembre!$A$8:$BC$57,36,FALSE) -> 0 | AN18: =VLOOKUP($A18,BSeptembre!$A$8:$BC$57,37,FALSE) -> 0 | AP18: =VLOOKUP($A18,BSeptembre!$A$8:$BC$57,39,FALSE) -> 0 | AQ18: =VLOOKUP($A18,Bilan!$A$8:$BE$57,41,FALSE) -> 0 | AT18: =IFERROR(SUM((VLOOKUP(Septembre!A18,Données!$H$6:$J$53,3,TRUE)/12)*9),"") -> 
A19: =Données!$H16 -> 0 | AL19: =VLOOKUP($A19,BSeptembre!$A$8:$BC$57,35,FALSE) -> 0 | AM19: =VLOOKUP($A19,BSeptembre!$A$8:$BC$57,36,FALSE) -> 0 | AN19: =VLOOKUP($A19,BSeptembre!$A$8:$BC$57,37,FALSE) -> 0 | AP19: =VLOOKUP($A19,BSeptembre!$A$8:$BC$57,39,FALSE) -> 0 | AQ19: =VLOOKUP($A19,Bilan!$A$8:$BE$57,41,FALSE) -> 0 | AT19: =IFERROR(SUM((VLOOKUP(Septembre!A19,Données!$H$6:$J$53,3,TRUE)/12)*9),"") -> 
A20: =Données!$H17 -> 0 | AL20: =VLOOKUP($A20,BSeptembre!$A$8:$BC$57,35,FALSE) -> 0 | AM20: =VLOOKUP($A20,BSeptembre!$A$8:$BC$57,36,FALSE) -> 0 | AN20: =VLOOKUP($A20,BSeptembre!$A$8:$BC$57,37,FALSE) -> 0 | AP20: =VLOOKUP($A20,BSeptembre!$A$8:$BC$57,39,FALSE) -> 0 | AQ20: =VLOOKUP($A20,Bilan!$A$8:$BE$57,41,FALSE) -> 0 | AT20: =IFERROR(SUM((VLOOKUP(Septembre!A20,Données!$H$6:$J$53,3,TRUE)/12)*9),"") -> 
A21: =Données!$H18 -> 0 | AL21: =VLOOKUP($A21,BSeptembre!$A$8:$BC$57,35,FALSE) -> 0 | AM21: =VLOOKUP($A21,BSeptembre!$A$8:$BC$57,36,FALSE) -> 0 | AN21: =VLOOKUP($A21,BSeptembre!$A$8:$BC$57,37,FALSE) -> 0 | AP21: =VLOOKUP($A21,BSeptembre!$A$8:$BC$57,39,FALSE) -> 0 | AQ21: =VLOOKUP($A21,Bilan!$A$8:$BE$57,41,FALSE) -> 0 | AT21: =IFERROR(SUM((VLOOKUP(Septembre!A21,Données!$H$6:$J$53,3,TRUE)/12)*9),"") -> 
A22: =Données!$H19 -> 0 | AL22: =VLOOKUP($A22,BSeptembre!$A$8:$BC$57,35,FALSE) -> 0 | AM22: =VLOOKUP($A22,BSeptembre!$A$8:$BC$57,36,FALSE) -> 0 | AN22: =VLOOKUP($A22,BSeptembre!$A$8:$BC$57,37,FALSE) -> 0 | AP22: =VLOOKUP($A22,BSeptembre!$A$8:$BC$57,39,FALSE) -> 0 | AQ22: =VLOOKUP($A22,Bilan!$A$8:$BE$57,41,FALSE) -> 0 | AT22: =IFERROR(SUM((VLOOKUP(Septembre!A22,Données!$H$6:$J$53,3,TRUE)/12)*9),"") -> 
A23: =Données!$H20 -> 0 | AL23: =VLOOKUP($A23,BSeptembre!$A$8:$BC$57,35,FALSE) -> 0 | AM23: =VLOOKUP($A23,BSeptembre!$A$8:$BC$57,36,FALSE) -> 0 | AN23: =VLOOKUP($A23,BSeptembre!$A$8:$BC$57,37,FALSE) -> 0 | AP23: =VLOOKUP($A23,BSeptembre!$A$8:$BC$57,39,FALSE) -> 0 | AQ23: =VLOOKUP($A23,Bilan!$A$8:$BE$57,41,FALSE) -> 0 | AT23: =IFERROR(SUM((VLOOKUP(Septembre!A23,Données!$H$6:$J$53,3,TRUE)/12)*9),"") -> 
A24: =Données!$H21 -> 0 | AL24: =VLOOKUP($A24,BSeptembre!$A$8:$BC$57,35,FALSE) -> 0 | AM24: =VLOOKUP($A24,BSeptembre!$A$8:$BC$57,36,FALSE) -> 0 | AN24: =VLOOKUP($A24,BSeptembre!$A$8:$BC$57,37,FALSE) -> 0 | AP24: =VLOOKUP($A24,BSeptembre!$A$8:$BC$57,39,FALSE) -> 0 | AQ24: =VLOOKUP($A24,Bilan!$A$8:$BE$57,41,FALSE) -> 0 | AT24: =IFERROR(SUM((VLOOKUP(Septembre!A24,Données!$H$6:$J$53,3,TRUE)/12)*9),"") -> 
A25: =Données!$H22 -> Equipe de nuit
A26: =Données!$H23 -> 0 | AL26: =VLOOKUP($A26,BSeptembre!$A$8:$BC$57,35,FALSE) -> 0 | AM26: =VLOOKUP($A26,BSeptembre!$A$8:$BC$57,36,FALSE) -> 0 | AN26: =VLOOKUP($A26,BSeptembre!$A$8:$BC$57,37,FALSE) -> 0 | AP26: =VLOOKUP($A26,BSeptembre!$A$8:$BC$57,39,FALSE) -> 0 | AQ26: =VLOOKUP($A26,Bilan!$A$8:$BE$57,41,FALSE) -> 0 | AT26: =IFERROR(SUM((VLOOKUP(Septembre!A26,Données!$H$6:$J$53,3,TRUE)/12)*9),"") -> 
A27: =Données!$H24 -> 0 | AL27: =VLOOKUP($A27,BSeptembre!$A$8:$BC$57,35,FALSE) -> 0 | AM27: =VLOOKUP($A27,BSeptembre!$A$8:$BC$57,36,FALSE) -> 0 | AN27: =VLOOKUP($A27,BSeptembre!$A$8:$BC$57,37,FALSE) -> 0 | AP27: =VLOOKUP($A27,BSeptembre!$A$8:$BC$57,39,FALSE) -> 0 | AQ27: =VLOOKUP($A27,Bilan!$A$8:$BE$57,41,FALSE) -> 0 | AT27: =IFERROR(SUM((VLOOKUP(Septembre!A27,Données!$H$6:$J$53,3,TRUE)/12)*9),"") -> 
A28: =Données!$H25 -> 0 | AL28: =VLOOKUP($A28,BSeptembre!$A$8:$BC$57,35,FALSE) -> 0 | AM28: =VLOOKUP($A28,BSeptembre!$A$8:$BC$57,36,FALSE) -> 0 | AN28: =VLOOKUP($A28,BSeptembre!$A$8:$BC$57,37,FALSE) -> 0 | AP28: =VLOOKUP($A28,BSeptembre!$A$8:$BC$57,39,FALSE) -> 0 | AQ28: =VLOOKUP($A28,Bilan!$A$8:$BE$57,41,FALSE) -> 0 | AT28: =IFERROR(SUM((VLOOKUP(Septembre!A28,Données!$H$6:$J$53,3,TRUE)/12)*9),"") -> 
A29: =Données!$H26 -> 0 | AL29: =VLOOKUP($A29,BSeptembre!$A$8:$BC$57,35,FALSE) -> 0 | AM29: =VLOOKUP($A29,BSeptembre!$A$8:$BC$57,36,FALSE) -> 0 | AN29: =VLOOKUP($A29,BSeptembre!$A$8:$BC$57,37,FALSE) -> 0 | AP29: =VLOOKUP($A29,BSeptembre!$A$8:$BC$57,39,FALSE) -> 0 | AQ29: =VLOOKUP($A29,Bilan!$A$8:$BE$57,41,FALSE) -> 0 | AT29: =IFERROR(SUM((VLOOKUP(Septembre!A29,Données!$H$6:$J$53,3,TRUE)/12)*9),"") -> 
A30: =Données!$H27 -> 0 | AL30: =VLOOKUP($A30,BSeptembre!$A$8:$BC$57,35,FALSE) -> 0 | AM30: =VLOOKUP($A30,BSeptembre!$A$8:$BC$57,36,FALSE) -> 0 | AN30: =VLOOKUP($A30,BSeptembre!$A$8:$BC$57,37,FALSE) -> 0 | AP30: =VLOOKUP($A30,BSeptembre!$A$8:$BC$57,39,FALSE) -> 0 | AQ30: =VLOOKUP($A30,Bilan!$A$8:$BE$57,41,FALSE) -> 0 | AT30: =IFERROR(SUM((VLOOKUP(Septembre!A30,Données!$H$6:$J$53,3,TRUE)/12)*9),"") -> 
A31: =Données!$H28 -> 0 | AL31: =VLOOKUP($A31,BSeptembre!$A$8:$BC$57,35,FALSE) -> 0 | AM31: =VLOOKUP($A31,BSeptembre!$A$8:$BC$57,36,FALSE) -> 0 | AN31: =VLOOKUP($A31,BSeptembre!$A$8:$BC$57,37,FALSE) -> 0 | AP31: =VLOOKUP($A31,BSeptembre!$A$8:$BC$57,39,FALSE) -> 0 | AQ31: =VLOOKUP($A31,Bilan!$A$8:$BE$57,41,FALSE) -> 0 | AT31: =IFERROR(SUM((VLOOKUP(Septembre!A31,Données!$H$6:$J$53,3,TRUE)/12)*9),"") -> 
A32: =Données!$H29 -> 0 | AL32: =VLOOKUP($A32,BSeptembre!$A$8:$BC$57,35,FALSE) -> 0 | AM32: =VLOOKUP($A32,BSeptembre!$A$8:$BC$57,36,FALSE) -> 0 | AN32: =VLOOKUP($A32,BSeptembre!$A$8:$BC$57,37,FALSE) -> 0 | AP32: =VLOOKUP($A32,BSeptembre!$A$8:$BC$57,39,FALSE) -> 0 | AQ32: =VLOOKUP($A32,Bilan!$A$8:$BE$57,41,FALSE) -> 0 | AT32: =IFERROR(SUM((VLOOKUP(Septembre!A32,Données!$H$6:$J$53,3,TRUE)/12)*9),"") -> 
A33: =Données!$H30 -> 0 | AL33: =VLOOKUP($A33,BSeptembre!$A$8:$BC$57,35,FALSE) -> 0 | AM33: =VLOOKUP($A33,BSeptembre!$A$8:$BC$57,36,FALSE) -> 0 | AN33: =VLOOKUP($A33,BSeptembre!$A$8:$BC$57,37,FALSE) -> 0 | AP33: =VLOOKUP($A33,BSeptembre!$A$8:$BC$57,39,FALSE) -> 0 | AQ33: =VLOOKUP($A33,Bilan!$A$8:$BE$57,41,FALSE) -> 0 | AT33: =IFERROR(SUM((VLOOKUP(Septembre!A33,Données!$H$6:$J$53,3,TRUE)/12)*9),"") -> 
A34: =Données!$H31 -> 0 | AL34: =VLOOKUP($A34,BSeptembre!$A$8:$BC$57,35,FALSE) -> 0 | AM34: =VLOOKUP($A34,BSeptembre!$A$8:$BC$57,36,FALSE) -> 0 | AN34: =VLOOKUP($A34,BSeptembre!$A$8:$BC$57,37,FALSE) -> 0 | AP34: =VLOOKUP($A34,BSeptembre!$A$8:$BC$57,39,FALSE) -> 0 | AQ34: =VLOOKUP($A34,Bilan!$A$8:$BE$57,41,FALSE) -> 0 | AT34: =IFERROR(SUM((VLOOKUP(Septembre!A34,Données!$H$6:$J$53,3,TRUE)/12)*9),"") -> 
A35: =Données!$H32 -> Maitresse de maison
A36: =Données!$H33 -> 0 | AL36: =VLOOKUP($A36,BSeptembre!$A$8:$BC$57,35,FALSE) -> 0 | AM36: =VLOOKUP($A36,BSeptembre!$A$8:$BC$57,36,FALSE) -> 0 | AN36: =VLOOKUP($A36,BSeptembre!$A$8:$BC$57,37,FALSE) -> 0 | AP36: =VLOOKUP($A36,BSeptembre!$A$8:$BC$57,39,FALSE) -> 0 | AQ36: =VLOOKUP($A36,Bilan!$A$8:$BE$57,41,FALSE) -> 0 | AT36: =IFERROR(SUM((VLOOKUP(Septembre!A36,Données!$H$6:$J$53,3,TRUE)/12)*9),"") -> 
A37: =Données!$H34 -> 0 | AL37: =VLOOKUP($A37,BSeptembre!$A$8:$BC$57,35,FALSE) -> 0 | AM37: =VLOOKUP($A37,BSeptembre!$A$8:$BC$57,36,FALSE) -> 0 | AN37: =VLOOKUP($A37,BSeptembre!$A$8:$BC$57,37,FALSE) -> 0 | AP37: =VLOOKUP($A37,BSeptembre!$A$8:$BC$57,39,FALSE) -> 0 | AQ37: =VLOOKUP($A37,Bilan!$A$8:$BE$57,41,FALSE) -> 0 | AT37: =IFERROR(SUM((VLOOKUP(Septembre!A37,Données!$H$6:$J$53,3,TRUE)/12)*9),"") -> 
A38: =Données!$H35 -> 0 | AL38: =VLOOKUP($A38,BSeptembre!$A$8:$BC$57,35,FALSE) -> 0 | AM38: =VLOOKUP($A38,BSeptembre!$A$8:$BC$57,36,FALSE) -> 0 | AN38: =VLOOKUP($A38,BSeptembre!$A$8:$BC$57,37,FALSE) -> 0 | AP38: =VLOOKUP($A38,BSeptembre!$A$8:$BC$57,39,FALSE) -> 0 | AQ38: =VLOOKUP($A38,Bilan!$A$8:$BE$57,41,FALSE) -> 0 | AT38: =IFERROR(SUM((VLOOKUP(Septembre!A38,Données!$H$6:$J$53,3,TRUE)/12)*9),"") -> 
A39: =Données!$H36 -> 0 | AL39: =VLOOKUP($A39,BSeptembre!$A$8:$BC$57,35,FALSE) -> 0 | AM39: =VLOOKUP($A39,BSeptembre!$A$8:$BC$57,36,FALSE) -> 0 | AN39: =VLOOKUP($A39,BSeptembre!$A$8:$BC$57,37,FALSE) -> 0 | AP39: =VLOOKUP($A39,BSeptembre!$A$8:$BC$57,39,FALSE) -> 0 | AQ39: =VLOOKUP($A39,Bilan!$A$8:$BE$57,41,FALSE) -> 0 | AT39: =IFERROR(SUM((VLOOKUP(Septembre!A39,Données!$H$6:$J$53,3,TRUE)/12)*9),"") -> 
A40: =Données!$H37 -> 0 | AL40: =VLOOKUP($A40,BSeptembre!$A$8:$BC$57,35,FALSE) -> 0 | AM40: =VLOOKUP($A40,BSeptembre!$A$8:$BC$57,36,FALSE) -> 0 | AN40: =VLOOKUP($A40,BSeptembre!$A$8:$BC$57,37,FALSE) -> 0 | AP40: =VLOOKUP($A40,BSeptembre!$A$8:$BC$57,39,FALSE) -> 0 | AQ40: =VLOOKUP($A40,Bilan!$A$8:$BE$57,41,FALSE) -> 0 | AT40: =IFERROR(SUM((VLOOKUP(Septembre!A40,Données!$H$6:$J$53,3,TRUE)/12)*9),"") -> 
A41: =Données!$H38 -> 0 | AL41: =VLOOKUP($A41,BSeptembre!$A$8:$BC$57,35,FALSE) -> 0 | AM41: =VLOOKUP($A41,BSeptembre!$A$8:$BC$57,36,FALSE) -> 0 | AN41: =VLOOKUP($A41,BSeptembre!$A$8:$BC$57,37,FALSE) -> 0 | AP41: =VLOOKUP($A41,BSeptembre!$A$8:$BC$57,39,FALSE) -> 0 | AQ41: =VLOOKUP($A41,Bilan!$A$8:$BE$57,41,FALSE) -> 0 | AT41: =IFERROR(SUM((VLOOKUP(Septembre!A41,Données!$H$6:$J$53,3,TRUE)/12)*9),"") -> 
A42: =Données!$H39 -> 0 | AL42: =VLOOKUP($A42,BSeptembre!$A$8:$BC$57,35,FALSE) -> 0 | AM42: =VLOOKUP($A42,BSeptembre!$A$8:$BC$57,36,FALSE) -> 0 | AN42: =VLOOKUP($A42,BSeptembre!$A$8:$BC$57,37,FALSE) -> 0 | AP42: =VLOOKUP($A42,BSeptembre!$A$8:$BC$57,39,FALSE) -> 0 | AQ42: =VLOOKUP($A42,Bilan!$A$8:$BE$57,41,FALSE) -> 0 | AT42: =IFERROR(SUM((VLOOKUP(Septembre!A42,Données!$H$6:$J$53,3,TRUE)/12)*9),"") -> 
A43: =Données!$H40 -> 0 | AL43: =VLOOKUP($A43,BSeptembre!$A$8:$BC$57,35,FALSE) -> 0 | AM43: =VLOOKUP($A43,BSeptembre!$A$8:$BC$57,36,FALSE) -> 0 | AN43: =VLOOKUP($A43,BSeptembre!$A$8:$BC$57,37,FALSE) -> 0 | AP43: =VLOOKUP($A43,BSeptembre!$A$8:$BC$57,39,FALSE) -> 0 | AQ43: =VLOOKUP($A43,Bilan!$A$8:$BE$57,41,FALSE) -> 0 | AT43: =IFERROR(SUM((VLOOKUP(Septembre!A43,Données!$H$6:$J$53,3,TRUE)/12)*9),"") -> 
A44: =Données!$H41 -> 0 | AL44: =VLOOKUP($A44,BSeptembre!$A$8:$BC$57,35,FALSE) -> 0 | AM44: =VLOOKUP($A44,BSeptembre!$A$8:$BC$57,36,FALSE) -> 0 | AN44: =VLOOKUP($A44,BSeptembre!$A$8:$BC$57,37,FALSE) -> 0 | AP44: =VLOOKUP($A44,BSeptembre!$A$8:$BC$57,39,FALSE) -> 0 | AQ44: =VLOOKUP($A44,Bilan!$A$8:$BE$57,41,FALSE) -> 0 | AT44: =IFERROR(SUM((VLOOKUP(Septembre!A44,Données!$H$6:$J$53,3,TRUE)/12)*9),"") -> 
A45: =Données!$H42 -> Psychologue
A46: =Données!$H43 -> 0 | AL46: =VLOOKUP($A46,BSeptembre!$A$8:$BC$57,35,FALSE) -> 0 | AM46: =VLOOKUP($A46,BSeptembre!$A$8:$BC$57,36,FALSE) -> 0 | AN46: =VLOOKUP($A46,BSeptembre!$A$8:$BC$57,37,FALSE) -> 0 | AP46: =VLOOKUP($A46,BSeptembre!$A$8:$BC$57,39,FALSE) -> 0 | AQ46: =VLOOKUP($A46,Bilan!$A$8:$BE$57,41,FALSE) -> 0 | AT46: =IFERROR(SUM((VLOOKUP(Septembre!A46,Données!$H$6:$J$53,3,TRUE)/12)*9),"") -> 
A47: =Données!$H44 -> 0 | AL47: =VLOOKUP($A47,BSeptembre!$A$8:$BC$57,35,FALSE) -> 0 | AM47: =VLOOKUP($A47,BSeptembre!$A$8:$BC$57,36,FALSE) -> 0 | AN47: =VLOOKUP($A47,BSeptembre!$A$8:$BC$57,37,FALSE) -> 0 | AP47: =VLOOKUP($A47,BSeptembre!$A$8:$BC$57,39,FALSE) -> 0 | AQ47: =VLOOKUP($A47,Bilan!$A$8:$BE$57,41,FALSE) -> 0 | AT47: =IFERROR(SUM((VLOOKUP(Septembre!A47,Données!$H$6:$J$53,3,TRUE)/12)*9),"") -> 
A48: =Données!$H45 -> 0 | AL48: =VLOOKUP($A48,BSeptembre!$A$8:$BC$57,35,FALSE) -> 0 | AM48: =VLOOKUP($A48,BSeptembre!$A$8:$BC$57,36,FALSE) -> 0 | AN48: =VLOOKUP($A48,BSeptembre!$A$8:$BC$57,37,FALSE) -> 0 | AP48: =VLOOKUP($A48,BSeptembre!$A$8:$BC$57,39,FALSE) -> 0 | AQ48: =VLOOKUP($A48,Bilan!$A$8:$BE$57,41,FALSE) -> 0 | AT48: =IFERROR(SUM((VLOOKUP(Septembre!A48,Données!$H$6:$J$53,3,TRUE)/12)*9),"") -> 
A49: =Données!$H46 -> Coordinatrice
A50: =Données!$H47 -> 0 | AL50: =VLOOKUP($A50,BSeptembre!$A$8:$BC$57,35,FALSE) -> 0 | AM50: =VLOOKUP($A50,BSeptembre!$A$8:$BC$57,36,FALSE) -> 0 | AN50: =VLOOKUP($A50,BSeptembre!$A$8:$BC$57,37,FALSE) -> 0 | AP50: =VLOOKUP($A50,BSeptembre!$A$8:$BC$57,39,FALSE) -> 0 | AQ50: =VLOOKUP($A50,Bilan!$A$8:$BE$57,41,FALSE) -> 0 | AT50: =IFERROR(SUM((VLOOKUP(Septembre!A50,Données!$H$6:$J$53,3,TRUE)/12)*9),"") -> 
A51: =Données!$H48 -> 0 | AL51: =VLOOKUP($A51,BSeptembre!$A$8:$BC$57,35,FALSE) -> 0 | AM51: =VLOOKUP($A51,BSeptembre!$A$8:$BC$57,36,FALSE) -> 0 | AN51: =VLOOKUP($A51,BSeptembre!$A$8:$BC$57,37,FALSE) -> 0 | AP51: =VLOOKUP($A51,BSeptembre!$A$8:$BC$57,39,FALSE) -> 0 | AQ51: =VLOOKUP($A51,Bilan!$A$8:$BE$57,41,FALSE) -> 0 | AT51: =IFERROR(SUM((VLOOKUP(Septembre!A51,Données!$H$6:$J$53,3,TRUE)/12)*9),"") -> 
A52: =Données!$H49 -> 0 | AL52: =VLOOKUP($A52,BSeptembre!$A$8:$BC$57,35,FALSE) -> 0 | AM52: =VLOOKUP($A52,BSeptembre!$A$8:$BC$57,36,FALSE) -> 0 | AN52: =VLOOKUP($A52,BSeptembre!$A$8:$BC$57,37,FALSE) -> 0 | AP52: =VLOOKUP($A52,BSeptembre!$A$8:$BC$57,39,FALSE) -> 0 | AQ52: =VLOOKUP($A52,Bilan!$A$8:$BE$57,41,FALSE) -> 0 | AT52: =IFERROR(SUM((VLOOKUP(Septembre!A52,Données!$H$6:$J$53,3,TRUE)/12)*9),"") -> 
A53: =Données!$H50 -> 0 | AL53: =VLOOKUP($A53,BSeptembre!$A$8:$BC$57,35,FALSE) -> 0 | AM53: =VLOOKUP($A53,BSeptembre!$A$8:$BC$57,36,FALSE) -> 0 | AN53: =VLOOKUP($A53,BSeptembre!$A$8:$BC$57,37,FALSE) -> 0 | AP53: =VLOOKUP($A53,BSeptembre!$A$8:$BC$57,39,FALSE) -> 0 | AQ53: =VLOOKUP($A53,Bilan!$A$8:$BE$57,41,FALSE) -> 0 | AT53: =IFERROR(SUM((VLOOKUP(Septembre!A53,Données!$H$6:$J$53,3,TRUE)/12)*9),"") -> 
A54: =Données!$H51 -> 0 | AL54: =VLOOKUP($A54,BSeptembre!$A$8:$BC$57,35,FALSE) -> 0 | AM54: =VLOOKUP($A54,BSeptembre!$A$8:$BC$57,36,FALSE) -> 0 | AN54: =VLOOKUP($A54,BSeptembre!$A$8:$BC$57,37,FALSE) -> 0 | AP54: =VLOOKUP($A54,BSeptembre!$A$8:$BC$57,39,FALSE) -> 0 | AQ54: =VLOOKUP($A54,Bilan!$A$8:$BE$57,41,FALSE) -> 0 | AT54: =IFERROR(SUM((VLOOKUP(Septembre!A54,Données!$H$6:$J$53,3,TRUE)/12)*9),"") -> 
A55: =Données!$H52 -> Chef de service
A56: =Données!$H53 -> 0 | AL56: =VLOOKUP($A56,BSeptembre!$A$8:$BC$57,35,FALSE) -> 0 | AM56: =VLOOKUP($A56,BSeptembre!$A$8:$BC$57,36,FALSE) -> 0 | AN56: =VLOOKUP($A56,BSeptembre!$A$8:$BC$57,37,FALSE) -> 0 | AP56: =VLOOKUP($A56,BSeptembre!$A$8:$BC$57,39,FALSE) -> 0 | AQ56: =VLOOKUP($A56,Bilan!$A$8:$BE$57,41,FALSE) -> 0 | AT56: =IFERROR(SUM((VLOOKUP(Septembre!A56,Données!$H$6:$J$53,3,TRUE)/12)*9),"") -> 
B58: =Données!$A3 -> S | C58: = | D58: =IF(ISBLANK(Données!$C3),TEXT(Données!$B3,"hh:mm"),TEXT(Données!$B3,"hh:mm")&" : "&TEXT(Données!$C3,"hh:mm")) -> 13:30 : 21:30 | H58: =Données!$A7 -> J+ | I58: = | J58: =IF(ISBLANK(Données!$C7),TEXT(Données!$B7,"hh:mm"),TEXT(Données!$B7,"hh:mm")&" : "&TEXT(Données!$C7,"hh:mm")) -> 09:00 : 21:00 | N58: =Données!$A10 -> N- | O58: = | P58: =IF(ISBLANK(Données!$C10),TEXT(Données!$B10,"hh:mm"),TEXT(Données!$B10,"hh:mm")&" : "&TEXT(Données!$C10,"hh:mm")) -> 20:45 : 07:15 | T58: =Données!$A14 -> AT | U58: = | V58: =IF(ISBLANK(Données!$C14),TEXT(Données!$B14,"hh:mm"),TEXT(Données!$B14,"hh:mm")&" : "&TEXT(Données!$C14,"hh:mm")) -> AT : AT | Z58: =Données!$A18 -> CA | AA58: = | AB58: =IF(ISBLANK(Données!$C18),TEXT(Données!$B18,"hh:mm"),TEXT(Données!$B18,"hh:mm")&" : "&TEXT(Données!$C18,"hh:mm")) -> CA : CA
B59: =Données!$A4 -> M- | C59: = | D59: =IF(ISBLANK(Données!$C4),TEXT(Données!$B4,"hh:mm"),TEXT(Données!$B4,"hh:mm")&" : "&TEXT(Données!$C4,"hh:mm")) -> 07:00 : 15:00 | H59: =Données!$A8 -> RS | I59: = | J59: =IF(ISBLANK(Données!$C8),TEXT(Données!$B8,"hh:mm"),TEXT(Données!$B8,"hh:mm")&" : "&TEXT(Données!$C8,"hh:mm")) -> 09:30 : 21:30 | N59: =Données!$A11 -> N+ | O59: = | P59: =IF(ISBLANK(Données!$C11),TEXT(Données!$B11,"hh:mm"),TEXT(Données!$B11,"hh:mm")&" : "&TEXT(Données!$C11,"hh:mm")) -> 19:15 : 07:15 | T59: =Données!$A15 -> AM | U59: = | V59: =IF(ISBLANK(Données!$C15),TEXT(Données!$B15,"hh:mm"),TEXT(Données!$B15,"hh:mm")&" : "&TEXT(Données!$C15,"hh:mm")) -> AM : AM | Z59: =Données!$A19 -> CA17 | AA59: = | AB59: =IF(ISBLANK(Données!$C19),TEXT(Données!$B19,"hh:mm"),TEXT(Données!$B19,"hh:mm")&" : "&TEXT(Données!$C19,"hh:mm")) -> CA17 : CA17
B60: =Données!$A5 -> M | C60: = | D60: =IF(ISBLANK(Données!$C5),TEXT(Données!$B5,"hh:mm"),TEXT(Données!$B5,"hh:mm")&" : "&TEXT(Données!$C5,"hh:mm")) -> 08:00 : 15:00 | H60: =Données!$A9 -> N | I60: = | J60: =IF(ISBLANK(Données!$C9),TEXT(Données!$B9,"hh:mm"),TEXT(Données!$B9,"hh:mm")&" : "&TEXT(Données!$C9,"hh:mm")) -> 20:45 : 08:15 | N60: =Données!$A12 -> JS | O60: = | P60: =IF(ISBLANK(Données!$C12),TEXT(Données!$B12,"hh:mm"),TEXT(Données!$B12,"hh:mm")&" : "&TEXT(Données!$C12,"hh:mm")) -> 08:00 : 19:00 | T60: =Données!$A16 -> EM | U60: = | V60: =IF(ISBLANK(Données!$C16),TEXT(Données!$B16,"hh:mm"),TEXT(Données!$B16,"hh:mm")&" : "&TEXT(Données!$C16,"hh:mm")) -> EM : EM | Z60: =Données!$A20 -> REC | AA60: = | AB60: =IF(ISBLANK(Données!$C20),TEXT(Données!$B20,"hh:mm"),TEXT(Données!$B20,"hh:mm")&" : "&TEXT(Données!$C20,"hh:mm")) -> REC : REC
B61: =Données!$A6 -> J | C61: = | D61: =IF(ISBLANK(Données!$C6),TEXT(Données!$B6,"hh:mm"),TEXT(Données!$B6,"hh:mm")&" : "&TEXT(Données!$C6,"hh:mm")) -> 09:00 : 16:30 | H61: =Données!$A10 -> N- | I61: = | J61: =IF(ISBLANK(Données!$C10),TEXT(Données!$B10,"hh:mm"),TEXT(Données!$B10,"hh:mm")&" : "&TEXT(Données!$C10,"hh:mm")) -> 20:45 : 07:15 | N61: =Données!$A13 -> SYN | O61: = | P61: =IF(ISBLANK(Données!$C13),TEXT(Données!$B13,"hh:mm"),TEXT(Données!$B13,"hh:mm")&" : "&TEXT(Données!$C13,"hh:mm")) -> Syn : Syn | T61: =Données!$A17 -> CE | U61: = | V61: =IF(ISBLANK(Données!$C17),TEXT(Données!$B17,"hh:mm"),TEXT(Données!$B17,"hh:mm")&" : "&TEXT(Données!$C17,"hh:mm")) -> CE : CE | Z61: =Données!$A21 -> PL | AA61: = | AB61: =IF(ISBLANK(Données!$C21),TEXT(Données!$B21,"hh:mm"),TEXT(Données!$B21,"hh:mm")&" : "&TEXT(Données!$C21,"hh:mm")) -> PL : PL

Sheet Octobre
B2: =DATE(An,Octobre,B7) -> 2018-10-01 | C2: 2018-10-02 | D2: 2018-10-03 | E2: 2018-10-04 | F2: 2018-10-05 | G2: 2018-10-06 | H2: 2018-10-07 | I2: 2018-10-08 | J2: 2018-10-09 | K2: 2018-10-10 | L2: 2018-10-11 | M2: 2018-10-12 | N2: 2018-10-13 | O2: 2018-10-14 | P2: 2018-10-15 | Q2: 2018-10-16 | R2: 2018-10-17 | S2: 2018-10-18 | T2: 2018-10-19 | U2: 2018-10-20 | V2: 2018-10-21 | W2: 2018-10-22 | X2: 2018-10-23 | Y2: 2018-10-24 | Z2: 2018-10-25 | AA2: 2018-10-26 | AB2: 2018-10-27 | AC2: 2018-10-28 | AD2: 2018-10-29 | AE2: 2018-10-30 | AF2: 2018-10-31 | AI2: Pour remplir | AJ2: penser | AO2: =IF(ISNUMBER(AO7),DATE(An,Octobre,AO7),"") ->  | AP2: =IF(ISNUMBER(AP7),DATE(An,Octobre,AP7),"") -> 
A3: =IF(Données!$L$5="","Service",Données!$L$5) -> Service | K3: Mois d'Octobre | P3: =An -> 2018 | AI3: à mettre dans le format:
AI4: "heures":"Minutes" | AT4: Masse horraire previsionnel
AI5: Heures sup | AJ5: Heures sup | AL5: Indications | AM5: Indications | AN5: Indications | AP5: Total
A6: Jours | B6: =PROPER(LEFT(TEXT(DATE(An,Octobre,B7),"jjj"),1)) -> L | C6: M | D6: M | E6: J | F6: V | G6: S | H6: D | I6: L | J6: M | K6: M | L6: J | M6: V | N6: S | O6: D | P6: L | Q6: M | R6: M | S6: J | T6: V | U6: S | V6: D | W6: L | X6: M | Y6: M | Z6: J | AA6: V | AB6: S | AC6: D | AD6: L | AE6: M | AF6: M | AI6: avant 21h | AJ6: après 21h | AL6: Heures | AM6: Heures nuit | AN6: Heures | AP6: Heures | AQ6: Heures
B7: =A7+1 -> 1 | C7: 2 | D7: 3 | E7: 4 | F7: 5 | G7: 6 | H7: 7 | I7: 8 | J7: 9 | K7: 10 | L7: 11 | M7: 12 | N7: 13 | O7: 14 | P7: 15 | Q7: 16 | R7: 17 | S7: 18 | T7: 19 | U7: 20 | V7: 21 | W7: 22 | X7: 23 | Y7: 24 | Z7: 25 | AA7: 26 | AB7: 27 | AC7: 28 | AD7: 29 | AE7: 30 | AF7: =AE7+1 -> 31 | AI7: A remplir | AJ7: A remplir | AL7: Dimanche | AM7: Dimanche | AN7: après 21h | AP7: au mois | AQ7: a l'année | AT7: i
A8: Equipe de jour
A9: =Données!$H6 -> A | AL9: =VLOOKUP($A9,BOctobre!$A$8:$BC$57,35,FALSE) -> 0 | AM9: =VLOOKUP($A9,BOctobre!$A$8:$BC$57,36,FALSE) -> 0 | AN9: =VLOOKUP($A9,BOctobre!$A$8:$BC$57,37,FALSE) -> 0 | AP9: =VLOOKUP($A9,BOctobre!$A$8:$BC$57,39,FALSE) -> 0 | AQ9: =VLOOKUP($A9,Bilan!$A$8:$BE$57,41,FALSE) -> 5.533333333 | AT9: =IFERROR(SUM((VLOOKUP(Octobre!A9,Données!$H$6:$J$53,3,TRUE)/12)*10),"") -> 50.2974537
A10: =Données!$H7 -> B | AL10: =VLOOKUP($A10,BOctobre!$A$8:$BC$57,35,FALSE) -> 0 | AM10: =VLOOKUP($A10,BOctobre!$A$8:$BC$57,36,FALSE) -> 0 | AN10: =VLOOKUP($A10,BOctobre!$A$8:$BC$57,37,FALSE) -> 0 | AP10: =VLOOKUP($A10,BOctobre!$A$8:$BC$57,39,FALSE) -> 0 | AQ10: =VLOOKUP($A10,Bilan!$A$8:$BE$57,41,FALSE) -> 0 | AT10: =IFERROR(SUM((VLOOKUP(Octobre!A10,Données!$H$6:$J$53,3,TRUE)/12)*10),"") -> 
A11: =Données!$H8 -> L | AL11: =VLOOKUP($A11,BOctobre!$A$8:$BC$57,35,FALSE) -> 0 | AM11: =VLOOKUP($A11,BOctobre!$A$8:$BC$57,36,FALSE) -> 0 | AN11: =VLOOKUP($A11,BOctobre!$A$8:$BC$57,37,FALSE) -> 0 | AP11: =VLOOKUP($A11,BOctobre!$A$8:$BC$57,39,FALSE) -> 0 | AQ11: =VLOOKUP($A11,Bilan!$A$8:$BE$57,41,FALSE) -> 0 | AT11: =IFERROR(SUM((VLOOKUP(Octobre!A11,Données!$H$6:$J$53,3,TRUE)/12)*10),"") -> 0
A12: =Données!$H9 -> L | AL12: =VLOOKUP($A12,BOctobre!$A$8:$BC$57,35,FALSE) -> 0 | AM12: =VLOOKUP($A12,BOctobre!$A$8:$BC$57,36,FALSE) -> 0 | AN12: =VLOOKUP($A12,BOctobre!$A$8:$BC$57,37,FALSE) -> 0 | AP12: =VLOOKUP($A12,BOctobre!$A$8:$BC$57,39,FALSE) -> 0 | AQ12: =VLOOKUP($A12,Bilan!$A$8:$BE$57,41,FALSE) -> 0 | AT12: =IFERROR(SUM((VLOOKUP(Octobre!A12,Données!$H$6:$J$53,3,TRUE)/12)*10),"") -> 0
A13: =Données!$H10 -> 0 | AL13: =VLOOKUP($A13,BOctobre!$A$8:$BC$57,35,FALSE) -> 0 | AM13: =VLOOKUP($A13,BOctobre!$A$8:$BC$57,36,FALSE) -> 0 | AN13: =VLOOKUP($A13,BOctobre!$A$8:$BC$57,37,FALSE) -> 0 | AP13: =VLOOKUP($A13,BOctobre!$A$8:$BC$57,39,FALSE) -> 0 | AQ13: =VLOOKUP($A13,Bilan!$A$8:$BE$57,41,FALSE) -> 0 | AT13: =IFERROR(SUM((VLOOKUP(Octobre!A13,Données!$H$6:$J$53,3,TRUE)/12)*10),"") -> 
A14: =Données!$H11 -> 0 | AL14: =VLOOKUP($A14,BOctobre!$A$8:$BC$57,35,FALSE) -> 0 | AM14: =VLOOKUP($A14,BOctobre!$A$8:$BC$57,36,FALSE) -> 0 | AN14: =VLOOKUP($A14,BOctobre!$A$8:$BC$57,37,FALSE) -> 0 | AP14: =VLOOKUP($A14,BOctobre!$A$8:$BC$57,39,FALSE) -> 0 | AQ14: =VLOOKUP($A14,Bilan!$A$8:$BE$57,41,FALSE) -> 0 | AT14: =IFERROR(SUM((VLOOKUP(Octobre!A14,Données!$H$6:$J$53,3,TRUE)/12)*10),"") -> 
A15: =Données!$H12 -> 0 | AL15: =VLOOKUP($A15,BOctobre!$A$8:$BC$57,35,FALSE) -> 0 | AM15: =VLOOKUP($A15,BOctobre!$A$8:$BC$57,36,FALSE) -> 0 | AN15: =VLOOKUP($A15,BOctobre!$A$8:$BC$57,37,FALSE) -> 0 | AP15: =VLOOKUP($A15,BOctobre!$A$8:$BC$57,39,FALSE) -> 0 | AQ15: =VLOOKUP($A15,Bilan!$A$8:$BE$57,41,FALSE) -> 0 | AT15: =IFERROR(SUM((VLOOKUP(Octobre!A15,Données!$H$6:$J$53,3,TRUE)/12)*10),"") -> 
A16: =Données!$H13 -> 0 | AL16: =VLOOKUP($A16,BOctobre!$A$8:$BC$57,35,FALSE) -> 0 | AM16: =VLOOKUP($A16,BOctobre!$A$8:$BC$57,36,FALSE) -> 0 | AN16: =VLOOKUP($A16,BOctobre!$A$8:$BC$57,37,FALSE) -> 0 | AP16: =VLOOKUP($A16,BOctobre!$A$8:$BC$57,39,FALSE) -> 0 | AQ16: =VLOOKUP($A16,Bilan!$A$8:$BE$57,41,FALSE) -> 0 | AT16: =IFERROR(SUM((VLOOKUP(Octobre!A16,Données!$H$6:$J$53,3,TRUE)/12)*10),"") -> 
A17: =Données!$H14 -> 0 | AL17: =VLOOKUP($A17,BOctobre!$A$8:$BC$57,35,FALSE) -> 0 | AM17: =VLOOKUP($A17,BOctobre!$A$8:$BC$57,36,FALSE) -> 0 | AN17: =VLOOKUP($A17,BOctobre!$A$8:$BC$57,37,FALSE) -> 0 | AP17: =VLOOKUP($A17,BOctobre!$A$8:$BC$57,39,FALSE) -> 0 | AQ17: =VLOOKUP($A17,Bilan!$A$8:$BE$57,41,FALSE) -> 0 | AT17: =IFERROR(SUM((VLOOKUP(Octobre!A17,Données!$H$6:$J$53,3,TRUE)/12)*10),"") -> 
A18: =Données!$H15 -> 0 | AL18: =VLOOKUP($A18,BOctobre!$A$8:$BC$57,35,FALSE) -> 0 | AM18: =VLOOKUP($A18,BOctobre!$A$8:$BC$57,36,FALSE) -> 0 | AN18: =VLOOKUP($A18,BOctobre!$A$8:$BC$57,37,FALSE) -> 0 | AP18: =VLOOKUP($A18,BOctobre!$A$8:$BC$57,39,FALSE) -> 0 | AQ18: =VLOOKUP($A18,Bilan!$A$8:$BE$57,41,FALSE) -> 0 | AT18: =IFERROR(SUM((VLOOKUP(Octobre!A18,Données!$H$6:$J$53,3,TRUE)/12)*10),"") -> 
A19: =Données!$H16 -> 0 | AL19: =VLOOKUP($A19,BOctobre!$A$8:$BC$57,35,FALSE) -> 0 | AM19: =VLOOKUP($A19,BOctobre!$A$8:$BC$57,36,FALSE) -> 0 | AN19: =VLOOKUP($A19,BOctobre!$A$8:$BC$57,37,FALSE) -> 0 | AP19: =VLOOKUP($A19,BOctobre!$A$8:$BC$57,39,FALSE) -> 0 | AQ19: =VLOOKUP($A19,Bilan!$A$8:$BE$57,41,FALSE) -> 0 | AT19: =IFERROR(SUM((VLOOKUP(Octobre!A19,Données!$H$6:$J$53,3,TRUE)/12)*10),"") -> 
A20: =Données!$H17 -> 0 | AL20: =VLOOKUP($A20,BOctobre!$A$8:$BC$57,35,FALSE) -> 0 | AM20: =VLOOKUP($A20,BOctobre!$A$8:$BC$57,36,FALSE) -> 0 | AN20: =VLOOKUP($A20,BOctobre!$A$8:$BC$57,37,FALSE) -> 0 | AP20: =VLOOKUP($A20,BOctobre!$A$8:$BC$57,39,FALSE) -> 0 | AQ20: =VLOOKUP($A20,Bilan!$A$8:$BE$57,41,FALSE) -> 0 | AT20: =IFERROR(SUM((VLOOKUP(Octobre!A20,Données!$H$6:$J$53,3,TRUE)/12)*10),"") -> 
A21: =Données!$H18 -> 0 | AL21: =VLOOKUP($A21,BOctobre!$A$8:$BC$57,35,FALSE) -> 0 | AM21: =VLOOKUP($A21,BOctobre!$A$8:$BC$57,36,FALSE) -> 0 | AN21: =VLOOKUP($A21,BOctobre!$A$8:$BC$57,37,FALSE) -> 0 | AP21: =VLOOKUP($A21,BOctobre!$A$8:$BC$57,39,FALSE) -> 0 | AQ21: =VLOOKUP($A21,Bilan!$A$8:$BE$57,41,FALSE) -> 0 | AT21: =IFERROR(SUM((VLOOKUP(Octobre!A21,Données!$H$6:$J$53,3,TRUE)/12)*10),"") -> 
A22: =Données!$H19 -> 0 | AL22: =VLOOKUP($A22,BOctobre!$A$8:$BC$57,35,FALSE) -> 0 | AM22: =VLOOKUP($A22,BOctobre!$A$8:$BC$57,36,FALSE) -> 0 | AN22: =VLOOKUP($A22,BOctobre!$A$8:$BC$57,37,FALSE) -> 0 | AP22: =VLOOKUP($A22,BOctobre!$A$8:$BC$57,39,FALSE) -> 0 | AQ22: =VLOOKUP($A22,Bilan!$A$8:$BE$57,41,FALSE) -> 0 | AT22: =IFERROR(SUM((VLOOKUP(Octobre!A22,Données!$H$6:$J$53,3,TRUE)/12)*10),"") -> 
A23: =Données!$H20 -> 0 | AL23: =VLOOKUP($A23,BOctobre!$A$8:$BC$57,35,FALSE) -> 0 | AM23: =VLOOKUP($A23,BOctobre!$A$8:$BC$57,36,FALSE) -> 0 | AN23: =VLOOKUP($A23,BOctobre!$A$8:$BC$57,37,FALSE) -> 0 | AP23: =VLOOKUP($A23,BOctobre!$A$8:$BC$57,39,FALSE) -> 0 | AQ23: =VLOOKUP($A23,Bilan!$A$8:$BE$57,41,FALSE) -> 0 | AT23: =IFERROR(SUM((VLOOKUP(Octobre!A23,Données!$H$6:$J$53,3,TRUE)/12)*10),"") -> 
A24: =Données!$H21 -> 0 | AL24: =VLOOKUP($A24,BOctobre!$A$8:$BC$57,35,FALSE) -> 0 | AM24: =VLOOKUP($A24,BOctobre!$A$8:$BC$57,36,FALSE) -> 0 | AN24: =VLOOKUP($A24,BOctobre!$A$8:$BC$57,37,FALSE) -> 0 | AP24: =VLOOKUP($A24,BOctobre!$A$8:$BC$57,39,FALSE) -> 0 | AQ24: =VLOOKUP($A24,Bilan!$A$8:$BE$57,41,FALSE) -> 0 | AT24: =IFERROR(SUM((VLOOKUP(Octobre!A24,Données!$H$6:$J$53,3,TRUE)/12)*10),"") -> 
A25: =Données!$H22 -> Equipe de nuit
A26: =Données!$H23 -> 0 | AL26: =VLOOKUP($A26,BOctobre!$A$8:$BC$57,35,FALSE) -> 0 | AM26: =VLOOKUP($A26,BOctobre!$A$8:$BC$57,36,FALSE) -> 0 | AN26: =VLOOKUP($A26,BOctobre!$A$8:$BC$57,37,FALSE) -> 0 | AP26: =VLOOKUP($A26,BOctobre!$A$8:$BC$57,39,FALSE) -> 0 | AQ26: =VLOOKUP($A26,Bilan!$A$8:$BE$57,41,FALSE) -> 0 | AT26: =IFERROR(SUM((VLOOKUP(Octobre!A26,Données!$H$6:$J$53,3,TRUE)/12)*10),"") -> 
A27: =Données!$H24 -> 0 | AL27: =VLOOKUP($A27,BOctobre!$A$8:$BC$57,35,FALSE) -> 0 | AM27: =VLOOKUP($A27,BOctobre!$A$8:$BC$57,36,FALSE) -> 0 | AN27: =VLOOKUP($A27,BOctobre!$A$8:$BC$57,37,FALSE) -> 0 | AP27: =VLOOKUP($A27,BOctobre!$A$8:$BC$57,39,FALSE) -> 0 | AQ27: =VLOOKUP($A27,Bilan!$A$8:$BE$57,41,FALSE) -> 0 | AT27: =IFERROR(SUM((VLOOKUP(Octobre!A27,Données!$H$6:$J$53,3,TRUE)/12)*10),"") -> 
A28: =Données!$H25 -> 0 | AL28: =VLOOKUP($A28,BOctobre!$A$8:$BC$57,35,FALSE) -> 0 | AM28: =VLOOKUP($A28,BOctobre!$A$8:$BC$57,36,FALSE) -> 0 | AN28: =VLOOKUP($A28,BOctobre!$A$8:$BC$57,37,FALSE) -> 0 | AP28: =VLOOKUP($A28,BOctobre!$A$8:$BC$57,39,FALSE) -> 0 | AQ28: =VLOOKUP($A28,Bilan!$A$8:$BE$57,41,FALSE) -> 0 | AT28: =IFERROR(SUM((VLOOKUP(Octobre!A28,Données!$H$6:$J$53,3,TRUE)/12)*10),"") -> 
A29: =Données!$H26 -> 0 | AL29: =VLOOKUP($A29,BOctobre!$A$8:$BC$57,35,FALSE) -> 0 | AM29: =VLOOKUP($A29,BOctobre!$A$8:$BC$57,36,FALSE) -> 0 | AN29: =VLOOKUP($A29,BOctobre!$A$8:$BC$57,37,FALSE) -> 0 | AP29: =VLOOKUP($A29,BOctobre!$A$8:$BC$57,39,FALSE) -> 0 | AQ29: =VLOOKUP($A29,Bilan!$A$8:$BE$57,41,FALSE) -> 0 | AT29: =IFERROR(SUM((VLOOKUP(Octobre!A29,Données!$H$6:$J$53,3,TRUE)/12)*10),"") -> 
A30: =Données!$H27 -> 0 | AL30: =VLOOKUP($A30,BOctobre!$A$8:$BC$57,35,FALSE) -> 0 | AM30: =VLOOKUP($A30,BOctobre!$A$8:$BC$57,36,FALSE) -> 0 | AN30: =VLOOKUP($A30,BOctobre!$A$8:$BC$57,37,FALSE) -> 0 | AP30: =VLOOKUP($A30,BOctobre!$A$8:$BC$57,39,FALSE) -> 0 | AQ30: =VLOOKUP($A30,Bilan!$A$8:$BE$57,41,FALSE) -> 0 | AT30: =IFERROR(SUM((VLOOKUP(Octobre!A30,Données!$H$6:$J$53,3,TRUE)/12)*10),"") -> 
A31: =Données!$H28 -> 0 | AL31: =VLOOKUP($A31,BOctobre!$A$8:$BC$57,35,FALSE) -> 0 | AM31: =VLOOKUP($A31,BOctobre!$A$8:$BC$57,36,FALSE) -> 0 | AN31: =VLOOKUP($A31,BOctobre!$A$8:$BC$57,37,FALSE) -> 0 | AP31: =VLOOKUP($A31,BOctobre!$A$8:$BC$57,39,FALSE) -> 0 | AQ31: =VLOOKUP($A31,Bilan!$A$8:$BE$57,41,FALSE) -> 0 | AT31: =IFERROR(SUM((VLOOKUP(Octobre!A31,Données!$H$6:$J$53,3,TRUE)/12)*10),"") -> 
A32: =Données!$H29 -> 0 | AL32: =VLOOKUP($A32,BOctobre!$A$8:$BC$57,35,FALSE) -> 0 | AM32: =VLOOKUP($A32,BOctobre!$A$8:$BC$57,36,FALSE) -> 0 | AN32: =VLOOKUP($A32,BOctobre!$A$8:$BC$57,37,FALSE) -> 0 | AP32: =VLOOKUP($A32,BOctobre!$A$8:$BC$57,39,FALSE) -> 0 | AQ32: =VLOOKUP($A32,Bilan!$A$8:$BE$57,41,FALSE) -> 0 | AT32: =IFERROR(SUM((VLOOKUP(Octobre!A32,Données!$H$6:$J$53,3,TRUE)/12)*10),"") -> 
A33: =Données!$H30 -> 0 | AL33: =VLOOKUP($A33,BOctobre!$A$8:$BC$57,35,FALSE) -> 0 | AM33: =VLOOKUP($A33,BOctobre!$A$8:$BC$57,36,FALSE) -> 0 | AN33: =VLOOKUP($A33,BOctobre!$A$8:$BC$57,37,FALSE) -> 0 | AP33: =VLOOKUP($A33,BOctobre!$A$8:$BC$57,39,FALSE) -> 0 | AQ33: =VLOOKUP($A33,Bilan!$A$8:$BE$57,41,FALSE) -> 0 | AT33: =IFERROR(SUM((VLOOKUP(Octobre!A33,Données!$H$6:$J$53,3,TRUE)/12)*10),"") -> 
A34: =Données!$H31 -> 0 | AL34: =VLOOKUP($A34,BOctobre!$A$8:$BC$57,35,FALSE) -> 0 | AM34: =VLOOKUP($A34,BOctobre!$A$8:$BC$57,36,FALSE) -> 0 | AN34: =VLOOKUP($A34,BOctobre!$A$8:$BC$57,37,FALSE) -> 0 | AP34: =VLOOKUP($A34,BOctobre!$A$8:$BC$57,39,FALSE) -> 0 | AQ34: =VLOOKUP($A34,Bilan!$A$8:$BE$57,41,FALSE) -> 0 | AT34: =IFERROR(SUM((VLOOKUP(Octobre!A34,Données!$H$6:$J$53,3,TRUE)/12)*10),"") -> 
A35: =Données!$H32 -> Maitresse de maison
A36: =Données!$H33 -> 0 | AL36: =VLOOKUP($A36,BOctobre!$A$8:$BC$57,35,FALSE) -> 0 | AM36: =VLOOKUP($A36,BOctobre!$A$8:$BC$57,36,FALSE) -> 0 | AN36: =VLOOKUP($A36,BOctobre!$A$8:$BC$57,37,FALSE) -> 0 | AP36: =VLOOKUP($A36,BOctobre!$A$8:$BC$57,39,FALSE) -> 0 | AQ36: =VLOOKUP($A36,Bilan!$A$8:$BE$57,41,FALSE) -> 0 | AT36: =IFERROR(SUM((VLOOKUP(Octobre!A36,Données!$H$6:$J$53,3,TRUE)/12)*10),"") -> 
A37: =Données!$H34 -> 0 | AL37: =VLOOKUP($A37,BOctobre!$A$8:$BC$57,35,FALSE) -> 0 | AM37: =VLOOKUP($A37,BOctobre!$A$8:$BC$57,36,FALSE) -> 0 | AN37: =VLOOKUP($A37,BOctobre!$A$8:$BC$57,37,FALSE) -> 0 | AP37: =VLOOKUP($A37,BOctobre!$A$8:$BC$57,39,FALSE) -> 0 | AQ37: =VLOOKUP($A37,Bilan!$A$8:$BE$57,41,FALSE) -> 0 | AT37: =IFERROR(SUM((VLOOKUP(Octobre!A37,Données!$H$6:$J$53,3,TRUE)/12)*10),"") -> 
A38: =Données!$H35 -> 0 | AL38: =VLOOKUP($A38,BOctobre!$A$8:$BC$57,35,FALSE) -> 0 | AM38: =VLOOKUP($A38,BOctobre!$A$8:$BC$57,36,FALSE) -> 0 | AN38: =VLOOKUP($A38,BOctobre!$A$8:$BC$57,37,FALSE) -> 0 | AP38: =VLOOKUP($A38,BOctobre!$A$8:$BC$57,39,FALSE) -> 0 | AQ38: =VLOOKUP($A38,Bilan!$A$8:$BE$57,41,FALSE) -> 0 | AT38: =IFERROR(SUM((VLOOKUP(Octobre!A38,Données!$H$6:$J$53,3,TRUE)/12)*10),"") -> 
A39: =Données!$H36 -> 0 | AL39: =VLOOKUP($A39,BOctobre!$A$8:$BC$57,35,FALSE) -> 0 | AM39: =VLOOKUP($A39,BOctobre!$A$8:$BC$57,36,FALSE) -> 0 | AN39: =VLOOKUP($A39,BOctobre!$A$8:$BC$57,37,FALSE) -> 0 | AP39: =VLOOKUP($A39,BOctobre!$A$8:$BC$57,39,FALSE) -> 0 | AQ39: =VLOOKUP($A39,Bilan!$A$8:$BE$57,41,FALSE) -> 0 | AT39: =IFERROR(SUM((VLOOKUP(Octobre!A39,Données!$H$6:$J$53,3,TRUE)/12)*10),"") -> 
A40: =Données!$H37 -> 0 | AL40: =VLOOKUP($A40,BOctobre!$A$8:$BC$57,35,FALSE) -> 0 | AM40: =VLOOKUP($A40,BOctobre!$A$8:$BC$57,36,FALSE) -> 0 | AN40: =VLOOKUP($A40,BOctobre!$A$8:$BC$57,37,FALSE) -> 0 | AP40: =VLOOKUP($A40,BOctobre!$A$8:$BC$57,39,FALSE) -> 0 | AQ40: =VLOOKUP($A40,Bilan!$A$8:$BE$57,41,FALSE) -> 0 | AT40: =IFERROR(SUM((VLOOKUP(Octobre!A40,Données!$H$6:$J$53,3,TRUE)/12)*10),"") -> 
A41: =Données!$H38 -> 0 | AL41: =VLOOKUP($A41,BOctobre!$A$8:$BC$57,35,FALSE) -> 0 | AM41: =VLOOKUP($A41,BOctobre!$A$8:$BC$57,36,FALSE) -> 0 | AN41: =VLOOKUP($A41,BOctobre!$A$8:$BC$57,37,FALSE) -> 0 | AP41: =VLOOKUP($A41,BOctobre!$A$8:$BC$57,39,FALSE) -> 0 | AQ41: =VLOOKUP($A41,Bilan!$A$8:$BE$57,41,FALSE) -> 0 | AT41: =IFERROR(SUM((VLOOKUP(Octobre!A41,Données!$H$6:$J$53,3,TRUE)/12)*10),"") -> 
A42: =Données!$H39 -> 0 | AL42: =VLOOKUP($A42,BOctobre!$A$8:$BC$57,35,FALSE) -> 0 | AM42: =VLOOKUP($A42,BOctobre!$A$8:$BC$57,36,FALSE) -> 0 | AN42: =VLOOKUP($A42,BOctobre!$A$8:$BC$57,37,FALSE) -> 0 | AP42: =VLOOKUP($A42,BOctobre!$A$8:$BC$57,39,FALSE) -> 0 | AQ42: =VLOOKUP($A42,Bilan!$A$8:$BE$57,41,FALSE) -> 0 | AT42: =IFERROR(SUM((VLOOKUP(Octobre!A42,Données!$H$6:$J$53,3,TRUE)/12)*10),"") -> 
A43: =Données!$H40 -> 0 | AL43: =VLOOKUP($A43,BOctobre!$A$8:$BC$57,35,FALSE) -> 0 | AM43: =VLOOKUP($A43,BOctobre!$A$8:$BC$57,36,FALSE) -> 0 | AN43: =VLOOKUP($A43,BOctobre!$A$8:$BC$57,37,FALSE) -> 0 | AP43: =VLOOKUP($A43,BOctobre!$A$8:$BC$57,39,FALSE) -> 0 | AQ43: =VLOOKUP($A43,Bilan!$A$8:$BE$57,41,FALSE) -> 0 | AT43: =IFERROR(SUM((VLOOKUP(Octobre!A43,Données!$H$6:$J$53,3,TRUE)/12)*10),"") -> 
A44: =Données!$H41 -> 0 | AL44: =VLOOKUP($A44,BOctobre!$A$8:$BC$57,35,FALSE) -> 0 | AM44: =VLOOKUP($A44,BOctobre!$A$8:$BC$57,36,FALSE) -> 0 | AN44: =VLOOKUP($A44,BOctobre!$A$8:$BC$57,37,FALSE) -> 0 | AP44: =VLOOKUP($A44,BOctobre!$A$8:$BC$57,39,FALSE) -> 0 | AQ44: =VLOOKUP($A44,Bilan!$A$8:$BE$57,41,FALSE) -> 0 | AT44: =IFERROR(SUM((VLOOKUP(Octobre!A44,Données!$H$6:$J$53,3,TRUE)/12)*10),"") -> 
A45: =Données!$H42 -> Psychologue
A46: =Données!$H43 -> 0 | AL46: =VLOOKUP($A46,BOctobre!$A$8:$BC$57,35,FALSE) -> 0 | AM46: =VLOOKUP($A46,BOctobre!$A$8:$BC$57,36,FALSE) -> 0 | AN46: =VLOOKUP($A46,BOctobre!$A$8:$BC$57,37,FALSE) -> 0 | AP46: =VLOOKUP($A46,BOctobre!$A$8:$BC$57,39,FALSE) -> 0 | AQ46: =VLOOKUP($A46,Bilan!$A$8:$BE$57,41,FALSE) -> 0 | AT46: =IFERROR(SUM((VLOOKUP(Octobre!A46,Données!$H$6:$J$53,3,TRUE)/12)*10),"") -> 
A47: =Données!$H44 -> 0 | AL47: =VLOOKUP($A47,BOctobre!$A$8:$BC$57,35,FALSE) -> 0 | AM47: =VLOOKUP($A47,BOctobre!$A$8:$BC$57,36,FALSE) -> 0 | AN47: =VLOOKUP($A47,BOctobre!$A$8:$BC$57,37,FALSE) -> 0 | AP47: =VLOOKUP($A47,BOctobre!$A$8:$BC$57,39,FALSE) -> 0 | AQ47: =VLOOKUP($A47,Bilan!$A$8:$BE$57,41,FALSE) -> 0 | AT47: =IFERROR(SUM((VLOOKUP(Octobre!A47,Données!$H$6:$J$53,3,TRUE)/12)*10),"") -> 
A48: =Données!$H45 -> 0 | AL48: =VLOOKUP($A48,BOctobre!$A$8:$BC$57,35,FALSE) -> 0 | AM48: =VLOOKUP($A48,BOctobre!$A$8:$BC$57,36,FALSE) -> 0 | AN48: =VLOOKUP($A48,BOctobre!$A$8:$BC$57,37,FALSE) -> 0 | AP48: =VLOOKUP($A48,BOctobre!$A$8:$BC$57,39,FALSE) -> 0 | AQ48: =VLOOKUP($A48,Bilan!$A$8:$BE$57,41,FALSE) -> 0 | AT48: =IFERROR(SUM((VLOOKUP(Octobre!A48,Données!$H$6:$J$53,3,TRUE)/12)*10),"") -> 
A49: =Données!$H46 -> Coordinatrice
A50: =Données!$H47 -> 0 | AL50: =VLOOKUP($A50,BOctobre!$A$8:$BC$57,35,FALSE) -> 0 | AM50: =VLOOKUP($A50,BOctobre!$A$8:$BC$57,36,FALSE) -> 0 | AN50: =VLOOKUP($A50,BOctobre!$A$8:$BC$57,37,FALSE) -> 0 | AP50: =VLOOKUP($A50,BOctobre!$A$8:$BC$57,39,FALSE) -> 0 | AQ50: =VLOOKUP($A50,Bilan!$A$8:$BE$57,41,FALSE) -> 0 | AT50: =IFERROR(SUM((VLOOKUP(Octobre!A50,Données!$H$6:$J$53,3,TRUE)/12)*10),"") -> 
A51: =Données!$H48 -> 0 | AL51: =VLOOKUP($A51,BOctobre!$A$8:$BC$57,35,FALSE) -> 0 | AM51: =VLOOKUP($A51,BOctobre!$A$8:$BC$57,36,FALSE) -> 0 | AN51: =VLOOKUP($A51,BOctobre!$A$8:$BC$57,37,FALSE) -> 0 | AP51: =VLOOKUP($A51,BOctobre!$A$8:$BC$57,39,FALSE) -> 0 | AQ51: =VLOOKUP($A51,Bilan!$A$8:$BE$57,41,FALSE) -> 0 | AT51: =IFERROR(SUM((VLOOKUP(Octobre!A51,Données!$H$6:$J$53,3,TRUE)/12)*10),"") -> 
A52: =Données!$H49 -> 0 | AL52: =VLOOKUP($A52,BOctobre!$A$8:$BC$57,35,FALSE) -> 0 | AM52: =VLOOKUP($A52,BOctobre!$A$8:$BC$57,36,FALSE) -> 0 | AN52: =VLOOKUP($A52,BOctobre!$A$8:$BC$57,37,FALSE) -> 0 | AP52: =VLOOKUP($A52,BOctobre!$A$8:$BC$57,39,FALSE) -> 0 | AQ52: =VLOOKUP($A52,Bilan!$A$8:$BE$57,41,FALSE) -> 0 | AT52: =IFERROR(SUM((VLOOKUP(Octobre!A52,Données!$H$6:$J$53,3,TRUE)/12)*10),"") -> 
A53: =Données!$H50 -> 0 | AL53: =VLOOKUP($A53,BOctobre!$A$8:$BC$57,35,FALSE) -> 0 | AM53: =VLOOKUP($A53,BOctobre!$A$8:$BC$57,36,FALSE) -> 0 | AN53: =VLOOKUP($A53,BOctobre!$A$8:$BC$57,37,FALSE) -> 0 | AP53: =VLOOKUP($A53,BOctobre!$A$8:$BC$57,39,FALSE) -> 0 | AQ53: =VLOOKUP($A53,Bilan!$A$8:$BE$57,41,FALSE) -> 0 | AT53: =IFERROR(SUM((VLOOKUP(Octobre!A53,Données!$H$6:$J$53,3,TRUE)/12)*10),"") -> 
A54: =Données!$H51 -> 0 | AL54: =VLOOKUP($A54,BOctobre!$A$8:$BC$57,35,FALSE) -> 0 | AM54: =VLOOKUP($A54,BOctobre!$A$8:$BC$57,36,FALSE) -> 0 | AN54: =VLOOKUP($A54,BOctobre!$A$8:$BC$57,37,FALSE) -> 0 | AP54: =VLOOKUP($A54,BOctobre!$A$8:$BC$57,39,FALSE) -> 0 | AQ54: =VLOOKUP($A54,Bilan!$A$8:$BE$57,41,FALSE) -> 0 | AT54: =IFERROR(SUM((VLOOKUP(Octobre!A54,Données!$H$6:$J$53,3,TRUE)/12)*10),"") -> 
A55: =Données!$H52 -> Chef de service
A56: =Données!$H53 -> 0 | AL56: =VLOOKUP($A56,BOctobre!$A$8:$BC$57,35,FALSE) -> 0 | AM56: =VLOOKUP($A56,BOctobre!$A$8:$BC$57,36,FALSE) -> 0 | AN56: =VLOOKUP($A56,BOctobre!$A$8:$BC$57,37,FALSE) -> 0 | AP56: =VLOOKUP($A56,BOctobre!$A$8:$BC$57,39,FALSE) -> 0 | AQ56: =VLOOKUP($A56,Bilan!$A$8:$BE$57,41,FALSE) -> 0 | AT56: =IFERROR(SUM((VLOOKUP(Octobre!A56,Données!$H$6:$J$53,3,TRUE)/12)*10),"") -> 
B58: =Données!$A3 -> S | C58: = | D58: =IF(ISBLANK(Données!$C3),TEXT(Données!$B3,"hh:mm"),TEXT(Données!$B3,"hh:mm")&" : "&TEXT(Données!$C3,"hh:mm")) -> 13:30 : 21:30 | H58: =Données!$A7 -> J+ | I58: = | J58: =IF(ISBLANK(Données!$C7),TEXT(Données!$B7,"hh:mm"),TEXT(Données!$B7,"hh:mm")&" : "&TEXT(Données!$C7,"hh:mm")) -> 09:00 : 21:00 | N58: =Données!$A10 -> N- | O58: = | P58: =IF(ISBLANK(Données!$C10),TEXT(Données!$B10,"hh:mm"),TEXT(Données!$B10,"hh:mm")&" : "&TEXT(Données!$C10,"hh:mm")) -> 20:45 : 07:15 | T58: =Données!$A14 -> AT | U58: = | V58: =IF(ISBLANK(Données!$C14),TEXT(Données!$B14,"hh:mm"),TEXT(Données!$B14,"hh:mm")&" : "&TEXT(Données!$C14,"hh:mm")) -> AT : AT | Z58: =Données!$A18 -> CA | AA58: = | AB58: =IF(ISBLANK(Données!$C18),TEXT(Données!$B18,"hh:mm"),TEXT(Données!$B18,"hh:mm")&" : "&TEXT(Données!$C18,"hh:mm")) -> CA : CA
B59: =Données!$A4 -> M- | C59: = | D59: =IF(ISBLANK(Données!$C4),TEXT(Données!$B4,"hh:mm"),TEXT(Données!$B4,"hh:mm")&" : "&TEXT(Données!$C4,"hh:mm")) -> 07:00 : 15:00 | H59: =Données!$A8 -> RS | I59: = | J59: =IF(ISBLANK(Données!$C8),TEXT(Données!$B8,"hh:mm"),TEXT(Données!$B8,"hh:mm")&" : "&TEXT(Données!$C8,"hh:mm")) -> 09:30 : 21:30 | N59: =Données!$A11 -> N+ | O59: = | P59: =IF(ISBLANK(Données!$C11),TEXT(Données!$B11,"hh:mm"),TEXT(Données!$B11,"hh:mm")&" : "&TEXT(Données!$C11,"hh:mm")) -> 19:15 : 07:15 | T59: =Données!$A15 -> AM | U59: = | V59: =IF(ISBLANK(Données!$C15),TEXT(Données!$B15,"hh:mm"),TEXT(Données!$B15,"hh:mm")&" : "&TEXT(Données!$C15,"hh:mm")) -> AM : AM | Z59: =Données!$A19 -> CA17 | AA59: = | AB59: =IF(ISBLANK(Données!$C19),TEXT(Données!$B19,"hh:mm"),TEXT(Données!$B19,"hh:mm")&" : "&TEXT(Données!$C19,"hh:mm")) -> CA17 : CA17
B60: =Données!$A5 -> M | C60: = | D60: =IF(ISBLANK(Données!$C5),TEXT(Données!$B5,"hh:mm"),TEXT(Données!$B5,"hh:mm")&" : "&TEXT(Données!$C5,"hh:mm")) -> 08:00 : 15:00 | H60: =Données!$A9 -> N | I60: = | J60: =IF(ISBLANK(Données!$C9),TEXT(Données!$B9,"hh:mm"),TEXT(Données!$B9,"hh:mm")&" : "&TEXT(Données!$C9,"hh:mm")) -> 20:45 : 08:15 | N60: =Données!$A12 -> JS | O60: = | P60: =IF(ISBLANK(Données!$C12),TEXT(Données!$B12,"hh:mm"),TEXT(Données!$B12,"hh:mm")&" : "&TEXT(Données!$C12,"hh:mm")) -> 08:00 : 19:00 | T60: =Données!$A16 -> EM | U60: = | V60: =IF(ISBLANK(Données!$C16),TEXT(Données!$B16,"hh:mm"),TEXT(Données!$B16,"hh:mm")&" : "&TEXT(Données!$C16,"hh:mm")) -> EM : EM | Z60: =Données!$A20 -> REC | AA60: = | AB60: =IF(ISBLANK(Données!$C20),TEXT(Données!$B20,"hh:mm"),TEXT(Données!$B20,"hh:mm")&" : "&TEXT(Données!$C20,"hh:mm")) -> REC : REC
B61: =Données!$A6 -> J | C61: = | D61: =IF(ISBLANK(Données!$C6),TEXT(Données!$B6,"hh:mm"),TEXT(Données!$B6,"hh:mm")&" : "&TEXT(Données!$C6,"hh:mm")) -> 09:00 : 16:30 | H61: =Données!$A10 -> N- | I61: = | J61: =IF(ISBLANK(Données!$C10),TEXT(Données!$B10,"hh:mm"),TEXT(Données!$B10,"hh:mm")&" : "&TEXT(Données!$C10,"hh:mm")) -> 20:45 : 07:15 | N61: =Données!$A13 -> SYN | O61: = | P61: =IF(ISBLANK(Données!$C13),TEXT(Données!$B13,"hh:mm"),TEXT(Données!$B13,"hh:mm")&" : "&TEXT(Données!$C13,"hh:mm")) -> Syn : Syn | T61: =Données!$A17 -> CE | U61: = | V61: =IF(ISBLANK(Données!$C17),TEXT(Données!$B17,"hh:mm"),TEXT(Données!$B17,"hh:mm")&" : "&TEXT(Données!$C17,"hh:mm")) -> CE : CE | Z61: =Données!$A21 -> PL | AA61: = | AB61: =IF(ISBLANK(Données!$C21),TEXT(Données!$B21,"hh:mm"),TEXT(Données!$B21,"hh:mm")&" : "&TEXT(Données!$C21,"hh:mm")) -> PL : PL

Sheet Novembre
B2: =DATE(An,Novembre,B7) -> 2018-11-01 | C2: 2018-11-02 | D2: 2018-11-03 | E2: 2018-11-04 | F2: 2018-11-05 | G2: 2018-11-06 | H2: 2018-11-07 | I2: 2018-11-08 | J2: 2018-11-09 | K2: 2018-11-10 | L2: 2018-11-11 | M2: 2018-11-12 | N2: 2018-11-13 | O2: 2018-11-14 | P2: 2018-11-15 | Q2: 2018-11-16 | R2: 2018-11-17 | S2: 2018-11-18 | T2: 2018-11-19 | U2: 2018-11-20 | V2: 2018-11-21 | W2: 2018-11-22 | X2: 2018-11-23 | Y2: 2018-11-24 | Z2: 2018-11-25 | AA2: 2018-11-26 | AB2: 2018-11-27 | AC2: 2018-11-28 | AD2: 2018-11-29 | AE2: 2018-11-30 | AI2: Pour remplir | AJ2: penser | AO2: =IF(ISNUMBER(AO7),DATE(An,Novembre,AO7),"") ->  | AP2: =IF(ISNUMBER(AP7),DATE(An,Novembre,AP7),"") -> 
A3: =IF(Données!$L$5="","Service",Données!$L$5) -> Service | K3: Mois de Novembre | P3: =An -> 2018 | AI3: à mettre dans le format:
AI4: "heures":"Minutes" | AT4: Masse horraire previsionnel
AI5: Heures sup | AJ5: Heures sup | AL5: Indications | AM5: Indications | AN5: Indications | AP5: Total
A6: Jours | B6: =PROPER(LEFT(TEXT(DATE(An,Novembre,B7),"jjj"),1)) -> J | C6: V | D6: S | E6: D | F6: L | G6: M | H6: M | I6: J | J6: V | K6: S | L6: D | M6: L | N6: M | O6: M | P6: J | Q6: V | R6: S | S6: D | T6: L | U6: M | V6: M | W6: J | X6: V | Y6: S | Z6: D | AA6: L | AB6: M | AC6: M | AD6: J | AE6: V | AI6: avant 21h | AJ6: après 21h | AL6: Heures | AM6: Heures nuit | AN6: Heures | AP6: Heures | AQ6: Heures
B7: =A7+1 -> 1 | C7: 2 | D7: 3 | E7: 4 | F7: 5 | G7: 6 | H7: 7 | I7: 8 | J7: 9 | K7: 10 | L7: 11 | M7: 12 | N7: 13 | O7: 14 | P7: 15 | Q7: 16 | R7: 17 | S7: 18 | T7: 19 | U7: 20 | V7: 21 | W7: 22 | X7: 23 | Y7: 24 | Z7: 25 | AA7: 26 | AB7: 27 | AC7: 28 | AD7: 29 | AE7: 30 | AI7: A remplir | AJ7: A remplir | AL7: Dimanche | AM7: Dimanche | AN7: après 21h | AP7: au mois | AQ7: a l'année | AT7: i
A8: Equipe de jour
A9: =Données!$H6 -> A | AL9: =VLOOKUP($A9,BNovembre!$A$8:$BC$57,35,FALSE) -> 0 | AM9: =VLOOKUP($A9,BNovembre!$A$8:$BC$57,36,FALSE) -> 0 | AN9: =VLOOKUP($A9,BNovembre!$A$8:$BC$57,37,FALSE) -> 0 | AP9: =VLOOKUP($A9,BNovembre!$A$8:$BC$57,39,FALSE) -> 0 | AQ9: =VLOOKUP($A9,Bilan!$A$8:$BE$57,41,FALSE) -> 5.533333333 | AT9: =IFERROR(SUM((VLOOKUP(Novembre!A9,Données!$H$6:$J$53,3,TRUE)/12)*11),"") -> 55.32719907
A10: =Données!$H7 -> B | AL10: =VLOOKUP($A10,BNovembre!$A$8:$BC$57,35,FALSE) -> 0 | AM10: =VLOOKUP($A10,BNovembre!$A$8:$BC$57,36,FALSE) -> 0 | AN10: =VLOOKUP($A10,BNovembre!$A$8:$BC$57,37,FALSE) -> 0 | AP10: =VLOOKUP($A10,BNovembre!$A$8:$BC$57,39,FALSE) -> 0 | AQ10: =VLOOKUP($A10,Bilan!$A$8:$BE$57,41,FALSE) -> 0 | AT10: =IFERROR(SUM((VLOOKUP(Novembre!A10,Données!$H$6:$J$53,3,TRUE)/12)*11),"") -> 
A11: =Données!$H8 -> L | AL11: =VLOOKUP($A11,BNovembre!$A$8:$BC$57,35,FALSE) -> 0 | AM11: =VLOOKUP($A11,BNovembre!$A$8:$BC$57,36,FALSE) -> 0 | AN11: =VLOOKUP($A11,BNovembre!$A$8:$BC$57,37,FALSE) -> 0 | AP11: =VLOOKUP($A11,BNovembre!$A$8:$BC$57,39,FALSE) -> 0 | AQ11: =VLOOKUP($A11,Bilan!$A$8:$BE$57,41,FALSE) -> 0 | AT11: =IFERROR(SUM((VLOOKUP(Novembre!A11,Données!$H$6:$J$53,3,TRUE)/12)*11),"") -> 0
A12: =Données!$H9 -> L | AL12: =VLOOKUP($A12,BNovembre!$A$8:$BC$57,35,FALSE) -> 0 | AM12: =VLOOKUP($A12,BNovembre!$A$8:$BC$57,36,FALSE) -> 0 | AN12: =VLOOKUP($A12,BNovembre!$A$8:$BC$57,37,FALSE) -> 0 | AP12: =VLOOKUP($A12,BNovembre!$A$8:$BC$57,39,FALSE) -> 0 | AQ12: =VLOOKUP($A12,Bilan!$A$8:$BE$57,41,FALSE) -> 0 | AT12: =IFERROR(SUM((VLOOKUP(Novembre!A12,Données!$H$6:$J$53,3,TRUE)/12)*11),"") -> 0
A13: =Données!$H10 -> 0 | AL13: =VLOOKUP($A13,BNovembre!$A$8:$BC$57,35,FALSE) -> 0 | AM13: =VLOOKUP($A13,BNovembre!$A$8:$BC$57,36,FALSE) -> 0 | AN13: =VLOOKUP($A13,BNovembre!$A$8:$BC$57,37,FALSE) -> 0 | AP13: =VLOOKUP($A13,BNovembre!$A$8:$BC$57,39,FALSE) -> 0 | AQ13: =VLOOKUP($A13,Bilan!$A$8:$BE$57,41,FALSE) -> 0 | AT13: =IFERROR(SUM((VLOOKUP(Novembre!A13,Données!$H$6:$J$53,3,TRUE)/12)*11),"") -> 
A14: =Données!$H11 -> 0 | AL14: =VLOOKUP($A14,BNovembre!$A$8:$BC$57,35,FALSE) -> 0 | AM14: =VLOOKUP($A14,BNovembre!$A$8:$BC$57,36,FALSE) -> 0 | AN14: =VLOOKUP($A14,BNovembre!$A$8:$BC$57,37,FALSE) -> 0 | AP14: =VLOOKUP($A14,BNovembre!$A$8:$BC$57,39,FALSE) -> 0 | AQ14: =VLOOKUP($A14,Bilan!$A$8:$BE$57,41,FALSE) -> 0 | AT14: =IFERROR(SUM((VLOOKUP(Novembre!A14,Données!$H$6:$J$53,3,TRUE)/12)*11),"") -> 
A15: =Données!$H12 -> 0 | AL15: =VLOOKUP($A15,BNovembre!$A$8:$BC$57,35,FALSE) -> 0 | AM15: =VLOOKUP($A15,BNovembre!$A$8:$BC$57,36,FALSE) -> 0 | AN15: =VLOOKUP($A15,BNovembre!$A$8:$BC$57,37,FALSE) -> 0 | AP15: =VLOOKUP($A15,BNovembre!$A$8:$BC$57,39,FALSE) -> 0 | AQ15: =VLOOKUP($A15,Bilan!$A$8:$BE$57,41,FALSE) -> 0 | AT15: =IFERROR(SUM((VLOOKUP(Novembre!A15,Données!$H$6:$J$53,3,TRUE)/12)*11),"") -> 
A16: =Données!$H13 -> 0 | AL16: =VLOOKUP($A16,BNovembre!$A$8:$BC$57,35,FALSE) -> 0 | AM16: =VLOOKUP($A16,BNovembre!$A$8:$BC$57,36,FALSE) -> 0 | AN16: =VLOOKUP($A16,BNovembre!$A$8:$BC$57,37,FALSE) -> 0 | AP16: =VLOOKUP($A16,BNovembre!$A$8:$BC$57,39,FALSE) -> 0 | AQ16: =VLOOKUP($A16,Bilan!$A$8:$BE$57,41,FALSE) -> 0 | AT16: =IFERROR(SUM((VLOOKUP(Novembre!A16,Données!$H$6:$J$53,3,TRUE)/12)*11),"") -> 
A17: =Données!$H14 -> 0 | AL17: =VLOOKUP($A17,BNovembre!$A$8:$BC$57,35,FALSE) -> 0 | AM17: =VLOOKUP($A17,BNovembre!$A$8:$BC$57,36,FALSE) -> 0 | AN17: =VLOOKUP($A17,BNovembre!$A$8:$BC$57,37,FALSE) -> 0 | AP17: =VLOOKUP($A17,BNovembre!$A$8:$BC$57,39,FALSE) -> 0 | AQ17: =VLOOKUP($A17,Bilan!$A$8:$BE$57,41,FALSE) -> 0 | AT17: =IFERROR(SUM((VLOOKUP(Novembre!A17,Données!$H$6:$J$53,3,TRUE)/12)*11),"") -> 
A18: =Données!$H15 -> 0 | AL18: =VLOOKUP($A18,BNovembre!$A$8:$BC$57,35,FALSE) -> 0 | AM18: =VLOOKUP($A18,BNovembre!$A$8:$BC$57,36,FALSE) -> 0 | AN18: =VLOOKUP($A18,BNovembre!$A$8:$BC$57,37,FALSE) -> 0 | AP18: =VLOOKUP($A18,BNovembre!$A$8:$BC$57,39,FALSE) -> 0 | AQ18: =VLOOKUP($A18,Bilan!$A$8:$BE$57,41,FALSE) -> 0 | AT18: =IFERROR(SUM((VLOOKUP(Novembre!A18,Données!$H$6:$J$53,3,TRUE)/12)*11),"") -> 
A19: =Données!$H16 -> 0 | AL19: =VLOOKUP($A19,BNovembre!$A$8:$BC$57,35,FALSE) -> 0 | AM19: =VLOOKUP($A19,BNovembre!$A$8:$BC$57,36,FALSE) -> 0 | AN19: =VLOOKUP($A19,BNovembre!$A$8:$BC$57,37,FALSE) -> 0 | AP19: =VLOOKUP($A19,BNovembre!$A$8:$BC$57,39,FALSE) -> 0 | AQ19: =VLOOKUP($A19,Bilan!$A$8:$BE$57,41,FALSE) -> 0 | AT19: =IFERROR(SUM((VLOOKUP(Novembre!A19,Données!$H$6:$J$53,3,TRUE)/12)*11),"") -> 
A20: =Données!$H17 -> 0 | AL20: =VLOOKUP($A20,BNovembre!$A$8:$BC$57,35,FALSE) -> 0 | AM20: =VLOOKUP($A20,BNovembre!$A$8:$BC$57,36,FALSE) -> 0 | AN20: =VLOOKUP($A20,BNovembre!$A$8:$BC$57,37,FALSE) -> 0 | AP20: =VLOOKUP($A20,BNovembre!$A$8:$BC$57,39,FALSE) -> 0 | AQ20: =VLOOKUP($A20,Bilan!$A$8:$BE$57,41,FALSE) -> 0 | AT20: =IFERROR(SUM((VLOOKUP(Novembre!A20,Données!$H$6:$J$53,3,TRUE)/12)*11),"") -> 
A21: =Données!$H18 -> 0 | AL21: =VLOOKUP($A21,BNovembre!$A$8:$BC$57,35,FALSE) -> 0 | AM21: =VLOOKUP($A21,BNovembre!$A$8:$BC$57,36,FALSE) -> 0 | AN21: =VLOOKUP($A21,BNovembre!$A$8:$BC$57,37,FALSE) -> 0 | AP21: =VLOOKUP($A21,BNovembre!$A$8:$BC$57,39,FALSE) -> 0 | AQ21: =VLOOKUP($A21,Bilan!$A$8:$BE$57,41,FALSE) -> 0 | AT21: =IFERROR(SUM((VLOOKUP(Novembre!A21,Données!$H$6:$J$53,3,TRUE)/12)*11),"") -> 
A22: =Données!$H19 -> 0 | AL22: =VLOOKUP($A22,BNovembre!$A$8:$BC$57,35,FALSE) -> 0 | AM22: =VLOOKUP($A22,BNovembre!$A$8:$BC$57,36,FALSE) -> 0 | AN22: =VLOOKUP($A22,BNovembre!$A$8:$BC$57,37,FALSE) -> 0 | AP22: =VLOOKUP($A22,BNovembre!$A$8:$BC$57,39,FALSE) -> 0 | AQ22: =VLOOKUP($A22,Bilan!$A$8:$BE$57,41,FALSE) -> 0 | AT22: =IFERROR(SUM((VLOOKUP(Novembre!A22,Données!$H$6:$J$53,3,TRUE)/12)*11),"") -> 
A23: =Données!$H20 -> 0 | AL23: =VLOOKUP($A23,BNovembre!$A$8:$BC$57,35,FALSE) -> 0 | AM23: =VLOOKUP($A23,BNovembre!$A$8:$BC$57,36,FALSE) -> 0 | AN23: =VLOOKUP($A23,BNovembre!$A$8:$BC$57,37,FALSE) -> 0 | AP23: =VLOOKUP($A23,BNovembre!$A$8:$BC$57,39,FALSE) -> 0 | AQ23: =VLOOKUP($A23,Bilan!$A$8:$BE$57,41,FALSE) -> 0 | AT23: =IFERROR(SUM((VLOOKUP(Novembre!A23,Données!$H$6:$J$53,3,TRUE)/12)*11),"") -> 
A24: =Données!$H21 -> 0 | AL24: =VLOOKUP($A24,BNovembre!$A$8:$BC$57,35,FALSE) -> 0 | AM24: =VLOOKUP($A24,BNovembre!$A$8:$BC$57,36,FALSE) -> 0 | AN24: =VLOOKUP($A24,BNovembre!$A$8:$BC$57,37,FALSE) -> 0 | AP24: =VLOOKUP($A24,BNovembre!$A$8:$BC$57,39,FALSE) -> 0 | AQ24: =VLOOKUP($A24,Bilan!$A$8:$BE$57,41,FALSE) -> 0 | AT24: =IFERROR(SUM((VLOOKUP(Novembre!A24,Données!$H$6:$J$53,3,TRUE)/12)*11),"") -> 
A25: =Données!$H22 -> Equipe de nuit
A26: =Données!$H23 -> 0 | AL26: =VLOOKUP($A26,BNovembre!$A$8:$BC$57,35,FALSE) -> 0 | AM26: =VLOOKUP($A26,BNovembre!$A$8:$BC$57,36,FALSE) -> 0 | AN26: =VLOOKUP($A26,BNovembre!$A$8:$BC$57,37,FALSE) -> 0 | AP26: =VLOOKUP($A26,BNovembre!$A$8:$BC$57,39,FALSE) -> 0 | AQ26: =VLOOKUP($A26,Bilan!$A$8:$BE$57,41,FALSE) -> 0 | AT26: =IFERROR(SUM((VLOOKUP(Novembre!A26,Données!$H$6:$J$53,3,TRUE)/12)*11),"") -> 
A27: =Données!$H24 -> 0 | AL27: =VLOOKUP($A27,BNovembre!$A$8:$BC$57,35,FALSE) -> 0 | AM27: =VLOOKUP($A27,BNovembre!$A$8:$BC$57,36,FALSE) -> 0 | AN27: =VLOOKUP($A27,BNovembre!$A$8:$BC$57,37,FALSE) -> 0 | AP27: =VLOOKUP($A27,BNovembre!$A$8:$BC$57,39,FALSE) -> 0 | AQ27: =VLOOKUP($A27,Bilan!$A$8:$BE$57,41,FALSE) -> 0 | AT27: =IFERROR(SUM((VLOOKUP(Novembre!A27,Données!$H$6:$J$53,3,TRUE)/12)*11),"") -> 
A28: =Données!$H25 -> 0 | AL28: =VLOOKUP($A28,BNovembre!$A$8:$BC$57,35,FALSE) -> 0 | AM28: =VLOOKUP($A28,BNovembre!$A$8:$BC$57,36,FALSE) -> 0 | AN28: =VLOOKUP($A28,BNovembre!$A$8:$BC$57,37,FALSE) -> 0 | AP28: =VLOOKUP($A28,BNovembre!$A$8:$BC$57,39,FALSE) -> 0 | AQ28: =VLOOKUP($A28,Bilan!$A$8:$BE$57,41,FALSE) -> 0 | AT28: =IFERROR(SUM((VLOOKUP(Novembre!A28,Données!$H$6:$J$53,3,TRUE)/12)*11),"") -> 
A29: =Données!$H26 -> 0 | AL29: =VLOOKUP($A29,BNovembre!$A$8:$BC$57,35,FALSE) -> 0 | AM29: =VLOOKUP($A29,BNovembre!$A$8:$BC$57,36,FALSE) -> 0 | AN29: =VLOOKUP($A29,BNovembre!$A$8:$BC$57,37,FALSE) -> 0 | AP29: =VLOOKUP($A29,BNovembre!$A$8:$BC$57,39,FALSE) -> 0 | AQ29: =VLOOKUP($A29,Bilan!$A$8:$BE$57,41,FALSE) -> 0 | AT29: =IFERROR(SUM((VLOOKUP(Novembre!A29,Données!$H$6:$J$53,3,TRUE)/12)*11),"") -> 
A30: =Données!$H27 -> 0 | AL30: =VLOOKUP($A30,BNovembre!$A$8:$BC$57,35,FALSE) -> 0 | AM30: =VLOOKUP($A30,BNovembre!$A$8:$BC$57,36,FALSE) -> 0 | AN30: =VLOOKUP($A30,BNovembre!$A$8:$BC$57,37,FALSE) -> 0 | AP30: =VLOOKUP($A30,BNovembre!$A$8:$BC$57,39,FALSE) -> 0 | AQ30: =VLOOKUP($A30,Bilan!$A$8:$BE$57,41,FALSE) -> 0 | AT30: =IFERROR(SUM((VLOOKUP(Novembre!A30,Données!$H$6:$J$53,3,TRUE)/12)*11),"") -> 
A31: =Données!$H28 -> 0 | AL31: =VLOOKUP($A31,BNovembre!$A$8:$BC$57,35,FALSE) -> 0 | AM31: =VLOOKUP($A31,BNovembre!$A$8:$BC$57,36,FALSE) -> 0 | AN31: =VLOOKUP($A31,BNovembre!$A$8:$BC$57,37,FALSE) -> 0 | AP31: =VLOOKUP($A31,BNovembre!$A$8:$BC$57,39,FALSE) -> 0 | AQ31: =VLOOKUP($A31,Bilan!$A$8:$BE$57,41,FALSE) -> 0 | AT31: =IFERROR(SUM((VLOOKUP(Novembre!A31,Données!$H$6:$J$53,3,TRUE)/12)*11),"") -> 
A32: =Données!$H29 -> 0 | AL32: =VLOOKUP($A32,BNovembre!$A$8:$BC$57,35,FALSE) -> 0 | AM32: =VLOOKUP($A32,BNovembre!$A$8:$BC$57,36,FALSE) -> 0 | AN32: =VLOOKUP($A32,BNovembre!$A$8:$BC$57,37,FALSE) -> 0 | AP32: =VLOOKUP($A32,BNovembre!$A$8:$BC$57,39,FALSE) -> 0 | AQ32: =VLOOKUP($A32,Bilan!$A$8:$BE$57,41,FALSE) -> 0 | AT32: =IFERROR(SUM((VLOOKUP(Novembre!A32,Données!$H$6:$J$53,3,TRUE)/12)*11),"") -> 
A33: =Données!$H30 -> 0 | AL33: =VLOOKUP($A33,BNovembre!$A$8:$BC$57,35,FALSE) -> 0 | AM33: =VLOOKUP($A33,BNovembre!$A$8:$BC$57,36,FALSE) -> 0 | AN33: =VLOOKUP($A33,BNovembre!$A$8:$BC$57,37,FALSE) -> 0 | AP33: =VLOOKUP($A33,BNovembre!$A$8:$BC$57,39,FALSE) -> 0 | AQ33: =VLOOKUP($A33,Bilan!$A$8:$BE$57,41,FALSE) -> 0 | AT33: =IFERROR(SUM((VLOOKUP(Novembre!A33,Données!$H$6:$J$53,3,TRUE)/12)*11),"") -> 
A34: =Données!$H31 -> 0 | AL34: =VLOOKUP($A34,BNovembre!$A$8:$BC$57,35,FALSE) -> 0 | AM34: =VLOOKUP($A34,BNovembre!$A$8:$BC$57,36,FALSE) -> 0 | AN34: =VLOOKUP($A34,BNovembre!$A$8:$BC$57,37,FALSE) -> 0 | AP34: =VLOOKUP($A34,BNovembre!$A$8:$BC$57,39,FALSE) -> 0 | AQ34: =VLOOKUP($A34,Bilan!$A$8:$BE$57,41,FALSE) -> 0 | AT34: =IFERROR(SUM((VLOOKUP(Novembre!A34,Données!$H$6:$J$53,3,TRUE)/12)*11),"") -> 
A35: =Données!$H32 -> Maitresse de maison
A36: =Données!$H33 -> 0 | AL36: =VLOOKUP($A36,BNovembre!$A$8:$BC$57,35,FALSE) -> 0 | AM36: =VLOOKUP($A36,BNovembre!$A$8:$BC$57,36,FALSE) -> 0 | AN36: =VLOOKUP($A36,BNovembre!$A$8:$BC$57,37,FALSE) -> 0 | AP36: =VLOOKUP($A36,BNovembre!$A$8:$BC$57,39,FALSE) -> 0 | AQ36: =VLOOKUP($A36,Bilan!$A$8:$BE$57,41,FALSE) -> 0 | AT36: =IFERROR(SUM((VLOOKUP(Novembre!A36,Données!$H$6:$J$53,3,TRUE)/12)*11),"") -> 
A37: =Données!$H34 -> 0 | AL37: =VLOOKUP($A37,BNovembre!$A$8:$BC$57,35,FALSE) -> 0 | AM37: =VLOOKUP($A37,BNovembre!$A$8:$BC$57,36,FALSE) -> 0 | AN37: =VLOOKUP($A37,BNovembre!$A$8:$BC$57,37,FALSE) -> 0 | AP37: =VLOOKUP($A37,BNovembre!$A$8:$BC$57,39,FALSE) -> 0 | AQ37: =VLOOKUP($A37,Bilan!$A$8:$BE$57,41,FALSE) -> 0 | AT37: =IFERROR(SUM((VLOOKUP(Novembre!A37,Données!$H$6:$J$53,3,TRUE)/12)*11),"") -> 
A38: =Données!$H35 -> 0 | AL38: =VLOOKUP($A38,BNovembre!$A$8:$BC$57,35,FALSE) -> 0 | AM38: =VLOOKUP($A38,BNovembre!$A$8:$BC$57,36,FALSE) -> 0 | AN38: =VLOOKUP($A38,BNovembre!$A$8:$BC$57,37,FALSE) -> 0 | AP38: =VLOOKUP($A38,BNovembre!$A$8:$BC$57,39,FALSE) -> 0 | AQ38: =VLOOKUP($A38,Bilan!$A$8:$BE$57,41,FALSE) -> 0 | AT38: =IFERROR(SUM((VLOOKUP(Novembre!A38,Données!$H$6:$J$53,3,TRUE)/12)*11),"") -> 
A39: =Données!$H36 -> 0 | AL39: =VLOOKUP($A39,BNovembre!$A$8:$BC$57,35,FALSE) -> 0 | AM39: =VLOOKUP($A39,BNovembre!$A$8:$BC$57,36,FALSE) -> 0 | AN39: =VLOOKUP($A39,BNovembre!$A$8:$BC$57,37,FALSE) -> 0 | AP39: =VLOOKUP($A39,BNovembre!$A$8:$BC$57,39,FALSE) -> 0 | AQ39: =VLOOKUP($A39,Bilan!$A$8:$BE$57,41,FALSE) -> 0 | AT39: =IFERROR(SUM((VLOOKUP(Novembre!A39,Données!$H$6:$J$53,3,TRUE)/12)*11),"") -> 
A40: =Données!$H37 -> 0 | AL40: =VLOOKUP($A40,BNovembre!$A$8:$BC$57,35,FALSE) -> 0 | AM40: =VLOOKUP($A40,BNovembre!$A$8:$BC$57,36,FALSE) -> 0 | AN40: =VLOOKUP($A40,BNovembre!$A$8:$BC$57,37,FALSE) -> 0 | AP40: =VLOOKUP($A40,BNovembre!$A$8:$BC$57,39,FALSE) -> 0 | AQ40: =VLOOKUP($A40,Bilan!$A$8:$BE$57,41,FALSE) -> 0 | AT40: =IFERROR(SUM((VLOOKUP(Novembre!A40,Données!$H$6:$J$53,3,TRUE)/12)*11),"") -> 
A41: =Données!$H38 -> 0 | AL41: =VLOOKUP($A41,BNovembre!$A$8:$BC$57,35,FALSE) -> 0 | AM41: =VLOOKUP($A41,BNovembre!$A$8:$BC$57,36,FALSE) -> 0 | AN41: =VLOOKUP($A41,BNovembre!$A$8:$BC$57,37,FALSE) -> 0 | AP41: =VLOOKUP($A41,BNovembre!$A$8:$BC$57,39,FALSE) -> 0 | AQ41: =VLOOKUP($A41,Bilan!$A$8:$BE$57,41,FALSE) -> 0 | AT41: =IFERROR(SUM((VLOOKUP(Novembre!A41,Données!$H$6:$J$53,3,TRUE)/12)*11),"") -> 
A42: =Données!$H39 -> 0 | AL42: =VLOOKUP($A42,BNovembre!$A$8:$BC$57,35,FALSE) -> 0 | AM42: =VLOOKUP($A42,BNovembre!$A$8:$BC$57,36,FALSE) -> 0 | AN42: =VLOOKUP($A42,BNovembre!$A$8:$BC$57,37,FALSE) -> 0 | AP42: =VLOOKUP($A42,BNovembre!$A$8:$BC$57,39,FALSE) -> 0 | AQ42: =VLOOKUP($A42,Bilan!$A$8:$BE$57,41,FALSE) -> 0 | AT42: =IFERROR(SUM((VLOOKUP(Novembre!A42,Données!$H$6:$J$53,3,TRUE)/12)*11),"") -> 
A43: =Données!$H40 -> 0 | AL43: =VLOOKUP($A43,BNovembre!$A$8:$BC$57,35,FALSE) -> 0 | AM43: =VLOOKUP($A43,BNovembre!$A$8:$BC$57,36,FALSE) -> 0 | AN43: =VLOOKUP($A43,BNovembre!$A$8:$BC$57,37,FALSE) -> 0 | AP43: =VLOOKUP($A43,BNovembre!$A$8:$BC$57,39,FALSE) -> 0 | AQ43: =VLOOKUP($A43,Bilan!$A$8:$BE$57,41,FALSE) -> 0 | AT43: =IFERROR(SUM((VLOOKUP(Novembre!A43,Données!$H$6:$J$53,3,TRUE)/12)*11),"") -> 
A44: =Données!$H41 -> 0 | AL44: =VLOOKUP($A44,BNovembre!$A$8:$BC$57,35,FALSE) -> 0 | AM44: =VLOOKUP($A44,BNovembre!$A$8:$BC$57,36,FALSE) -> 0 | AN44: =VLOOKUP($A44,BNovembre!$A$8:$BC$57,37,FALSE) -> 0 | AP44: =VLOOKUP($A44,BNovembre!$A$8:$BC$57,39,FALSE) -> 0 | AQ44: =VLOOKUP($A44,Bilan!$A$8:$BE$57,41,FALSE) -> 0 | AT44: =IFERROR(SUM((VLOOKUP(Novembre!A44,Données!$H$6:$J$53,3,TRUE)/12)*11),"") -> 
A45: =Données!$H42 -> Psychologue
A46: =Données!$H43 -> 0 | AL46: =VLOOKUP($A46,BNovembre!$A$8:$BC$57,35,FALSE) -> 0 | AM46: =VLOOKUP($A46,BNovembre!$A$8:$BC$57,36,FALSE) -> 0 | AN46: =VLOOKUP($A46,BNovembre!$A$8:$BC$57,37,FALSE) -> 0 | AP46: =VLOOKUP($A46,BNovembre!$A$8:$BC$57,39,FALSE) -> 0 | AQ46: =VLOOKUP($A46,Bilan!$A$8:$BE$57,41,FALSE) -> 0 | AT46: =IFERROR(SUM((VLOOKUP(Novembre!A46,Données!$H$6:$J$53,3,TRUE)/12)*11),"") -> 
A47: =Données!$H44 -> 0 | AL47: =VLOOKUP($A47,BNovembre!$A$8:$BC$57,35,FALSE) -> 0 | AM47: =VLOOKUP($A47,BNovembre!$A$8:$BC$57,36,FALSE) -> 0 | AN47: =VLOOKUP($A47,BNovembre!$A$8:$BC$57,37,FALSE) -> 0 | AP47: =VLOOKUP($A47,BNovembre!$A$8:$BC$57,39,FALSE) -> 0 | AQ47: =VLOOKUP($A47,Bilan!$A$8:$BE$57,41,FALSE) -> 0 | AT47: =IFERROR(SUM((VLOOKUP(Novembre!A47,Données!$H$6:$J$53,3,TRUE)/12)*11),"") -> 
A48: =Données!$H45 -> 0 | AL48: =VLOOKUP($A48,BNovembre!$A$8:$BC$57,35,FALSE) -> 0 | AM48: =VLOOKUP($A48,BNovembre!$A$8:$BC$57,36,FALSE) -> 0 | AN48: =VLOOKUP($A48,BNovembre!$A$8:$BC$57,37,FALSE) -> 0 | AP48: =VLOOKUP($A48,BNovembre!$A$8:$BC$57,39,FALSE) -> 0 | AQ48: =VLOOKUP($A48,Bilan!$A$8:$BE$57,41,FALSE) -> 0 | AT48: =IFERROR(SUM((VLOOKUP(Novembre!A48,Données!$H$6:$J$53,3,TRUE)/12)*11),"") -> 
A49: =Données!$H46 -> Coordinatrice
A50: =Données!$H47 -> 0 | AL50: =VLOOKUP($A50,BNovembre!$A$8:$BC$57,35,FALSE) -> 0 | AM50: =VLOOKUP($A50,BNovembre!$A$8:$BC$57,36,FALSE) -> 0 | AN50: =VLOOKUP($A50,BNovembre!$A$8:$BC$57,37,FALSE) -> 0 | AP50: =VLOOKUP($A50,BNovembre!$A$8:$BC$57,39,FALSE) -> 0 | AQ50: =VLOOKUP($A50,Bilan!$A$8:$BE$57,41,FALSE) -> 0 | AT50: =IFERROR(SUM((VLOOKUP(Novembre!A50,Données!$H$6:$J$53,3,TRUE)/12)*11),"") -> 
A51: =Données!$H48 -> 0 | AL51: =VLOOKUP($A51,BNovembre!$A$8:$BC$57,35,FALSE) -> 0 | AM51: =VLOOKUP($A51,BNovembre!$A$8:$BC$57,36,FALSE) -> 0 | AN51: =VLOOKUP($A51,BNovembre!$A$8:$BC$57,37,FALSE) -> 0 | AP51: =VLOOKUP($A51,BNovembre!$A$8:$BC$57,39,FALSE) -> 0 | AQ51: =VLOOKUP($A51,Bilan!$A$8:$BE$57,41,FALSE) -> 0 | AT51: =IFERROR(SUM((VLOOKUP(Novembre!A51,Données!$H$6:$J$53,3,TRUE)/12)*11),"") -> 
A52: =Données!$H49 -> 0 | AL52: =VLOOKUP($A52,BNovembre!$A$8:$BC$57,35,FALSE) -> 0 | AM52: =VLOOKUP($A52,BNovembre!$A$8:$BC$57,36,FALSE) -> 0 | AN52: =VLOOKUP($A52,BNovembre!$A$8:$BC$57,37,FALSE) -> 0 | AP52: =VLOOKUP($A52,BNovembre!$A$8:$BC$57,39,FALSE) -> 0 | AQ52: =VLOOKUP($A52,Bilan!$A$8:$BE$57,41,FALSE) -> 0 | AT52: =IFERROR(SUM((VLOOKUP(Novembre!A52,Données!$H$6:$J$53,3,TRUE)/12)*11),"") -> 
A53: =Données!$H50 -> 0 | AL53: =VLOOKUP($A53,BNovembre!$A$8:$BC$57,35,FALSE) -> 0 | AM53: =VLOOKUP($A53,BNovembre!$A$8:$BC$57,36,FALSE) -> 0 | AN53: =VLOOKUP($A53,BNovembre!$A$8:$BC$57,37,FALSE) -> 0 | AP53: =VLOOKUP($A53,BNovembre!$A$8:$BC$57,39,FALSE) -> 0 | AQ53: =VLOOKUP($A53,Bilan!$A$8:$BE$57,41,FALSE) -> 0 | AT53: =IFERROR(SUM((VLOOKUP(Novembre!A53,Données!$H$6:$J$53,3,TRUE)/12)*11),"") -> 
A54: =Données!$H51 -> 0 | AL54: =VLOOKUP($A54,BNovembre!$A$8:$BC$57,35,FALSE) -> 0 | AM54: =VLOOKUP($A54,BNovembre!$A$8:$BC$57,36,FALSE) -> 0 | AN54: =VLOOKUP($A54,BNovembre!$A$8:$BC$57,37,FALSE) -> 0 | AP54: =VLOOKUP($A54,BNovembre!$A$8:$BC$57,39,FALSE) -> 0 | AQ54: =VLOOKUP($A54,Bilan!$A$8:$BE$57,41,FALSE) -> 0 | AT54: =IFERROR(SUM((VLOOKUP(Novembre!A54,Données!$H$6:$J$53,3,TRUE)/12)*11),"") -> 
A55: =Données!$H52 -> Chef de service
A56: =Données!$H53 -> 0 | AL56: =VLOOKUP($A56,BNovembre!$A$8:$BC$57,35,FALSE) -> 0 | AM56: =VLOOKUP($A56,BNovembre!$A$8:$BC$57,36,FALSE) -> 0 | AN56: =VLOOKUP($A56,BNovembre!$A$8:$BC$57,37,FALSE) -> 0 | AP56: =VLOOKUP($A56,BNovembre!$A$8:$BC$57,39,FALSE) -> 0 | AQ56: =VLOOKUP($A56,Bilan!$A$8:$BE$57,41,FALSE) -> 0 | AT56: =IFERROR(SUM((VLOOKUP(Novembre!A56,Données!$H$6:$J$53,3,TRUE)/12)*11),"") -> 
B58: =Données!$A3 -> S | C58: = | D58: =IF(ISBLANK(Données!$C3),TEXT(Données!$B3,"hh:mm"),TEXT(Données!$B3,"hh:mm")&" : "&TEXT(Données!$C3,"hh:mm")) -> 13:30 : 21:30 | H58: =Données!$A7 -> J+ | I58: = | J58: =IF(ISBLANK(Données!$C7),TEXT(Données!$B7,"hh:mm"),TEXT(Données!$B7,"hh:mm")&" : "&TEXT(Données!$C7,"hh:mm")) -> 09:00 : 21:00 | N58: =Données!$A10 -> N- | O58: = | P58: =IF(ISBLANK(Données!$C10),TEXT(Données!$B10,"hh:mm"),TEXT(Données!$B10,"hh:mm")&" : "&TEXT(Données!$C10,"hh:mm")) -> 20:45 : 07:15 | T58: =Données!$A14 -> AT | U58: = | V58: =IF(ISBLANK(Données!$C14),TEXT(Données!$B14,"hh:mm"),TEXT(Données!$B14,"hh:mm")&" : "&TEXT(Données!$C14,"hh:mm")) -> AT : AT | Z58: =Données!$A18 -> CA | AA58: = | AB58: =IF(ISBLANK(Données!$C18),TEXT(Données!$B18,"hh:mm"),TEXT(Données!$B18,"hh:mm")&" : "&TEXT(Données!$C18,"hh:mm")) -> CA : CA
B59: =Données!$A4 -> M- | C59: = | D59: =IF(ISBLANK(Données!$C4),TEXT(Données!$B4,"hh:mm"),TEXT(Données!$B4,"hh:mm")&" : "&TEXT(Données!$C4,"hh:mm")) -> 07:00 : 15:00 | H59: =Données!$A8 -> RS | I59: = | J59: =IF(ISBLANK(Données!$C8),TEXT(Données!$B8,"hh:mm"),TEXT(Données!$B8,"hh:mm")&" : "&TEXT(Données!$C8,"hh:mm")) -> 09:30 : 21:30 | N59: =Données!$A11 -> N+ | O59: = | P59: =IF(ISBLANK(Données!$C11),TEXT(Données!$B11,"hh:mm"),TEXT(Données!$B11,"hh:mm")&" : "&TEXT(Données!$C11,"hh:mm")) -> 19:15 : 07:15 | T59: =Données!$A15 -> AM | U59: = | V59: =IF(ISBLANK(Données!$C15),TEXT(Données!$B15,"hh:mm"),TEXT(Données!$B15,"hh:mm")&" : "&TEXT(Données!$C15,"hh:mm")) -> AM : AM | Z59: =Données!$A19 -> CA17 | AA59: = | AB59: =IF(ISBLANK(Données!$C19),TEXT(Données!$B19,"hh:mm"),TEXT(Données!$B19,"hh:mm")&" : "&TEXT(Données!$C19,"hh:mm")) -> CA17 : CA17
B60: =Données!$A5 -> M | C60: = | D60: =IF(ISBLANK(Données!$C5),TEXT(Données!$B5,"hh:mm"),TEXT(Données!$B5,"hh:mm")&" : "&TEXT(Données!$C5,"hh:mm")) -> 08:00 : 15:00 | H60: =Données!$A9 -> N | I60: = | J60: =IF(ISBLANK(Données!$C9),TEXT(Données!$B9,"hh:mm"),TEXT(Données!$B9,"hh:mm")&" : "&TEXT(Données!$C9,"hh:mm")) -> 20:45 : 08:15 | N60: =Données!$A12 -> JS | O60: = | P60: =IF(ISBLANK(Données!$C12),TEXT(Données!$B12,"hh:mm"),TEXT(Données!$B12,"hh:mm")&" : "&TEXT(Données!$C12,"hh:mm")) -> 08:00 : 19:00 | T60: =Données!$A16 -> EM | U60: = | V60: =IF(ISBLANK(Données!$C16),TEXT(Données!$B16,"hh:mm"),TEXT(Données!$B16,"hh:mm")&" : "&TEXT(Données!$C16,"hh:mm")) -> EM : EM | Z60: =Données!$A20 -> REC | AA60: = | AB60: =IF(ISBLANK(Données!$C20),TEXT(Données!$B20,"hh:mm"),TEXT(Données!$B20,"hh:mm")&" : "&TEXT(Données!$C20,"hh:mm")) -> REC : REC
B61: =Données!$A6 -> J | C61: = | D61: =IF(ISBLANK(Données!$C6),TEXT(Données!$B6,"hh:mm"),TEXT(Données!$B6,"hh:mm")&" : "&TEXT(Données!$C6,"hh:mm")) -> 09:00 : 16:30 | H61: =Données!$A10 -> N- | I61: = | J61: =IF(ISBLANK(Données!$C10),TEXT(Données!$B10,"hh:mm"),TEXT(Données!$B10,"hh:mm")&" : "&TEXT(Données!$C10,"hh:mm")) -> 20:45 : 07:15 | N61: =Données!$A13 -> SYN | O61: = | P61: =IF(ISBLANK(Données!$C13),TEXT(Données!$B13,"hh:mm"),TEXT(Données!$B13,"hh:mm")&" : "&TEXT(Données!$C13,"hh:mm")) -> Syn : Syn | T61: =Données!$A17 -> CE | U61: = | V61: =IF(ISBLANK(Données!$C17),TEXT(Données!$B17,"hh:mm"),TEXT(Données!$B17,"hh:mm")&" : "&TEXT(Données!$C17,"hh:mm")) -> CE : CE | Z61: =Données!$A21 -> PL | AA61: = | AB61: =IF(ISBLANK(Données!$C21),TEXT(Données!$B21,"hh:mm"),TEXT(Données!$B21,"hh:mm")&" : "&TEXT(Données!$C21,"hh:mm")) -> PL : PL

Sheet Decembre
B2: =DATE(An,Decembre,B7) -> 2018-12-01 | C2: 2018-12-02 | D2: 2018-12-03 | E2: 2018-12-04 | F2: 2018-12-05 | G2: 2018-12-06 | H2: 2018-12-07 | I2: 2018-12-08 | J2: 2018-12-09 | K2: 2018-12-10 | L2: 2018-12-11 | M2: 2018-12-12 | N2: 2018-12-13 | O2: 2018-12-14 | P2: 2018-12-15 | Q2: 2018-12-16 | R2: 2018-12-17 | S2: 2018-12-18 | T2: 2018-12-19 | U2: 2018-12-20 | V2: 2018-12-21 | W2: 2018-12-22 | X2: 2018-12-23 | Y2: 2018-12-24 | Z2: 2018-12-25 | AA2: 2018-12-26 | AB2: 2018-12-27 | AC2: 2018-12-28 | AD2: 2018-12-29 | AE2: 2018-12-30 | AF2: 2018-12-31 | AI2: Pour remplir | AJ2: penser | AO2: =IF(ISNUMBER(AO7),DATE(An,Decembre,AO7),"") ->  | AP2: =IF(ISNUMBER(AP7),DATE(An,Decembre,AP7),"") -> 
A3: =IF(Données!$L$5="","Service",Données!$L$5) -> Service | K3: Mois de Décembre | Q3: =An -> 2018 | AI3: à mettre dans le format:
AI4: "heures":"Minutes" | AT4: Masse horraire previsionnel
AI5: Heures sup | AJ5: Heures sup | AL5: Indications | AM5: Indications | AN5: Indications | AP5: Total
A6: Jours | B6: =PROPER(LEFT(TEXT(DATE(An,Decembre,B7),"jjj"),1)) -> S | C6: D | D6: L | E6: M | F6: M | G6: J | H6: V | I6: S | J6: D | K6: L | L6: M | M6: M | N6: J | O6: V | P6: S | Q6: D | R6: L | S6: M | T6: M | U6: J | V6: V | W6: S | X6: D | Y6: L | Z6: M | AA6: M | AB6: J | AC6: V | AD6: S | AE6: D | AF6: L | AI6: avant 21h | AJ6: après 21h | AL6: Heures | AM6: Heures nuit | AN6: Heures | AP6: Heures | AQ6: Heures
B7: =A7+1 -> 1 | C7: 2 | D7: 3 | E7: 4 | F7: 5 | G7: 6 | H7: 7 | I7: 8 | J7: 9 | K7: 10 | L7: 11 | M7: 12 | N7: 13 | O7: 14 | P7: 15 | Q7: 16 | R7: 17 | S7: 18 | T7: 19 | U7: 20 | V7: 21 | W7: 22 | X7: 23 | Y7: 24 | Z7: 25 | AA7: 26 | AB7: 27 | AC7: 28 | AD7: 29 | AE7: 30 | AF7: =AE7+1 -> 31 | AI7: A remplir | AJ7: A remplir | AL7: Dimanche | AM7: Dimanche | AN7: après 21h | AP7: au mois | AQ7: a l'année | AT7: i
A8: Equipe de jour
A9: =Données!$H6 -> A | AL9: =VLOOKUP($A9,BDecembre!$A$8:$BA$57,35,FALSE) -> 0 | AM9: =VLOOKUP($A9,BDecembre!$A$8:$BA$57,36,FALSE) -> 0 | AN9: =VLOOKUP($A9,BDecembre!$A$8:$BA$57,37,FALSE) -> 0 | AP9: =VLOOKUP($A9,BDecembre!$A$8:$BA$57,39,FALSE) -> 0 | AQ9: =VLOOKUP($A9,Bilan!$A$8:$BE$57,41,FALSE) -> 5.533333333 | AT9: =IFERROR(SUM((VLOOKUP(Decembre!A9,Données!$H$6:$J$53,3,TRUE)/12)*12),"") -> 60.35694444
A10: =Données!$H7 -> B | AL10: =VLOOKUP($A10,BDecembre!$A$8:$BA$57,35,FALSE) -> 0 | AM10: =VLOOKUP($A10,BDecembre!$A$8:$BA$57,36,FALSE) -> 0 | AN10: =VLOOKUP($A10,BDecembre!$A$8:$BA$57,37,FALSE) -> 0 | AP10: =VLOOKUP($A10,BDecembre!$A$8:$BA$57,39,FALSE) -> 0 | AQ10: =VLOOKUP($A10,Bilan!$A$8:$BE$57,41,FALSE) -> 0 | AT10: =IFERROR(SUM((VLOOKUP(Decembre!A10,Données!$H$6:$J$53,3,TRUE)/12)*12),"") -> 
A11: =Données!$H8 -> L | AL11: =VLOOKUP($A11,BDecembre!$A$8:$BA$57,35,FALSE) -> 0 | AM11: =VLOOKUP($A11,BDecembre!$A$8:$BA$57,36,FALSE) -> 0 | AN11: =VLOOKUP($A11,BDecembre!$A$8:$BA$57,37,FALSE) -> 0 | AP11: =VLOOKUP($A11,BDecembre!$A$8:$BA$57,39,FALSE) -> 0 | AQ11: =VLOOKUP($A11,Bilan!$A$8:$BE$57,41,FALSE) -> 0 | AT11: =IFERROR(SUM((VLOOKUP(Decembre!A11,Données!$H$6:$J$53,3,TRUE)/12)*12),"") -> 0
A12: =Données!$H9 -> L | AL12: =VLOOKUP($A12,BDecembre!$A$8:$BA$57,35,FALSE) -> 0 | AM12: =VLOOKUP($A12,BDecembre!$A$8:$BA$57,36,FALSE) -> 0 | AN12: =VLOOKUP($A12,BDecembre!$A$8:$BA$57,37,FALSE) -> 0 | AP12: =VLOOKUP($A12,BDecembre!$A$8:$BA$57,39,FALSE) -> 0 | AQ12: =VLOOKUP($A12,Bilan!$A$8:$BE$57,41,FALSE) -> 0 | AT12: =IFERROR(SUM((VLOOKUP(Decembre!A12,Données!$H$6:$J$53,3,TRUE)/12)*12),"") -> 0
A13: =Données!$H10 -> 0 | AL13: =VLOOKUP($A13,BDecembre!$A$8:$BA$57,35,FALSE) -> 0 | AM13: =VLOOKUP($A13,BDecembre!$A$8:$BA$57,36,FALSE) -> 0 | AN13: =VLOOKUP($A13,BDecembre!$A$8:$BA$57,37,FALSE) -> 0 | AP13: =VLOOKUP($A13,BDecembre!$A$8:$BA$57,39,FALSE) -> 0 | AQ13: =VLOOKUP($A13,Bilan!$A$8:$BE$57,41,FALSE) -> 0 | AT13: =IFERROR(SUM((VLOOKUP(Decembre!A13,Données!$H$6:$J$53,3,TRUE)/12)*12),"") -> 
A14: =Données!$H11 -> 0 | AL14: =VLOOKUP($A14,BDecembre!$A$8:$BA$57,35,FALSE) -> 0 | AM14: =VLOOKUP($A14,BDecembre!$A$8:$BA$57,36,FALSE) -> 0 | AN14: =VLOOKUP($A14,BDecembre!$A$8:$BA$57,37,FALSE) -> 0 | AP14: =VLOOKUP($A14,BDecembre!$A$8:$BA$57,39,FALSE) -> 0 | AQ14: =VLOOKUP($A14,Bilan!$A$8:$BE$57,41,FALSE) -> 0 | AT14: =IFERROR(SUM((VLOOKUP(Decembre!A14,Données!$H$6:$J$53,3,TRUE)/12)*12),"") -> 
A15: =Données!$H12 -> 0 | AL15: =VLOOKUP($A15,BDecembre!$A$8:$BA$57,35,FALSE) -> 0 | AM15: =VLOOKUP($A15,BDecembre!$A$8:$BA$57,36,FALSE) -> 0 | AN15: =VLOOKUP($A15,BDecembre!$A$8:$BA$57,37,FALSE) -> 0 | AP15: =VLOOKUP($A15,BDecembre!$A$8:$BA$57,39,FALSE) -> 0 | AQ15: =VLOOKUP($A15,Bilan!$A$8:$BE$57,41,FALSE) -> 0 | AT15: =IFERROR(SUM((VLOOKUP(Decembre!A15,Données!$H$6:$J$53,3,TRUE)/12)*12),"") -> 
A16: =Données!$H13 -> 0 | AL16: =VLOOKUP($A16,BDecembre!$A$8:$BA$57,35,FALSE) -> 0 | AM16: =VLOOKUP($A16,BDecembre!$A$8:$BA$57,36,FALSE) -> 0 | AN16: =VLOOKUP($A16,BDecembre!$A$8:$BA$57,37,FALSE) -> 0 | AP16: =VLOOKUP($A16,BDecembre!$A$8:$BA$57,39,FALSE) -> 0 | AQ16: =VLOOKUP($A16,Bilan!$A$8:$BE$57,41,FALSE) -> 0 | AT16: =IFERROR(SUM((VLOOKUP(Decembre!A16,Données!$H$6:$J$53,3,TRUE)/12)*12),"") -> 
A17: =Données!$H14 -> 0 | AL17: =VLOOKUP($A17,BDecembre!$A$8:$BA$57,35,FALSE) -> 0 | AM17: =VLOOKUP($A17,BDecembre!$A$8:$BA$57,36,FALSE) -> 0 | AN17: =VLOOKUP($A17,BDecembre!$A$8:$BA$57,37,FALSE) -> 0 | AP17: =VLOOKUP($A17,BDecembre!$A$8:$BA$57,39,FALSE) -> 0 | AQ17: =VLOOKUP($A17,Bilan!$A$8:$BE$57,41,FALSE) -> 0 | AT17: =IFERROR(SUM((VLOOKUP(Decembre!A17,Données!$H$6:$J$53,3,TRUE)/12)*12),"") -> 
A18: =Données!$H15 -> 0 | AL18: =VLOOKUP($A18,BDecembre!$A$8:$BA$57,35,FALSE) -> 0 | AM18: =VLOOKUP($A18,BDecembre!$A$8:$BA$57,36,FALSE) -> 0 | AN18: =VLOOKUP($A18,BDecembre!$A$8:$BA$57,37,FALSE) -> 0 | AP18: =VLOOKUP($A18,BDecembre!$A$8:$BA$57,39,FALSE) -> 0 | AQ18: =VLOOKUP($A18,Bilan!$A$8:$BE$57,41,FALSE) -> 0 | AT18: =IFERROR(SUM((VLOOKUP(Decembre!A18,Données!$H$6:$J$53,3,TRUE)/12)*12),"") -> 
A19: =Données!$H16 -> 0 | AL19: =VLOOKUP($A19,BDecembre!$A$8:$BA$57,35,FALSE) -> 0 | AM19: =VLOOKUP($A19,BDecembre!$A$8:$BA$57,36,FALSE) -> 0 | AN19: =VLOOKUP($A19,BDecembre!$A$8:$BA$57,37,FALSE) -> 0 | AP19: =VLOOKUP($A19,BDecembre!$A$8:$BA$57,39,FALSE) -> 0 | AQ19: =VLOOKUP($A19,Bilan!$A$8:$BE$57,41,FALSE) -> 0 | AT19: =IFERROR(SUM((VLOOKUP(Decembre!A19,Données!$H$6:$J$53,3,TRUE)/12)*12),"") -> 
A20: =Données!$H17 -> 0 | AL20: =VLOOKUP($A20,BDecembre!$A$8:$BA$57,35,FALSE) -> 0 | AM20: =VLOOKUP($A20,BDecembre!$A$8:$BA$57,36,FALSE) -> 0 | AN20: =VLOOKUP($A20,BDecembre!$A$8:$BA$57,37,FALSE) -> 0 | AP20: =VLOOKUP($A20,BDecembre!$A$8:$BA$57,39,FALSE) -> 0 | AQ20: =VLOOKUP($A20,Bilan!$A$8:$BE$57,41,FALSE) -> 0 | AT20: =IFERROR(SUM((VLOOKUP(Decembre!A20,Données!$H$6:$J$53,3,TRUE)/12)*12),"") -> 
A21: =Données!$H18 -> 0 | AL21: =VLOOKUP($A21,BDecembre!$A$8:$BA$57,35,FALSE) -> 0 | AM21: =VLOOKUP($A21,BDecembre!$A$8:$BA$57,36,FALSE) -> 0 | AN21: =VLOOKUP($A21,BDecembre!$A$8:$BA$57,37,FALSE) -> 0 | AP21: =VLOOKUP($A21,BDecembre!$A$8:$BA$57,39,FALSE) -> 0 | AQ21: =VLOOKUP($A21,Bilan!$A$8:$BE$57,41,FALSE) -> 0 | AT21: =IFERROR(SUM((VLOOKUP(Decembre!A21,Données!$H$6:$J$53,3,TRUE)/12)*12),"") -> 
A22: =Données!$H19 -> 0 | AL22: =VLOOKUP($A22,BDecembre!$A$8:$BA$57,35,FALSE) -> 0 | AM22: =VLOOKUP($A22,BDecembre!$A$8:$BA$57,36,FALSE) -> 0 | AN22: =VLOOKUP($A22,BDecembre!$A$8:$BA$57,37,FALSE) -> 0 | AP22: =VLOOKUP($A22,BDecembre!$A$8:$BA$57,39,FALSE) -> 0 | AQ22: =VLOOKUP($A22,Bilan!$A$8:$BE$57,41,FALSE) -> 0 | AT22: =IFERROR(SUM((VLOOKUP(Decembre!A22,Données!$H$6:$J$53,3,TRUE)/12)*12),"") -> 
A23: =Données!$H20 -> 0 | AL23: =VLOOKUP($A23,BDecembre!$A$8:$BA$57,35,FALSE) -> 0 | AM23: =VLOOKUP($A23,BDecembre!$A$8:$BA$57,36,FALSE) -> 0 | AN23: =VLOOKUP($A23,BDecembre!$A$8:$BA$57,37,FALSE) -> 0 | AP23: =VLOOKUP($A23,BDecembre!$A$8:$BA$57,39,FALSE) -> 0 | AQ23: =VLOOKUP($A23,Bilan!$A$8:$BE$57,41,FALSE) -> 0 | AT23: =IFERROR(SUM((VLOOKUP(Decembre!A23,Données!$H$6:$J$53,3,TRUE)/12)*12),"") -> 
A24: =Données!$H21 -> 0 | AL24: =VLOOKUP($A24,BDecembre!$A$8:$BA$57,35,FALSE) -> 0 | AM24: =VLOOKUP($A24,BDecembre!$A$8:$BA$57,36,FALSE) -> 0 | AN24: =VLOOKUP($A24,BDecembre!$A$8:$BA$57,37,FALSE) -> 0 | AP24: =VLOOKUP($A24,BDecembre!$A$8:$BA$57,39,FALSE) -> 0 | AQ24: =VLOOKUP($A24,Bilan!$A$8:$BE$57,41,FALSE) -> 0 | AT24: =IFERROR(SUM((VLOOKUP(Decembre!A24,Données!$H$6:$J$53,3,TRUE)/12)*12),"") -> 
A25: =Données!$H22 -> Equipe de nuit
A26: =Données!$H23 -> 0 | AL26: =VLOOKUP($A26,BDecembre!$A$8:$BA$57,35,FALSE) -> 0 | AM26: =VLOOKUP($A26,BDecembre!$A$8:$BA$57,36,FALSE) -> 0 | AN26: =VLOOKUP($A26,BDecembre!$A$8:$BA$57,37,FALSE) -> 0 | AP26: =VLOOKUP($A26,BDecembre!$A$8:$BA$57,39,FALSE) -> 0 | AQ26: =VLOOKUP($A26,Bilan!$A$8:$BE$57,41,FALSE) -> 0 | AT26: =IFERROR(SUM((VLOOKUP(Decembre!A26,Données!$H$6:$J$53,3,TRUE)/12)*12),"") -> 
A27: =Données!$H24 -> 0 | AL27: =VLOOKUP($A27,BDecembre!$A$8:$BA$57,35,FALSE) -> 0 | AM27: =VLOOKUP($A27,BDecembre!$A$8:$BA$57,36,FALSE) -> 0 | AN27: =VLOOKUP($A27,BDecembre!$A$8:$BA$57,37,FALSE) -> 0 | AP27: =VLOOKUP($A27,BDecembre!$A$8:$BA$57,39,FALSE) -> 0 | AQ27: =VLOOKUP($A27,Bilan!$A$8:$BE$57,41,FALSE) -> 0 | AT27: =IFERROR(SUM((VLOOKUP(Decembre!A27,Données!$H$6:$J$53,3,TRUE)/12)*12),"") -> 
A28: =Données!$H25 -> 0 | AL28: =VLOOKUP($A28,BDecembre!$A$8:$BA$57,35,FALSE) -> 0 | AM28: =VLOOKUP($A28,BDecembre!$A$8:$BA$57,36,FALSE) -> 0 | AN28: =VLOOKUP($A28,BDecembre!$A$8:$BA$57,37,FALSE) -> 0 | AP28: =VLOOKUP($A28,BDecembre!$A$8:$BA$57,39,FALSE) -> 0 | AQ28: =VLOOKUP($A28,Bilan!$A$8:$BE$57,41,FALSE) -> 0 | AT28: =IFERROR(SUM((VLOOKUP(Decembre!A28,Données!$H$6:$J$53,3,TRUE)/12)*12),"") -> 
A29: =Données!$H26 -> 0 | AL29: =VLOOKUP($A29,BDecembre!$A$8:$BA$57,35,FALSE) -> 0 | AM29: =VLOOKUP($A29,BDecembre!$A$8:$BA$57,36,FALSE) -> 0 | AN29: =VLOOKUP($A29,BDecembre!$A$8:$BA$57,37,FALSE) -> 0 | AP29: =VLOOKUP($A29,BDecembre!$A$8:$BA$57,39,FALSE) -> 0 | AQ29: =VLOOKUP($A29,Bilan!$A$8:$BE$57,41,FALSE) -> 0 | AT29: =IFERROR(SUM((VLOOKUP(Decembre!A29,Données!$H$6:$J$53,3,TRUE)/12)*12),"") -> 
A30: =Données!$H27 -> 0 | AL30: =VLOOKUP($A30,BDecembre!$A$8:$BA$57,35,FALSE) -> 0 | AM30: =VLOOKUP($A30,BDecembre!$A$8:$BA$57,36,FALSE) -> 0 | AN30: =VLOOKUP($A30,BDecembre!$A$8:$BA$57,37,FALSE) -> 0 | AP30: =VLOOKUP($A30,BDecembre!$A$8:$BA$57,39,FALSE) -> 0 | AQ30: =VLOOKUP($A30,Bilan!$A$8:$BE$57,41,FALSE) -> 0 | AT30: =IFERROR(SUM((VLOOKUP(Decembre!A30,Données!$H$6:$J$53,3,TRUE)/12)*12),"") -> 
A31: =Données!$H28 -> 0 | AL31: =VLOOKUP($A31,BDecembre!$A$8:$BA$57,35,FALSE) -> 0 | AM31: =VLOOKUP($A31,BDecembre!$A$8:$BA$57,36,FALSE) -> 0 | AN31: =VLOOKUP($A31,BDecembre!$A$8:$BA$57,37,FALSE) -> 0 | AP31: =VLOOKUP($A31,BDecembre!$A$8:$BA$57,39,FALSE) -> 0 | AQ31: =VLOOKUP($A31,Bilan!$A$8:$BE$57,41,FALSE) -> 0 | AT31: =IFERROR(SUM((VLOOKUP(Decembre!A31,Données!$H$6:$J$53,3,TRUE)/12)*12),"") -> 
A32: =Données!$H29 -> 0 | AL32: =VLOOKUP($A32,BDecembre!$A$8:$BA$57,35,FALSE) -> 0 | AM32: =VLOOKUP($A32,BDecembre!$A$8:$BA$57,36,FALSE) -> 0 | AN32: =VLOOKUP($A32,BDecembre!$A$8:$BA$57,37,FALSE) -> 0 | AP32: =VLOOKUP($A32,BDecembre!$A$8:$BA$57,39,FALSE) -> 0 | AQ32: =VLOOKUP($A32,Bilan!$A$8:$BE$57,41,FALSE) -> 0 | AT32: =IFERROR(SUM((VLOOKUP(Decembre!A32,Données!$H$6:$J$53,3,TRUE)/12)*12),"") -> 
A33: =Données!$H30 -> 0 | AL33: =VLOOKUP($A33,BDecembre!$A$8:$BA$57,35,FALSE) -> 0 | AM33: =VLOOKUP($A33,BDecembre!$A$8:$BA$57,36,FALSE) -> 0 | AN33: =VLOOKUP($A33,BDecembre!$A$8:$BA$57,37,FALSE) -> 0 | AP33: =VLOOKUP($A33,BDecembre!$A$8:$BA$57,39,FALSE) -> 0 | AQ33: =VLOOKUP($A33,Bilan!$A$8:$BE$57,41,FALSE) -> 0 | AT33: =IFERROR(SUM((VLOOKUP(Decembre!A33,Données!$H$6:$J$53,3,TRUE)/12)*12),"") -> 
A34: =Données!$H31 -> 0 | AL34: =VLOOKUP($A34,BDecembre!$A$8:$BA$57,35,FALSE) -> 0 | AM34: =VLOOKUP($A34,BDecembre!$A$8:$BA$57,36,FALSE) -> 0 | AN34: =VLOOKUP($A34,BDecembre!$A$8:$BA$57,37,FALSE) -> 0 | AP34: =VLOOKUP($A34,BDecembre!$A$8:$BA$57,39,FALSE) -> 0 | AQ34: =VLOOKUP($A34,Bilan!$A$8:$BE$57,41,FALSE) -> 0 | AT34: =IFERROR(SUM((VLOOKUP(Decembre!A34,Données!$H$6:$J$53,3,TRUE)/12)*12),"") -> 
A35: =Données!$H32 -> Maitresse de maison
A36: =Données!$H33 -> 0 | AL36: =VLOOKUP($A36,BDecembre!$A$8:$BA$57,35,FALSE) -> 0 | AM36: =VLOOKUP($A36,BDecembre!$A$8:$BA$57,36,FALSE) -> 0 | AN36: =VLOOKUP($A36,BDecembre!$A$8:$BA$57,37,FALSE) -> 0 | AP36: =VLOOKUP($A36,BDecembre!$A$8:$BA$57,39,FALSE) -> 0 | AQ36: =VLOOKUP($A36,Bilan!$A$8:$BE$57,41,FALSE) -> 0 | AT36: =IFERROR(SUM((VLOOKUP(Decembre!A36,Données!$H$6:$J$53,3,TRUE)/12)*12),"") -> 
A37: =Données!$H34 -> 0 | AL37: =VLOOKUP($A37,BDecembre!$A$8:$BA$57,35,FALSE) -> 0 | AM37: =VLOOKUP($A37,BDecembre!$A$8:$BA$57,36,FALSE) -> 0 | AN37: =VLOOKUP($A37,BDecembre!$A$8:$BA$57,37,FALSE) -> 0 | AP37: =VLOOKUP($A37,BDecembre!$A$8:$BA$57,39,FALSE) -> 0 | AQ37: =VLOOKUP($A37,Bilan!$A$8:$BE$57,41,FALSE) -> 0 | AT37: =IFERROR(SUM((VLOOKUP(Decembre!A37,Données!$H$6:$J$53,3,TRUE)/12)*12),"") -> 
A38: =Données!$H35 -> 0 | AL38: =VLOOKUP($A38,BDecembre!$A$8:$BA$57,35,FALSE) -> 0 | AM38: =VLOOKUP($A38,BDecembre!$A$8:$BA$57,36,FALSE) -> 0 | AN38: =VLOOKUP($A38,BDecembre!$A$8:$BA$57,37,FALSE) -> 0 | AP38: =VLOOKUP($A38,BDecembre!$A$8:$BA$57,39,FALSE) -> 0 | AQ38: =VLOOKUP($A38,Bilan!$A$8:$BE$57,41,FALSE) -> 0 | AT38: =IFERROR(SUM((VLOOKUP(Decembre!A38,Données!$H$6:$J$53,3,TRUE)/12)*12),"") -> 
A39: =Données!$H36 -> 0 | AL39: =VLOOKUP($A39,BDecembre!$A$8:$BA$57,35,FALSE) -> 0 | AM39: =VLOOKUP($A39,BDecembre!$A$8:$BA$57,36,FALSE) -> 0 | AN39: =VLOOKUP($A39,BDecembre!$A$8:$BA$57,37,FALSE) -> 0 | AP39: =VLOOKUP($A39,BDecembre!$A$8:$BA$57,39,FALSE) -> 0 | AQ39: =VLOOKUP($A39,Bilan!$A$8:$BE$57,41,FALSE) -> 0 | AT39: =IFERROR(SUM((VLOOKUP(Decembre!A39,Données!$H$6:$J$53,3,TRUE)/12)*12),"") -> 
A40: =Données!$H37 -> 0 | AL40: =VLOOKUP($A40,BDecembre!$A$8:$BA$57,35,FALSE) -> 0 | AM40: =VLOOKUP($A40,BDecembre!$A$8:$BA$57,36,FALSE) -> 0 | AN40: =VLOOKUP($A40,BDecembre!$A$8:$BA$57,37,FALSE) -> 0 | AP40: =VLOOKUP($A40,BDecembre!$A$8:$BA$57,39,FALSE) -> 0 | AQ40: =VLOOKUP($A40,Bilan!$A$8:$BE$57,41,FALSE) -> 0 | AT40: =IFERROR(SUM((VLOOKUP(Decembre!A40,Données!$H$6:$J$53,3,TRUE)/12)*12),"") -> 
A41: =Données!$H38 -> 0 | AL41: =VLOOKUP($A41,BDecembre!$A$8:$BA$57,35,FALSE) -> 0 | AM41: =VLOOKUP($A41,BDecembre!$A$8:$BA$57,36,FALSE) -> 0 | AN41: =VLOOKUP($A41,BDecembre!$A$8:$BA$57,37,FALSE) -> 0 | AP41: =VLOOKUP($A41,BDecembre!$A$8:$BA$57,39,FALSE) -> 0 | AQ41: =VLOOKUP($A41,Bilan!$A$8:$BE$57,41,FALSE) -> 0 | AT41: =IFERROR(SUM((VLOOKUP(Decembre!A41,Données!$H$6:$J$53,3,TRUE)/12)*12),"") -> 
A42: =Données!$H39 -> 0 | AL42: =VLOOKUP($A42,BDecembre!$A$8:$BA$57,35,FALSE) -> 0 | AM42: =VLOOKUP($A42,BDecembre!$A$8:$BA$57,36,FALSE) -> 0 | AN42: =VLOOKUP($A42,BDecembre!$A$8:$BA$57,37,FALSE) -> 0 | AP42: =VLOOKUP($A42,BDecembre!$A$8:$BA$57,39,FALSE) -> 0 | AQ42: =VLOOKUP($A42,Bilan!$A$8:$BE$57,41,FALSE) -> 0 | AT42: =IFERROR(SUM((VLOOKUP(Decembre!A42,Données!$H$6:$J$53,3,TRUE)/12)*12),"") -> 
A43: =Données!$H40 -> 0 | AL43: =VLOOKUP($A43,BDecembre!$A$8:$BA$57,35,FALSE) -> 0 | AM43: =VLOOKUP($A43,BDecembre!$A$8:$BA$57,36,FALSE) -> 0 | AN43: =VLOOKUP($A43,BDecembre!$A$8:$BA$57,37,FALSE) -> 0 | AP43: =VLOOKUP($A43,BDecembre!$A$8:$BA$57,39,FALSE) -> 0 | AQ43: =VLOOKUP($A43,Bilan!$A$8:$BE$57,41,FALSE) -> 0 | AT43: =IFERROR(SUM((VLOOKUP(Decembre!A43,Données!$H$6:$J$53,3,TRUE)/12)*12),"") -> 
A44: =Données!$H41 -> 0 | AL44: =VLOOKUP($A44,BDecembre!$A$8:$BA$57,35,FALSE) -> 0 | AM44: =VLOOKUP($A44,BDecembre!$A$8:$BA$57,36,FALSE) -> 0 | AN44: =VLOOKUP($A44,BDecembre!$A$8:$BA$57,37,FALSE) -> 0 | AP44: =VLOOKUP($A44,BDecembre!$A$8:$BA$57,39,FALSE) -> 0 | AQ44: =VLOOKUP($A44,Bilan!$A$8:$BE$57,41,FALSE) -> 0 | AT44: =IFERROR(SUM((VLOOKUP(Decembre!A44,Données!$H$6:$J$53,3,TRUE)/12)*12),"") -> 
A45: =Données!$H42 -> Psychologue
A46: =Données!$H43 -> 0 | AL46: =VLOOKUP($A46,BDecembre!$A$8:$BA$57,35,FALSE) -> 0 | AM46: =VLOOKUP($A46,BDecembre!$A$8:$BA$57,36,FALSE) -> 0 | AN46: =VLOOKUP($A46,BDecembre!$A$8:$BA$57,37,FALSE) -> 0 | AP46: =VLOOKUP($A46,BDecembre!$A$8:$BA$57,39,FALSE) -> 0 | AQ46: =VLOOKUP($A46,Bilan!$A$8:$BE$57,41,FALSE) -> 0 | AT46: =IFERROR(SUM((VLOOKUP(Decembre!A46,Données!$H$6:$J$53,3,TRUE)/12)*12),"") -> 
A47: =Données!$H44 -> 0 | AL47: =VLOOKUP($A47,BDecembre!$A$8:$BA$57,35,FALSE) -> 0 | AM47: =VLOOKUP($A47,BDecembre!$A$8:$BA$57,36,FALSE) -> 0 | AN47: =VLOOKUP($A47,BDecembre!$A$8:$BA$57,37,FALSE) -> 0 | AP47: =VLOOKUP($A47,BDecembre!$A$8:$BA$57,39,FALSE) -> 0 | AQ47: =VLOOKUP($A47,Bilan!$A$8:$BE$57,41,FALSE) -> 0 | AT47: =IFERROR(SUM((VLOOKUP(Decembre!A47,Données!$H$6:$J$53,3,TRUE)/12)*12),"") -> 
A48: =Données!$H45 -> 0 | AL48: =VLOOKUP($A48,BDecembre!$A$8:$BA$57,35,FALSE) -> 0 | AM48: =VLOOKUP($A48,BDecembre!$A$8:$BA$57,36,FALSE) -> 0 | AN48: =VLOOKUP($A48,BDecembre!$A$8:$BA$57,37,FALSE) -> 0 | AP48: =VLOOKUP($A48,BDecembre!$A$8:$BA$57,39,FALSE) -> 0 | AQ48: =VLOOKUP($A48,Bilan!$A$8:$BE$57,41,FALSE) -> 0 | AT48: =IFERROR(SUM((VLOOKUP(Decembre!A48,Données!$H$6:$J$53,3,TRUE)/12)*12),"") -> 
A49: =Données!$H46 -> Coordinatrice
A50: =Données!$H47 -> 0 | AL50: =VLOOKUP($A50,BDecembre!$A$8:$BA$57,35,FALSE) -> 0 | AM50: =VLOOKUP($A50,BDecembre!$A$8:$BA$57,36,FALSE) -> 0 | AN50: =VLOOKUP($A50,BDecembre!$A$8:$BA$57,37,FALSE) -> 0 | AP50: =VLOOKUP($A50,BDecembre!$A$8:$BA$57,39,FALSE) -> 0 | AQ50: =VLOOKUP($A50,Bilan!$A$8:$BE$57,41,FALSE) -> 0 | AT50: =IFERROR(SUM((VLOOKUP(Decembre!A50,Données!$H$6:$J$53,3,TRUE)/12)*12),"") -> 
A51: =Données!$H48 -> 0 | AL51: =VLOOKUP($A51,BDecembre!$A$8:$BA$57,35,FALSE) -> 0 | AM51: =VLOOKUP($A51,BDecembre!$A$8:$BA$57,36,FALSE) -> 0 | AN51: =VLOOKUP($A51,BDecembre!$A$8:$BA$57,37,FALSE) -> 0 | AP51: =VLOOKUP($A51,BDecembre!$A$8:$BA$57,39,FALSE) -> 0 | AQ51: =VLOOKUP($A51,Bilan!$A$8:$BE$57,41,FALSE) -> 0 | AT51: =IFERROR(SUM((VLOOKUP(Decembre!A51,Données!$H$6:$J$53,3,TRUE)/12)*12),"") -> 
A52: =Données!$H49 -> 0 | AL52: =VLOOKUP($A52,BDecembre!$A$8:$BA$57,35,FALSE) -> 0 | AM52: =VLOOKUP($A52,BDecembre!$A$8:$BA$57,36,FALSE) -> 0 | AN52: =VLOOKUP($A52,BDecembre!$A$8:$BA$57,37,FALSE) -> 0 | AP52: =VLOOKUP($A52,BDecembre!$A$8:$BA$57,39,FALSE) -> 0 | AQ52: =VLOOKUP($A52,Bilan!$A$8:$BE$57,41,FALSE) -> 0 | AT52: =IFERROR(SUM((VLOOKUP(Decembre!A52,Données!$H$6:$J$53,3,TRUE)/12)*12),"") -> 
A53: =Données!$H50 -> 0 | AL53: =VLOOKUP($A53,BDecembre!$A$8:$BA$57,35,FALSE) -> 0 | AM53: =VLOOKUP($A53,BDecembre!$A$8:$BA$57,36,FALSE) -> 0 | AN53: =VLOOKUP($A53,BDecembre!$A$8:$BA$57,37,FALSE) -> 0 | AP53: =VLOOKUP($A53,BDecembre!$A$8:$BA$57,39,FALSE) -> 0 | AQ53: =VLOOKUP($A53,Bilan!$A$8:$BE$57,41,FALSE) -> 0 | AT53: =IFERROR(SUM((VLOOKUP(Decembre!A53,Données!$H$6:$J$53,3,TRUE)/12)*12),"") -> 
A54: =Données!$H51 -> 0 | AL54: =VLOOKUP($A54,BDecembre!$A$8:$BA$57,35,FALSE) -> 0 | AM54: =VLOOKUP($A54,BDecembre!$A$8:$BA$57,36,FALSE) -> 0 | AN54: =VLOOKUP($A54,BDecembre!$A$8:$BA$57,37,FALSE) -> 0 | AP54: =VLOOKUP($A54,BDecembre!$A$8:$BA$57,39,FALSE) -> 0 | AQ54: =VLOOKUP($A54,Bilan!$A$8:$BE$57,41,FALSE) -> 0 | AT54: =IFERROR(SUM((VLOOKUP(Decembre!A54,Données!$H$6:$J$53,3,TRUE)/12)*12),"") -> 
A55: =Données!$H52 -> Chef de service
A56: =Données!$H53 -> 0 | AL56: =VLOOKUP($A56,BDecembre!$A$8:$BA$57,35,FALSE) -> 0 | AM56: =VLOOKUP($A56,BDecembre!$A$8:$BA$57,36,FALSE) -> 0 | AN56: =VLOOKUP($A56,BDecembre!$A$8:$BA$57,37,FALSE) -> 0 | AP56: =VLOOKUP($A56,BDecembre!$A$8:$BA$57,39,FALSE) -> 0 | AQ56: =VLOOKUP($A56,Bilan!$A$8:$BE$57,41,FALSE) -> 0 | AT56: =IFERROR(SUM((VLOOKUP(Decembre!A56,Données!$H$6:$J$53,3,TRUE)/12)*12),"") -> 
B58: =Données!$A3 -> S | C58: = | D58: =IF(ISBLANK(Données!$C3),TEXT(Données!$B3,"hh:mm"),TEXT(Données!$B3,"hh:mm")&" : "&TEXT(Données!$C3,"hh:mm")) -> 13:30 : 21:30 | H58: =Données!$A7 -> J+ | I58: = | J58: =IF(ISBLANK(Données!$C7),TEXT(Données!$B7,"hh:mm"),TEXT(Données!$B7,"hh:mm")&" : "&TEXT(Données!$C7,"hh:mm")) -> 09:00 : 21:00 | N58: =Données!$A10 -> N- | O58: = | P58: =IF(ISBLANK(Données!$C10),TEXT(Données!$B10,"hh:mm"),TEXT(Données!$B10,"hh:mm")&" : "&TEXT(Données!$C10,"hh:mm")) -> 20:45 : 07:15 | T58: =Données!$A14 -> AT | U58: = | V58: =IF(ISBLANK(Données!$C14),TEXT(Données!$B14,"hh:mm"),TEXT(Données!$B14,"hh:mm")&" : "&TEXT(Données!$C14,"hh:mm")) -> AT : AT | Z58: =Données!$A18 -> CA | AA58: = | AB58: =IF(ISBLANK(Données!$C18),TEXT(Données!$B18,"hh:mm"),TEXT(Données!$B18,"hh:mm")&" : "&TEXT(Données!$C18,"hh:mm")) -> CA : CA
B59: =Données!$A4 -> M- | C59: = | D59: =IF(ISBLANK(Données!$C4),TEXT(Données!$B4,"hh:mm"),TEXT(Données!$B4,"hh:mm")&" : "&TEXT(Données!$C4,"hh:mm")) -> 07:00 : 15:00 | H59: =Données!$A8 -> RS | I59: = | J59: =IF(ISBLANK(Données!$C8),TEXT(Données!$B8,"hh:mm"),TEXT(Données!$B8,"hh:mm")&" : "&TEXT(Données!$C8,"hh:mm")) -> 09:30 : 21:30 | N59: =Données!$A11 -> N+ | O59: = | P59: =IF(ISBLANK(Données!$C11),TEXT(Données!$B11,"hh:mm"),TEXT(Données!$B11,"hh:mm")&" : "&TEXT(Données!$C11,"hh:mm")) -> 19:15 : 07:15 | T59: =Données!$A15 -> AM | U59: = | V59: =IF(ISBLANK(Données!$C15),TEXT(Données!$B15,"hh:mm"),TEXT(Données!$B15,"hh:mm")&" : "&TEXT(Données!$C15,"hh:mm")) -> AM : AM | Z59: =Données!$A19 -> CA17 | AA59: = | AB59: =IF(ISBLANK(Données!$C19),TEXT(Données!$B19,"hh:mm"),TEXT(Données!$B19,"hh:mm")&" : "&TEXT(Données!$C19,"hh:mm")) -> CA17 : CA17
B60: =Données!$A5 -> M | C60: = | D60: =IF(ISBLANK(Données!$C5),TEXT(Données!$B5,"hh:mm"),TEXT(Données!$B5,"hh:mm")&" : "&TEXT(Données!$C5,"hh:mm")) -> 08:00 : 15:00 | H60: =Données!$A9 -> N | I60: = | J60: =IF(ISBLANK(Données!$C9),TEXT(Données!$B9,"hh:mm"),TEXT(Données!$B9,"hh:mm")&" : "&TEXT(Données!$C9,"hh:mm")) -> 20:45 : 08:15 | N60: =Données!$A12 -> JS | O60: = | P60: =IF(ISBLANK(Données!$C12),TEXT(Données!$B12,"hh:mm"),TEXT(Données!$B12,"hh:mm")&" : "&TEXT(Données!$C12,"hh:mm")) -> 08:00 : 19:00 | T60: =Données!$A16 -> EM | U60: = | V60: =IF(ISBLANK(Données!$C16),TEXT(Données!$B16,"hh:mm"),TEXT(Données!$B16,"hh:mm")&" : "&TEXT(Données!$C16,"hh:mm")) -> EM : EM | Z60: =Données!$A20 -> REC | AA60: = | AB60: =IF(ISBLANK(Données!$C20),TEXT(Données!$B20,"hh:mm"),TEXT(Données!$B20,"hh:mm")&" : "&TEXT(Données!$C20,"hh:mm")) -> REC : REC
B61: =Données!$A6 -> J | C61: = | D61: =IF(ISBLANK(Données!$C6),TEXT(Données!$B6,"hh:mm"),TEXT(Données!$B6,"hh:mm")&" : "&TEXT(Données!$C6,"hh:mm")) -> 09:00 : 16:30 | H61: =Données!$A10 -> N- | I61: = | J61: =IF(ISBLANK(Données!$C10),TEXT(Données!$B10,"hh:mm"),TEXT(Données!$B10,"hh:mm")&" : "&TEXT(Données!$C10,"hh:mm")) -> 20:45 : 07:15 | N61: =Données!$A13 -> SYN | O61: = | P61: =IF(ISBLANK(Données!$C13),TEXT(Données!$B13,"hh:mm"),TEXT(Données!$B13,"hh:mm")&" : "&TEXT(Données!$C13,"hh:mm")) -> Syn : Syn | T61: =Données!$A17 -> CE | U61: = | V61: =IF(ISBLANK(Données!$C17),TEXT(Données!$B17,"hh:mm"),TEXT(Données!$B17,"hh:mm")&" : "&TEXT(Données!$C17,"hh:mm")) -> CE : CE | Z61: =Données!$A21 -> PL | AA61: = | AB61: =IF(ISBLANK(Données!$C21),TEXT(Données!$B21,"hh:mm"),TEXT(Données!$B21,"hh:mm")&" : "&TEXT(Données!$C21,"hh:mm")) -> PL : PL

Sheet HJanvier
D1: Mois de | E1: Janvier | I1: =An -> 2018
B2: =DATE(An,Janvier,B7) -> 2018-01-01 | C2: 2018-01-02 | D2: 2018-01-03 | E2: 2018-01-04 | F2: 2018-01-05 | G2: 2018-01-06 | H2: 2018-01-07 | I2: 2018-01-08 | J2: 2018-01-09 | K2: 2018-01-10 | L2: 2018-01-11 | M2: 2018-01-12 | N2: 2018-01-13 | O2: 2018-01-14 | P2: 2018-01-15 | Q2: 2018-01-16 | R2: 2018-01-17 | S2: 2018-01-18 | T2: 2018-01-19 | U2: 2018-01-20 | V2: 2018-01-21 | W2: 2018-01-22 | X2: 2018-01-23 | Y2: 2018-01-24 | Z2: 2018-01-25 | AA2: 2018-01-26 | AB2: 2018-01-27 | AC2: 2018-01-28 | AD2: 2018-01-29 | AE2: 2018-01-30 | AF2: 2018-01-31
A3: =IF(Données!$L$5="","Service",Données!$L$5) -> Service
A6: Jours | B6: =PROPER(TEXT(DATE(An,Janvier,B$7),"jjjjjj")) -> Lundi | C6: =PROPER(TEXT(DATE(An,Janvier,C$7),"jjjjjj")) -> Mardi | D6: =PROPER(TEXT(DATE(An,Janvier,D$7),"jjjjjj")) -> Mercredi | E6: Jeudi | F6: Vendredi | G6: Samedi | H6: Dimanche | I6: Lundi | J6: Mardi | K6: Mercredi | L6: Jeudi | M6: Vendredi | N6: Samedi | O6: Dimanche | P6: Lundi | Q6: Mardi | R6: Mercredi | S6: Jeudi | T6: Vendredi | U6: Samedi | V6: Dimanche | W6: Lundi | X6: Mardi | Y6: Mercredi | Z6: Jeudi | AA6: Vendredi | AB6: Samedi | AC6: Dimanche | AD6: Lundi | AE6: Mardi | AF6: Mercredi
B7: 1 | C7: =B7+1 -> 2 | D7: =C7+1 -> 3 | E7: 4 | F7: 5 | G7: 6 | H7: 7 | I7: 8 | J7: 9 | K7: 10 | L7: 11 | M7: 12 | N7: 13 | O7: 14 | P7: 15 | Q7: 16 | R7: 17 | S7: 18 | T7: 19 | U7: 20 | V7: 21 | W7: 22 | X7: 23 | Y7: 24 | Z7: 25 | AA7: 26 | AB7: =AA7+1 -> 27 | AC7: =AB7+1 -> 28 | AD7: =AC7+1 -> 29 | AE7: =AD7+1 -> 30 | AF7: =AE7+1 -> 31
A8: Equipe de jour
A9: =Données!$H6 -> A | B9: =hjanvier ->  | C9: =hjanvier ->  | D9: =hjanvier -> 08:00 : 15:00 | E9: =hjanvier -> 09:00 : 16:30 | F9: =hjanvier -> 13:30 : 21:30 | G9: =hjanvier ->  | H9: =hjanvier ->  | I9: =hjanvier -> 13:30 : 21:30 | J9: =hjanvier -> 13:30 : 21:30 | K9: =hjanvier -> 08:00 : 15:00 | L9: =hjanvier -> 08:00 : 15:00 | M9: =hjanvier -> 08:00 : 15:00 | N9: =hjanvier ->  | O9: =hjanvier ->  | P9: =hjanvier -> 13:30 : 21:30 | Q9: =hjanvier ->  | R9: =hjanvier ->  | S9: =hjanvier -> 20:45 : 08:15 | T9: =hjanvier ->  | U9: =hjanvier ->  | V9: =hjanvier -> 13:30 : 21:30 | W9: =hjanvier ->  | X9: =hjanvier -> 09:30 : 21:30 | Y9: =hjanvier -> 08:00 : 19:00 | Z9: =hjanvier ->  | AA9: =hjanvier ->  | AB9: =hjanvier ->  | AC9: =hjanvier ->  | AD9: =hjanvier -> CA : CA | AE9: =hjanvier -> CA : CA | AF9: =hjanvier -> CA : CA
A10: =Données!$H7 -> B | B10: =hjanvier ->  | C10: =hjanvier ->  | D10: =hjanvier ->  | E10: =hjanvier ->  | F10: =hjanvier ->  | G10: =hjanvier ->  | H10: =hjanvier ->  | I10: =hjanvier ->  | J10: =hjanvier ->  | K10: =hjanvier ->  | L10: =hjanvier ->  | M10: =hjanvier ->  | N10: =hjanvier ->  | O10: =hjanvier ->  | P10: =hjanvier ->  | Q10: =hjanvier ->  | R10: =hjanvier ->  | S10: =hjanvier ->  | T10: =hjanvier ->  | U10: =hjanvier ->  | V10: =hjanvier ->  | W10: =hjanvier ->  | X10: =hjanvier ->  | Y10: =hjanvier ->  | Z10: =hjanvier ->  | AA10: =hjanvier ->  | AB10: =hjanvier ->  | AC10: =hjanvier ->  | AD10: =hjanvier ->  | AE10: =hjanvier ->  | AF10: =hjanvier -> 
A11: =Données!$H8 -> L | B11: =hjanvier ->  | C11: =hjanvier ->  | D11: =hjanvier ->  | E11: =hjanvier ->  | F11: =hjanvier ->  | G11: =hjanvier ->  | H11: =hjanvier ->  | I11: =hjanvier ->  | J11: =hjanvier ->  | K11: =hjanvier ->  | L11: =hjanvier ->  | M11: =hjanvier ->  | N11: =hjanvier ->  | O11: =hjanvier ->  | P11: =hjanvier ->  | Q11: =hjanvier ->  | R11: =hjanvier ->  | S11: =hjanvier ->  | T11: =hjanvier ->  | U11: =hjanvier ->  | V11: =hjanvier ->  | W11: =hjanvier ->  | X11: =hjanvier ->  | Y11: =hjanvier ->  | Z11: =hjanvier ->  | AA11: =hjanvier ->  | AB11: =hjanvier ->  | AC11: =hjanvier ->  | AD11: =hjanvier ->  | AE11: =hjanvier ->  | AF11: =hjanvier -> 
A12: =Données!$H9 -> L | B12: =hjanvier ->  | C12: =hjanvier ->  | D12: =hjanvier ->  | E12: =hjanvier ->  | F12: =hjanvier ->  | G12: =hjanvier ->  | H12: =hjanvier ->  | I12: =hjanvier ->  | J12: =hjanvier ->  | K12: =hjanvier ->  | L12: =hjanvier ->  | M12: =hjanvier ->  | N12: =hjanvier ->  | O12: =hjanvier ->  | P12: =hjanvier ->  | Q12: =hjanvier ->  | R12: =hjanvier ->  | S12: =hjanvier ->  | T12: =hjanvier ->  | U12: =hjanvier ->  | V12: =hjanvier ->  | W12: =hjanvier ->  | X12: =hjanvier ->  | Y12: =hjanvier ->  | Z12: =hjanvier ->  | AA12: =hjanvier ->  | AB12: =hjanvier ->  | AC12: =hjanvier ->  | AD12: =hjanvier ->  | AE12: =hjanvier ->  | AF12: =hjanvier -> 
A13: =Données!$H10 -> 0 | B13: =hjanvier ->  | C13: =hjanvier ->  | D13: =hjanvier ->  | E13: =hjanvier ->  | F13: =hjanvier ->  | G13: =hjanvier ->  | H13: =hjanvier ->  | I13: =hjanvier ->  | J13: =hjanvier ->  | K13: =hjanvier ->  | L13: =hjanvier ->  | M13: =hjanvier ->  | N13: =hjanvier ->  | O13: =hjanvier ->  | P13: =hjanvier ->  | Q13: =hjanvier ->  | R13: =hjanvier ->  | S13: =hjanvier ->  | T13: =hjanvier ->  | U13: =hjanvier ->  | V13: =hjanvier ->  | W13: =hjanvier ->  | X13: =hjanvier ->  | Y13: =hjanvier ->  | Z13: =hjanvier ->  | AA13: =hjanvier ->  | AB13: =hjanvier ->  | AC13: =hjanvier ->  | AD13: =hjanvier ->  | AE13: =hjanvier ->  | AF13: =hjanvier -> 
A14: =Données!$H11 -> 0 | B14: =hjanvier ->  | C14: =hjanvier ->  | D14: =hjanvier ->  | E14: =hjanvier ->  | F14: =hjanvier ->  | G14: =hjanvier ->  | H14: =hjanvier ->  | I14: =hjanvier ->  | J14: =hjanvier ->  | K14: =hjanvier ->  | L14: =hjanvier ->  | M14: =hjanvier ->  | N14: =hjanvier ->  | O14: =hjanvier ->  | P14: =hjanvier ->  | Q14: =hjanvier ->  | R14: =hjanvier ->  | S14: =hjanvier ->  | T14: =hjanvier ->  | U14: =hjanvier ->  | V14: =hjanvier ->  | W14: =hjanvier ->  | X14: =hjanvier ->  | Y14: =hjanvier ->  | Z14: =hjanvier ->  | AA14: =hjanvier ->  | AB14: =hjanvier ->  | AC14: =hjanvier ->  | AD14: =hjanvier ->  | AE14: =hjanvier ->  | AF14: =hjanvier -> 
A15: =Données!$H12 -> 0 | B15: =hjanvier ->  | C15: =hjanvier ->  | D15: =hjanvier ->  | E15: =hjanvier ->  | F15: =hjanvier ->  | G15: =hjanvier ->  | H15: =hjanvier ->  | I15: =hjanvier ->  | J15: =hjanvier ->  | K15: =hjanvier ->  | L15: =hjanvier ->  | M15: =hjanvier ->  | N15: =hjanvier ->  | O15: =hjanvier ->  | P15: =hjanvier ->  | Q15: =hjanvier ->  | R15: =hjanvier ->  | S15: =hjanvier ->  | T15: =hjanvier ->  | U15: =hjanvier ->  | V15: =hjanvier ->  | W15: =hjanvier ->  | X15: =hjanvier ->  | Y15: =hjanvier ->  | Z15: =hjanvier ->  | AA15: =hjanvier ->  | AB15: =hjanvier ->  | AC15: =hjanvier ->  | AD15: =hjanvier ->  | AE15: =hjanvier ->  | AF15: =hjanvier -> 
A16: =Données!$H13 -> 0 | B16: =hjanvier ->  | C16: =hjanvier ->  | D16: =hjanvier ->  | E16: =hjanvier ->  | F16: =hjanvier ->  | G16: =hjanvier ->  | H16: =hjanvier ->  | I16: =hjanvier ->  | J16: =hjanvier ->  | K16: =hjanvier ->  | L16: =hjanvier ->  | M16: =hjanvier ->  | N16: =hjanvier ->  | O16: =hjanvier ->  | P16: =hjanvier ->  | Q16: =hjanvier ->  | R16: =hjanvier ->  | S16: =hjanvier ->  | T16: =hjanvier ->  | U16: =hjanvier ->  | V16: =hjanvier ->  | W16: =hjanvier ->  | X16: =hjanvier ->  | Y16: =hjanvier ->  | Z16: =hjanvier ->  | AA16: =hjanvier ->  | AB16: =hjanvier ->  | AC16: =hjanvier ->  | AD16: =hjanvier ->  | AE16: =hjanvier ->  | AF16: =hjanvier -> 
A17: =Données!$H14 -> 0 | B17: =hjanvier ->  | C17: =hjanvier ->  | D17: =hjanvier ->  | E17: =hjanvier ->  | F17: =hjanvier ->  | G17: =hjanvier ->  | H17: =hjanvier ->  | I17: =hjanvier ->  | J17: =hjanvier ->  | K17: =hjanvier ->  | L17: =hjanvier ->  | M17: =hjanvier ->  | N17: =hjanvier ->  | O17: =hjanvier ->  | P17: =hjanvier ->  | Q17: =hjanvier ->  | R17: =hjanvier ->  | S17: =hjanvier ->  | T17: =hjanvier ->  | U17: =hjanvier ->  | V17: =hjanvier ->  | W17: =hjanvier ->  | X17: =hjanvier ->  | Y17: =hjanvier ->  | Z17: =hjanvier ->  | AA17: =hjanvier ->  | AB17: =hjanvier ->  | AC17: =hjanvier ->  | AD17: =hjanvier ->  | AE17: =hjanvier ->  | AF17: =hjanvier -> 
A18: =Données!$H15 -> 0 | B18: =hjanvier ->  | C18: =hjanvier ->  | D18: =hjanvier ->  | E18: =hjanvier ->  | F18: =hjanvier ->  | G18: =hjanvier ->  | H18: =hjanvier ->  | I18: =hjanvier ->  | J18: =hjanvier ->  | K18: =hjanvier ->  | L18: =hjanvier ->  | M18: =hjanvier ->  | N18: =hjanvier ->  | O18: =hjanvier ->  | P18: =hjanvier ->  | Q18: =hjanvier ->  | R18: =hjanvier ->  | S18: =hjanvier ->  | T18: =hjanvier ->  | U18: =hjanvier ->  | V18: =hjanvier ->  | W18: =hjanvier ->  | X18: =hjanvier ->  | Y18: =hjanvier ->  | Z18: =hjanvier ->  | AA18: =hjanvier ->  | AB18: =hjanvier ->  | AC18: =hjanvier ->  | AD18: =hjanvier ->  | AE18: =hjanvier ->  | AF18: =hjanvier -> 
A19: =Données!$H16 -> 0 | B19: =hjanvier ->  | C19: =hjanvier ->  | D19: =hjanvier ->  | E19: =hjanvier ->  | F19: =hjanvier ->  | G19: =hjanvier ->  | H19: =hjanvier ->  | I19: =hjanvier ->  | J19: =hjanvier ->  | K19: =hjanvier ->  | L19: =hjanvier ->  | M19: =hjanvier ->  | N19: =hjanvier ->  | O19: =hjanvier ->  | P19: =hjanvier ->  | Q19: =hjanvier ->  | R19: =hjanvier ->  | S19: =hjanvier ->  | T19: =hjanvier ->  | U19: =hjanvier ->  | V19: =hjanvier ->  | W19: =hjanvier ->  | X19: =hjanvier ->  | Y19: =hjanvier ->  | Z19: =hjanvier ->  | AA19: =hjanvier ->  | AB19: =hjanvier ->  | AC19: =hjanvier ->  | AD19: =hjanvier ->  | AE19: =hjanvier ->  | AF19: =hjanvier -> 
A20: =Données!$H17 -> 0 | B20: =hjanvier ->  | C20: =hjanvier ->  | D20: =hjanvier ->  | E20: =hjanvier ->  | F20: =hjanvier ->  | G20: =hjanvier ->  | H20: =hjanvier ->  | I20: =hjanvier ->  | J20: =hjanvier ->  | K20: =hjanvier ->  | L20: =hjanvier ->  | M20: =hjanvier ->  | N20: =hjanvier ->  | O20: =hjanvier ->  | P20: =hjanvier ->  | Q20: =hjanvier ->  | R20: =hjanvier ->  | S20: =hjanvier ->  | T20: =hjanvier ->  | U20: =hjanvier ->  | V20: =hjanvier ->  | W20: =hjanvier ->  | X20: =hjanvier ->  | Y20: =hjanvier ->  | Z20: =hjanvier ->  | AA20: =hjanvier ->  | AB20: =hjanvier ->  | AC20: =hjanvier ->  | AD20: =hjanvier ->  | AE20: =hjanvier ->  | AF20: =hjanvier -> 
A21: =Données!$H18 -> 0 | B21: =hjanvier ->  | C21: =hjanvier ->  | D21: =hjanvier ->  | E21: =hjanvier ->  | F21: =hjanvier ->  | G21: =hjanvier ->  | H21: =hjanvier ->  | I21: =hjanvier ->  | J21: =hjanvier ->  | K21: =hjanvier ->  | L21: =hjanvier ->  | M21: =hjanvier ->  | N21: =hjanvier ->  | O21: =hjanvier ->  | P21: =hjanvier ->  | Q21: =hjanvier ->  | R21: =hjanvier ->  | S21: =hjanvier ->  | T21: =hjanvier ->  | U21: =hjanvier ->  | V21: =hjanvier ->  | W21: =hjanvier ->  | X21: =hjanvier ->  | Y21: =hjanvier ->  | Z21: =hjanvier ->  | AA21: =hjanvier ->  | AB21: =hjanvier ->  | AC21: =hjanvier ->  | AD21: =hjanvier ->  | AE21: =hjanvier ->  | AF21: =hjanvier -> 
A22: =Données!$H19 -> 0 | B22: =hjanvier ->  | C22: =hjanvier ->  | D22: =hjanvier ->  | E22: =hjanvier ->  | F22: =hjanvier ->  | G22: =hjanvier ->  | H22: =hjanvier ->  | I22: =hjanvier ->  | J22: =hjanvier ->  | K22: =hjanvier ->  | L22: =hjanvier ->  | M22: =hjanvier ->  | N22: =hjanvier ->  | O22: =hjanvier ->  | P22: =hjanvier ->  | Q22: =hjanvier ->  | R22: =hjanvier ->  | S22: =hjanvier ->  | T22: =hjanvier ->  | U22: =hjanvier ->  | V22: =hjanvier ->  | W22: =hjanvier ->  | X22: =hjanvier ->  | Y22: =hjanvier ->  | Z22: =hjanvier ->  | AA22: =hjanvier ->  | AB22: =hjanvier ->  | AC22: =hjanvier ->  | AD22: =hjanvier ->  | AE22: =hjanvier ->  | AF22: =hjanvier -> 
A23: =Données!$H20 -> 0 | B23: =hjanvier ->  | C23: =hjanvier ->  | D23: =hjanvier ->  | E23: =hjanvier ->  | F23: =hjanvier ->  | G23: =hjanvier ->  | H23: =hjanvier ->  | I23: =hjanvier ->  | J23: =hjanvier ->  | K23: =hjanvier ->  | L23: =hjanvier ->  | M23: =hjanvier ->  | N23: =hjanvier ->  | O23: =hjanvier ->  | P23: =hjanvier ->  | Q23: =hjanvier ->  | R23: =hjanvier ->  | S23: =hjanvier ->  | T23: =hjanvier ->  | U23: =hjanvier ->  | V23: =hjanvier ->  | W23: =hjanvier ->  | X23: =hjanvier ->  | Y23: =hjanvier ->  | Z23: =hjanvier ->  | AA23: =hjanvier ->  | AB23: =hjanvier ->  | AC23: =hjanvier ->  | AD23: =hjanvier ->  | AE23: =hjanvier ->  | AF23: =hjanvier -> 
A24: =Données!$H21 -> 0 | B24: =hjanvier ->  | C24: =hjanvier ->  | D24: =hjanvier ->  | E24: =hjanvier ->  | F24: =hjanvier ->  | G24: =hjanvier ->  | H24: =hjanvier ->  | I24: =hjanvier ->  | J24: =hjanvier ->  | K24: =hjanvier ->  | L24: =hjanvier ->  | M24: =hjanvier ->  | N24: =hjanvier ->  | O24: =hjanvier ->  | P24: =hjanvier ->  | Q24: =hjanvier ->  | R24: =hjanvier ->  | S24: =hjanvier ->  | T24: =hjanvier ->  | U24: =hjanvier ->  | V24: =hjanvier ->  | W24: =hjanvier ->  | X24: =hjanvier ->  | Y24: =hjanvier ->  | Z24: =hjanvier ->  | AA24: =hjanvier ->  | AB24: =hjanvier ->  | AC24: =hjanvier ->  | AD24: =hjanvier ->  | AE24: =hjanvier ->  | AF24: =hjanvier -> 
A25: =Données!$H22 -> Equipe de nuit
A26: =Données!$H23 -> 0 | B26: =hjanvier ->  | C26: =hjanvier ->  | D26: =hjanvier ->  | E26: =hjanvier ->  | F26: =hjanvier ->  | G26: =hjanvier ->  | H26: =hjanvier ->  | I26: =hjanvier ->  | J26: =hjanvier ->  | K26: =hjanvier ->  | L26: =hjanvier ->  | M26: =hjanvier ->  | N26: =hjanvier ->  | O26: =hjanvier ->  | P26: =hjanvier ->  | Q26: =hjanvier ->  | R26: =hjanvier ->  | S26: =hjanvier ->  | T26: =hjanvier ->  | U26: =hjanvier ->  | V26: =hjanvier ->  | W26: =hjanvier ->  | X26: =hjanvier ->  | Y26: =hjanvier ->  | Z26: =hjanvier ->  | AA26: =hjanvier ->  | AB26: =hjanvier ->  | AC26: =hjanvier ->  | AD26: =hjanvier ->  | AE26: =hjanvier ->  | AF26: =hjanvier -> 
A27: =Données!$H24 -> 0 | B27: =hjanvier ->  | C27: =hjanvier ->  | D27: =hjanvier ->  | E27: =hjanvier ->  | F27: =hjanvier ->  | G27: =hjanvier ->  | H27: =hjanvier ->  | I27: =hjanvier ->  | J27: =hjanvier ->  | K27: =hjanvier ->  | L27: =hjanvier ->  | M27: =hjanvier ->  | N27: =hjanvier ->  | O27: =hjanvier ->  | P27: =hjanvier ->  | Q27: =hjanvier ->  | R27: =hjanvier ->  | S27: =hjanvier ->  | T27: =hjanvier ->  | U27: =hjanvier ->  | V27: =hjanvier ->  | W27: =hjanvier ->  | X27: =hjanvier ->  | Y27: =hjanvier ->  | Z27: =hjanvier ->  | AA27: =hjanvier ->  | AB27: =hjanvier ->  | AC27: =hjanvier ->  | AD27: =hjanvier ->  | AE27: =hjanvier ->  | AF27: =hjanvier -> 
A28: =Données!$H25 -> 0 | B28: =hjanvier ->  | C28: =hjanvier ->  | D28: =hjanvier ->  | E28: =hjanvier ->  | F28: =hjanvier ->  | G28: =hjanvier ->  | H28: =hjanvier ->  | I28: =hjanvier ->  | J28: =hjanvier ->  | K28: =hjanvier ->  | L28: =hjanvier ->  | M28: =hjanvier ->  | N28: =hjanvier ->  | O28: =hjanvier ->  | P28: =hjanvier ->  | Q28: =hjanvier ->  | R28: =hjanvier ->  | S28: =hjanvier ->  | T28: =hjanvier ->  | U28: =hjanvier ->  | V28: =hjanvier ->  | W28: =hjanvier ->  | X28: =hjanvier ->  | Y28: =hjanvier ->  | Z28: =hjanvier ->  | AA28: =hjanvier ->  | AB28: =hjanvier ->  | AC28: =hjanvier ->  | AD28: =hjanvier ->  | AE28: =hjanvier ->  | AF28: =hjanvier -> 
A29: =Données!$H26 -> 0 | B29: =hjanvier ->  | C29: =hjanvier ->  | D29: =hjanvier ->  | E29: =hjanvier ->  | F29: =hjanvier ->  | G29: =hjanvier ->  | H29: =hjanvier ->  | I29: =hjanvier ->  | J29: =hjanvier ->  | K29: =hjanvier ->  | L29: =hjanvier ->  | M29: =hjanvier ->  | N29: =hjanvier ->  | O29: =hjanvier ->  | P29: =hjanvier ->  | Q29: =hjanvier ->  | R29: =hjanvier ->  | S29: =hjanvier ->  | T29: =hjanvier ->  | U29: =hjanvier ->  | V29: =hjanvier ->  | W29: =hjanvier ->  | X29: =hjanvier ->  | Y29: =hjanvier ->  | Z29: =hjanvier ->  | AA29: =hjanvier ->  | AB29: =hjanvier ->  | AC29: =hjanvier ->  | AD29: =hjanvier ->  | AE29: =hjanvier ->  | AF29: =hjanvier -> 
A30: =Données!$H27 -> 0 | B30: =hjanvier ->  | C30: =hjanvier ->  | D30: =hjanvier ->  | E30: =hjanvier ->  | F30: =hjanvier ->  | G30: =hjanvier ->  | H30: =hjanvier ->  | I30: =hjanvier ->  | J30: =hjanvier ->  | K30: =hjanvier ->  | L30: =hjanvier ->  | M30: =hjanvier ->  | N30: =hjanvier ->  | O30: =hjanvier ->  | P30: =hjanvier ->  | Q30: =hjanvier ->  | R30: =hjanvier ->  | S30: =hjanvier ->  | T30: =hjanvier ->  | U30: =hjanvier ->  | V30: =hjanvier ->  | W30: =hjanvier ->  | X30: =hjanvier ->  | Y30: =hjanvier ->  | Z30: =hjanvier ->  | AA30: =hjanvier ->  | AB30: =hjanvier ->  | AC30: =hjanvier ->  | AD30: =hjanvier ->  | AE30: =hjanvier ->  | AF30: =hjanvier -> 
A31: =Données!$H28 -> 0 | B31: =hjanvier ->  | C31: =hjanvier ->  | D31: =hjanvier ->  | E31: =hjanvier ->  | F31: =hjanvier ->  | G31: =hjanvier ->  | H31: =hjanvier ->  | I31: =hjanvier ->  | J31: =hjanvier ->  | K31: =hjanvier ->  | L31: =hjanvier ->  | M31: =hjanvier ->  | N31: =hjanvier ->  | O31: =hjanvier ->  | P31: =hjanvier ->  | Q31: =hjanvier ->  | R31: =hjanvier ->  | S31: =hjanvier ->  | T31: =hjanvier ->  | U31: =hjanvier ->  | V31: =hjanvier ->  | W31: =hjanvier ->  | X31: =hjanvier ->  | Y31: =hjanvier ->  | Z31: =hjanvier ->  | AA31: =hjanvier ->  | AB31: =hjanvier ->  | AC31: =hjanvier ->  | AD31: =hjanvier ->  | AE31: =hjanvier ->  | AF31: =hjanvier -> 
A32: =Données!$H29 -> 0 | B32: =hjanvier ->  | C32: =hjanvier ->  | D32: =hjanvier ->  | E32: =hjanvier ->  | F32: =hjanvier ->  | G32: =hjanvier ->  | H32: =hjanvier ->  | I32: =hjanvier ->  | J32: =hjanvier ->  | K32: =hjanvier ->  | L32: =hjanvier ->  | M32: =hjanvier ->  | N32: =hjanvier ->  | O32: =hjanvier ->  | P32: =hjanvier ->  | Q32: =hjanvier ->  | R32: =hjanvier ->  | S32: =hjanvier ->  | T32: =hjanvier ->  | U32: =hjanvier ->  | V32: =hjanvier ->  | W32: =hjanvier ->  | X32: =hjanvier ->  | Y32: =hjanvier ->  | Z32: =hjanvier ->  | AA32: =hjanvier ->  | AB32: =hjanvier ->  | AC32: =hjanvier ->  | AD32: =hjanvier ->  | AE32: =hjanvier ->  | AF32: =hjanvier -> 
A33: =Données!$H30 -> 0 | B33: =hjanvier ->  | C33: =hjanvier ->  | D33: =hjanvier ->  | E33: =hjanvier ->  | F33: =hjanvier ->  | G33: =hjanvier ->  | H33: =hjanvier ->  | I33: =hjanvier ->  | J33: =hjanvier ->  | K33: =hjanvier ->  | L33: =hjanvier ->  | M33: =hjanvier ->  | N33: =hjanvier ->  | O33: =hjanvier ->  | P33: =hjanvier ->  | Q33: =hjanvier ->  | R33: =hjanvier ->  | S33: =hjanvier ->  | T33: =hjanvier ->  | U33: =hjanvier ->  | V33: =hjanvier ->  | W33: =hjanvier ->  | X33: =hjanvier ->  | Y33: =hjanvier ->  | Z33: =hjanvier ->  | AA33: =hjanvier ->  | AB33: =hjanvier ->  | AC33: =hjanvier ->  | AD33: =hjanvier ->  | AE33: =hjanvier ->  | AF33: =hjanvier -> 
A34: =Données!$H31 -> 0 | B34: =hjanvier ->  | C34: =hjanvier ->  | D34: =hjanvier ->  | E34: =hjanvier ->  | F34: =hjanvier ->  | G34: =hjanvier ->  | H34: =hjanvier ->  | I34: =hjanvier ->  | J34: =hjanvier ->  | K34: =hjanvier ->  | L34: =hjanvier ->  | M34: =hjanvier ->  | N34: =hjanvier ->  | O34: =hjanvier ->  | P34: =hjanvier ->  | Q34: =hjanvier ->  | R34: =hjanvier ->  | S34: =hjanvier ->  | T34: =hjanvier ->  | U34: =hjanvier ->  | V34: =hjanvier ->  | W34: =hjanvier ->  | X34: =hjanvier ->  | Y34: =hjanvier ->  | Z34: =hjanvier ->  | AA34: =hjanvier ->  | AB34: =hjanvier ->  | AC34: =hjanvier ->  | AD34: =hjanvier ->  | AE34: =hjanvier ->  | AF34: =hjanvier -> 
A35: =Données!$H32 -> Maitresse de maison
A36: =Données!$H33 -> 0 | B36: =hjanvier ->  | C36: =hjanvier ->  | D36: =hjanvier ->  | E36: =hjanvier ->  | F36: =hjanvier ->  | G36: =hjanvier ->  | H36: =hjanvier ->  | I36: =hjanvier ->  | J36: =hjanvier ->  | K36: =hjanvier ->  | L36: =hjanvier ->  | M36: =hjanvier ->  | N36: =hjanvier ->  | O36: =hjanvier ->  | P36: =hjanvier ->  | Q36: =hjanvier ->  | R36: =hjanvier ->  | S36: =hjanvier ->  | T36: =hjanvier ->  | U36: =hjanvier ->  | V36: =hjanvier ->  | W36: =hjanvier ->  | X36: =hjanvier ->  | Y36: =hjanvier ->  | Z36: =hjanvier ->  | AA36: =hjanvier ->  | AB36: =hjanvier ->  | AC36: =hjanvier ->  | AD36: =hjanvier ->  | AE36: =hjanvier ->  | AF36: =hjanvier -> 
A37: =Données!$H34 -> 0 | B37: =hjanvier ->  | C37: =hjanvier ->  | D37: =hjanvier ->  | E37: =hjanvier ->  | F37: =hjanvier ->  | G37: =hjanvier ->  | H37: =hjanvier ->  | I37: =hjanvier ->  | J37: =hjanvier ->  | K37: =hjanvier ->  | L37: =hjanvier ->  | M37: =hjanvier ->  | N37: =hjanvier ->  | O37: =hjanvier ->  | P37: =hjanvier ->  | Q37: =hjanvier ->  | R37: =hjanvier ->  | S37: =hjanvier ->  | T37: =hjanvier ->  | U37: =hjanvier ->  | V37: =hjanvier ->  | W37: =hjanvier ->  | X37: =hjanvier ->  | Y37: =hjanvier ->  | Z37: =hjanvier ->  | AA37: =hjanvier ->  | AB37: =hjanvier ->  | AC37: =hjanvier ->  | AD37: =hjanvier ->  | AE37: =hjanvier ->  | AF37: =hjanvier -> 
A38: =Données!$H35 -> 0 | B38: =hjanvier ->  | C38: =hjanvier ->  | D38: =hjanvier ->  | E38: =hjanvier ->  | F38: =hjanvier ->  | G38: =hjanvier ->  | H38: =hjanvier ->  | I38: =hjanvier ->  | J38: =hjanvier ->  | K38: =hjanvier ->  | L38: =hjanvier ->  | M38: =hjanvier ->  | N38: =hjanvier ->  | O38: =hjanvier ->  | P38: =hjanvier ->  | Q38: =hjanvier ->  | R38: =hjanvier ->  | S38: =hjanvier ->  | T38: =hjanvier ->  | U38: =hjanvier ->  | V38: =hjanvier ->  | W38: =hjanvier ->  | X38: =hjanvier ->  | Y38: =hjanvier ->  | Z38: =hjanvier ->  | AA38: =hjanvier ->  | AB38: =hjanvier ->  | AC38: =hjanvier ->  | AD38: =hjanvier ->  | AE38: =hjanvier ->  | AF38: =hjanvier -> 
A39: =Données!$H36 -> 0 | B39: =hjanvier ->  | C39: =hjanvier ->  | D39: =hjanvier ->  | E39: =hjanvier ->  | F39: =hjanvier ->  | G39: =hjanvier ->  | H39: =hjanvier ->  | I39: =hjanvier ->  | J39: =hjanvier ->  | K39: =hjanvier ->  | L39: =hjanvier ->  | M39: =hjanvier ->  | N39: =hjanvier ->  | O39: =hjanvier ->  | P39: =hjanvier ->  | Q39: =hjanvier ->  | R39: =hjanvier ->  | S39: =hjanvier ->  | T39: =hjanvier ->  | U39: =hjanvier ->  | V39: =hjanvier ->  | W39: =hjanvier ->  | X39: =hjanvier ->  | Y39: =hjanvier ->  | Z39: =hjanvier ->  | AA39: =hjanvier ->  | AB39: =hjanvier ->  | AC39: =hjanvier ->  | AD39: =hjanvier ->  | AE39: =hjanvier ->  | AF39: =hjanvier -> 
A40: =Données!$H37 -> 0 | B40: =hjanvier ->  | C40: =hjanvier ->  | D40: =hjanvier ->  | E40: =hjanvier ->  | F40: =hjanvier ->  | G40: =hjanvier ->  | H40: =hjanvier ->  | I40: =hjanvier ->  | J40: =hjanvier ->  | K40: =hjanvier ->  | L40: =hjanvier ->  | M40: =hjanvier ->  | N40: =hjanvier ->  | O40: =hjanvier ->  | P40: =hjanvier ->  | Q40: =hjanvier ->  | R40: =hjanvier ->  | S40: =hjanvier ->  | T40: =hjanvier ->  | U40: =hjanvier ->  | V40: =hjanvier ->  | W40: =hjanvier ->  | X40: =hjanvier ->  | Y40: =hjanvier ->  | Z40: =hjanvier ->  | AA40: =hjanvier ->  | AB40: =hjanvier ->  | AC40: =hjanvier ->  | AD40: =hjanvier ->  | AE40: =hjanvier ->  | AF40: =hjanvier -> 
A41: =Données!$H38 -> 0 | B41: =hjanvier ->  | C41: =hjanvier ->  | D41: =hjanvier ->  | E41: =hjanvier ->  | F41: =hjanvier ->  | G41: =hjanvier ->  | H41: =hjanvier ->  | I41: =hjanvier ->  | J41: =hjanvier ->  | K41: =hjanvier ->  | L41: =hjanvier ->  | M41: =hjanvier ->  | N41: =hjanvier ->  | O41: =hjanvier ->  | P41: =hjanvier ->  | Q41: =hjanvier ->  | R41: =hjanvier ->  | S41: =hjanvier ->  | T41: =hjanvier ->  | U41: =hjanvier ->  | V41: =hjanvier ->  | W41: =hjanvier ->  | X41: =hjanvier ->  | Y41: =hjanvier ->  | Z41: =hjanvier ->  | AA41: =hjanvier ->  | AB41: =hjanvier ->  | AC41: =hjanvier ->  | AD41: =hjanvier ->  | AE41: =hjanvier ->  | AF41: =hjanvier -> 
A42: =Données!$H39 -> 0 | B42: =hjanvier ->  | C42: =hjanvier ->  | D42: =hjanvier ->  | E42: =hjanvier ->  | F42: =hjanvier ->  | G42: =hjanvier ->  | H42: =hjanvier ->  | I42: =hjanvier ->  | J42: =hjanvier ->  | K42: =hjanvier ->  | L42: =hjanvier ->  | M42: =hjanvier ->  | N42: =hjanvier ->  | O42: =hjanvier ->  | P42: =hjanvier ->  | Q42: =hjanvier ->  | R42: =hjanvier ->  | S42: =hjanvier ->  | T42: =hjanvier ->  | U42: =hjanvier ->  | V42: =hjanvier ->  | W42: =hjanvier ->  | X42: =hjanvier ->  | Y42: =hjanvier ->  | Z42: =hjanvier ->  | AA42: =hjanvier ->  | AB42: =hjanvier ->  | AC42: =hjanvier ->  | AD42: =hjanvier ->  | AE42: =hjanvier ->  | AF42: =hjanvier -> 
